Workbook

Sheet Summary
C2: All Intra Main10
C3: =CONCATENATE("Over ", $J$3) -> Over HEVC (HM 16.19) | I3: Reference: | J3: HEVC (HM 16.19)
C4: Y | D4: U | E4: V | F4: EncT | G4: DecT | I4: Tested: | J4: VVC (VTM 8.0), chroma QP offset 1, JCCR QP offset 0 for base QP < 37
B5: Class A1 | C5: ='AI-10'!V107 -> -0.2908514388 | D5: ='AI-10'!W107 -> -0.314743376 | E5: ='AI-10'!X107 -> -0.3355294271 | F5: ='AI-10'!S107 -> 16.65010618 | G5: ='AI-10'!T107 -> 1.755137916
B6: Class A2 | C6: ='AI-10'!V108 -> -0.2935967986 | D6: ='AI-10'!W108 -> -0.2261763696 | E6: ='AI-10'!X108 -> -0.1924247394 | F6: ='AI-10'!S108 -> 26.56552469 | G6: ='AI-10'!T108 -> 1.852518904
B7: Class B | C7: ='AI-10'!V109 -> -0.2177448164 | D7: ='AI-10'!W109 -> -0.2611705608 | E7: ='AI-10'!X109 -> -0.3014879485 | F7: ='AI-10'!S109 -> 30.13240653 | G7: ='AI-10'!T109 -> 1.905574432
B8: Class C | C8: ='AI-10'!V110 -> -0.2255182085 | D8: ='AI-10'!W110 -> -0.1818536195 | E8: ='AI-10'!X110 -> -0.2212806725 | F8: ='AI-10'!S110 -> 41.4097233 | G8: ='AI-10'!T110 -> 1.990227288
B9: Class E | C9: ='AI-10'!V112 -> -0.2572010451 | D9: ='AI-10'!W112 -> -0.2572648584 | E9: ='AI-10'!X112 -> -0.2414554961 | F9: ='AI-10'!S112 -> 23.89829042 | G9: ='AI-10'!T112 -> 1.6976662
B10: Overall | C10: ='AI-10'!V114 -> -0.2508747091 | D10: ='AI-10'!W114 -> -0.2459900608 | E10: ='AI-10'!X114 -> -0.2611550789 | F10: ='AI-10'!S114 -> 27.59831116 | G10: ='AI-10'!T114 -> 1.852943429 | I10: Note: BD-rate is computed using piece-wise cubic interpolation
B11: Class D | C11: ='AI-10'!V111 -> -0.1845729835 | D11: ='AI-10'!W111 -> -0.1264498656 | E11: ='AI-10'!X111 -> -0.1266868066 | F11: ='AI-10'!S111 -> 46.88608932 | G11: ='AI-10'!T111 -> 1.999869049
B12: Class F | C12: ='AI-10'!V113 -> -0.3940160243 | D12: ='AI-10'!W113 -> -0.3969698234 | E12: ='AI-10'!X113 -> -0.4231090797 | F12: ='AI-10'!S113 -> 54.39349582 | G12: ='AI-10'!T113 -> 1.77077746
I13: Cluster information
C14: Random Access Main10
C15: =CONCATENATE("Over ", $J$3) -> Over HEVC (HM 16.19) | I15: CPU type: | J15: Intel Xeon E5-2697A v4
C16: Y | D16: U | E16: V | F16: EncT | G16: DecT
B17: =B5 -> Class A1 | C17: ='RA-10'!V107 -> -0.3872012866 | D17: ='RA-10'!W107 -> -0.3664254263 | E17: ='RA-10'!X107 -> -0.4442820994 | F17: ='RA-10'!S107 -> 8.939180823 | G17: ='RA-10'!T107 -> 1.700759298 | I17: Hyperthreading: | J17: off
B18: =B6 -> Class A2 | C18: ='RA-10'!V108 -> -0.4302460054 | D18: ='RA-10'!W108 -> -0.4013506496 | E18: ='RA-10'!X108 -> -0.3867765816 | F18: ='RA-10'!S108 -> 10.15125497 | G18: ='RA-10'!T108 -> 1.853007396 | I18: Turbo mode: | J18: off
B19: =B7 -> Class B | C19: ='RA-10'!V109 -> -0.3463726832 | D19: ='RA-10'!W109 -> -0.4738341154 | E19: ='RA-10'!X109 -> -0.4494082743 | F19: ='RA-10'!S109 -> 9.679497519 | G19: ='RA-10'!T109 -> 1.612253327
B20: =B8 -> Class C | C20: ='RA-10'!V110 -> -0.2983730974 | D20: ='RA-10'!W110 -> -0.3075006496 | E20: ='RA-10'!X110 -> -0.3262097682 | F20: ='RA-10'!S110 -> 12.06697455 | G20: ='RA-10'!T110 -> 1.648270808 | I20: Compiler: | J20: gcc 7.2.1
B21: =B9 -> Class E
B22: Overall | C22: ='RA-10'!V114 -> -0.3585131788 | D22: ='RA-10'!W114 -> -0.3935000935 | E22: ='RA-10'!X114 -> -0.4030037658 | F22: ='RA-10'!S114 -> 10.20016824 | G22: ='RA-10'!T114 -> 1.685476545 | I22: OS: | J22: Scientific Linux 7.4
B23: =B11 -> Class D | C23: ='RA-10'!V111 -> -0.2758290497 | D23: ='RA-10'!W111 -> -0.2717876024 | E23: ='RA-10'!X111 -> -0.2663258972 | F23: ='RA-10'!S111 -> 13.64911937 | G23: ='RA-10'!T111 -> 1.972396522
B24: =B12 -> Class F | C24: ='RA-10'!V113 -> -0.4150076946 | D24: ='RA-10'!W113 -> -0.4470321722 | E24: ='RA-10'!X113 -> -0.4585579069 | F24: ='RA-10'!S113 -> 7.023769531 | G24: ='RA-10'!T113 -> 1.455268543 | I24: Decoding options
C26: Low delay B Main10 | I26: Bitstream concatenation: | J26: yes
C27: =CONCATENATE("Over ", $J$3) -> Over HEVC (HM 16.19)
C28: Y | D28: U | E28: V | F28: EncT | G28: DecT | I28: MD5 SEI: | J28: no
B29: =B5 -> Class A1 | I29: YUV output: | J29: yes
B30: =B6 -> Class A2
B31: =B7 -> Class B | C31: ='LDB-10'!V109 -> -0.3067899465 | D31: ='LDB-10'!W109 -> -0.3651334484 | E31: ='LDB-10'!X109 -> -0.3408434786 | F31: ='LDB-10'!S109 -> 8.540867223 | G31: ='LDB-10'!T109 -> 1.565264099 | I31: SIMD options: | J31: SSE2
B32: =B8 -> Class C | C32: ='LDB-10'!V110 -> -0.2895526981 | D32: ='LDB-10'!W110 -> -0.2139127252 | E32: ='LDB-10'!X110 -> -0.2124219996 | F32: ='LDB-10'!S110 -> 10.16437148 | G32: ='LDB-10'!T110 -> 1.606623867
B33: =B9 -> Class E | C33: ='LDB-10'!V112 -> -0.328183546 | D33: ='LDB-10'!W112 -> -0.3898157303 | E33: ='LDB-10'!X112 -> -0.3342922992 | F33: ='LDB-10'!S112 -> 4.148520704 | G33: ='LDB-10'!T112 -> 1.223514444
B34: Overall | C34: ='LDB-10'!V114 -> -0.3063925969 | D34: ='LDB-10'!W114 -> -0.3208971111 | E34: ='LDB-10'!X114 -> -0.2963985241 | F34: ='LDB-10'!S114 -> 7.556012123 | G34: ='LDB-10'!T114 -> 1.484630996
B35: =B11 -> Class D | C35: ='LDB-10'!V111 -> -0.2594138197 | D35: ='LDB-10'!W111 -> -0.1589994332 | E35: ='LDB-10'!X111 -> -0.1508471185 | F35: ='LDB-10'!S111 -> 10.44799588 | G35: ='LDB-10'!T111 -> 1.849487733
B36: =B12 -> Class F | C36: ='LDB-10'!V113 -> -0.4269913386 | D36: ='LDB-10'!W113 -> -0.4346582808 | E36: ='LDB-10'!X113 -> -0.4394154791 | F36: ='LDB-10'!S113 -> 5.62746567 | G36: ='LDB-10'!T113 -> 1.263668031
C38: Low delay P Main10
C39: =CONCATENATE("Over ", $J$3) -> Over HEVC (HM 16.19)
C40: Y | D40: U | E40: V | F40: EncT | G40: DecT
B41: =B5 -> Class A1
B42: =B6 -> Class A2
B43: =B7 -> Class B | C43: ='LDP-10'!V109 -> -0.3505788736 | D43: ='LDP-10'!W109 -> -0.3884845001 | E43: ='LDP-10'!X109 -> -0.3653935893 | F43: ='LDP-10'!S109 -> 7.637062972 | G43: ='LDP-10'!T109 -> 1.640206601
B44: =B8 -> Class C | C44: ='LDP-10'!V110 -> -0.3067473244 | D44: ='LDP-10'!W110 -> -0.2134718372 | E44: ='LDP-10'!X110 -> -0.2126132319 | F44: ='LDP-10'!S110 -> 9.074258739 | G44: ='LDP-10'!T110 -> 1.654659842
B45: =B9 -> Class E | C45: ='LDP-10'!V112 -> -0.3565032179 | D45: ='LDP-10'!W112 -> -0.420796576 | E45: ='LDP-10'!X112 -> -0.3669078476 | F45: ='LDP-10'!S112 -> 3.952938809 | G45: ='LDP-10'!T112 -> 1.27053921
B46: Overall | C46: ='LDP-10'!V114 -> -0.3374494433 | D46: ='LDP-10'!W114 -> -0.3382249648 | E46: ='LDP-10'!X114 -> -0.3148453681 | F46: ='LDP-10'!S114 -> 6.860983852 | G46: ='LDP-10'!T114 -> 1.543266723
B47: =B11 -> Class D | C47: ='LDP-10'!V111 -> -0.2739088592 | D47: ='LDP-10'!W111 -> -0.1519578747 | E47: ='LDP-10'!X111 -> -0.1407328635 | F47: ='LDP-10'!S111 -> 9.450768723 | G47: ='LDP-10'!T111 -> 1.867730965
B48: =B12 -> Class F | C48: ='LDP-10'!V113 -> -0.4223109224 | D48: ='LDP-10'!W113 -> -0.4233840906 | E48: ='LDP-10'!X113 -> -0.4301976974 | F48: ='LDP-10'!S113 -> 5.858332846 | G48: ='LDP-10'!T113 -> 1.287062103

Sheet Plot
A1: Select the coding condition and sequence from the dropbox below | AD1: Line 1 - Reference | AI1: Line 2 - Test | AN1: Line 3 - Reference2
A2: RA-10 | B2: Tango2 | AD2: kbps | AE2: Y psnr | AF2: U psnr | AG2: V psnr | AI2: kbps | AJ2: Y psnr | AK2: U psnr | AL2: V psnr | AN2: kbps | AO2: Y psnr | AP2: U psnr | AQ2: V psnr
Z3: AI-10 | AA3: Tango2 | AB3: 3 | AC3: =VLOOKUP(B2,AA3:AB43,2,FALSE) -> 3 | AD3: =INDIRECT("'"&$A$2&"'!"&ADDRESS($AC3,4)) -> 29424.3069 | AE3: =INDIRECT("'"&$A$2&"'!"&ADDRESS($AC3,5)) -> 40.195 | AF3: =INDIRECT("'"&$A$2&"'!"&ADDRESS($AC3,6)) -> 48.8005 | AG3: =INDIRECT("'"&$A$2&"'!"&ADDRESS($AC3,7)) -> 46.9362 | AI3: =INDIRECT("'"&$A$2&"'!"&ADDRESS($AC3,12)) -> 27819.8808 | AJ3: =INDIRECT("'"&$A$2&"'!"&ADDRESS($AC3,13)) -> 40.3809 | AK3: =INDIRECT("'"&$A$2&"'!"&ADDRESS($AC3,14)) -> 49.2243 | AL3: =INDIRECT("'"&$A$2&"'!"&ADDRESS($AC3,15)) -> 47.5564 | AN3: =INDIRECT("'"&$A$2&"'!"&ADDRESS($AC3,29)) -> 0 | AO3: =INDIRECT("'"&$A$2&"'!"&ADDRESS($AC3,30)) -> 0 | AP3: =INDIRECT("'"&$A$2&"'!"&ADDRESS($AC3,31)) -> 0 | AQ3: =INDIRECT("'"&$A$2&"'!"&ADDRESS($AC3,32)) -> 0
Z4: RA-10 | AA4: FoodMarket4 | AB4: =AB3+4 -> 7 | AC4: =AC3+1 -> 4 | AD4: =INDIRECT("'"&$A$2&"'!"&ADDRESS($AC4,4)) -> 8876.0751 | AE4: =INDIRECT("'"&$A$2&"'!"&ADDRESS($AC4,5)) -> 39.438 | AF4: =INDIRECT("'"&$A$2&"'!"&ADDRESS($AC4,6)) -> 47.8027 | AG4: =INDIRECT("'"&$A$2&"'!"&ADDRESS($AC4,7)) -> 45.5129 | AI4: =INDIRECT("'"&$A$2&"'!"&ADDRESS($AC4,12)) -> 7559.52 | AJ4: =INDIRECT("'"&$A$2&"'!"&ADDRESS($AC4,13)) -> 39.7076 | AK4: =INDIRECT("'"&$A$2&"'!"&ADDRESS($AC4,14)) -> 48.495 | AL4: =INDIRECT("'"&$A$2&"'!"&ADDRESS($AC4,15)) -> 46.351 | AN4: =INDIRECT("'"&$A$2&"'!"&ADDRESS($AC4,29)) -> 0 | AO4: =INDIRECT("'"&$A$2&"'!"&ADDRESS($AC4,30)) -> 0 | AP4: =INDIRECT("'"&$A$2&"'!"&ADDRESS($AC4,31)) -> 0 | AQ4: =INDIRECT("'"&$A$2&"'!"&ADDRESS($AC4,32)) -> 0
Z5: LDB-10 | AA5: Campfire | AB5: 11 | AC5: =AC4+1 -> 5 | AD5: =INDIRECT("'"&$A$2&"'!"&ADDRESS($AC5,4)) -> 4562.8098 | AE5: =INDIRECT("'"&$A$2&"'!"&ADDRESS($AC5,5)) -> 38.4252 | AF5: =INDIRECT("'"&$A$2&"'!"&ADDRESS($AC5,6)) -> 46.6951 | AG5: =INDIRECT("'"&$A$2&"'!"&ADDRESS($AC5,7)) -> 44.1029 | AI5: =INDIRECT("'"&$A$2&"'!"&ADDRESS($AC5,12)) -> 3625.2131 | AJ5: =INDIRECT("'"&$A$2&"'!"&ADDRESS($AC5,13)) -> 38.8574 | AK5: =INDIRECT("'"&$A$2&"'!"&ADDRESS($AC5,14)) -> 47.4419 | AL5: =INDIRECT("'"&$A$2&"'!"&ADDRESS($AC5,15)) -> 44.843 | AN5: =INDIRECT("'"&$A$2&"'!"&ADDRESS($AC5,29)) -> 0 | AO5: =INDIRECT("'"&$A$2&"'!"&ADDRESS($AC5,30)) -> 0 | AP5: =INDIRECT("'"&$A$2&"'!"&ADDRESS($AC5,31)) -> 0 | AQ5: =INDIRECT("'"&$A$2&"'!"&ADDRESS($AC5,32)) -> 0
Z6: LDP-10 | AA6: CatRobot1 | AB6: 15 | AC6: =AC5+1 -> 6 | AD6: =INDIRECT("'"&$A$2&"'!"&ADDRESS($AC6,4)) -> 2550.3543 | AE6: =INDIRECT("'"&$A$2&"'!"&ADDRESS($AC6,5)) -> 36.9007 | AF6: =INDIRECT("'"&$A$2&"'!"&ADDRESS($AC6,6)) -> 45.579 | AG6: =INDIRECT("'"&$A$2&"'!"&ADDRESS($AC6,7)) -> 42.7478 | AI6: =INDIRECT("'"&$A$2&"'!"&ADDRESS($AC6,12)) -> 1976.9437 | AJ6: =INDIRECT("'"&$A$2&"'!"&ADDRESS($AC6,13)) -> 37.5452 | AK6: =INDIRECT("'"&$A$2&"'!"&ADDRESS($AC6,14)) -> 46.4263 | AL6: =INDIRECT("'"&$A$2&"'!"&ADDRESS($AC6,15)) -> 43.4286 | AN6: =INDIRECT("'"&$A$2&"'!"&ADDRESS($AC6,29)) -> 0 | AO6: =INDIRECT("'"&$A$2&"'!"&ADDRESS($AC6,30)) -> 0 | AP6: =INDIRECT("'"&$A$2&"'!"&ADDRESS($AC6,31)) -> 0 | AQ6: =INDIRECT("'"&$A$2&"'!"&ADDRESS($AC6,32)) -> 0
AA7: DaylightRoad2 | AB7: 19
AA8: ParkRunning3 | AB8: 23 | AD8: ="Sequence: "&B2 & " Coding Conditions: " & A2 -> Sequence: Tango2 Coding Conditions: RA-10
AA9: MarketPlace | AB9: 27
AA10: RitualDance | AB10: 31
AA11: Cactus | AB11: 35 | AD11: rate | AE11: y | AF11: u | AG11: v
AA12: BasketballDrive | AB12: 39 | AD12: =MAX(AD3:AD6,AI3:AI6, AN3:AN6) -> 29424.3069 | AE12: =MAX(AE3:AE6,AJ3:AJ6, AO3:AO6) -> 40.3809 | AF12: =MAX(AF3:AF6,AK3:AK6, AP3:AP6) -> 49.2243 | AG12: =MAX(AG3:AG6,AL3:AL6, AQ3:AQ6) -> 47.5564
AA13: BQTerrace | AB13: 43 | AD13: =MIN(AD3:AD6,AI3:AI6,AN3:AN6) -> 0 | AE13: =MIN(AE3:AE6,AJ3:AJ6,AO3:AO6) -> 0 | AF13: =MIN(AF3:AF6,AK3:AK6,AP3:AP6) -> 0 | AG13: =MIN(AG3:AG6,AL3:AL6,AQ3:AQ6) -> 0
AA14: BasketballDrill | AB14: 47
AA15: BQMall | AB15: 51 | AD15: =POWER(10,CEILING(LOG(AD12+1),1)) -> 100000 | AE15: =CEILING(AE12+0.25,0.5) -> 41 | AF15: =CEILING(AF12+0.25,0.5) -> 49.5 | AG15: =CEILING(AG12+0.25,0.5) -> 48
AA16: PartySceneC | AB16: 55 | AD16: =POWER(10,FLOOR(LOG(AD13+10),1)) -> 10 | AE16: =FLOOR(AE13-0.25,0.5) -> -0.5 | AF16: =FLOOR(AF13-0.25,0.5) -> -0.5 | AG16: =FLOOR(AG13-0.25,0.5) -> -0.5
AA17: RaceHorsesC | AB17: 59
AA18: BasketballPass | AB18: 63
AA19: BQSquare | AB19: 67
AA20: BlowingBubbles | AB20: 71
AA21: RaceHorses | AB21: 75
AA22: FourPeople | AB22: 79
AA23: Johnny | AB23: 83
AA24: KristenAndSara | AB24: 87
AA25: BasketballDrillText | AB25: 91
AA26: ChinaSpeed | AB26: 95
AA27: SlideEditing | AB27: 99
AA28: SlideShow | AB28: 103

Sheet AI-10
D1: Reference | L1: Tested | V1: BD-rate (piecewise cubic) | Y1: BD-rate (cubic)
C2: QPISlice | D2: kbps | E2: Y psnr | F2: U psnr | G2: V psnr | H2: Enc T [s] | I2: Dec T [s] | J2: Enc T [h] | L2: kbps | M2: Y psnr | N2: U psnr | O2: V psnr | P2: Enc T [s] | Q2: Dec T [s] | R2: Enc T [h] | S2: EncR | T2: DecR | V2: Y | W2: U | X2: V | Y2: Y | Z2: U | AA2: V
A3: Class A1 | B3: Tango2 | C3: 22 | D3: =Reference!B1 -> 18710.0059 | E3: =Reference!C1 -> 41.4765 | F3: =Reference!D1 -> 49.363 | G3: =Reference!E1 -> 47.8633 | H3: =Reference!F1 -> 2148.696851 | I3: =Reference!G1 -> 20.85611987 | J3: =H3/3600 -> 0.5968602364 | L3: =Test!B1 -> 20001.7557 | M3: =Test!C1 -> 41.9143 | N3: =Test!D1 -> 49.5246 | O3: =Test!E1 -> 48.2332 | P3: =Test!F1 -> 105448.37 | Q3: =Test!G1 -> 39.82 | R3: =P3/3600 -> 29.29121389 | S3: =P3/H3 -> 49.07549892 | T3: =Q3/I3 -> 1.909271727 | V3: =bdrate($D3:$D6,E3:E6,$L3:$L6,M3:M6) -> -0.2753971135 | W3: =bdrate($D3:$D6,F3:F6,$L3:$L6,N3:N6) -> -0.4322666976 | X3: =bdrate($D3:$D6,G3:G6,$L3:$L6,O3:O6) -> -0.3564775266 | Y3: =bdrateOld($D3:$D6,E3:E6,$L3:$L6,M3:M6) -> -0.272002429 | Z3: =bdrateOld($D3:$D6,F3:F6,$L3:$L6,N3:N6) -> -0.4271950992 | AA3: =bdrateOld($D3:$D6,G3:G6,$L3:$L6,O3:O6) -> -0.3558858949
A4: 4K | C4: 27 | D4: =Reference!B2 -> 6616.4222 | E4: =Reference!C2 -> 40.1431 | F4: =Reference!D2 -> 47.9807 | G4: =Reference!E2 -> 46.0253 | H4: =Reference!F2 -> 1710.963231 | I4: =Reference!G2 -> 15.87681293 | J4: 0.4752675642 | L4: =Test!B2 -> 4689.5011 | M4: =Test!C2 -> 40.0899 | N4: =Test!D2 -> 48.4751 | O4: =Test!E2 -> 46.433 | P4: =Test!F2 -> 32230.1 | Q4: =Test!G2 -> 28.1 | R4: 8.952805556 | S4: 18.83740072 | T4: 1.769876619
C5: 32 | D5: =Reference!B3 -> 3745.213 | E5: =Reference!C3 -> 39.2704 | F5: =Reference!D3 -> 46.6237 | G5: =Reference!E3 -> 44.3916 | H5: =Reference!F3 -> 1555.965276 | I5: =Reference!G3 -> 14.61580491 | J5: 0.4322125767 | L5: =Test!B3 -> 2645.4016 | M5: =Test!C3 -> 39.254 | N5: =Test!D3 -> 47.1768 | O5: =Test!E3 -> 44.59 | P5: =Test!F3 -> 14815.15 | Q5: =Test!G3 -> 23.76 | R5: 4.115319444 | S5: 9.521517111 | T5: 1.625637462
C6: 37 | D6: =Reference!B4 -> 2232.1849 | E6: =Reference!C4 -> 38.0387 | F6: =Reference!D4 -> 45.4916 | G6: =Reference!E4 -> 43.0786 | H6: =Reference!F4 -> 1505.345928 | I6: =Reference!G4 -> 13.45317817 | J6: 0.4181516467 | L6: =Test!B4 -> 1570.4173 | M6: =Test!C4 -> 38.0307 | N6: =Test!D4 -> 45.9612 | O6: =Test!E4 -> 43.0688 | P6: =Test!F4 -> 6060.35 | Q6: =Test!G4 -> 18.43 | R6: 1.683430556 | S6: 4.025885272 | T6: 1.369936514
B7: FoodMarket4 | C7: 22 | D7: =Reference!B5 -> 17427.9947 | E7: =Reference!C5 -> 44.976 | F7: =Reference!D5 -> 49.4667 | G7: =Reference!E5 -> 49.94 | H7: =Reference!F5 -> 2016.499898 | I7: =Reference!G5 -> 19.55111003 | J7: 0.5601388605 | L7: =Test!B5 -> 14387.5626 | M7: =Test!C5 -> 45.1873 | N7: =Test!D5 -> 49.5109 | O7: =Test!E5 -> 50.2716 | P7: =Test!F5 -> 55505.73 | Q7: =Test!G5 -> 36.94 | R7: 15.41825833 | S7: 27.52577873 | T7: 1.889406788 | V7: =bdrate($D7:$D10,E7:E10,$L7:$L10,M7:M10) -> -0.2776363878 | W7: =bdrate($D7:$D10,F7:F10,$L7:$L10,N7:N10) -> -0.2720812094 | X7: =bdrate($D7:$D10,G7:G10,$L7:$L10,O7:O10) -> -0.2956872692 | Y7: =bdrateOld($D7:$D10,E7:E10,$L7:$L10,M7:M10) -> -0.2779695873 | Z7: =bdrateOld($D7:$D10,F7:F10,$L7:$L10,N7:N10) -> -0.2705859754 | AA7: =bdrateOld($D7:$D10,G7:G10,$L7:$L10,O7:O10) -> -0.2949725724
C8: 27 | D8: =Reference!B6 -> 10094.2595 | E8: =Reference!C6 -> 43.4428 | F8: =Reference!D6 -> 47.1569 | G8: =Reference!E6 -> 47.5067 | H8: =Reference!F6 -> 1782.947348 | I8: =Reference!G6 -> 17.31944203 | J8: 0.4952631522 | L8: =Test!B6 -> 7819.8363 | M8: =Test!C6 -> 43.591 | N8: =Test!D6 -> 47.5178 | O8: =Test!E6 -> 48.0756 | P8: =Test!F6 -> 30376.5 | Q8: =Test!G6 -> 34.46 | R8: 8.437916667 | S8: 17.03723895 | T8: 1.989671488
C9: 32 | D9: =Reference!B7 -> 6036.7563 | E9: =Reference!C7 -> 41.5821 | F9: =Reference!D7 -> 45.2486 | G9: =Reference!E7 -> 45.5007 | H9: =Reference!F7 -> 1664.506258 | I9: =Reference!G7 -> 15.81651306 | J9: 0.4623628494 | L9: =Test!B7 -> 4615.4968 | M9: =Test!C7 -> 41.8567 | N9: =Test!D7 -> 45.5098 | O9: =Test!E7 -> 45.772 | P9: =Test!F7 -> 18627.15 | Q9: =Test!G7 -> 27.77 | R9: 5.174208333 | S9: 11.19079602 | T9: 1.755759938
C10: 37 | D10: =Reference!B8 -> 3585.9237 | E10: =Reference!C8 -> 39.3283 | F10: =Reference!D8 -> 43.8282 | G10: =Reference!E8 -> 43.98 | H10: =Reference!F8 -> 1594.636302 | I10: =Reference!G8 -> 14.80168796 | J10: 0.4429545283 | L10: =Test!B8 -> 2719.0563 | M10: =Test!C8 -> 39.7117 | N10: =Test!D8 -> 43.7253 | O10: =Test!E8 -> 43.9937 | P10: =Test!F8 -> 9753.86 | Q10: =Test!G8 -> 23.11 | R10: 2.709405556 | S10: 6.116667473 | T10: 1.561308418
B11: Campfire | C11: 22 | D11: =Reference!B9 -> 25061.0432 | E11: =Reference!C9 -> 43.0566 | F11: =Reference!D9 -> 44.362 | G11: =Reference!E9 -> 43.7341 | H11: =Reference!F9 -> 2457.732808 | I11: =Reference!G9 -> 29.32709193 | J11: 0.6827035577 | L11: =Test!B9 -> 21791.8847 | M11: =Test!C9 -> 43.8756 | N11: =Test!D9 -> 45.0986 | O11: =Test!E9 -> 43.6215 | P11: =Test!F9 -> 109409.92 | Q11: =Test!G9 -> 53.09 | R11: 30.39164444 | S11: 44.51660475 | T11: 1.810271544 | V11: =bdrate($D11:$D14,E11:E14,$L11:$L14,M11:M14) -> -0.319520815 | W11: =bdrate($D11:$D14,F11:F14,$L11:$L14,N11:N14) -> -0.2398822209 | X11: =bdrate($D11:$D14,G11:G14,$L11:$L14,O11:O14) -> -0.3544234856 | Y11: =bdrateOld($D11:$D14,E11:E14,$L11:$L14,M11:M14) -> -0.3306272713 | Z11: =bdrateOld($D11:$D14,F11:F14,$L11:$L14,N11:N14) -> -0.2407650678 | AA11: =bdrateOld($D11:$D14,G11:G14,$L11:$L14,O11:O14) -> -0.3611794305
C12: 27 | D12: =Reference!B10 -> 10108.2158 | E12: =Reference!C10 -> 39.2102 | F12: =Reference!D10 -> 40.7443 | G12: =Reference!E10 -> 41.4274 | H12: =Reference!F10 -> 1969.084016 | I12: =Reference!G10 -> 21.07364082 | J12: 0.5469677822 | L12: =Test!B10 -> 9466.3153 | M12: =Test!C10 -> 40.1188 | N12: =Test!D10 -> 41.3606 | O12: =Test!E10 -> 41.947 | P12: =Test!F10 -> 59654 | Q12: =Test!G10 -> 41.16 | R12: 16.57055556 | S12: 30.29530458 | T12: 1.953150874
C13: 32 | D13: =Reference!B11 -> 4078.7171 | E13: =Reference!C11 -> 37.1183 | F13: =Reference!D11 -> 38.3217 | G13: =Reference!E11 -> 39.8269 | H13: =Reference!F11 -> 1675.634733 | I13: =Reference!G11 -> 16.00145316 | J13: 0.4654540925 | L13: =Test!B11 -> 3014.5413 | M13: =Test!C11 -> 37.4677 | N13: =Test!D11 -> 38.3039 | O13: =Test!E11 -> 40.4941 | P13: =Test!F11 -> 40720.26 | Q13: =Test!G11 -> 29.26 | R13: 11.31118333 | S13: 24.30139409 | T13: 1.828583923
C14: 37 | D14: =Reference!B12 -> 2243.6945 | E14: =Reference!C12 -> 35.7368 | F14: =Reference!D12 -> 36.6308 | G14: =Reference!E12 -> 38.625 | H14: =Reference!F12 -> 1562.954134 | I14: =Reference!G12 -> 13.99991608 | J14: 0.4341539261 | L14: =Test!B12 -> 1561.4021 | M14: =Test!C12 -> 36.1402 | N14: =Test!D12 -> 36.4274 | O14: =Test!E12 -> 38.9632 | P14: =Test!F12 -> 19030.66 | Q14: =Test!G12 -> 23.86 | R14: 5.286294444 | S14: 12.17608347 | T14: 1.704295931
A15: Class A2 | B15: CatRobot1 | C15: 22 | D15: =Reference!B13 -> 34973.8816 | E15: =Reference!C13 -> 41.8721 | F15: =Reference!D13 -> 42.6227 | G15: =Reference!E13 -> 44.1137 | H15: =Reference!F13 -> 2461.424354 | I15: =Reference!G13 -> 27.00120306 | J15: 0.6837289872 | L15: =Test!B13 -> 34949.2895 | M15: =Test!C13 -> 42.7159 | N15: =Test!D13 -> 42.3106 | O15: =Test!E13 -> 44.0619 | P15: =Test!F13 -> 101980.68 | Q15: =Test!G13 -> 54.81 | R15: 28.32796667 | S15: 41.43157186 | T15: 2.029909552 | V15: =bdrate($D15:$D18,E15:E18,$L15:$L18,M15:M18) -> -0.2847877753 | W15: =bdrate($D15:$D18,F15:F18,$L15:$L18,N15:N18) -> -0.2884837719 | X15: =bdrate($D15:$D18,G15:G18,$L15:$L18,O15:O18) -> -0.2880275689 | Y15: =bdrateOld($D15:$D18,E15:E18,$L15:$L18,M15:M18) -> -0.2807200695 | Z15: =bdrateOld($D15:$D18,F15:F18,$L15:$L18,N15:N18) -> -0.2847363954 | AA15: =bdrateOld($D15:$D18,G15:G18,$L15:$L18,O15:O18) -> -0.2838233327
A16: 4K | C16: 27 | D16: =Reference!B14 -> 13541.3068 | E16: =Reference!C14 -> 39.7195 | F16: =Reference!D14 -> 41.2326 | G16: =Reference!E14 -> 42.1848 | H16: =Reference!F14 -> 1925.690466 | I16: =Reference!G14 -> 20.24946499 | J16: 0.5349140184 | L16: =Test!B14 -> 10044.8195 | M16: =Test!C14 -> 39.7566 | N16: =Test!D14 -> 41.4027 | O16: =Test!E14 -> 42.5187 | P16: =Test!F14 -> 56100.13 | Q16: =Test!G14 -> 38.36 | R16: 15.58336944 | S16: 29.13247533 | T16: 1.894371038
C17: 32 | D17: =Reference!B15 -> 7816.6753 | E17: =Reference!C15 -> 38.2501 | F17: =Reference!D15 -> 40.219 | G17: =Reference!E15 -> 40.5633 | H17: =Reference!F15 -> 1726.709998 | I17: =Reference!G15 -> 18.05091906 | J17: 0.4796416661 | L17: =Test!B15 -> 5803.9784 | M17: =Test!C15 -> 38.3933 | N17: =Test!D15 -> 40.4784 | O17: =Test!E15 -> 40.805 | P17: =Test!F15 -> 32122.7 | Q17: =Test!G15 -> 32.14 | R17: 8.922972222 | S17: 18.60341345 | T17: 1.780518759
C18: 37 | D18: =Reference!B16 -> 4646.1742 | E18: =Reference!C16 -> 36.3014 | F18: =Reference!D16 -> 39.3709 | G18: =Reference!E16 -> 39.2868 | H18: =Reference!F16 -> 1597.373746 | I18: =Reference!G16 -> 15.4784801 | J18: 0.4437149294 | L18: =Test!B16 -> 3452.6968 | M18: =Test!C16 -> 36.5113 | N18: =Test!D16 -> 39.5573 | O18: =Test!E16 -> 39.1878 | P18: =Test!F16 -> 17165.51 | Q18: =Test!G16 -> 26.05 | R18: 4.768197222 | S18: 10.74608246 | T18: 1.682981781
B19: DaylightRoad2 | C19: 22 | D19: =Reference!B17 -> 53685.2747 | E19: =Reference!C17 -> 40.5409 | F19: =Reference!D17 -> 45.9387 | G19: =Reference!E17 -> 44.0766 | H19: =Reference!F17 -> 2898.546288 | I19: =Reference!G17 -> 34.07649207 | J19: 0.8051517467 | L19: =Test!B17 -> 58534.0832 | M19: =Test!C17 -> 41.7625 | N19: =Test!D17 -> 46.0326 | O19: =Test!E17 -> 43.9187 | P19: =Test!F17 -> 145873.27 | Q19: =Test!G17 -> 65.34 | R19: 40.52035278 | S19: 50.32635518 | T19: 1.917450889 | V19: =bdrate($D19:$D22,E19:E22,$L19:$L22,M19:M22) -> -0.2663727287 | W19: =bdrate($D19:$D22,F19:F22,$L19:$L22,N19:N22) -> -0.371085175 | X19: =bdrate($D19:$D22,G19:G22,$L19:$L22,O19:O22) -> -0.259800689 | Y19: =bdrateOld($D19:$D22,E19:E22,$L19:$L22,M19:M22) -> -0.2207072048 | Z19: =bdrateOld($D19:$D22,F19:F22,$L19:$L22,N19:N22) -> -0.3630853678 | AA19: =bdrateOld($D19:$D22,G19:G22,$L19:$L22,O19:O22) -> -0.2437893045
C20: 27 | D20: =Reference!B18 -> 13525.4526 | E20: =Reference!C18 -> 37.6398 | F20: =Reference!D18 -> 44.4075 | G20: =Reference!E18 -> 42.3 | H20: =Reference!F18 -> 2013.881436 | I20: =Reference!G18 -> 20.85392404 | J20: 0.55941151 | L20: =Test!B18 -> 10178.2516 | M20: =Test!C18 -> 37.6425 | N20: =Test!D18 -> 44.8174 | O20: =Test!E18 -> 42.4837 | P20: =Test!F18 -> 69092.1 | Q20: =Test!G18 -> 38.12 | R20: 19.19225 | S20: 34.30792835 | T20: 1.827953336
C21: 32 | D21: =Reference!B19 -> 7305.2511 | E21: =Reference!C19 -> 36.5078 | F21: =Reference!D19 -> 43.0487 | G21: =Reference!E19 -> 40.853 | H21: =Reference!F19 -> 1699.041286 | I21: =Reference!G19 -> 17.64479899 | J21: 0.4719559128 | L21: =Test!B19 -> 5491.9847 | M21: =Test!C19 -> 36.6038 | N21: =Test!D19 -> 43.4977 | O21: =Test!E19 -> 41.1999 | P21: =Test!F19 -> 36602.87 | Q21: =Test!G19 -> 31.45 | R21: 10.16746389 | S21: 21.5432493 | T21: 1.782394915
C22: 37 | D22: =Reference!B20 -> 4044.0947 | E22: =Reference!C20 -> 34.9687 | F22: =Reference!D20 -> 42.0464 | G22: =Reference!E20 -> 39.8005 | H22: =Reference!F20 -> 1592.34424 | I22: =Reference!G20 -> 15.11865807 | J22: 0.4423178444 | L22: =Test!B20 -> 3057.1311 | M22: =Test!C20 -> 35.1246 | N22: =Test!D20 -> 42.2347 | O22: =Test!E20 -> 39.4539 | P22: =Test!F20 -> 18026.89 | Q22: =Test!G20 -> 24.55 | R22: 5.007469444 | S22: 11.32097542 | T22: 1.623821366
B23: ParkRunning3 | C23: 22 | D23: =Reference!B21 -> 55258.5789 | E23: =Reference!C21 -> 45.677 | F23: =Reference!D21 -> 40.9389 | G23: =Reference!E21 -> 41.3518 | H23: =Reference!F21 -> 2544.203369 | I23: =Reference!G21 -> 28.75522995 | J23: 0.706723158 | L23: =Test!B21 -> 47059.6632 | M23: =Test!C21 -> 47.0861 | N23: =Test!D21 -> 39.8571 | O23: =Test!E21 -> 40.4297 | P23: =Test!F21 -> 102150.78 | Q23: =Test!G21 -> 56.17 | R23: 28.37521667 | S23: 40.15039884 | T23: 1.953383788 | V23: =bdrate($D23:$D26,E23:E26,$L23:$L26,M23:M26) -> -0.3296298916 | W23: =bdrate($D23:$D26,F23:F26,$L23:$L26,N23:N26) -> -0.01896016189 | X23: =bdrate($D23:$D26,G23:G26,$L23:$L26,O23:O26) -> -0.02944596018 | Y23: =bdrateOld($D23:$D26,E23:E26,$L23:$L26,M23:M26) -> -0.3295570434 | Z23: =bdrateOld($D23:$D26,F23:F26,$L23:$L26,N23:N26) -> -0.01656683595 | AA23: =bdrateOld($D23:$D26,G23:G26,$L23:$L26,O23:O26) -> -0.02392855994
C24: 27 | D24: =Reference!B22 -> 31498.7487 | E24: =Reference!C22 -> 41.8784 | F24: =Reference!D22 -> 37.1216 | G24: =Reference!E22 -> 37.992 | H24: =Reference!F22 -> 2176.476935 | I24: =Reference!G22 -> 24.33385086 | J24: 0.6045769264 | L24: =Test!B22 -> 26862.0408 | M24: =Test!C22 -> 43.2313 | N24: =Test!D22 -> 36.5391 | O24: =Test!E22 -> 37.4683 | P24: =Test!F22 -> 88296.06 | Q24: =Test!G22 -> 49.45 | R24: 24.52668333 | S24: 40.5683417 | T24: 2.032148561
C25: 32 | D25: =Reference!B23 -> 17518.9053 | E25: =Reference!C23 -> 38.2624 | F25: =Reference!D23 -> 34.5142 | G25: =Reference!E23 -> 35.6663 | H25: =Reference!F23 -> 1932.303741 | I25: =Reference!G23 -> 21.175596 | J25: 0.5367510392 | L25: =Test!B23 -> 14188.6789 | M25: =Test!C23 -> 39.5362 | N25: =Test!D23 -> 33.7231 | O25: =Test!E23 -> 35.0861 | P25: =Test!F23 -> 64457.73 | Q25: =Test!G23 -> 41.33 | R25: 17.904925 | S25: 33.35796988 | T25: 1.951775053
C26: 37 | D26: =Reference!B24 -> 9609.8842 | E26: =Reference!C24 -> 34.9819 | F26: =Reference!D24 -> 32.7457 | G26: =Reference!E24 -> 34.1024 | H26: =Reference!F24 -> 1751.081882 | I26: =Reference!G24 -> 18.4336741 | J26: 0.4864116339 | L26: =Test!B24 -> 7630.6816 | M26: =Test!C24 -> 36.0654 | N26: =Test!D24 -> 31.69 | O26: =Test!E24 -> 33.1719 | P26: =Test!F24 -> 39184.46 | Q26: =Test!G24 -> 33.25 | R26: 10.88457222 | S26: 22.37728595 | T26: 1.803764123
A27: Class B | B27: MarketPlace | C27: 22 | D27: =Reference!B25 -> 11076.1128 | E27: =Reference!C25 -> 42.4783 | F27: =Reference!D25 -> 45.092 | G27: =Reference!E25 -> 45.4908 | H27: =Reference!F25 -> 1236.764 | I27: =Reference!G25 -> 12.42292309 | J27: 0.3435455555 | L27: =Test!B25 -> 10430.916 | M27: =Test!C25 -> 43.0678 | N27: =Test!D25 -> 45.0412 | O27: =Test!E25 -> 45.641 | P27: =Test!F25 -> 59052.96 | Q27: =Test!G25 -> 26.05 | R27: 16.4036 | S27: 47.74796162 | T27: 2.096929991 | V27: =bdrate($D27:$D30,E27:E30,$L27:$L30,M27:M30) -> -0.2049464115 | W27: =bdrate($D27:$D30,F27:F30,$L27:$L30,N27:N30) -> -0.2013352588 | X27: =bdrate($D27:$D30,G27:G30,$L27:$L30,O27:O30) -> -0.2047760898 | Y27: =bdrateOld($D27:$D30,E27:E30,$L27:$L30,M27:M30) -> -0.2048609013 | Z27: =bdrateOld($D27:$D30,F27:F30,$L27:$L30,N27:N30) -> -0.1945616064 | AA27: =bdrateOld($D27:$D30,G27:G30,$L27:$L30,O27:O30) -> -0.2033212993
A28: 1080p | C28: 27 | D28: =Reference!B26 -> 6044.1776 | E28: =Reference!C26 -> 39.8755 | F28: =Reference!D26 -> 42.7149 | G28: =Reference!E26 -> 43.4795 | H28: =Reference!F26 -> 1018.815445 | I28: =Reference!G26 -> 10.09806895 | J28: 0.2830042903 | L28: =Test!B26 -> 5461.2928 | M28: =Test!C26 -> 40.3334 | N28: =Test!D26 -> 43.1545 | O28: =Test!E26 -> 44.0037 | P28: =Test!F26 -> 36854.34 | Q28: =Test!G26 -> 21.04 | R28: 10.23731667 | S28: 36.17371545 | T28: 2.08356668
C29: 32 | D29: =Reference!B27 -> 3370.5944 | E29: =Reference!C27 -> 37.3665 | F29: =Reference!D27 -> 41.028 | G29: =Reference!E27 -> 42.0207 | H29: =Reference!F27 -> 898.076982 | I29: =Reference!G27 -> 8.854164124 | J29: 0.2494658283 | L29: =Test!B27 -> 2986.0632 | M29: =Test!C27 -> 37.8884 | N29: =Test!D27 -> 41.4804 | O29: =Test!E27 -> 42.2317 | P29: =Test!F27 -> 25257.16 | Q29: =Test!G27 -> 16.83 | R29: 7.015877778 | S29: 28.12360244 | T29: 1.900800546
C30: 37 | D30: =Reference!B28 -> 1798.2336 | E30: =Reference!C28 -> 34.8058 | F30: =Reference!D28 -> 39.8995 | G30: =Reference!E28 -> 40.9232 | H30: =Reference!F28 -> 816.9691501 | I30: =Reference!G28 -> 7.559376001 | J30: 0.226935875 | L30: =Test!B28 -> 1575.3136 | M30: =Test!C28 -> 35.3394 | N30: =Test!D28 -> 39.9569 | O30: =Test!E28 -> 40.9946 | P30: =Test!F28 -> 14223.71 | Q30: =Test!G28 -> 14.32 | R30: 3.951030556 | S30: 17.41033918 | T30: 1.894336252
B31: RitualDance | C31: 22 | D31: =Reference!B29 -> 6719.2816 | E31: =Reference!C29 -> 45.5523 | F31: =Reference!D29 -> 47.8979 | G31: =Reference!E29 -> 48.5555 | H31: =Reference!F29 -> 1042.330295 | I31: =Reference!G29 -> 11.41989398 | J31: 0.289536193 | L31: =Test!B29 -> 6119.2824 | M31: =Test!C29 -> 46.3247 | N31: =Test!D29 -> 48.4407 | O31: =Test!E29 -> 49.4987 | P31: =Test!F29 -> 39855.26 | Q31: =Test!G29 -> 23.58 | R31: 11.07090556 | S31: 38.23668965 | T31: 2.064817768 | V31: =bdrate($D31:$D34,E31:E34,$L31:$L34,M31:M34) -> -0.2298266812 | W31: =bdrate($D31:$D34,F31:F34,$L31:$L34,N31:N34) -> -0.296602018 | X31: =bdrate($D31:$D34,G31:G34,$L31:$L34,O31:O34) -> -0.2840546049 | Y31: =bdrateOld($D31:$D34,E31:E34,$L31:$L34,M31:M34) -> -0.2297080541 | Z31: =bdrateOld($D31:$D34,F31:F34,$L31:$L34,N31:N34) -> -0.2939471046 | AA31: =bdrateOld($D31:$D34,G31:G34,$L31:$L34,O31:O34) -> -0.280672198
C32: 27 | D32: =Reference!B30 -> 3881.4104 | E32: =Reference!C30 -> 42.6112 | F32: =Reference!D30 -> 45.3302 | G32: =Reference!E30 -> 45.837 | H32: =Reference!F30 -> 923.189759 | I32: =Reference!G30 -> 9.770816803 | J32: 0.2564415997 | L32: =Test!B30 -> 3573.0088 | M32: =Test!C30 -> 43.5099 | N32: =Test!D30 -> 46.4258 | O32: =Test!E30 -> 47.0461 | P32: =Test!F30 -> 26113.92 | Q32: =Test!G30 -> 18.94 | R32: 7.253866667 | S32: 28.28662227 | T32: 1.938425454
C33: 32 | D33: =Reference!B31 -> 2181.2912 | E33: =Reference!C31 -> 39.62 | F33: =Reference!D31 -> 43.3889 | G33: =Reference!E31 -> 43.7112 | H33: =Reference!F31 -> 844.9295149 | I33: =Reference!G31 -> 8.485357046 | J33: 0.234702643 | L33: =Test!B31 -> 2005.588 | M33: =Test!C31 -> 40.5542 | N33: =Test!D31 -> 44.4591 | O33: =Test!E31 -> 44.4957 | P33: =Test!F31 -> 17739.78 | Q33: =Test!G31 -> 14.99 | R33: 4.927716667 | S33: 20.99557382 | T33: 1.766572687
C34: 37 | D34: =Reference!B32 -> 1198.0624 | E34: =Reference!C32 -> 36.7055 | F34: =Reference!D32 -> 42.0333 | G34: =Reference!E32 -> 42.2315 | H34: =Reference!F32 -> 794.6956019 | I34: =Reference!G32 -> 7.357630014 | J34: 0.2207487783 | L34: =Test!B32 -> 1096.6568 | M34: =Test!C32 -> 37.5973 | N34: =Test!D32 -> 42.2379 | O34: =Test!E32 -> 42.7895 | P34: =Test!F32 -> 10067.82 | Q34: =Test!G32 -> 11.89 | R34: 2.796616667 | S34: 12.66877528 | T34: 1.6160095
B35: Cactus | C35: 22 | D35: =Reference!B33 -> 13035.7413 | E35: =Reference!C33 -> 40.6015 | F35: =Reference!D33 -> 41.6962 | G35: =Reference!E33 -> 44.2212 | H35: =Reference!F33 -> 1198.959442 | I35: =Reference!G33 -> 14.0398891 | J35: =H35/3600 -> 0.3330442894 | L35: =Test!B33 -> 11979.4397 | M35: =Test!C33 -> 41.1275 | N35: =Test!D33 -> 40.9985 | O35: =Test!E33 -> 44.3388 | P35: =Test!F33 -> 57949.06 | Q35: =Test!G33 -> 28.39 | R35: =P35/3600 -> 16.09696111 | S35: =P35/H35 -> 48.33279423 | T35: =Q35/I35 -> 2.022095745 | V35: =bdrate($D35:$D38,E35:E38,$L35:$L38,M35:M38) -> -0.2295766431 | W35: =bdrate($D35:$D38,F35:F38,$L35:$L38,N35:N38) -> -0.1825116899 | X35: =bdrate($D35:$D38,G35:G38,$L35:$L38,O35:O38) -> -0.2596471821 | Y35: =bdrateOld($D35:$D38,E35:E38,$L35:$L38,M35:M38) -> -0.2289123651 | Z35: =bdrateOld($D35:$D38,F35:F38,$L35:$L38,N35:N38) -> -0.1816299792 | AA35: =bdrateOld($D35:$D38,G35:G38,$L35:$L38,O35:O38) -> -0.255390913
C36: 27 | D36: =Reference!B34 -> 6046.577 | E36: =Reference!C34 -> 37.9545 | F36: =Reference!D34 -> 39.4176 | G36: =Reference!E34 -> 42.0055 | H36: =Reference!F34 -> 931.8226371 | I36: =Reference!G34 -> 10.516927 | J36: 0.2588396214 | L36: =Test!B34 -> 5250.3484 | M36: =Test!C34 -> 38.2724 | N36: =Test!D34 -> 39.6164 | O36: =Test!E34 -> 42.6288 | P36: =Test!F34 -> 40344.13 | Q36: =Test!G34 -> 21.35 | R36: 11.20670278 | S36: 43.2959325 | T36: 2.030060681
C37: 32 | D37: =Reference!B35 -> 3279.3952 | E37: =Reference!C35 -> 35.6879 | F37: =Reference!D35 -> 38.3086 | G37: =Reference!E35 -> 40.2486 | H37: =Reference!F35 -> 789.597173 | I37: =Reference!G35 -> 8.915456057 | J37: 0.219332548 | L37: =Test!B35 -> 2807.8611 | M37: =Test!C35 -> 36.1721 | N37: =Test!D35 -> 38.5892 | O37: =Test!E35 -> 40.7321 | P37: =Test!F35 -> 27997.39 | Q37: =Test!G35 -> 14.97 | R37: 7.777052778 | S37: 35.45781439 | T37: 1.679106476
C38: 37 | D38: =Reference!B36 -> 1776.3214 | E38: =Reference!C36 -> 33.2367 | F38: =Reference!D36 -> 37.4606 | G38: =Reference!E36 -> 38.9313 | H38: =Reference!F36 -> 719.191118 | I38: =Reference!G36 -> 7.485896111 | J38: 0.1997753106 | L38: =Test!B36 -> 1506.4444 | M38: =Test!C36 -> 33.8461 | N38: =Test!D36 -> 37.4014 | O38: =Test!E36 -> 38.8768 | P38: =Test!F36 -> 15437.3 | Q38: =Test!G36 -> 13.57 | R38: 4.288138889 | S38: 21.46480902 | T38: 1.812742229
B39: BasketballDrive | C39: 22 | D39: =Reference!B37 -> 8734.531 | E39: =Reference!C37 -> 41.3092 | F39: =Reference!D37 -> 44.4726 | G39: =Reference!E37 -> 46.0916 | H39: =Reference!F37 -> 1074.53157 | I39: =Reference!G37 -> 11.97454095 | J39: 0.2984809917 | L39: =Test!B37 -> 8759.0825 | M39: =Test!C37 -> 41.8462 | N39: =Test!D37 -> 44.6237 | O39: =Test!E37 -> 46.4693 | P39: =Test!F37 -> 54678.46 | Q39: =Test!G37 -> 25.26 | R39: 15.18846111 | S39: 50.88585718 | T39: 2.109475437 | V39: =bdrate($D39:$D42,E39:E42,$L39:$L42,M39:M42) -> -0.2382437719 | W39: =bdrate($D39:$D42,F39:F42,$L39:$L42,N39:N42) -> -0.3033133857 | X39: =bdrate($D39:$D42,G39:G42,$L39:$L42,O39:O42) -> -0.296418638 | Y39: =bdrateOld($D39:$D42,E39:E42,$L39:$L42,M39:M42) -> -0.236331762 | Z39: =bdrateOld($D39:$D42,F39:F42,$L39:$L42,N39:N42) -> -0.2996560105 | AA39: =bdrateOld($D39:$D42,G39:G42,$L39:$L42,O39:O42) -> -0.2933754157
C40: 27 | D40: =Reference!B38 -> 3598.3206 | E40: =Reference!C38 -> 38.7516 | F40: =Reference!D38 -> 42.9039 | G40: =Reference!E38 -> 43.8015 | H40: =Reference!F38 -> 856.1441579 | I40: =Reference!G38 -> 8.943593025 | J40: 0.2378178216 | L40: =Test!B38 -> 3294.8389 | M40: =Test!C38 -> 39.1753 | N40: =Test!D38 -> 43.4588 | O40: =Test!E38 -> 44.6172 | P40: =Test!F38 -> 34996.29 | Q40: =Test!G38 -> 17.98 | R40: 9.721191667 | S40: 40.87663237 | T40: 2.010377703
C41: 32 | D41: =Reference!B39 -> 1882.0929 | E41: =Reference!C39 -> 36.9702 | F41: =Reference!D39 -> 41.4783 | G41: =Reference!E39 -> 41.8321 | H41: =Reference!F39 -> 733.218163 | I41: =Reference!G39 -> 7.575781107 | J41: 0.2036717119 | L41: =Test!B39 -> 1647.4206 | M41: =Test!C39 -> 37.5254 | N41: =Test!D39 -> 42.0646 | O41: =Test!E39 -> 42.5101 | P41: =Test!F39 -> 19540.82 | Q41: =Test!G39 -> 13.94 | R41: 5.428005556 | S41: 26.65075824 | T41: 1.840074285
C42: 37 | D42: =Reference!B40 -> 1052.2556 | E42: =Reference!C40 -> 34.979 | F42: =Reference!D40 -> 40.3412 | G42: =Reference!E40 -> 40.3726 | H42: =Reference!F40 -> 684.396806 | I42: =Reference!G40 -> 6.611492157 | J42: 0.1901102239 | L42: =Test!B40 -> 914.4254 | M42: =Test!C40 -> 35.7539 | N42: =Test!D40 -> 40.7192 | O42: =Test!E40 -> 40.7647 | P42: =Test!F40 -> 9834.8 | Q42: =Test!G40 -> 11.36 | R42: 2.731888889 | S42: 14.37002615 | T42: 1.718220294
B43: BQTerrace | C43: 22 | D43: =Reference!B41 -> 22415.7632 | E43: =Reference!C41 -> 42.489 | F43: =Reference!D41 -> 42.7195 | G43: =Reference!E41 -> 44.5105 | H43: =Reference!F41 -> 1522.774064 | I43: =Reference!G41 -> 18.5552969 | J43: 0.4229927956 | L43: =Test!B41 -> 21542.0536 | M43: =Test!C41 -> 42.8922 | N43: =Test!D41 -> 42.6915 | O43: =Test!E41 -> 44.7941 | P43: =Test!F41 -> 51659.67 | Q43: =Test!G41 -> 38.53 | R43: 14.34990833 | S43: 33.92471097 | T43: 2.076496011 | V43: =bdrate($D43:$D46,E43:E46,$L43:$L46,M43:M46) -> -0.1861305744 | W43: =bdrate($D43:$D46,F43:F46,$L43:$L46,N43:N46) -> -0.3220904516 | X43: =bdrate($D43:$D46,G43:G46,$L43:$L46,O43:O46) -> -0.4625432276 | Y43: =bdrateOld($D43:$D46,E43:E46,$L43:$L46,M43:M46) -> -0.1730982205 | Z43: =bdrateOld($D43:$D46,F43:F46,$L43:$L46,N43:N46) -> -0.3181649227 | AA43: =bdrateOld($D43:$D46,G43:G46,$L43:$L46,O43:O46) -> -0.4591067668
C44: 27 | D44: =Reference!B42 -> 9865.6568 | E44: =Reference!C42 -> 37.1052 | F44: =Reference!D42 -> 40.7418 | G44: =Reference!E42 -> 42.9439 | H44: =Reference!F42 -> 1196.361232 | I44: =Reference!G42 -> 13.85374403 | J44: 0.3323225645 | L44: =Test!B42 -> 7924.244 | M44: =Test!C42 -> 37.0358 | N44: =Test!D42 -> 41.1801 | O44: =Test!E42 -> 43.6796 | P44: =Test!F42 -> 53180.81 | Q44: =Test!G42 -> 29.59 | R44: 14.77244722 | S44: 44.45213417 | T44: 2.135884706
C45: 32 | D45: =Reference!B43 -> 5021.5928 | E45: =Reference!C43 -> 34.4666 | F45: =Reference!D43 -> 39.2529 | G45: =Reference!E43 -> 41.6701 | H45: =Reference!F43 -> 997.3383489 | I45: =Reference!G43 -> 11.22804403 | J45: 0.2770384302 | L45: =Test!B43 -> 3976.848 | M45: =Test!C43 -> 34.7126 | N45: =Test!D43 -> 39.8294 | O45: =Test!E43 -> 42.5288 | P45: =Test!F43 -> 34574.19 | Q45: =Test!G43 -> 20.37 | R45: 9.603941667 | S45: 34.66646002 | T45: 1.814207349
C46: 37 | D46: =Reference!B44 -> 2708.3728 | E46: =Reference!C44 -> 31.9851 | F46: =Reference!D44 -> 38.2279 | G46: =Reference!E44 -> 40.7119 | H46: =Reference!F44 -> 889.3859091 | I46: =Reference!G44 -> 9.568960905 | J46: 0.2470516414 | L46: =Test!B44 -> 2099.988 | M46: =Test!C44 -> 32.4406 | N46: =Test!D44 -> 38.3491 | O46: =Test!E44 -> 41.1965 | P46: =Test!F44 -> 20986.07 | Q46: =Test!G44 -> 15.74 | R46: 5.829463889 | S46: 23.59613502 | T46: 1.644901694
A47: Class C | B47: BasketballDrill | C47: 22 | D47: =Reference!B45 -> 2594.4079 | E47: =Reference!C45 -> 41.8148 | F47: =Reference!D45 -> 43.8498 | G47: =Reference!E45 -> 44.4807 | H47: =Reference!F45 -> 229.7645161 | I47: =Reference!G45 -> 3.063721895 | J47: 0.0638234767 | L47: =Test!B45 -> 2233.1071 | M47: =Test!C45 -> 42.7562 | N47: =Test!D45 -> 44.1132 | O47: =Test!E45 -> 45.0737 | P47: =Test!F45 -> 11135.98 | Q47: =Test!G45 -> 7.29 | R47: 3.093327778 | S47: 48.46692687 | T47: 2.379458792 | V47: =bdrate($D47:$D50,E47:E50,$L47:$L50,M47:M50) -> -0.323907194 | W47: =bdrate($D47:$D50,F47:F50,$L47:$L50,N47:N50) -> -0.3304327615 | X47: =bdrate($D47:$D50,G47:G50,$L47:$L50,O47:O50) -> -0.3839597776 | Y47: =bdrateOld($D47:$D50,E47:E50,$L47:$L50,M47:M50) -> -0.3243785095 | Z47: =bdrateOld($D47:$D50,F47:F50,$L47:$L50,N47:N50) -> -0.3292635167 | AA47: =bdrateOld($D47:$D50,G47:G50,$L47:$L50,O47:O50) -> -0.3824911784
A48: WVGA | C48: 27 | D48: =Reference!B46 -> 1412.573 | E48: =Reference!C46 -> 38.3802 | F48: =Reference!D46 -> 40.9761 | G48: =Reference!E46 -> 41.1966 | H48: =Reference!F46 -> 188.5300961 | I48: =Reference!G46 -> 2.397536993 | J48: 0.05236947113 | L48: =Test!B46 -> 1204.9452 | M48: =Test!C46 -> 39.514 | N48: =Test!D46 -> 41.8903 | O48: =Test!E46 -> 42.6207 | P48: =Test!F46 -> 8634.58 | Q48: =Test!G46 -> 5.29 | R48: 2.398494444 | S48: 45.79947807 | T48: 2.206431023
C49: 32 | D49: =Reference!B47 -> 757.7421 | E49: =Reference!C47 -> 35.3838 | F49: =Reference!D47 -> 38.6699 | G49: =Reference!E47 -> 38.6472 | H49: =Reference!F47 -> 162.6821849 | I49: =Reference!G47 -> 1.907557011 | J49: 0.04518949582 | L49: =Test!B47 -> 647.5913 | M49: =Test!C47 -> 36.5905 | N49: =Test!D47 -> 39.694 | O49: =Test!E47 -> 40.1099 | P49: =Test!F47 -> 6181.81 | Q49: =Test!G47 -> 3.44 | R49: 1.717169444 | S49: 37.99930522 | T49: 1.803353704
C50: 37 | D50: =Reference!B48 -> 417.6413 | E50: =Reference!C48 -> 32.6952 | F50: =Reference!D48 -> 37.045 | G50: =Reference!E48 -> 36.8275 | H50: =Reference!F48 -> 143.5992789 | I50: =Reference!G48 -> 1.547326088 | J50: 0.03988868859 | L50: =Test!B48 -> 359.5119 | M50: =Test!C48 -> 33.9415 | N50: =Test!D48 -> 38.098 | O50: =Test!E48 -> 38.1354 | P50: =Test!F48 -> 3706.34 | Q50: =Test!G48 -> 2.67 | R50: 1.029538889 | S50: 25.81029673 | T50: 1.725557412
B51: BQMall | C51: 22 | D51: =Reference!B49 -> 2904.2024 | E51: =Reference!C49 -> 41.9936 | F51: =Reference!D49 -> 44.0727 | G51: =Reference!E49 -> 45.4978 | H51: =Reference!F49 -> 261.69438 | I51: =Reference!G49 -> 3.261260033 | J51: 0.07269288335 | L51: =Test!B49 -> 2662.2264 | M51: =Test!C49 -> 42.6059 | N51: =Test!D49 -> 44.3095 | O51: =Test!E49 -> 45.9449 | P51: =Test!F49 -> 13813.83 | Q51: =Test!G49 -> 6.53 | R51: 3.837175 | S51: 52.78611638 | T51: 2.002293572 | V51: =bdrate($D51:$D54,E51:E54,$L51:$L54,M51:M54) -> -0.2191511252 | W51: =bdrate($D51:$D54,F51:F54,$L51:$L54,N51:N54) -> -0.2174414937 | X51: =bdrate($D51:$D54,G51:G54,$L51:$L54,O51:O54) -> -0.2236714845 | Y51: =bdrateOld($D51:$D54,E51:E54,$L51:$L54,M51:M54) -> -0.2189776121 | Z51: =bdrateOld($D51:$D54,F51:F54,$L51:$L54,N51:N54) -> -0.2156286755 | AA51: =bdrateOld($D51:$D54,G51:G54,$L51:$L54,O51:O54) -> -0.2217834006
C52: 27 | D52: =Reference!B50 -> 1739.3824 | E52: =Reference!C50 -> 39.0523 | F52: =Reference!D50 -> 41.5948 | G52: =Reference!E50 -> 42.7404 | H52: =Reference!F50 -> 223.339057 | I52: =Reference!G50 -> 2.741384983 | J52: 0.06203862694 | L52: =Test!B50 -> 1598.4104 | M52: =Test!C50 -> 39.8708 | N52: =Test!D50 -> 42.3262 | O52: =Test!E50 -> 43.629 | P52: =Test!F50 -> 9756.23 | Q52: =Test!G50 -> 5.39 | R52: 2.710063889 | S52: 43.68349241 | T52: 1.966159453
C53: 32 | D53: =Reference!B51 -> 1026.2824 | E53: =Reference!C51 -> 35.9646 | F53: =Reference!D51 -> 39.6489 | G53: =Reference!E51 -> 40.6184 | H53: =Reference!F51 -> 195.6314571 | I53: =Reference!G51 -> 2.326992035 | J53: 0.05434207141 | L53: =Test!B51 -> 938.7264 | M53: =Test!C51 -> 36.9574 | N53: =Test!D51 -> 40.2062 | O53: =Test!E51 -> 41.1553 | P53: =Test!F51 -> 7518.58 | Q53: =Test!G51 -> 4.58 | R53: 2.088494444 | S53: 38.43236723 | T53: 1.968206135
C54: 37 | D54: =Reference!B52 -> 587.0008 | E54: =Reference!C52 -> 32.8517 | F54: =Reference!D52 -> 38.2162 | G54: =Reference!E52 -> 39.1112 | H54: =Reference!F52 -> 174.5462911 | I54: =Reference!G52 -> 1.942382097 | J54: 0.04848508086 | L54: =Test!B52 -> 538.2864 | M54: =Test!C52 -> 33.9508 | N54: =Test!D52 -> 38.6345 | O54: =Test!E52 -> 39.6386 | P54: =Test!F52 -> 5100.32 | Q54: =Test!G52 -> 3.15 | R54: 1.416755556 | S54: 29.22044328 | T54: 1.621720054
B55: PartyScene | C55: 22 | D55: =Reference!B53 -> 5477.8556 | E55: =Reference!C53 -> 41.1203 | F55: =Reference!D53 -> 42.5179 | G55: =Reference!E53 -> 43.3752 | H55: =Reference!F53 -> 284.4322 | I55: =Reference!G53 -> 4.033462048 | J55: 0.07900894443 | L55: =Test!B53 -> 5152.7913 | M55: =Test!C53 -> 41.948 | N55: =Test!D53 -> 42.4498 | O55: =Test!E53 -> 43.516 | P55: =Test!F53 -> 13872.72 | Q55: =Test!G53 -> 9.07 | R55: 3.853533333 | S55: 48.7733808 | T55: 2.248688569 | V55: =bdrate($D55:$D58,E55:E58,$L55:$L58,M55:M58) -> -0.1626133134 | W55: =bdrate($D55:$D58,F55:F58,$L55:$L58,N55:N58) -> -0.1557182431 | X55: =bdrate($D55:$D58,G55:G58,$L55:$L58,O55:O58) -> -0.1595344368 | Y55: =bdrateOld($D55:$D58,E55:E58,$L55:$L58,M55:M58) -> -0.162353434 | Z55: =bdrateOld($D55:$D58,F55:F58,$L55:$L58,N55:N58) -> -0.1505105805 | AA55: =bdrateOld($D55:$D58,G55:G58,$L55:$L58,O55:O58) -> -0.1549411929
C56: 27 | D56: =Reference!B54 -> 3401.1405 | E56: =Reference!C54 -> 36.8787 | F56: =Reference!D54 -> 39.2195 | G56: =Reference!E54 -> 39.992 | H56: =Reference!F54 -> 244.150589 | I56: =Reference!G54 -> 3.293648958 | J56: 0.06781960805 | L56: =Test!B54 -> 3204.6222 | M56: =Test!C54 -> 37.6731 | N56: =Test!D54 -> 39.8219 | O56: =Test!E54 -> 40.6806 | P56: =Test!F54 -> 11979.28 | Q56: =Test!G54 -> 6.97 | R56: 3.327577778 | S56: 49.06512841 | T56: 2.11619395
C57: 32 | D57: =Reference!B55 -> 2029.0405 | E57: =Reference!C55 -> 33.0525 | F57: =Reference!D55 -> 37.0043 | G57: =Reference!E55 -> 37.6591 | H57: =Reference!F55 -> 209.7805369 | I57: =Reference!G55 -> 2.767624855 | J57: 0.05827237136 | L57: =Test!B55 -> 1908.6333 | M57: =Test!C55 -> 33.9514 | N57: =Test!D55 -> 37.5046 | O57: =Test!E55 -> 38.1285 | P57: =Test!F55 -> 9960.45 | Q57: =Test!G55 -> 5.39 | R57: 2.766791667 | S57: 47.4803342 | T57: 1.947518281
C58: 37 | D58: =Reference!B56 -> 1101.1206 | E58: =Reference!C56 -> 29.3525 | F58: =Reference!D56 -> 35.4887 | G58: =Reference!E56 -> 36.1129 | H58: =Reference!F56 -> 176.0077651 | I58: =Reference!G56 -> 2.266077995 | J58: 0.04889104585 | L58: =Test!B56 -> 1042.6008 | M58: =Test!C56 -> 30.3292 | N58: =Test!D56 -> 35.8899 | O58: =Test!E56 -> 36.5171 | P58: =Test!F56 -> 7722.92 | Q58: =Test!G56 -> 4.54 | R58: 2.145255556 | S58: 43.87829138 | T58: 2.003461491
B59: RaceHorses | C59: 22 | D59: =Reference!B57 -> 1872.9284 | E59: =Reference!C57 -> 42.3705 | F59: =Reference!D57 -> 43.5245 | G59: =Reference!E57 -> 44.3893 | H59: =Reference!F57 -> 138.134536 | I59: =Reference!G57 -> 1.678981066 | J59: 0.03837070445 | L59: =Test!B57 -> 1779.9339 | M59: =Test!C57 -> 43.2302 | N59: =Test!D57 -> 43.2246 | O59: =Test!E57 -> 44.3089 | P59: =Test!F57 -> 7033.05 | Q59: =Test!G57 -> 3.49 | R59: 1.953625 | S59: 50.91449396 | T59: 2.078641666 | V59: =bdrate($D59:$D62,E59:E62,$L59:$L62,M59:M62) -> -0.1964012014 | W59: =bdrate($D59:$D62,F59:F62,$L59:$L62,N59:N62) -> -0.02382197954 | X59: =bdrate($D59:$D62,G59:G62,$L59:$L62,O59:O62) -> -0.117956991 | Y59: =bdrateOld($D59:$D62,E59:E62,$L59:$L62,M59:M62) -> -0.1960614083 | Z59: =bdrateOld($D59:$D62,F59:F62,$L59:$L62,N59:N62) -> -0.02870242925 | AA59: =bdrateOld($D59:$D62,G59:G62,$L59:$L62,O59:O62) -> -0.1158583268
C60: 27 | D60: =Reference!B58 -> 1127.4347 | E60: =Reference!C58 -> 38.937 | F60: =Reference!D58 -> 40.1631 | G60: =Reference!E58 -> 41.5835 | H60: =Reference!F58 -> 117.874455 | I60: =Reference!G58 -> 1.401418924 | J60: 0.03274290416 | L60: =Test!B58 -> 1062.3268 | M60: =Test!C58 -> 39.8398 | N60: =Test!D58 -> 40.0996 | O60: =Test!E58 -> 41.9148 | P60: =Test!F58 -> 5425.05 | Q60: =Test!G58 -> 2.74 | R60: 1.506958333 | S60: 46.02396678 | T60: 1.955161267
C61: 32 | D61: =Reference!B59 -> 641.2437 | E61: =Reference!C59 -> 35.4843 | F61: =Reference!D59 -> 37.7763 | G61: =Reference!E59 -> 39.5923 | H61: =Reference!F59 -> 102.9304659 | I61: =Reference!G59 -> 1.187896967 | J61: 0.02859179609 | L61: =Test!B59 -> 609.9237 | M61: =Test!C59 -> 36.5349 | N61: =Test!D59 -> 37.5745 | O61: =Test!E59 -> 39.8585 | P61: =Test!F59 -> 3654.47 | Q61: =Test!G59 -> 2.57 | R61: 1.015130556 | S61: 35.50425976 | T61: 2.163487299
C62: 37 | D62: =Reference!B60 -> 324.6205 | E62: =Reference!C60 -> 32.0849 | F62: =Reference!D60 -> 36.3405 | G62: =Reference!E60 -> 38.1321 | H62: =Reference!F60 -> 90.79967213 | I62: =Reference!G60 -> 1.012147903 | J62: 0.02522213115 | L62: =Test!B60 -> 315.3995 | M62: =Test!C60 -> 33.1464 | N62: =Test!D60 -> 36.3675 | O62: =Test!E60 -> 38.3765 | P62: =Test!F60 -> 2902.69 | Q62: =Test!G60 -> 1.83 | R62: 0.8063027778 | S62: 31.96806698 | T62: 1.808036151
A63: Class D | B63: BasketballPass | C63: =C59 -> 22 | D63: =Reference!B61 -> 665.1611 | E63: =Reference!C61 -> 43.0674 | F63: =Reference!D61 -> 45.135 | G63: =Reference!E61 -> 44.9307 | H63: =Reference!F61 -> 54.47311211 | I63: =Reference!G61 -> 0.6997208595 | J63: 0.01513142003 | L63: =Test!B61 -> 600.8571 | M63: =Test!C61 -> 43.8845 | N63: =Test!D61 -> 45.3278 | O63: =Test!E61 -> 45.0348 | P63: =Test!F61 -> 2871.17 | Q63: =Test!G61 -> 1.38 | R63: 0.7975472222 | S63: 52.70802216 | T63: 1.972215036 | V63: =bdrate($D63:$D66,E63:E66,$L63:$L66,M63:M66) -> -0.2180630943 | W63: =bdrate($D63:$D66,F63:F66,$L63:$L66,N63:N66) -> -0.1827182465 | X63: =bdrate($D63:$D66,G63:G66,$L63:$L66,O63:O66) -> -0.1428407194 | Y63: =bdrateOld($D63:$D66,E63:E66,$L63:$L66,M63:M66) -> -0.2180030647 | Z63: =bdrateOld($D63:$D66,F63:F66,$L63:$L66,N63:N66) -> -0.1825238526 | AA63: =bdrateOld($D63:$D66,G63:G66,$L63:$L66,O63:O66) -> -0.1432162291
A64: WQVGA | C64: =C60 -> 27 | D64: =Reference!B62 -> 398.3056 | E64: =Reference!C62 -> 39.4295 | F64: =Reference!D62 -> 41.9607 | G64: =Reference!E62 -> 41.5025 | H64: =Reference!F62 -> 46.48037386 | I64: =Reference!G62 -> 0.6212790012 | J64: 0.01291121496 | L64: =Test!B62 -> 360.5984 | M64: =Test!C62 -> 40.2989 | N64: =Test!D62 -> 42.5822 | O64: =Test!E62 -> 41.9806 | P64: =Test!F62 -> 2278.79 | Q64: =Test!G62 -> 1.31 | R64: 0.6329972222 | S64: 49.02692923 | T64: 2.10855348
C65: =C61 -> 32 | D65: =Reference!B63 -> 229.4563 | E65: =Reference!C63 -> 35.989 | F65: =Reference!D63 -> 39.5782 | G65: =Reference!E63 -> 38.9136 | H65: =Reference!F63 -> 40.57467198 | I65: =Reference!G63 -> 0.4802918434 | J65: 0.01127074222 | L65: =Test!B63 -> 206.7278 | M65: =Test!C63 -> 36.9253 | N65: =Test!D63 -> 39.9151 | O65: =Test!E63 -> 39.0187 | P65: =Test!F63 -> 1818.71 | Q65: =Test!G63 -> 0.92 | R65: 0.5051972222 | S65: 44.8237758 | T65: 1.915502028
C66: =C62 -> 37 | D66: =Reference!B64 -> 129.5111 | E66: =Reference!C64 -> 32.7976 | F66: =Reference!D64 -> 37.9183 | G66: =Reference!E64 -> 37.0743 | H66: =Reference!F64 -> 35.39795899 | I66: =Reference!G64 -> 0.4042358398 | J66: 0.009832766387 | L66: =Test!B64 -> 117.3198 | M66: =Test!C64 -> 33.7665 | N66: =Test!D64 -> 38.2943 | O66: =Test!E64 -> 37.1869 | P66: =Test!F64 -> 1145.75 | Q66: =Test!G64 -> 0.81 | R66: 0.3182638889 | S66: 32.36768539 | T66: 2.003780764
B67: BQSquare | C67: 22 | D67: =Reference!B65 -> 1627.4328 | E67: =Reference!C65 -> 41.2587 | F67: =Reference!D65 -> 43.2712 | G67: =Reference!E65 -> 44.2546 | H67: =Reference!F65 -> 80.68986607 | I67: =Reference!G65 -> 1.128499985 | J67: =H67/3600 -> 0.02241385168 | L67: =Test!B65 -> 1533.4336 | M67: =Test!C65 -> 42.0033 | N67: =Test!D65 -> 43.5097 | O67: =Test!E65 -> 44.7103 | P67: =Test!F65 -> 3920.12 | Q67: =Test!G65 -> 2.23 | R67: =P67/3600 -> 1.088922222 | S67: =P67/H67 -> 48.58255678 | T67: =Q67/I67 -> 1.976074462 | V67: =bdrate($D67:$D70,E67:E70,$L67:$L70,M67:M70) -> -0.1456807384 | W67: =bdrate($D67:$D70,F67:F70,$L67:$L70,N67:N70) -> -0.1763707199 | X67: =bdrate($D67:$D70,G67:G70,$L67:$L70,O67:O70) -> -0.1899735173 | Y67: =bdrateOld($D67:$D70,E67:E70,$L67:$L70,M67:M70) -> -0.1456507119 | Z67: =bdrateOld($D67:$D70,F67:F70,$L67:$L70,N67:N70) -> -0.1702503348 | AA67: =bdrateOld($D67:$D70,G67:G70,$L67:$L70,O67:O70) -> -0.1874683528
C68: 27 | D68: =Reference!B66 -> 1035.2344 | E68: =Reference!C66 -> 36.816 | F68: =Reference!D66 -> 40.596 | G68: =Reference!E66 -> 41.6031 | H68: =Reference!F66 -> 70.01550508 | I68: =Reference!G66 -> 0.9192688465 | J68: 0.01944875141 | L68: =Test!B66 -> 979.6712 | M68: =Test!C66 -> 37.5667 | N68: =Test!D66 -> 41.2788 | O68: =Test!E66 -> 42.4952 | P68: =Test!F66 -> 3244.12 | Q68: =Test!G66 -> 1.86 | R68: 0.9011444444 | S68: 46.33430833 | T68: 2.023347149
C69: 32 | D69: =Reference!B67 -> 638.828 | E69: =Reference!C67 -> 32.9853 | F69: =Reference!D67 -> 38.9626 | G69: =Reference!E67 -> 39.8035 | H69: =Reference!F67 -> 59.87547398 | I69: =Reference!G67 -> 0.7553589344 | J69: 0.0166320761 | L69: =Test!B67 -> 595.4272 | M69: =Test!C67 -> 33.7368 | N69: =Test!D67 -> 39.4321 | O69: =Test!E67 -> 40.252 | P69: =Test!F67 -> 2544.57 | Q69: =Test!G67 -> 1.45 | R69: 0.706825 | S69: 42.49770116 | T69: 1.919617196
C70: 37 | D70: =Reference!B68 -> 380.4448 | E70: =Reference!C68 -> 29.4062 | F70: =Reference!D68 -> 37.8765 | G70: =Reference!E68 -> 38.5301 | H70: =Reference!F68 -> 51.95099306 | I70: =Reference!G68 -> 0.6453051567 | J70: 0.01443083141 | L70: =Test!B68 -> 353.9984 | M70: =Test!C68 -> 30.308 | N70: =Test!D68 -> 37.9942 | O70: =Test!E68 -> 38.7151 | P70: =Test!F68 -> 1945.21 | Q70: =Test!G68 -> 1.15 | R70: 0.5403361111 | S70: 37.4431726 | T70: 1.782102604
B71: BlowingBubbles | C71: 22 | D71: =Reference!B69 -> 1430.9921 | E71: =Reference!C69 -> 41.0744 | F71: =Reference!D69 -> 42.1705 | G71: =Reference!E69 -> 42.8818 | H71: =Reference!F69 -> 71.36356497 | I71: =Reference!G69 -> 1.062034845 | J71: 0.01982321249 | L71: =Test!B69 -> 1342.5714 | M71: =Test!C69 -> 41.8802 | N71: =Test!D69 -> 41.9475 | O71: =Test!E69 -> 42.6967 | P71: =Test!F69 -> 3718.24 | Q71: =Test!G69 -> 1.83 | R71: 1.032844444 | S71: 52.10277824 | T71: 1.723107305 | V71: =bdrate($D71:$D74,E71:E74,$L71:$L74,M71:M74) -> -0.1669063576 | W71: =bdrate($D71:$D74,F71:F74,$L71:$L74,N71:N74) -> -0.08342822698 | X71: =bdrate($D71:$D74,G71:G74,$L71:$L74,O71:O74) -> -0.08120346973 | Y71: =bdrateOld($D71:$D74,E71:E74,$L71:$L74,M71:M74) -> -0.1664848654 | Z71: =bdrateOld($D71:$D74,F71:F74,$L71:$L74,N71:N74) -> -0.08088783267 | AA71: =bdrateOld($D71:$D74,G71:G74,$L71:$L74,O71:O74) -> -0.08058021815
C72: 27 | D72: =Reference!B70 -> 883.8817 | E72: =Reference!C70 -> 36.7248 | F72: =Reference!D70 -> 38.9373 | G72: =Reference!E70 -> 39.4455 | H72: =Reference!F70 -> 61.30050921 | I72: =Reference!G70 -> 0.8651909828 | J72: 0.01702791923 | L72: =Test!B70 -> 833.9 | M72: =Test!C70 -> 37.5738 | N72: =Test!D70 -> 39.2478 | O72: =Test!E70 -> 39.726 | P72: =Test!F70 -> 3335.2 | Q72: =Test!G70 -> 1.87 | R72: 0.9264444444 | S72: 54.40737838 | T72: 2.161372503
C73: 32 | D73: =Reference!B71 -> 504.4079 | E73: =Reference!C71 -> 32.7337 | F73: =Reference!D71 -> 36.6162 | G73: =Reference!E71 -> 37.0713 | H73: =Reference!F71 -> 51.26916099 | I73: =Reference!G71 -> 0.6903069019 | J73: 0.01424143361 | L73: =Test!B71 -> 477.4952 | M73: =Test!C71 -> 33.6615 | N73: =Test!D71 -> 36.6299 | O73: =Test!E71 -> 37.077 | P73: =Test!F71 -> 2872.56 | Q73: =Test!G71 -> 1.63 | R73: 0.7979333333 | S73: 56.02900349 | T73: 2.361268583
C74: 37 | D74: =Reference!B72 -> 261.4873 | E74: =Reference!C72 -> 29.1845 | F74: =Reference!D72 -> 35.0812 | G74: =Reference!E72 -> 35.5025 | H74: =Reference!F72 -> 42.28370404 | I74: =Reference!G72 -> 0.5404839516 | J74: 0.01174547335 | L74: =Test!B72 -> 248.0476 | M74: =Test!C72 -> 30.0602 | N74: =Test!D72 -> 35.1787 | O74: =Test!E72 -> 35.6234 | P74: =Test!F72 -> 2127.25 | Q74: =Test!G72 -> 1.12 | R74: 0.5909027778 | S74: 50.3089795 | T74: 2.07221694
B75: RaceHorses | C75: 22 | D75: =Reference!B73 -> 558.6695 | E75: =Reference!C73 -> 42.5177 | F75: =Reference!D73 -> 43.0862 | G75: =Reference!E73 -> 43.976 | H75: =Reference!F73 -> 36.22734404 | I75: =Reference!G73 -> 0.4825229645 | J75: 0.01006315112 | L75: =Test!B73 -> 524.3795 | M75: =Test!C73 -> 43.6832 | N75: =Test!D73 -> 42.7836 | O75: =Test!E73 -> 43.9768 | P75: =Test!F73 -> 1861.51 | Q75: =Test!G73 -> 0.95 | R75: 0.5170861111 | S75: 51.38411467 | T75: 1.968818212 | V75: =bdrate($D75:$D78,E75:E78,$L75:$L78,M75:M78) -> -0.2076417438 | W75: =bdrate($D75:$D78,F75:F78,$L75:$L78,N75:N78) -> -0.06328226913 | X75: =bdrate($D75:$D78,G75:G78,$L75:$L78,O75:O78) -> -0.09272951988 | Y75: =bdrateOld($D75:$D78,E75:E78,$L75:$L78,M75:M78) -> -0.207005931 | Z75: =bdrateOld($D75:$D78,F75:F78,$L75:$L78,N75:N78) -> -0.06727941833 | AA75: =bdrateOld($D75:$D78,G75:G78,$L75:$L78,O75:O78) -> -0.09395245701
C76: 27 | D76: =Reference!B74 -> 337.6161 | E76: =Reference!C74 -> 38.4241 | F76: =Reference!D74 -> 39.6056 | G76: =Reference!E74 -> 40.8865 | H76: =Reference!F74 -> 31.04626489 | I76: =Reference!G74 -> 0.4039280415 | J76: 0.008623962469 | L76: =Test!B74 -> 321.6979 | M76: =Test!C74 -> 39.6755 | N76: =Test!D74 -> 39.7322 | O76: =Test!E74 -> 41.25 | P76: =Test!F74 -> 1556.19 | Q76: =Test!G74 -> 0.83 | R76: 0.432275 | S76: 50.12487028 | T76: 2.05482144
C77: 32 | D77: =Reference!B75 -> 186.5968 | E77: =Reference!C75 -> 34.568 | F77: =Reference!D75 -> 37.3286 | G77: =Reference!E75 -> 38.5719 | H77: =Reference!F75 -> 26.31257415 | I77: =Reference!G75 -> 0.3393280506 | J77: 0.007309048374 | L77: =Test!B75 -> 180.0134 | M77: =Test!C75 -> 35.8029 | N77: =Test!D75 -> 37.3661 | O77: =Test!E75 -> 38.6787 | P77: =Test!F75 -> 1291.97 | Q77: =Test!G75 -> 0.67 | R77: 0.3588805556 | S77: 49.10085926 | T77: 1.974490464
C78: 37 | D78: =Reference!B76 -> 95.1395 | E78: =Reference!C76 -> 31.2528 | F78: =Reference!D76 -> 35.7467 | G78: =Reference!E76 -> 36.8348 | H78: =Reference!F76 -> 22.81092811 | I78: =Reference!G76 -> 0.2718398571 | J78: 0.006336368918 | L78: =Test!B76 -> 90.885 | M78: =Test!C76 -> 32.2869 | N78: =Test!D76 -> 35.9442 | O78: =Test!E76 -> 37.0052 | P78: =Test!F76 -> 916.74 | Q78: =Test!G76 -> 0.56 | R78: 0.25465 | S78: 40.18863221 | T78: 2.060036398
A79: ClassE | B79: FourPeople | C79: 22 | D79: =Reference!B77 -> 3741.1448 | E79: =Reference!C77 -> 43.9265 | F79: =Reference!D77 -> 46.9569 | G79: =Reference!E77 -> 48.0958 | H79: =Reference!F77 -> 501.6906381 | I79: =Reference!G77 -> 5.945843935 | J79: 0.1393585106 | L79: =Test!B77 -> 3374.5504 | M79: =Test!C77 -> 44.5797 | N79: =Test!D77 -> 47.361 | O79: =Test!E77 -> 48.5919 | P79: =Test!F77 -> 21158.6 | Q79: =Test!G77 -> 11.65 | R79: 5.877388889 | S79: 42.17459605 | T79: 1.959351797 | V79: =bdrate($D79:$D82,E79:E82,$L79:$L82,M79:M82) -> -0.2483720855 | W79: =bdrate($D79:$D82,F79:F82,$L79:$L82,N79:N82) -> -0.2691057254 | X79: =bdrate($D79:$D82,G79:G82,$L79:$L82,O79:O82) -> -0.2580340032 | Y79: =bdrateOld($D79:$D82,E79:E82,$L79:$L82,M79:M82) -> -0.2480460073 | Z79: =bdrateOld($D79:$D82,F79:F82,$L79:$L82,N79:N82) -> -0.2657445939 | AA79: =bdrateOld($D79:$D82,G79:G82,$L79:$L82,O79:O82) -> -0.2557817699
A80: 720p | C80: 27 | D80: =Reference!B78 -> 2305.9288 | E80: =Reference!C78 -> 41.3019 | F80: =Reference!D78 -> 44.5156 | G80: =Reference!E78 -> 45.7443 | H80: =Reference!F78 -> 440.4654849 | I80: =Reference!G78 -> 5.176641941 | J80: 0.1223515236 | L80: =Test!B78 -> 2068.36 | M80: =Test!C78 -> 42.2164 | N80: =Test!D78 -> 45.4471 | O80: =Test!E78 -> 46.6362 | P80: =Test!F78 -> 14930.26 | Q80: =Test!G78 -> 9.72 | R80: 4.147294444 | S80: 33.89654925 | T80: 1.877665118
C81: 32 | D81: =Reference!B79 -> 1421.884 | E81: =Reference!C79 -> 38.3694 | F81: =Reference!D79 -> 42.4812 | G81: =Reference!E79 -> 43.6871 | H81: =Reference!F79 -> 421.0317059 | I81: =Reference!G79 -> 4.850628138 | J81: 0.1169532516 | L81: =Test!B79 -> 1277.2968 | M81: =Test!C79 -> 39.536 | N81: =Test!D79 -> 43.4275 | O81: =Test!E79 -> 44.4531 | P81: =Test!F79 -> 10483.84 | Q81: =Test!G79 -> 8.52 | R81: 2.912177778 | S81: 24.90035751 | T81: 1.756473545
C82: 37 | D82: =Reference!B80 -> 865.7904 | E82: =Reference!C80 -> 35.2301 | F82: =Reference!D80 -> 41.101 | G82: =Reference!E80 -> 42.2199 | H82: =Reference!F80 -> 379.249933 | I82: =Reference!G80 -> 4.216722965 | J82: 0.1053472036 | L82: =Test!B80 -> 782.0992 | M82: =Test!C80 -> 36.5099 | N82: =Test!D80 -> 41.5357 | O82: =Test!E80 -> 42.8174 | P82: =Test!F80 -> 7144.81 | Q82: =Test!G80 -> 6.51 | R82: 1.984669444 | S82: 18.83931776 | T82: 1.543852905
B83: Johnny | C83: 22 | D83: =Reference!B81 -> 2478.8264 | E83: =Reference!C81 -> 44.1642 | F83: =Reference!D81 -> 48.324 | G83: =Reference!E81 -> 48.9494 | H83: =Reference!F81 -> 453.3564351 | I83: =Reference!G81 -> 4.656085014 | J83: 0.1259323431 | L83: =Test!B81 -> 2353.6624 | M83: =Test!C81 -> 44.794 | N83: =Test!D81 -> 48.6441 | O83: =Test!E81 -> 49.2863 | P83: =Test!F81 -> 16851.38 | Q83: =Test!G81 -> 8.55 | R83: 4.680938889 | S83: 37.17026758 | T83: 1.836306677 | V83: =bdrate($D83:$D86,E83:E86,$L83:$L86,M83:M86) -> -0.2676701913 | W83: =bdrate($D83:$D86,F83:F86,$L83:$L86,N83:N86) -> -0.26592274 | X83: =bdrate($D83:$D86,G83:G86,$L83:$L86,O83:O86) -> -0.2309968793 | Y83: =bdrateOld($D83:$D86,E83:E86,$L83:$L86,M83:M86) -> -0.267769038 | Z83: =bdrateOld($D83:$D86,F83:F86,$L83:$L86,N83:N86) -> -0.2641040918 | AA83: =bdrateOld($D83:$D86,G83:G86,$L83:$L86,O83:O86) -> -0.2305794152
C84: 27 | D84: =Reference!B82 -> 1393.1832 | E84: =Reference!C82 -> 41.9253 | F84: =Reference!D82 -> 46.2294 | G84: =Reference!E82 -> 46.8226 | H84: =Reference!F82 -> 406.455575 | I84: =Reference!G82 -> 4.428364038 | J84: 0.1129043264 | L84: =Test!B82 -> 1288.5456 | M84: =Test!C82 -> 42.7352 | N84: =Test!D82 -> 47.0564 | O84: =Test!E82 -> 47.5822 | P84: =Test!F82 -> 10572.54 | Q84: =Test!G82 -> 6.99 | R84: 2.936816667 | S84: 26.0115512 | T84: 1.578461016
C85: 32 | D85: =Reference!B83 -> 800.1456 | E85: =Reference!C83 -> 39.5233 | F85: =Reference!D83 -> 44.3053 | G85: =Reference!E83 -> 44.889 | H85: =Reference!F83 -> 375.389075 | I85: =Reference!G83 -> 3.838984966 | J85: 0.1042747431 | L85: =Test!B83 -> 721.448 | M85: =Test!C83 -> 40.5384 | N85: =Test!D83 -> 45.1512 | O85: =Test!E83 -> 45.3267 | P85: =Test!F83 -> 7249.02 | Q85: =Test!G83 -> 5.93 | R85: 2.013616667 | S85: 19.31068452 | T85: 1.544679141
C86: 37 | D86: =Reference!B84 -> 462.9608 | E86: =Reference!C84 -> 36.8847 | F86: =Reference!D84 -> 42.7935 | G86: =Reference!E84 -> 43.2656 | H86: =Reference!F84 -> 354.261091 | I86: =Reference!G84 -> 3.459497929 | J86: 0.09840585861 | L86: =Test!B84 -> 416.1936 | M86: =Test!C84 -> 38.118 | N86: =Test!D84 -> 43.0791 | O86: =Test!E84 -> 43.9512 | P86: =Test!F84 -> 4329.52 | Q86: =Test!G84 -> 5.13 | R86: 1.202644444 | S86: 12.22126875 | T86: 1.482874135
B87: KristenAndSara | C87: 22 | D87: =Reference!B85 -> 2734.3248 | E87: =Reference!C85 -> 44.557 | F87: =Reference!D85 -> 47.7033 | G87: =Reference!E85 -> 48.5743 | H87: =Reference!F85 -> 461.5181341 | I87: =Reference!G85 -> 4.947165966 | J87: 0.1281994817 | L87: =Test!B85 -> 2496.2696 | M87: =Test!C85 -> 45.1598 | N87: =Test!D85 -> 47.9772 | O87: =Test!E85 -> 48.9505 | P87: =Test!F85 -> 14713.58 | Q87: =Test!G85 -> 9.31 | R87: 4.087105556 | S87: 31.88082745 | T87: 1.881885521 | V87: =bdrate($D87:$D90,E87:E90,$L87:$L90,M87:M90) -> -0.2555608585 | W87: =bdrate($D87:$D90,F87:F90,$L87:$L90,N87:N90) -> -0.2367661098 | X87: =bdrate($D87:$D90,G87:G90,$L87:$L90,O87:O90) -> -0.2353356058 | Y87: =bdrateOld($D87:$D90,E87:E90,$L87:$L90,M87:M90) -> -0.2552094683 | Z87: =bdrateOld($D87:$D90,F87:F90,$L87:$L90,N87:N90) -> -0.2347614477 | AA87: =bdrateOld($D87:$D90,G87:G90,$L87:$L90,O87:O90) -> -0.2343078161
C88: 27 | D88: =Reference!B86 -> 1646.1352 | E88: =Reference!C86 -> 42.1891 | F88: =Reference!D86 -> 45.4659 | G88: =Reference!E86 -> 46.3702 | H88: =Reference!F86 -> 409.1596792 | I88: =Reference!G86 -> 4.302979946 | J88: 0.1136554664 | L88: =Test!B86 -> 1494.012 | M88: =Test!C86 -> 43.0563 | N88: =Test!D86 -> 46.1576 | O88: =Test!E86 -> 47.1471 | P88: =Test!F86 -> 10690.27 | Q88: =Test!G86 -> 7.51 | R88: 2.969519444 | S88: 26.12737898 | T88: 1.745302115
C89: 32 | D89: =Reference!B87 -> 999.6328 | E89: =Reference!C87 -> 39.4905 | F89: =Reference!D87 -> 43.4724 | G89: =Reference!E87 -> 44.4199 | H89: =Reference!F87 -> 378.4517059 | I89: =Reference!G87 -> 3.862799168 | J89: 0.1051254739 | L89: =Test!B87 -> 900.8984 | M89: =Test!C87 -> 40.6215 | N89: =Test!D87 -> 44.2467 | O89: =Test!E87 -> 44.9914 | P89: =Test!F87 -> 7563.52 | Q89: =Test!G87 -> 6.69 | R89: 2.100977778 | S89: 19.9854298 | T89: 1.731904691
C90: 37 | D90: =Reference!B88 -> 607.1352 | E90: =Reference!C88 -> 36.5515 | F90: =Reference!D88 -> 42.0195 | G90: =Reference!E88 -> 42.8996 | H90: =Reference!F88 -> 364.731976 | I90: =Reference!G88 -> 3.780313015 | J90: 0.1013144378 | L90: =Test!B88 -> 548.7512 | M90: =Test!C88 -> 37.8894 | N90: =Test!D88 -> 42.3799 | O90: =Test!E88 -> 43.462 | P90: =Test!F88 -> 4969.17 | Q90: =Test!G88 -> 5.75 | R90: 1.380325 | S90: 13.62416878 | T90: 1.521038067
A91: ClassF | B91: BasketballDrillText | C91: 22 | D91: =Reference!B89 -> 2834.7032 | E91: =Reference!C89 -> 42.0391 | F91: =Reference!D89 -> 43.8226 | G91: =Reference!E89 -> 44.4192 | H91: =Reference!F89 -> 234.704457 | I91: =Reference!G89 -> 3.113881111 | J91: 0.06519568251 | L91: =Test!B89 -> 2278.5548 | M91: =Test!C89 -> 42.7769 | N91: =Test!D89 -> 43.9564 | O91: =Test!E89 -> 44.8723 | P91: =Test!F89 -> 22839.35 | Q91: =Test!G89 -> 7.42 | R91: 6.344263889 | S91: 97.31110473 | T91: 2.382878387 | V91: =bdrate($D91:$D94,E91:E94,$L91:$L94,M91:M94) -> -0.3410344683 | W91: =bdrate($D91:$D94,F91:F94,$L91:$L94,N91:N94) -> -0.3509575608 | X91: =bdrate($D91:$D94,G91:G94,$L91:$L94,O91:O94) -> -0.389876023 | Y91: =bdrateOld($D91:$D94,E91:E94,$L91:$L94,M91:M94) -> -0.3412735532 | Z91: =bdrateOld($D91:$D94,F91:F94,$L91:$L94,N91:N94) -> -0.3501275048 | AA91: =bdrateOld($D91:$D94,G91:G94,$L91:$L94,O91:O94) -> -0.3885549106
C92: 27 | D92: =Reference!B90 -> 1642.3881 | E92: =Reference!C90 -> 38.5349 | F92: =Reference!D90 -> 40.6809 | G92: =Reference!E90 -> 40.9497 | H92: =Reference!F90 -> 195.2530279 | I92: =Reference!G90 -> 2.483470917 | J92: 0.0542369522 | L92: =Test!B90 -> 1296.6103 | M92: =Test!C90 -> 39.4842 | N92: =Test!D90 -> 41.5492 | O92: =Test!E90 -> 42.264 | P92: =Test!F90 -> 18762.02 | Q92: =Test!G90 -> 5.02 | R92: 5.211672222 | S92: 96.09080177 | T92: 2.021364521
C93: 32 | D93: =Reference!B91 -> 948.0968 | E93: =Reference!C91 -> 35.3994 | F93: =Reference!D91 -> 38.1033 | G93: =Reference!E91 -> 38.1588 | H93: =Reference!F91 -> 167.843853 | I93: =Reference!G91 -> 2.013372183 | J93: 0.0466232925 | L93: =Test!B91 -> 734.7524 | M93: =Test!C91 -> 36.4647 | N93: =Test!D91 -> 39.1459 | O93: =Test!E91 -> 39.5422 | P93: =Test!F91 -> 14187.8 | Q93: =Test!G91 -> 4.07 | R93: 3.941055556 | S93: 84.52975636 | T93: 2.021484172
C94: 37 | D94: =Reference!B92 -> 555.4429 | E94: =Reference!C92 -> 32.4509 | F94: =Reference!D92 -> 36.1892 | G94: =Reference!E92 -> 36.1296 | H94: =Reference!F92 -> 150.83531 | I94: =Reference!G92 -> 1.737556934 | J94: 0.04189869722 | L94: =Test!B92 -> 430.9095 | M94: =Test!C92 -> 33.6433 | N94: =Test!D92 -> 37.305 | O94: =Test!E92 -> 37.4181 | P94: =Test!F92 -> 8720.86 | Q94: =Test!G92 -> 2.77 | R94: 2.422461111 | S94: 57.81709867 | T94: 1.594192366
B95: ArenaOfValor | C95: 22 | D95: =Reference!B93 -> 13244.4896 | E95: =Reference!C93 -> 43.856 | F95: =Reference!D93 -> 44.8003 | G95: =Reference!E93 -> 45.4652 | H95: =Reference!F93 -> 1281.645245 | I95: =Reference!G93 -> 17.04893303 | J95: 0.356012568 | L95: =Test!B93 -> 12007.724 | M95: =Test!C93 -> 45.0832 | N95: =Test!D93 -> 45.1886 | O95: =Test!E93 -> 45.8259 | P95: =Test!F93 -> 131579.86 | Q95: =Test!G93 -> 41.59 | R95: 36.54996111 | S95: 102.6648057 | T95: 2.439448846 | V95: =bdrate($D95:$D98,E95:E98,$L95:$L98,M95:M98) -> -0.2790804231 | W95: =bdrate($D95:$D98,F95:F98,$L95:$L98,N95:N98) -> -0.23990181 | X95: =bdrate($D95:$D98,G95:G98,$L95:$L98,O95:O98) -> -0.2072054992 | Y95: =bdrateOld($D95:$D98,E95:E98,$L95:$L98,M95:M98) -> -0.2792302179 | Z95: =bdrateOld($D95:$D98,F95:F98,$L95:$L98,N95:N98) -> -0.2388724116 | AA95: =bdrateOld($D95:$D98,G95:G98,$L95:$L98,O95:O98) -> -0.2061728846
C96: 27 | D96: =Reference!B94 -> 7731.9728 | E96: =Reference!C94 -> 40.2868 | F96: =Reference!D94 -> 41.6062 | G96: =Reference!E94 -> 42.1224 | H96: =Reference!F94 -> 1090.183772 | I96: =Reference!G94 -> 13.53236103 | J96: 0.3028288255 | L96: =Test!B94 -> 7036.1616 | M96: =Test!C94 -> 41.6044 | N96: =Test!D94 -> 42.5135 | O96: =Test!E94 -> 42.9097 | P96: =Test!F94 -> 104449.48 | Q96: =Test!G94 -> 30.94 | R96: 29.01374444 | S96: 95.80905779 | T96: 2.286371161
C97: 32 | D97: =Reference!B95 -> 4435.3288 | E97: =Reference!C95 -> 36.9839 | F97: =Reference!D95 -> 39.1946 | G97: =Reference!E95 -> 39.5125 | H97: =Reference!F95 -> 953.006712 | I97: =Reference!G95 -> 11.19484401 | J97: 0.2647240867 | L97: =Test!B95 -> 3972.7272 | M97: =Test!C95 -> 38.3493 | N97: =Test!D95 -> 39.898 | O97: =Test!E95 -> 40.0301 | P97: =Test!F95 -> 76375.39 | Q97: =Test!G95 -> 24.77 | R97: 21.21538611 | S97: 80.14150272 | T97: 2.212625739
C98: 37 | D98: =Reference!B96 -> 2534.0504 | E98: =Reference!C96 -> 33.8923 | F98: =Reference!D96 -> 37.5103 | G98: =Reference!E96 -> 37.7224 | H98: =Reference!F96 -> 871.7657108 | I98: =Reference!G96 -> 9.30170989 | J98: 0.2421571419 | L98: =Test!B96 -> 2257.1072 | M98: =Test!C96 -> 35.2773 | N98: =Test!D96 -> 38.2252 | O98: =Test!E96 -> 38.2256 | P98: =Test!F96 -> 47837.8 | Q98: =Test!G96 -> 18.47 | R98: 13.28827778 | S98: 54.87460611 | T98: 1.985656424
B99: SlideEditing | C99: 22 | D99: =Reference!B97 -> 4169.9045 | E99: =Reference!C97 -> 46.7216 | F99: =Reference!D97 -> 45.5795 | G99: =Reference!E97 -> 45.6495 | H99: =Reference!F97 -> 312.2895429 | I99: =Reference!G97 -> 3.737268925 | J99: =H99/3600 -> 0.08674709525 | L99: =Test!B97 -> 2051.1276 | M99: =Test!C97 -> 48.1084 | N99: =Test!D97 -> 45.7088 | O99: =Test!E97 -> 46.6144 | P99: =Test!F97 -> 14985.59 | Q99: =Test!G97 -> 5.79 | R99: =P99/3600 -> 4.162663889 | S99: =P99/H99 -> 47.98620492 | T99: =Q99/I99 -> 1.549259664 | V99: =bdrate($D99:$D102,E99:E102,$L99:$L102,M99:M102) -> -0.5739709472 | W99: =bdrate($D99:$D102,F99:F102,$L99:$L102,N99:N102) -> -0.5938339641 | X99: =bdrate($D99:$D102,G99:G102,$L99:$L102,O99:O102) -> -0.6375509168 | Y99: =bdrateOld($D99:$D102,E99:E102,$L99:$L102,M99:M102) -> -0.5739062837 | Z99: =bdrateOld($D99:$D102,F99:F102,$L99:$L102,N99:N102) -> -0.5859967061 | AA99: =bdrateOld($D99:$D102,G99:G102,$L99:$L102,O99:O102) -> -0.6441833756
C100: 27 | D100: =Reference!B98 -> 3115.6058 | E100: =Reference!C98 -> 42.2695 | F100: =Reference!D98 -> 41.0539 | G100: =Reference!E98 -> 41.2843 | H100: =Reference!F98 -> 291.9084749 | I100: =Reference!G98 -> 3.523039103 | J100: 0.08108568748 | L100: =Test!B98 -> 1515.2132 | M100: =Test!C98 -> 44.2287 | N100: =Test!D98 -> 42.6872 | O100: =Test!E98 -> 43.8336 | P100: =Test!F98 -> 15317.67 | Q100: =Test!G98 -> 5.42 | R100: 4.254908333 | S100: 52.4742216 | T100: 1.538444463
C101: 32 | D101: =Reference!B99 -> 2374.1605 | E101: =Reference!C99 -> 37.7052 | F101: =Reference!D99 -> 38.7833 | G101: =Reference!E99 -> 38.9126 | H101: =Reference!F99 -> 273.0242989 | I101: =Reference!G99 -> 3.145091057 | J101: 0.07584008303 | L101: =Test!B99 -> 1156.2829 | M101: =Test!C99 -> 40.1897 | N101: =Test!D99 -> 41.4551 | O101: =Test!E99 -> 42.5797 | P101: =Test!F99 -> 14239.01 | Q101: =Test!G99 -> 4.89 | R101: 3.955280556 | S101: 52.15290381 | T101: 1.554803951
C102: 37 | D102: =Reference!B100 -> 1775.0779 | E102: =Reference!C100 -> 32.8508 | F102: =Reference!D100 -> 37.6667 | G102: =Reference!E100 -> 37.1956 | H102: =Reference!F100 -> 256.018327 | I102: =Reference!G100 -> 3.076187134 | J102: 0.07111620194 | L102: =Test!B100 -> 896.3163 | M102: =Test!C100 -> 35.4808 | N102: =Test!D100 -> 38.068 | O102: =Test!E100 -> 39.2382 | P102: =Test!F100 -> 13027.36 | Q102: =Test!G100 -> 4.05 | R102: 3.618711111 | S102: 50.88448219 | T102: 1.316564898
B103: SlideShow | C103: 22 | D103: =Reference!B101 -> 658.9022 | E103: =Reference!C101 -> 50.6418 | F103: =Reference!D101 -> 52.879 | G103: =Reference!E101 -> 53.9371 | H103: =Reference!F101 -> 332.7323561 | I103: =Reference!G101 -> 3.131875992 | J103: 0.09242565446 | L103: =Test!B101 -> 482.319 | M103: =Test!C101 -> 51.4924 | N103: =Test!D101 -> 53.5955 | O103: =Test!E101 -> 54.7851 | P103: =Test!F101 -> 11804.93 | Q103: =Test!G101 -> 5.11 | R103: 3.279147222 | S103: 35.47875578 | T103: 1.63160994 | V103: =bdrate($D103:$D106,E103:E106,$L103:$L106,M103:M106) -> -0.3819782587 | W103: =bdrate($D103:$D106,F103:F106,$L103:$L106,N103:N106) -> -0.4031859588 | X103: =bdrate($D103:$D106,G103:G106,$L103:$L106,O103:O106) -> -0.4578038797 | Y103: =bdrateOld($D103:$D106,E103:E106,$L103:$L106,M103:M106) -> -0.382027837 | Z103: =bdrateOld($D103:$D106,F103:F106,$L103:$L106,N103:N106) -> -0.4011323862 | AA103: =bdrateOld($D103:$D106,G103:G106,$L103:$L106,O103:O106) -> -0.4568294591
C104: 27 | D104: =Reference!B102 -> 448.5822 | E104: =Reference!C102 -> 46.9043 | F104: =Reference!D102 -> 49.421 | G104: =Reference!E102 -> 50.4028 | H104: =Reference!F102 -> 320.1643112 | I104: =Reference!G102 -> 2.909459829 | J104: 0.08893453088 | L104: =Test!B102 -> 317.7029 | M104: =Test!C102 -> 47.9239 | N104: =Test!D102 -> 50.5685 | O104: =Test!E102 -> 52.1953 | P104: =Test!F102 -> 8747.62 | Q104: =Test!G102 -> 4.81 | R104: 2.429894444 | S104: 27.32228326 | T104: 1.653227844
C105: 32 | D105: =Reference!B103 -> 308.2632 | E105: =Reference!C103 -> 43.173 | F105: =Reference!D103 -> 46.5289 | G105: =Reference!E103 -> 47.7536 | H105: =Reference!F103 -> 309.592309 | I105: =Reference!G103 -> 2.975445032 | J105: 0.08599786361 | L105: =Test!B103 -> 212.1978 | M105: =Test!C103 -> 44.4602 | N105: =Test!D103 -> 47.8369 | O105: =Test!E103 -> 49.7005 | P105: =Test!F103 -> 7330.04 | Q105: =Test!G103 -> 4.27 | R105: 2.036122222 | S105: 23.67642796 | T105: 1.435079443
C106: 37 | D106: =Reference!B104 -> 207.4673 | E106: =Reference!C104 -> 39.0858 | F106: =Reference!D104 -> 44.5107 | G106: =Reference!E104 -> 45.6747 | H106: =Reference!F104 -> 300.322603 | I106: =Reference!G104 -> 2.744109869 | J106: 0.08342294527 | L106: =Test!B104 -> 141.9752 | M106: =Test!C104 -> 40.8427 | N106: =Test!D104 -> 45.5641 | O106: =Test!E104 -> 47.7191 | P106: =Test!F104 -> 5816.27 | Q106: =Test!G104 -> 3.57 | R106: 1.615630556 | S106: 19.36674077 | T106: 1.300968318
B107: Class A1 | I107: =GEOMEAN(I3:I14) -> 17.29174281 | J107: =GEOMEAN(J3:J14) -> 0.4956432479 | Q107: =GEOMEAN(Q3:Q14) -> 30.34939344 | R107: =GEOMEAN(R3:R14) -> 8.252512703 | S107: =GEOMEAN(S3:S14) -> 16.65010618 | T107: =GEOMEAN(T3:T14) -> 1.755137916 | V107: =AVERAGE(V3:V14) -> -0.2908514388 | W107: -0.314743376 | X107: -0.3355294271 | Y107: -0.2935330958 | Z107: -0.3128487141 | AA107: -0.3373459659
B108: Class A2 | I108: =GEOMEAN(I15:I26) -> 21.12747907 | J108: =GEOMEAN(J15:J26) -> 0.5529161903 | Q108: =GEOMEAN(Q15:Q26) -> 39.13905438 | R108: =GEOMEAN(R15:R26) -> 14.6885087 | S108: =GEOMEAN(S15:S26) -> 26.56552469 | T108: =GEOMEAN(T15:T26) -> 1.852518904 | V108: =AVERAGE(V15:V26) -> -0.2935967986 | W108: -0.2261763696 | X108: -0.1924247394 | Y108: -0.2769947726 | Z108: -0.2214628664 | AA108: -0.1838470657
B109: Class B | I109: =GEOMEAN(I27:I46) -> 9.921376153 | J109: =GEOMEAN(J27:J46) -> 0.2607742672 | Q109: =GEOMEAN(Q27:Q46) -> 18.90592072 | R109: =GEOMEAN(R27:R46) -> 7.85775623 | S109: =GEOMEAN(S27:S46) -> 30.13240653 | T109: =GEOMEAN(T27:T46) -> 1.905574432 | V109: =AVERAGE(V27:V46) -> -0.2177448164 | W109: -0.2611705608 | X109: -0.3014879485 | Y109: -0.2145822606 | Z109: -0.2575919247 | AA109: -0.2983733186
B110: Class C | I110: =GEOMEAN(I47:I62) -> 2.148737231 | J110: =GEOMEAN(J47:J62) -> 0.04866668355 | Q110: =GEOMEAN(Q47:Q62) -> 4.276475473 | R110: =GEOMEAN(R47:R62) -> 2.0152739 | S110: =GEOMEAN(S47:S62) -> 41.4097233 | T110: =GEOMEAN(T47:T62) -> 1.990227288 | V110: =AVERAGE(V47:V62) -> -0.2255182085 | W110: -0.1818536195 | X110: -0.2212806725 | Y110: -0.225442741 | Z110: -0.1810263005 | AA110: -0.2187685247
B111: Class D | I111: =GEOMEAN(I63:I78) -> 0.5973829168 | J111: =GEOMEAN(J63:J78) -> 0.01279201446 | Q111: =GEOMEAN(Q63:Q78) -> 1.194687606 | R111: =GEOMEAN(R63:R78) -> 0.5997675325 | S111: =GEOMEAN(S63:S78) -> 46.88608932 | T111: =GEOMEAN(T63:T78) -> 1.999869049 | V111: =AVERAGE(V63:V78) -> -0.1845729835 | W111: -0.1264498656 | X111: -0.1266868066 | Y111: -0.1842861432 | Z111: -0.1252353596 | AA111: -0.1263043143
B112: Class E | I112: =GEOMEAN(I79:I90) -> 4.406465152 | J112: =GEOMEAN(J79:J90) -> 0.113878089 | Q112: =GEOMEAN(Q79:Q90) -> 7.480706949 | R112: =GEOMEAN(R79:R90) -> 2.721491642 | S112: =GEOMEAN(S79:S90) -> 23.89829042 | T112: =GEOMEAN(T79:T90) -> 1.6976662 | V112: =AVERAGE(V79:V88) -> -0.2572010451 | W112: -0.2572648584 | X112: -0.2414554961 | Y112: -0.2570081712 | Z112: -0.2548700445 | AA112: -0.2402230004
B113: Class F | I113: =GEOMEAN(I91:I106) -> 4.091172091 | J113: =GEOMEAN(J91:J106) -> 0.1004120522 | Q113: =GEOMEAN(Q91:Q106) -> 7.244555324 | R113: =GEOMEAN(R91:R106) -> 5.461762539 | S113: =GEOMEAN(S91:S106) -> 54.39349582 | T113: =GEOMEAN(T91:T106) -> 1.77077746 | V113: =AVERAGE(V91:V106) -> -0.3940160243 | W113: -0.3969698234 | X113: -0.4231090797 | Y113: -0.394109473 | Z113: -0.3940322522 | AA113: -0.4239351575
B114: All | I114: =GEOMEAN(I3:I62, I79:I90) -> 7.675502953 | J114: =GEOMEAN(J3:J62,J79:J90) -> 0.1973194136 | Q114: =GEOMEAN(Q3:Q62,Q79:Q90) -> 14.22227276 | R114: =GEOMEAN(R3:R62,R79:R90) -> 5.445682574 | S114: =GEOMEAN(S3:S62,S79:S90) -> 27.59831116 | T114: =GEOMEAN(T3:T62,T79:T90) -> 1.852943429 | V114: =AVERAGE(V3:V62,V79:V90) -> -0.2508747091 | W114: -0.2459900608 | X114: -0.2611550789 | Y114: -0.2476272436 | Z114: -0.24331165 | AA114: -0.2583993771
B115: Time geomean | I115: =GEOMEAN(I3:I106) -> 4.704072998 | J115: =GEOMEAN(J3:J106) -> 0.1167425218 | Q115: =GEOMEAN(Q3:Q106) -> 8.757982911 | R115: =GEOMEAN(R3:R106) -> 3.880199308
B116: Time ratio | Q116: =Q115/I115 -> 1.861787203 | R116: =R115/J115 -> 33.2372408
B117: Time sum (hours)

Sheet RA-10
D1: Reference | L1: Tested | V1: BD-rate (piecewise cubic) | Y1: BD-rate (cubic)
C2: QPISlice | D2: kbps | E2: Y psnr | F2: U psnr | G2: V psnr | H2: Enc T [s] | I2: Dec T [s] | J2: Enc T [h] | L2: kbps | M2: Y psnr | N2: U psnr | O2: V psnr | P2: Enc T [s] | Q2: Dec T [s] | R2: Enc T [h] | S2: Enc | T2: Dec | V2: Y | W2: U | X2: V | Y2: Y | Z2: U | AA2: V
A3: Class A1 | B3: Tango2 | C3: 22 | D3: =Reference!B105 -> 29424.3069 | E3: =Reference!C105 -> 40.195 | F3: =Reference!D105 -> 48.8005 | G3: =Reference!E105 -> 46.9362 | H3: =Reference!F105 -> 62928.11004 | I3: =Reference!G105 -> 106.7750859 | J3: =H3/3600 -> 17.48003057 | L3: =Test!B105 -> 27819.8808 | M3: =Test!C105 -> 40.3809 | N3: =Test!D105 -> 49.2243 | O3: =Test!E105 -> 47.5564 | P3: =Test!F105 -> 1023143.73 | Q3: =Test!G105 -> 183.7 | R3: =P3/3600 -> 284.2065917 | S3: =P3/H3 -> 16.2589299 | T3: =Q3/I3 -> 1.720438793 | V3: =bdrate($D3:$D6,E3:E6,$L3:$L6,M3:M6) -> -0.379656008 | W3: =bdrate($D3:$D6,F3:F6,$L3:$L6,N3:N6) -> -0.5224226643 | X3: =bdrate($D3:$D6,G3:G6,$L3:$L6,O3:O6) -> -0.4706366932 | Y3: =bdrateOld($D3:$D6,E3:E6,$L3:$L6,M3:M6) -> -0.3707204956 | Z3: =bdrateOld($D3:$D6,F3:F6,$L3:$L6,N3:N6) -> -0.5138569771 | AA3: =bdrateOld($D3:$D6,G3:G6,$L3:$L6,O3:O6) -> -0.46501246
A4: 4K | C4: 27 | D4: =Reference!B106 -> 8876.0751 | E4: =Reference!C106 -> 39.438 | F4: =Reference!D106 -> 47.8027 | G4: =Reference!E106 -> 45.5129 | H4: =Reference!F106 -> 50384.02354 | I4: =Reference!G106 -> 86.45812988 | J4: 13.99556209 | L4: =Test!B106 -> 7559.52 | M4: =Test!C106 -> 39.7076 | N4: =Test!D106 -> 48.495 | O4: =Test!E106 -> 46.351 | P4: =Test!F106 -> 492705.64 | Q4: =Test!G106 -> 147.86 | R4: 136.8626778 | S4: 9.779005435 | T4: 1.710191976
C5: 32 | D5: =Reference!B107 -> 4562.8098 | E5: =Reference!C107 -> 38.4252 | F5: =Reference!D107 -> 46.6951 | G5: =Reference!E107 -> 44.1029 | H5: =Reference!F107 -> 44750.65801 | I5: =Reference!G107 -> 76.33055496 | J5: 12.43073833 | L5: =Test!B107 -> 3625.2131 | M5: =Test!C107 -> 38.8574 | N5: =Test!D107 -> 47.4419 | O5: =Test!E107 -> 44.843 | P5: =Test!F107 -> 267110.9 | Q5: =Test!G107 -> 131.54 | R5: 74.19747222 | S5: 5.968870893 | T5: 1.723294165
C6: 37 | D6: =Reference!B108 -> 2550.3543 | E6: =Reference!C108 -> 36.9007 | F6: =Reference!D108 -> 45.579 | G6: =Reference!E108 -> 42.7478 | H6: =Reference!F108 -> 40596.24888 | I6: =Reference!G108 -> 71.61694813 | J6: 11.2767358 | L6: =Test!B108 -> 1976.9437 | M6: =Test!C108 -> 37.5452 | N6: =Test!D108 -> 46.4263 | O6: =Test!E108 -> 43.4286 | P6: =Test!F108 -> 149909.89 | Q6: =Test!G108 -> 115.14 | R6: 41.64163611 | S6: 3.692702999 | T6: 1.607720002
B7: FoodMarket4 | C7: 22 | D7: =Reference!B109 -> 20219.8288 | E7: =Reference!C109 -> 43.9236 | F7: =Reference!D109 -> 48.682 | G7: =Reference!E109 -> 49.1977 | H7: =Reference!F109 -> 58467.37825 | I7: =Reference!G109 -> 98.41066909 | J7: 16.2409384 | L7: =Test!B109 -> 17029.8096 | M7: =Test!C109 -> 44.2677 | N7: =Test!D109 -> 49.246 | O7: =Test!E109 -> 49.8943 | P7: =Test!F109 -> 737688.96 | Q7: =Test!G109 -> 176.71 | R7: 204.9136 | S7: 12.61710345 | T7: 1.79563864 | V7: =bdrate($D7:$D10,E7:E10,$L7:$L10,M7:M10) -> -0.3703579052 | W7: =bdrate($D7:$D10,F7:F10,$L7:$L10,N7:N10) -> -0.3825956227 | X7: =bdrate($D7:$D10,G7:G10,$L7:$L10,O7:O10) -> -0.3691116591 | Y7: =bdrateOld($D7:$D10,E7:E10,$L7:$L10,M7:M10) -> -0.3662557586 | Z7: =bdrateOld($D7:$D10,F7:F10,$L7:$L10,N7:N10) -> -0.3805638581 | AA7: =bdrateOld($D7:$D10,G7:G10,$L7:$L10,O7:O10) -> -0.3677127943
C8: 27 | D8: =Reference!B110 -> 9224.9952 | E8: =Reference!C110 -> 42.319 | F8: =Reference!D110 -> 46.8392 | G8: =Reference!E110 -> 47.1528 | H8: =Reference!F110 -> 50516.61994 | I8: =Reference!G110 -> 87.44853806 | J8: 14.03239443 | L8: =Test!B110 -> 7631.1856 | M8: =Test!C110 -> 42.9415 | N8: =Test!D110 -> 47.5996 | O8: =Test!E110 -> 47.9744 | P8: =Test!F110 -> 421351.04 | Q8: =Test!G110 -> 154.34 | R8: 117.0419556 | S8: 8.340839915 | T8: 1.76492373
C9: 32 | D9: =Reference!B111 -> 4896.3632 | E9: =Reference!C111 -> 40.2587 | F9: =Reference!D111 -> 45.1311 | G9: =Reference!E111 -> 45.353 | H9: =Reference!F111 -> 45843.84881 | I9: =Reference!G111 -> 80.68866897 | J9: 12.73440245 | L9: =Test!B111 -> 3930.4032 | M9: =Test!C111 -> 41.1167 | N9: =Test!D111 -> 45.8267 | O9: =Test!E111 -> 45.9682 | P9: =Test!F111 -> 255770.63 | Q9: =Test!G111 -> 137.38 | R9: 71.04739722 | S9: 5.579170088 | T9: 1.702593459
C10: 37 | D10: =Reference!B112 -> 2626.0496 | E10: =Reference!C112 -> 37.7743 | F10: =Reference!D112 -> 43.6585 | G10: =Reference!E112 -> 43.7625 | H10: =Reference!F112 -> 41666.83488 | I10: =Reference!G112 -> 74.67884994 | J10: 11.5741208 | L10: =Test!B112 -> 2072.9952 | M10: =Test!C112 -> 38.826 | N10: =Test!D112 -> 44.1387 | O10: =Test!E112 -> 44.217 | P10: =Test!F112 -> 140747.35 | Q10: =Test!G112 -> 118.46 | R10: 39.09648611 | S10: 3.377922763 | T10: 1.586259029
B11: Campfire | C11: 22 | D11: =Reference!B113 -> 65892.8984 | E11: =Reference!C113 -> 39.2583 | F11: =Reference!D113 -> 41.3602 | G11: =Reference!E113 -> 42.0595 | H11: =Reference!F113 -> 72739.33498 | I11: =Reference!G113 -> 146.9484899 | J11: 20.20537083 | L11: =Test!B113 -> 58864.4936 | M11: =Test!C113 -> 39.7557 | N11: =Test!D113 -> 41.5389 | O11: =Test!E113 -> 42.5434 | P11: =Test!F113 -> 1760022.93 | Q11: =Test!G113 -> 274.63 | R11: 488.8952583 | S11: 24.19630219 | T11: 1.868886167 | V11: =bdrate($D11:$D14,E11:E14,$L11:$L14,M11:M14) -> -0.4115899467 | W11: =bdrate($D11:$D14,F11:F14,$L11:$L14,N11:N14) -> -0.1942579917 | X11: =bdrate($D11:$D14,G11:G14,$L11:$L14,O11:O14) -> -0.4930979457 | Y11: =bdrateOld($D11:$D14,E11:E14,$L11:$L14,M11:M14) -> -0.4032506083 | Z11: =bdrateOld($D11:$D14,F11:F14,$L11:$L14,N11:N14) -> -0.2019903038 | AA11: =bdrateOld($D11:$D14,G11:G14,$L11:$L14,O11:O14) -> -0.4922846745
C12: 27 | D12: =Reference!B114 -> 20403.5416 | E12: =Reference!C114 -> 37.3291 | F12: =Reference!D114 -> 38.1407 | G12: =Reference!E114 -> 40.4364 | H12: =Reference!F114 -> 53525.95469 | I12: =Reference!G114 -> 101.8998868 | J12: 14.86832075 | L12: =Test!B114 -> 15338.128 | M12: =Test!C114 -> 37.6204 | N12: =Test!D114 -> 37.9775 | O12: =Test!E114 -> 41.0064 | P12: =Test!F114 -> 869465.12 | Q12: =Test!G114 -> 177.01 | R12: 241.5180889 | S12: 16.24380406 | T12: 1.73709712
C13: 32 | D13: =Reference!B115 -> 10439.3232 | E13: =Reference!C115 -> 36.1718 | F13: =Reference!D115 -> 36.3603 | G13: =Reference!E115 -> 39.1584 | H13: =Reference!F115 -> 45839.39137 | I13: =Reference!G115 -> 86.9430182 | J13: 12.73316427 | L13: =Test!B115 -> 6565.1984 | M13: =Test!C115 -> 36.513 | N13: =Test!D115 -> 35.575 | O13: =Test!E115 -> 39.6784 | P13: =Test!F115 -> 544548.03 | Q13: =Test!G115 -> 144.55 | R13: 151.2633417 | S13: 11.87947775 | T13: 1.662583184
C14: 37 | D14: =Reference!B116 -> 5670.0344 | E14: =Reference!C116 -> 34.7133 | F14: =Reference!D116 -> 34.337 | G14: =Reference!E116 -> 37.7314 | H14: =Reference!F116 -> 41213.17456 | I14: =Reference!G116 -> 79.7354939 | J14: 11.44810404 | L14: =Test!B116 -> 3531.472 | M14: =Test!C116 -> 35.1422 | N14: =Test!D116 -> 33.8598 | O14: =Test!E116 -> 38.2763 | P14: =Test!F116 -> 330645.54 | Q14: =Test!G116 -> 124.02 | R14: 91.84598333 | S14: 8.022811723 | T14: 1.555392636
A15: Class A2 | B15: CatRobot1 | C15: 22 | D15: =Reference!B117 -> 36962.9216 | E15: =Reference!C117 -> 40.1606 | F15: =Reference!D117 -> 41.699 | G15: =Reference!E117 -> 43.2899 | H15: =Reference!F117 -> 52323.56218 | I15: =Reference!G117 -> 106.97101 | J15: 14.53432283 | L15: =Test!B117 -> 33456.3744 | M15: =Test!C117 -> 40.4543 | N15: =Test!D117 -> 41.9111 | O15: =Test!E117 -> 43.616 | P15: =Test!F117 -> 855393.87 | Q15: =Test!G117 -> 198.98 | R15: 237.6094083 | S15: 16.34815816 | T15: 1.860130142 | V15: =bdrate($D15:$D18,E15:E18,$L15:$L18,M15:M18) -> -0.4509966024 | W15: =bdrate($D15:$D18,F15:F18,$L15:$L18,N15:N18) -> -0.5100809159 | X15: =bdrate($D15:$D18,G15:G18,$L15:$L18,O15:O18) -> -0.4636720698 | Y15: =bdrateOld($D15:$D18,E15:E18,$L15:$L18,M15:M18) -> -0.440142507 | Z15: =bdrateOld($D15:$D18,F15:F18,$L15:$L18,N15:N18) -> -0.4977574852 | AA15: =bdrateOld($D15:$D18,G15:G18,$L15:$L18,O15:O18) -> -0.4555858726
A16: 4K | C16: 27 | D16: =Reference!B118 -> 11093.5552 | E16: =Reference!C118 -> 39.114 | F16: =Reference!D118 -> 41.081 | G16: =Reference!E118 -> 42.0066 | H16: =Reference!F118 -> 41580.05319 | I16: =Reference!G118 -> 81.45979691 | J16: 11.55001478 | L16: =Test!B118 -> 8715.9472 | M16: =Test!C118 -> 39.5373 | N16: =Test!D118 -> 41.4213 | O16: =Test!E118 -> 42.5727 | P16: =Test!F118 -> 445022.67 | Q16: =Test!G118 -> 147.95 | R16: 123.6174083 | S16: 10.70279222 | T16: 1.816233352
C17: 32 | D17: =Reference!B119 -> 5607.0032 | E17: =Reference!C119 -> 37.7015 | F17: =Reference!D119 -> 40.2869 | G17: =Reference!E119 -> 40.5697 | H17: =Reference!F119 -> 37849.11217 | I17: =Reference!G119 -> 76.63498497 | J17: 10.51364227 | L17: =Test!B119 -> 4113.1152 | M17: =Test!C119 -> 38.3471 | N17: =Test!D119 -> 40.7388 | O17: =Test!E119 -> 41.2287 | P17: =Test!F119 -> 266242.87 | Q17: =Test!G119 -> 127.54 | R17: 73.95635278 | S17: 7.034322729 | T17: 1.664252952
C18: 37 | D18: =Reference!B120 -> 3039.2096 | E18: =Reference!C120 -> 35.8035 | F18: =Reference!D120 -> 39.44 | G18: =Reference!E120 -> 39.2214 | H18: =Reference!F120 -> 34775.94662 | I18: =Reference!G120 -> 70.41245794 | J18: 9.659985173 | L18: =Test!B120 -> 2158.3088 | M18: =Test!C120 -> 36.6844 | N18: =Test!D120 -> 39.945 | O18: =Test!E120 -> 39.7416 | P18: =Test!F120 -> 163350.1 | Q18: =Test!G120 -> 111.63 | R18: 45.37502778 | S18: 4.697215054 | T18: 1.585372862
B19: DaylightRoad2 | C19: 22 | D19: =Reference!B121 -> 58095.8208 | E19: =Reference!C121 -> 37.9336 | F19: =Reference!D121 -> 45.4898 | G19: =Reference!E121 -> 43.2083 | H19: =Reference!F121 -> 62307.15388 | I19: =Reference!G121 -> 121.8913591 | J19: 17.30754274 | L19: =Test!B121 -> 58540.5264 | M19: =Test!C121 -> 38.2223 | N19: =Test!D121 -> 45.7474 | O19: =Test!E121 -> 43.4991 | P19: =Test!F121 -> 1235752.35 | Q19: =Test!G121 -> 225.41 | R19: 343.2645417 | S19: 19.8332338 | T19: 1.849269724 | V19: =bdrate($D19:$D22,E19:E22,$L19:$L22,M19:M22) -> -0.4358746439 | W19: =bdrate($D19:$D22,F19:F22,$L19:$L22,N19:N22) -> -0.5144190606 | X19: =bdrate($D19:$D22,G19:G22,$L19:$L22,O19:O22) -> -0.4906560439 | Y19: =bdrateOld($D19:$D22,E19:E22,$L19:$L22,M19:M22) -> -0.4356988925 | Z19: =bdrateOld($D19:$D22,F19:F22,$L19:$L22,N19:N22) -> -0.4970960574 | AA19: =bdrateOld($D19:$D22,G19:G22,$L19:$L22,O19:O22) -> -0.4696516355
C20: 27 | D20: =Reference!B122 -> 12274.5776 | E20: =Reference!C122 -> 37.0348 | F20: =Reference!D122 -> 44.5562 | G20: =Reference!E122 -> 42.2315 | H20: =Reference!F122 -> 44175.79064 | I20: =Reference!G122 -> 85.28615284 | J20: 12.27105295 | L20: =Test!B122 -> 10244.8224 | M20: =Test!C122 -> 37.3108 | N20: =Test!D122 -> 45.0169 | O20: =Test!E122 -> 42.6906 | P20: =Test!F122 -> 503097.72 | Q20: =Test!G122 -> 156.29 | R20: 139.7493667 | S20: 11.38853912 | T20: 1.83253664
C21: 32 | D21: =Reference!B123 -> 5573.8176 | E21: =Reference!C123 -> 35.9912 | F21: =Reference!D123 -> 43.3702 | G21: =Reference!E123 -> 41.0449 | H21: =Reference!F123 -> 38815.64068 | I21: =Reference!G123 -> 75.90588593 | J21: 10.78212241 | L21: =Test!B123 -> 4122.288 | M21: =Test!C123 -> 36.4179 | N21: =Test!D123 -> 44.0274 | O21: =Test!E123 -> 41.695 | P21: =Test!F123 -> 298966.84 | Q21: =Test!G123 -> 137.15 | R21: 83.04634444 | S21: 7.702226082 | T21: 1.806842754
C22: 37 | D22: =Reference!B124 -> 2863.6144 | E22: =Reference!C124 -> 34.4687 | F22: =Reference!D124 -> 42.2337 | G22: =Reference!E124 -> 39.8862 | H22: =Reference!F124 -> 36001.14776 | I22: =Reference!G124 -> 73.54583406 | J22: 10.00031882 | L22: =Test!B124 -> 2067.3568 | M22: =Test!C124 -> 35.1027 | N22: =Test!D124 -> 42.7855 | O22: =Test!E124 -> 40.0965 | P22: =Test!F124 -> 170370.84 | Q22: =Test!G124 -> 118.49 | R22: 47.32523333 | S22: 4.732372455 | T22: 1.611104171
B23: ParkRunning3 | C23: 22 | D23: =Reference!B125 -> 122153.6987 | E23: =Reference!C125 -> 42.3735 | F23: =Reference!D125 -> 37.5804 | G23: =Reference!E125 -> 38.6037 | H23: =Reference!F125 -> 78449.43606 | I23: =Reference!G125 -> 147.9940882 | J23: 21.79151002 | L23: =Test!B125 -> 107515.1547 | M23: =Test!C125 -> 43.8225 | N23: =Test!D125 -> 37.6378 | O23: =Test!E125 -> 38.6303 | P23: =Test!F125 -> 1551848.55 | Q23: =Test!G125 -> 317.19 | R23: 431.0690417 | S23: 19.78151314 | T23: 2.143261288 | V23: =bdrate($D23:$D26,E23:E26,$L23:$L26,M23:M26) -> -0.4038667699 | W23: =bdrate($D23:$D26,F23:F26,$L23:$L26,N23:N26) -> -0.1795519724 | X23: =bdrate($D23:$D26,G23:G26,$L23:$L26,O23:O26) -> -0.2060016312 | Y23: =bdrateOld($D23:$D26,E23:E26,$L23:$L26,M23:M26) -> -0.4023511574 | Z23: =bdrateOld($D23:$D26,F23:F26,$L23:$L26,N23:N26) -> -0.1787511851 | AA23: =bdrateOld($D23:$D26,G23:G26,$L23:$L26,O23:O26) -> -0.1986094263
C24: 27 | D24: =Reference!B126 -> 50059.256 | E24: =Reference!C126 -> 38.5411 | F24: =Reference!D126 -> 34.6968 | G24: =Reference!E126 -> 36.0556 | H24: =Reference!F126 -> 61792.70795 | I24: =Reference!G126 -> 114.239105 | J24: 17.1646411 | L24: =Test!B126 -> 41654.5627 | M24: =Test!C126 -> 39.8348 | N24: =Test!D126 -> 34.7769 | O24: =Test!E126 -> 36.1854 | P24: =Test!F126 -> 892502.66 | Q24: =Test!G126 -> 266.69 | R24: 247.9174056 | S24: 14.44349486 | T24: 2.334489578
C25: 32 | D25: =Reference!B127 -> 23647.2173 | E25: =Reference!C127 -> 35.3744 | F25: =Reference!D127 -> 32.9534 | G25: =Reference!E127 -> 34.4891 | H25: =Reference!F127 -> 52452.33021 | I25: =Reference!G127 -> 97.36664796 | J25: 14.57009173 | L25: =Test!B127 -> 18218.6987 | M25: =Test!C127 -> 36.5292 | N25: =Test!D127 -> 32.8614 | O25: =Test!E127 -> 34.5752 | P25: =Test!F127 -> 602473.6 | Q25: =Test!G127 -> 203.86 | R25: 167.3537778 | S25: 11.48611697 | T25: 2.093735425
C26: 37 | D26: =Reference!B128 -> 10568.7293 | E26: =Reference!C128 -> 32.5312 | F26: =Reference!D128 -> 31.4933 | G26: =Reference!E128 -> 33.1873 | H26: =Reference!F128 -> 45254.32257 | I26: =Reference!G128 -> 85.77884603 | J26: 12.57064516 | L26: =Test!B128 -> 8141.5787 | M26: =Test!C128 -> 33.5121 | N26: =Test!D128 -> 31.333 | O26: =Test!E128 -> 32.9604 | P26: =Test!F128 -> 346901.74 | Q26: =Test!G128 -> 152.6 | R26: 96.36159444 | S26: 7.665604529 | T26: 1.778993389
A27: Class B | B27: MarketPlace | C27: 22 | D27: =Reference!B129 -> 15785.6056 | E27: =Reference!C129 -> 40.4933 | F27: =Reference!D129 -> 44.0006 | G27: =Reference!E129 -> 44.842 | H27: =Reference!F129 -> 29993.64183 | I27: =Reference!G129 -> 57.80042005 | J27: 8.331567175 | L27: =Test!B129 -> 14348.4224 | M27: =Test!C129 -> 40.9371 | N27: =Test!D129 -> 44.4795 | O27: =Test!E129 -> 45.3479 | P27: =Test!F129 -> 482928.26 | Q27: =Test!G129 -> 111.74 | R27: 134.1467389 | S27: 16.1010211 | T27: 1.933203944 | V27: =bdrate($D27:$D30,E27:E30,$L27:$L30,M27:M30) -> -0.3493152134 | W27: =bdrate($D27:$D30,F27:F30,$L27:$L30,N27:N30) -> -0.4543010475 | X27: =bdrate($D27:$D30,G27:G30,$L27:$L30,O27:O30) -> -0.4231214094 | Y27: =bdrateOld($D27:$D30,E27:E30,$L27:$L30,M27:M30) -> -0.3487445177 | Z27: =bdrateOld($D27:$D30,F27:F30,$L27:$L30,N27:N30) -> -0.4517689289 | AA27: =bdrateOld($D27:$D30,G27:G30,$L27:$L30,O27:O30) -> -0.4210362568
A28: 1080p | C28: 27 | D28: =Reference!B130 -> 6313.5912 | E28: =Reference!C130 -> 38.3391 | F28: =Reference!D130 -> 42.4225 | G28: =Reference!E130 -> 43.4121 | H28: =Reference!F130 -> 23876.84755 | I28: =Reference!G130 -> 47.01109195 | J28: 6.632457652 | L28: =Test!B130 -> 5128.2512 | M28: =Test!C130 -> 38.8205 | N28: =Test!D130 -> 43.074 | O28: =Test!E130 -> 44.0174 | P28: =Test!F130 -> 264523.96 | Q28: =Test!G130 -> 79.55 | R28: 73.47887778 | S28: 11.07868028 | T28: 1.692153845
C29: 32 | D29: =Reference!B131 -> 2902.7464 | E29: =Reference!C131 -> 36.0882 | F29: =Reference!D131 -> 41.0076 | G29: =Reference!E131 -> 42.0624 | H29: =Reference!F131 -> 21071.18087 | I29: =Reference!G131 -> 42.3186779 | J29: 5.853105797 | L29: =Test!B131 -> 2258.3384 | M29: =Test!C131 -> 36.697 | N29: =Test!D131 -> 41.7243 | O29: =Test!E131 -> 42.5403 | P29: =Test!F131 -> 171120.02 | Q29: =Test!G131 -> 67.6 | R29: 47.53333889 | S29: 8.121045567 | T29: 1.597403401
C30: 37 | D30: =Reference!B132 -> 1313.0104 | E30: =Reference!C132 -> 33.7281 | F30: =Reference!D132 -> 39.8526 | G30: =Reference!E132 -> 40.8673 | H30: =Reference!F132 -> 19012.20311 | I30: =Reference!G132 -> 38.32833004 | J30: 5.281167532 | L30: =Test!B132 -> 1005.2128 | M30: =Test!C132 -> 34.4226 | N30: =Test!D132 -> 40.2712 | O30: =Test!E132 -> 41.26 | P30: =Test!F132 -> 103073.21 | Q30: =Test!G132 -> 56.71 | R30: 28.63144722 | S30: 5.421423776 | T30: 1.479584421
B31: RitualDance | C31: 22 | D31: =Reference!B133 -> 10997.2272 | E31: =Reference!C133 -> 44.0257 | F31: =Reference!D133 -> 47.0756 | G31: =Reference!E133 -> 47.7347 | H31: =Reference!F133 -> 31479.69643 | I31: =Reference!G133 -> 56.50079799 | J31: 8.744360119 | L31: =Test!B133 -> 9220.632 | M31: =Test!C133 -> 44.7754 | N31: =Test!D133 -> 48.013 | O31: =Test!E133 -> 48.7914 | P31: =Test!F133 -> 418768.87 | Q31: =Test!G133 -> 105.34 | R31: 116.3246861 | S31: 13.30282428 | T31: 1.864398447 | V31: =bdrate($D31:$D34,E31:E34,$L31:$L34,M31:M34) -> -0.311556312 | W31: =bdrate($D31:$D34,F31:F34,$L31:$L34,N31:N34) -> -0.4069011317 | X31: =bdrate($D31:$D34,G31:G34,$L31:$L34,O31:O34) -> -0.3575913149 | Y31: =bdrateOld($D31:$D34,E31:E34,$L31:$L34,M31:M34) -> -0.3110565894 | Z31: =bdrateOld($D31:$D34,F31:F34,$L31:$L34,N31:N34) -> -0.4055135656 | AA31: =bdrateOld($D31:$D34,G31:G34,$L31:$L34,O31:O34) -> -0.3572877874
C32: 27 | D32: =Reference!B134 -> 5474.28 | E32: =Reference!C134 -> 40.8195 | F32: =Reference!D134 -> 44.9002 | G32: =Reference!E134 -> 45.2948 | H32: =Reference!F134 -> 27300.15152 | I32: =Reference!G134 -> 48.85639811 | J32: 7.583375422 | L32: =Test!B134 -> 4580.588 | M32: =Test!C134 -> 41.7043 | N32: =Test!D134 -> 45.9449 | O32: =Test!E134 -> 46.2585 | P32: =Test!F134 -> 281362.83 | Q32: =Test!G134 -> 77.62 | R32: 78.15634167 | S32: 10.30627357 | T32: 1.588737668
C33: 32 | D33: =Reference!B135 -> 2909.788 | E33: =Reference!C135 -> 37.7403 | F33: =Reference!D135 -> 43.1869 | G33: =Reference!E135 -> 43.4321 | H33: =Reference!F135 -> 24556.02657 | I33: =Reference!G135 -> 46.09879088 | J33: 6.821118492 | L33: =Test!B135 -> 2426.7128 | M33: =Test!C135 -> 38.6959 | N33: =Test!D135 -> 44.1581 | O33: =Test!E135 -> 44.082 | P33: =Test!F135 -> 192985.93 | Q33: =Test!G135 -> 65.95 | R33: 53.60720278 | S33: 7.859004772 | T33: 1.430623206
C34: 37 | D34: =Reference!B136 -> 1520.444 | E34: =Reference!C136 -> 34.7901 | F34: =Reference!D136 -> 41.8009 | G34: =Reference!E136 -> 41.8707 | H34: =Reference!F136 -> 22185.83507 | I34: =Reference!G136 -> 42.31288099 | J34: 6.162731963 | L34: =Test!B136 -> 1278.3096 | M34: =Test!C136 -> 35.7356 | N34: =Test!D136 -> 42.2901 | O34: =Test!E136 -> 42.4379 | P34: =Test!F136 -> 119980.39 | Q34: =Test!G136 -> 53.07 | R34: 33.32788611 | S34: 5.407972684 | T34: 1.254227998
B35: Cactus | C35: 22 | D35: =Reference!B137 -> 16256.8688 | E35: =Reference!C137 -> 38.4272 | F35: =Reference!D137 -> 39.964 | G35: =Reference!E137 -> 43.8062 | H35: =Reference!F137 -> 23229.60211 | I35: =Reference!G137 -> 51.99355912 | J35: =H35/3600 -> 6.452667252 | L35: =Test!B137 -> 14011.8656 | M35: =Test!C137 -> 38.721 | N35: =Test!D137 -> 40.2302 | O35: =Test!E137 -> 44.1574 | P35: =Test!F137 -> 411854.93 | Q35: =Test!G137 -> 88.26 | R35: =P35/3600 -> 114.4041472 | S35: =P35/H35 -> 17.72974535 | T35: =Q35/I35 -> 1.697517952 | V35: =bdrate($D35:$D38,E35:E38,$L35:$L38,M35:M38) -> -0.3719918295 | W35: =bdrate($D35:$D38,F35:F38,$L35:$L38,N35:N38) -> -0.4755028855 | X35: =bdrate($D35:$D38,G35:G38,$L35:$L38,O35:O38) -> -0.4091173414 | Y35: =bdrateOld($D35:$D38,E35:E38,$L35:$L38,M35:M38) -> -0.3704282949 | Z35: =bdrateOld($D35:$D38,F35:F38,$L35:$L38,N35:N38) -> -0.4714832768 | AA35: =bdrateOld($D35:$D38,G35:G38,$L35:$L38,O35:O38) -> -0.4051622239
C36: 27 | D36: =Reference!B138 -> 5215.008 | E36: =Reference!C138 -> 36.8581 | F36: =Reference!D138 -> 39.1724 | G36: =Reference!E138 -> 42.1672 | H36: =Reference!F138 -> 17544.49817 | I36: =Reference!G138 -> 37.1939621 | J36: 4.873471714 | L36: =Test!B138 -> 4125.6368 | M36: =Test!C138 -> 37.2209 | N36: =Test!D138 -> 39.5365 | O36: =Test!E138 -> 42.711 | P36: =Test!F138 -> 210319.71 | Q36: =Test!G138 -> 61.6 | R36: 58.42214167 | S36: 11.98778717 | T36: 1.656182792
C37: 32 | D37: =Reference!B139 -> 2505.368 | E37: =Reference!C139 -> 35.052 | F37: =Reference!D139 -> 38.3588 | G37: =Reference!E139 -> 40.5439 | H37: =Reference!F139 -> 15469.96275 | I37: =Reference!G139 -> 33.10868382 | J37: 4.297211876 | L37: =Test!B139 -> 1892.44 | M37: =Test!C139 -> 35.5787 | N37: =Test!D139 -> 38.81 | O37: =Test!E139 -> 41.1164 | P37: =Test!F139 -> 133453.8 | Q37: =Test!G139 -> 51.06 | R37: 37.0705 | S37: 8.626640033 | T37: 1.542193591
C38: 37 | D38: =Reference!B140 -> 1262.4392 | E38: =Reference!C140 -> 32.8214 | F38: =Reference!D140 -> 37.4922 | G38: =Reference!E140 -> 39.0883 | H38: =Reference!F140 -> 14224.57106 | I38: =Reference!G140 -> 30.736233 | J38: 3.951269739 | L38: =Test!B140 -> 933.0032 | M38: =Test!C140 -> 33.5266 | N38: =Test!D140 -> 37.7429 | O38: =Test!E140 -> 39.3936 | P38: =Test!F140 -> 81509.18 | Q38: =Test!G140 -> 46.49 | R38: 22.64143889 | S38: 5.730167866 | T38: 1.512547097
B39: BasketballDrive | C39: 22 | D39: =Reference!B141 -> 16070.7952 | E39: =Reference!C141 -> 39.1649 | F39: =Reference!D141 -> 43.8489 | G39: =Reference!E141 -> 45.0717 | H39: =Reference!F141 -> 27546.405 | I39: =Reference!G141 -> 55.01922202 | J39: 7.651779168 | L39: =Test!B141 -> 14428.5392 | M39: =Test!C141 -> 39.5287 | N39: =Test!D141 -> 44.3335 | O39: =Test!E141 -> 45.8944 | P39: =Test!F141 -> 494365.74 | Q39: =Test!G141 -> 93.67 | R39: 137.3238167 | S39: 17.94665184 | T39: 1.702495902 | V39: =bdrate($D39:$D42,E39:E42,$L39:$L42,M39:M42) -> -0.3599296811 | W39: =bdrate($D39:$D42,F39:F42,$L39:$L42,N39:N42) -> -0.4341171445 | X39: =bdrate($D39:$D42,G39:G42,$L39:$L42,O39:O42) -> -0.4033613989 | Y39: =bdrateOld($D39:$D42,E39:E42,$L39:$L42,M39:M42) -> -0.35806497 | Z39: =bdrateOld($D39:$D42,F39:F42,$L39:$L42,N39:N42) -> -0.4306619277 | AA39: =bdrateOld($D39:$D42,G39:G42,$L39:$L42,O39:O42) -> -0.4013354709
C40: 27 | D40: =Reference!B142 -> 5412.2448 | E40: =Reference!C142 -> 37.4212 | F40: =Reference!D142 -> 42.6268 | G40: =Reference!E142 -> 43.1339 | H40: =Reference!F142 -> 21749.99833 | I40: =Reference!G142 -> 42.7378099 | J40: 6.041666202 | L40: =Test!B142 -> 4697.7504 | M40: =Test!C142 -> 37.9625 | N40: =Test!D142 -> 43.2327 | O40: =Test!E142 -> 43.9794 | P40: =Test!F142 -> 312221.72 | Q40: =Test!G142 -> 68.66 | R40: 86.72825556 | S40: 14.35502271 | T40: 1.606539974
C41: 32 | D41: =Reference!B143 -> 2599.0032 | E41: =Reference!C143 -> 35.605 | F41: =Reference!D143 -> 41.4177 | G41: =Reference!E143 -> 41.4473 | H41: =Reference!F143 -> 18943.99622 | I41: =Reference!G143 -> 36.87438679 | J41: 5.262221171 | L41: =Test!B143 -> 2152.396 | M41: =Test!C143 -> 36.3202 | N41: =Test!D143 -> 42.0138 | O41: =Test!E143 -> 42.1142 | P41: =Test!F143 -> 186803.48 | Q41: =Test!G143 -> 58.4 | R41: 51.88985556 | S41: 9.86082756 | T41: 1.583755151
C42: 37 | D42: =Reference!B144 -> 1326.212 | E42: =Reference!C144 -> 33.5142 | F42: =Reference!D144 -> 40.2319 | G42: =Reference!E144 -> 39.8816 | H42: =Reference!F144 -> 16979.41603 | I42: =Reference!G144 -> 33.79003286 | J42: 4.716504452 | L42: =Test!B144 -> 1076.236 | M42: =Test!C144 -> 34.3837 | N42: =Test!D144 -> 40.7828 | O42: =Test!E144 -> 40.4209 | P42: =Test!F144 -> 111894.99 | Q42: =Test!G144 -> 59.04 | R42: 31.08194167 | S42: 6.590037597 | T42: 1.747260804
B43: BQTerrace | C43: 22 | D43: =Reference!B145 -> 34914.1504 | E43: =Reference!C145 -> 37.241 | F43: =Reference!D145 -> 42.2345 | G43: =Reference!E145 -> 44.5522 | H43: =Reference!F145 -> 33436.21402 | I43: =Reference!G145 -> 81.94612503 | J43: 9.287837227 | L43: =Test!B145 -> 34006.9912 | M43: =Test!C145 -> 37.6314 | N43: =Test!D145 -> 42.6358 | O43: =Test!E145 -> 44.9645 | P43: =Test!F145 -> 613823.37 | Q43: =Test!G145 -> 163.19 | R43: 170.5064917 | S43: 18.35804047 | T43: 1.991430345 | V43: =bdrate($D43:$D46,E43:E46,$L43:$L46,M43:M46) -> -0.3390703798 | W43: =bdrate($D43:$D46,F43:F46,$L43:$L46,N43:N46) -> -0.5983483676 | X43: =bdrate($D43:$D46,G43:G46,$L43:$L46,O43:O46) -> -0.6538499071 | Y43: =bdrateOld($D43:$D46,E43:E46,$L43:$L46,M43:M46) -> -0.3371309265 | Z43: =bdrateOld($D43:$D46,F43:F46,$L43:$L46,N43:N46) -> -0.5830820197 | AA43: =bdrateOld($D43:$D46,G43:G46,$L43:$L46,O43:O46) -> -0.6393758713
C44: 27 | D44: =Reference!B146 -> 6257.9744 | E44: =Reference!C146 -> 35.2167 | F44: =Reference!D146 -> 41.0898 | G44: =Reference!E146 -> 43.5243 | H44: =Reference!F146 -> 18519.59337 | I44: =Reference!G146 -> 45.66154885 | J44: 5.144331493 | L44: =Test!B146 -> 5474.0312 | M44: =Test!C146 -> 35.5323 | N44: =Test!D146 -> 41.8152 | O44: =Test!E146 -> 44.2575 | P44: =Test!F146 -> 207187.48 | Q44: =Test!G146 -> 71.2 | R44: 57.55207778 | S44: 11.18747457 | T44: 1.559298837
C45: 32 | D45: =Reference!B147 -> 2002.2312 | E45: =Reference!C147 -> 33.8665 | F45: =Reference!D147 -> 39.7607 | G45: =Reference!E147 -> 42.2936 | H45: =Reference!F147 -> 15566.68359 | I45: =Reference!G147 -> 38.54484701 | J45: 4.324078775 | L45: =Test!B147 -> 1693.0016 | M45: =Test!C147 -> 34.269 | N45: =Test!D147 -> 40.7414 | O45: =Test!E147 -> 43.3423 | P45: =Test!F147 -> 108979.73 | Q45: =Test!G147 -> 59.55 | R45: 30.27214722 | S45: 7.000831576 | T45: 1.544953596
C46: 37 | D46: =Reference!B148 -> 908.7296 | E46: =Reference!C148 -> 32.2003 | F46: =Reference!D148 -> 38.5988 | G46: =Reference!E148 -> 41.1684 | H46: =Reference!F148 -> 14777.7526 | I46: =Reference!G148 -> 36.75159812 | J46: 4.104931279 | L46: =Test!B148 -> 751.2064 | M46: =Test!C148 -> 32.7633 | N46: =Test!D148 -> 39.0709 | O46: =Test!E148 -> 41.8937 | P46: =Test!F148 -> 66558.45 | Q46: =Test!G148 -> 52.89 | R46: 18.48845833 | S46: 4.503962936 | T46: 1.439121091
A47: Class C | B47: BasketballDrill | C47: 22 | D47: =Reference!B149 -> 3278.8568 | E47: =Reference!C149 -> 40.8812 | F47: =Reference!D149 -> 43.3438 | G47: =Reference!E149 -> 43.9668 | H47: =Reference!F149 -> 5073.263949 | I47: =Reference!G149 -> 11.06441712 | J47: 1.409239986 | L47: =Test!B149 -> 2836.7192 | M47: =Test!C149 -> 41.6738 | N47: =Test!D149 -> 43.9814 | O47: =Test!E149 -> 44.8398 | P47: =Test!F149 -> 89096.43 | Q47: =Test!G149 -> 19.67 | R47: 24.74900833 | S47: 17.56195437 | T47: 1.77777101 | V47: =bdrate($D47:$D50,E47:E50,$L47:$L50,M47:M50) -> -0.333797525 | W47: =bdrate($D47:$D50,F47:F50,$L47:$L50,N47:N50) -> -0.3623453586 | X47: =bdrate($D47:$D50,G47:G50,$L47:$L50,O47:O50) -> -0.3918046395 | Y47: =bdrateOld($D47:$D50,E47:E50,$L47:$L50,M47:M50) -> -0.3331996129 | Z47: =bdrateOld($D47:$D50,F47:F50,$L47:$L50,N47:N50) -> -0.3612899551 | AA47: =bdrateOld($D47:$D50,G47:G50,$L47:$L50,O47:O50) -> -0.3908451169
A48: WVGA | C48: 27 | D48: =Reference!B150 -> 1530.2992 | E48: =Reference!C150 -> 37.6335 | F48: =Reference!D150 -> 41.046 | G48: =Reference!E150 -> 41.2124 | H48: =Reference!F150 -> 4141.477649 | I48: =Reference!G150 -> 8.793692112 | J48: 1.150410458 | L48: =Test!B150 -> 1302.2424 | M48: =Test!C150 -> 38.5887 | N48: =Test!D150 -> 41.8013 | O48: =Test!E150 -> 42.2335 | P48: =Test!F150 -> 58970.25 | Q48: =Test!G150 -> 15.23 | R48: 16.380625 | S48: 14.23893958 | T48: 1.73192327
C49: 32 | D49: =Reference!B151 -> 779.316 | E49: =Reference!C151 -> 34.7016 | F49: =Reference!D151 -> 38.8737 | G49: =Reference!E151 -> 38.8063 | H49: =Reference!F151 -> 3586.312597 | I49: =Reference!G151 -> 7.666520834 | J49: 0.9961979436 | L49: =Test!B151 -> 648.0864 | M49: =Test!C151 -> 35.7355 | N49: =Test!D151 -> 39.7794 | O49: =Test!E151 -> 40.018 | P49: =Test!F151 -> 39041.9 | Q49: =Test!G151 -> 12.1 | R49: 10.84497222 | S49: 10.88636279 | T49: 1.578290891
C50: 37 | D50: =Reference!B152 -> 401.3336 | E50: =Reference!C152 -> 32.0509 | F50: =Reference!D152 -> 37.0076 | G50: =Reference!E152 -> 36.7077 | H50: =Reference!F152 -> 3152.643369 | I50: =Reference!G152 -> 6.517256975 | J50: 0.8757342692 | L50: =Test!B152 -> 332.4376 | M50: =Test!C152 -> 33.0907 | N50: =Test!D152 -> 38.108 | O50: =Test!E152 -> 38.0758 | P50: =Test!F152 -> 24093.58 | Q50: =Test!G152 -> 9.51 | R50: 6.692661111 | S50: 7.642342371 | T50: 1.459202857
B51: BQMall | C51: 22 | D51: =Reference!B153 -> 3360.9488 | E51: =Reference!C153 -> 40.1875 | F51: =Reference!D153 -> 43.7093 | G51: =Reference!E153 -> 45.3267 | H51: =Reference!F153 -> 5385.23257 | I51: =Reference!G153 -> 11.658391 | J51: 1.495897936 | L51: =Test!B153 -> 2949.3192 | M51: =Test!C153 -> 40.7006 | N51: =Test!D153 -> 44.2703 | O51: =Test!E153 -> 45.9976 | P51: =Test!F153 -> 79602.22 | Q51: =Test!G153 -> 21.41 | R51: 22.11172778 | S51: 14.78157516 | T51: 1.836445527 | V51: =bdrate($D51:$D54,E51:E54,$L51:$L54,M51:M54) -> -0.3065254572 | W51: =bdrate($D51:$D54,F51:F54,$L51:$L54,N51:N54) -> -0.3795722046 | X51: =bdrate($D51:$D54,G51:G54,$L51:$L54,O51:O54) -> -0.3654211448 | Y51: =bdrateOld($D51:$D54,E51:E54,$L51:$L54,M51:M54) -> -0.3057813428 | Z51: =bdrateOld($D51:$D54,F51:F54,$L51:$L54,N51:N54) -> -0.3772384691 | AA51: =bdrateOld($D51:$D54,G51:G54,$L51:$L54,O51:O54) -> -0.3635176132
C52: 27 | D52: =Reference!B154 -> 1524.788 | E52: =Reference!C154 -> 37.5953 | F52: =Reference!D154 -> 41.8557 | G52: =Reference!E154 -> 43.0471 | H52: =Reference!F154 -> 4437.951678 | I52: =Reference!G154 -> 10.03966498 | J52: 1.232764355 | L52: =Test!B154 -> 1311.6152 | M52: =Test!C154 -> 38.32 | N52: =Test!D154 -> 42.6618 | O52: =Test!E154 -> 43.9502 | P52: =Test!F154 -> 50450.19 | Q52: =Test!G154 -> 16.29 | R52: 14.01394167 | S52: 11.3678998 | T52: 1.622564102
C53: 32 | D53: =Reference!B155 -> 772.7912 | E53: =Reference!C155 -> 34.8958 | F53: =Reference!D155 -> 39.9987 | G53: =Reference!E155 -> 40.9331 | H53: =Reference!F155 -> 3939.194926 | I53: =Reference!G155 -> 8.989485979 | J53: 1.094220813 | L53: =Test!B155 -> 661.4176 | M53: =Test!C155 -> 35.7966 | N53: =Test!D155 -> 40.8534 | O53: =Test!E155 -> 41.7991 | P53: =Test!F155 -> 33453.87 | Q53: =Test!G155 -> 13.4 | R53: 9.292741667 | S53: 8.492565265 | T53: 1.49063028
C54: 37 | D54: =Reference!B156 -> 400.468 | E54: =Reference!C156 -> 32.1131 | F54: =Reference!D156 -> 38.4426 | G54: =Reference!E156 -> 39.2689 | H54: =Reference!F156 -> 3419.255048 | I54: =Reference!G156 -> 7.008495808 | J54: 0.9497930689 | L54: =Test!B156 -> 343.9904 | M54: =Test!C156 -> 33.1413 | N54: =Test!D156 -> 39.2763 | O54: =Test!E156 -> 40.1914 | P54: =Test!F156 -> 22848.31 | Q54: =Test!G156 -> 12.21 | R54: 6.346752778 | S54: 6.68224794 | T54: 1.742171264
B55: PartyScene | C55: 22 | D55: =Reference!B157 -> 6331.7048 | E55: =Reference!C157 -> 38.3113 | F55: =Reference!D157 -> 41.6697 | G55: =Reference!E157 -> 42.824 | H55: =Reference!F157 -> 5601.877799 | I55: =Reference!G157 -> 13.07557416 | J55: 1.556077166 | L55: =Test!B157 -> 5632.568 | M55: =Test!C157 -> 39.026 | N55: =Test!D157 -> 42.392 | O55: =Test!E157 -> 43.6171 | P55: =Test!F157 -> 90271.9 | Q55: =Test!G157 -> 25.17 | R55: 25.07552778 | S55: 16.11457858 | T55: 1.924963271 | V55: =bdrate($D55:$D58,E55:E58,$L55:$L58,M55:M58) -> -0.2790462852 | W55: =bdrate($D55:$D58,F55:F58,$L55:$L58,N55:N58) -> -0.323002968 | X55: =bdrate($D55:$D58,G55:G58,$L55:$L58,O55:O58) -> -0.3127577179 | Y55: =bdrateOld($D55:$D58,E55:E58,$L55:$L58,M55:M58) -> -0.2787107832 | Z55: =bdrateOld($D55:$D58,F55:F58,$L55:$L58,N55:N58) -> -0.320468355 | AA55: =bdrateOld($D55:$D58,G55:G58,$L55:$L58,O55:O58) -> -0.3107197324
C56: 27 | D56: =Reference!B158 -> 2798.2912 | E56: =Reference!C158 -> 34.8023 | F56: =Reference!D158 -> 39.2786 | G56: =Reference!E158 -> 40.2961 | H56: =Reference!F158 -> 4201.12328 | I56: =Reference!G158 -> 10.20999193 | J56: 1.166978689 | L56: =Test!B158 -> 2518.2784 | M56: =Test!C158 -> 35.7109 | N56: =Test!D158 -> 40.0181 | O56: =Test!E158 -> 41.0678 | P56: =Test!F158 -> 58251.05 | Q56: =Test!G158 -> 17.24 | R56: 16.18084722 | S56: 13.8655893 | T56: 1.688541981
C57: 32 | D57: =Reference!B159 -> 1354.672 | E57: =Reference!C159 -> 31.8122 | F57: =Reference!D159 -> 37.2394 | G57: =Reference!E159 -> 38.082 | H57: =Reference!F159 -> 3459.04127 | I57: =Reference!G159 -> 8.723056793 | J57: 0.9608447972 | L57: =Test!B159 -> 1219.5248 | M57: =Test!C159 -> 32.7458 | N57: =Test!D159 -> 38.0479 | O57: =Test!E159 -> 38.8603 | P57: =Test!F159 -> 40317.68 | Q57: =Test!G159 -> 14.76 | R57: 11.19935556 | S57: 11.65573835 | T57: 1.692067397
C58: 37 | D58: =Reference!B160 -> 638.4224 | E58: =Reference!C160 -> 28.9945 | F58: =Reference!D160 -> 35.628 | G58: =Reference!E160 -> 36.3606 | H58: =Reference!F160 -> 2965.519873 | I58: =Reference!G160 -> 7.547257185 | J58: 0.8237555203 | L58: =Test!B160 -> 587.1536 | M58: =Test!C160 -> 29.9536 | N58: =Test!D160 -> 36.3629 | O58: =Test!E160 -> 37.1458 | P58: =Test!F160 -> 27380.36 | Q58: =Test!G160 -> 12.03 | R58: 7.605655556 | S58: 9.232903899 | T58: 1.593956547
B59: RaceHorses | C59: 22 | D59: =Reference!B161 -> 4605.0576 | E59: =Reference!C161 -> 39.0435 | F59: =Reference!D161 -> 41.3707 | G59: =Reference!E161 -> 42.9087 | H59: =Reference!F161 -> 4236.878393 | I59: =Reference!G161 -> 9.468242168 | J59: 1.176910665 | L59: =Test!B161 -> 4174.0368 | M59: =Test!C161 -> 39.5544 | N59: =Test!D161 -> 41.5645 | O59: =Test!E161 -> 43.2514 | P59: =Test!F161 -> 80207.52 | Q59: =Test!G161 -> 15.61 | R59: 22.27986667 | S59: 18.93080532 | T59: 1.64866928 | V59: =bdrate($D59:$D62,E59:E62,$L59:$L62,M59:M62) -> -0.2741231223 | W59: =bdrate($D59:$D62,F59:F62,$L59:$L62,N59:N62) -> -0.1650820672 | X59: =bdrate($D59:$D62,G59:G62,$L59:$L62,O59:O62) -> -0.2348555705 | Y59: =bdrateOld($D59:$D62,E59:E62,$L59:$L62,M59:M62) -> -0.2737513576 | Z59: =bdrateOld($D59:$D62,F59:F62,$L59:$L62,N59:N62) -> -0.1666553978 | AA59: =bdrateOld($D59:$D62,G59:G62,$L59:$L62,O59:O62) -> -0.2355256115
C60: 27 | D60: =Reference!B162 -> 1837.0728 | E60: =Reference!C162 -> 35.6523 | F60: =Reference!D162 -> 39.1651 | G60: =Reference!E162 -> 40.7745 | H60: =Reference!F162 -> 3231.043465 | I60: =Reference!G162 -> 6.756134987 | J60: 0.8975120737 | L60: =Test!B162 -> 1694.4672 | M60: =Test!C162 -> 36.453 | N60: =Test!D162 -> 39.4175 | O60: =Test!E162 -> 41.1989 | P60: =Test!F162 -> 54297.89 | Q60: =Test!G162 -> 12.53 | R60: 15.08274722 | S60: 16.80506331 | T60: 1.854610665
C61: 32 | D61: =Reference!B163 -> 879.46 | E61: =Reference!C163 -> 32.8983 | F61: =Reference!D163 -> 37.3743 | G61: =Reference!E163 -> 39.1232 | H61: =Reference!F163 -> 2753.528876 | I61: =Reference!G163 -> 5.582957029 | J61: 0.7648691322 | L61: =Test!B163 -> 785.6688 | M61: =Test!C163 -> 33.7853 | N61: =Test!D163 -> 37.4809 | O61: =Test!E163 -> 39.4467 | P61: =Test!F163 -> 37401.71 | Q61: =Test!G163 -> 8.5 | R61: 10.38936389 | S61: 13.58319149 | T61: 1.522490672
C62: 37 | D62: =Reference!B164 -> 425.0136 | E62: =Reference!C164 -> 30.2231 | F62: =Reference!D164 -> 35.8621 | G62: =Reference!E164 -> 37.6405 | H62: =Reference!F164 -> 2364.638232 | I62: =Reference!G164 -> 5.009891033 | J62: 0.6568439533 | L62: =Test!B164 -> 377.4504 | M62: =Test!C164 -> 31.1461 | N62: =Test!D164 -> 36.0935 | O62: =Test!E164 -> 38.0328 | P62: =Test!F164 -> 23183.04 | Q62: =Test!G164 -> 6.64 | R62: 6.439733333 | S62: 9.804053612 | T62: 1.325378128
A63: Class D | B63: BasketballPass | C63: =C59 -> 22 | D63: =Reference!B165 -> 1443.1632 | E63: =Reference!C165 -> 40.8332 | F63: =Reference!D165 -> 43.9448 | G63: =Reference!E165 -> 43.0447 | H63: =Reference!F165 -> 1355.23075 | I63: =Reference!G165 -> 2.915728092 | J63: 0.3764529861 | L63: =Test!B165 -> 1255.2872 | M63: =Test!C165 -> 41.5625 | N63: =Test!D165 -> 44.6007 | O63: =Test!E165 -> 43.6049 | P63: =Test!F165 -> 24269.14 | Q63: =Test!G165 -> 6.18 | R63: 6.741427778 | S63: 17.90775483 | T63: 2.119539204 | V63: =bdrate($D63:$D66,E63:E66,$L63:$L66,M63:M66) -> -0.2664610367 | W63: =bdrate($D63:$D66,F63:F66,$L63:$L66,N63:N66) -> -0.3117287595 | X63: =bdrate($D63:$D66,G63:G66,$L63:$L66,O63:O66) -> -0.2342797455 | Y63: =bdrateOld($D63:$D66,E63:E66,$L63:$L66,M63:M66) -> -0.2661519431 | Z63: =bdrateOld($D63:$D66,F63:F66,$L63:$L66,N63:N66) -> -0.3115255661 | AA63: =bdrateOld($D63:$D66,G63:G66,$L63:$L66,O63:O66) -> -0.2364873693
A64: WQVGA | C64: =C60 -> 27 | D64: =Reference!B166 -> 688.0536 | E64: =Reference!C166 -> 36.7914 | F64: =Reference!D166 -> 41.3495 | G64: =Reference!E166 -> 40.0288 | H64: =Reference!F166 -> 1088.353809 | I64: =Reference!G166 -> 2.286870003 | J64: 0.3023205025 | L64: =Test!B166 -> 591.4912 | M64: =Test!C166 -> 37.5248 | N64: =Test!D166 -> 42.0119 | O64: =Test!E166 -> 40.4924 | P64: =Test!F166 -> 17708.48 | Q64: =Test!G166 -> 4.7 | R64: 4.919022222 | S64: 16.27088531 | T64: 2.055210832
C65: =C61 -> 32 | D65: =Reference!B167 -> 348.9704 | E65: =Reference!C167 -> 33.5001 | F65: =Reference!D167 -> 39.2981 | G65: =Reference!E167 -> 37.8734 | H65: =Reference!F167 -> 935.175657 | I65: =Reference!G167 -> 1.905956984 | J65: 0.2597710158 | L65: =Test!B167 -> 295.3888 | M65: =Test!C167 -> 34.2551 | N65: =Test!D167 -> 39.927 | O65: =Test!E167 -> 38.1132 | P65: =Test!F167 -> 12636.09 | Q65: =Test!G167 -> 3.47 | R65: 3.510025 | S65: 13.51199628 | T65: 1.820607721
C66: =C62 -> 37 | D66: =Reference!B168 -> 176.9176 | E66: =Reference!C168 -> 30.578 | F66: =Reference!D168 -> 37.6693 | G66: =Reference!E168 -> 36.0514 | H66: =Reference!F168 -> 806.0404649 | I66: =Reference!G168 -> 1.628953934 | J66: 0.2239001291 | L66: =Test!B168 -> 149.7744 | M66: =Test!C168 -> 31.3609 | N66: =Test!D168 -> 38.3638 | O66: =Test!E168 -> 36.3266 | P66: =Test!F168 -> 7975.65 | Q66: =Test!G168 -> 2.89 | R66: 2.215458333 | S66: 9.894850628 | T66: 1.774144707
B67: BQSquare | C67: 22 | D67: =Reference!B169 -> 1526.1808 | E67: =Reference!C169 -> 38.0405 | F67: =Reference!D169 -> 43.6255 | G67: =Reference!E169 -> 44.8051 | H67: =Reference!F169 -> 1423.988439 | I67: =Reference!G169 -> 3.30409503 | J67: =H67/3600 -> 0.3955523442 | L67: =Test!B169 -> 1291.8 | M67: =Test!C169 -> 38.6561 | N67: =Test!D169 -> 44.1233 | O67: =Test!E169 -> 45.4678 | P67: =Test!F169 -> 24724.47 | Q67: =Test!G169 -> 6.69 | R67: =P67/3600 -> 6.867908333 | S67: =P67/H67 -> 17.36283057 | T67: =Q67/I67 -> 2.024760166 | V67: =bdrate($D67:$D70,E67:E70,$L67:$L70,M67:M70) -> -0.3388501571 | W67: =bdrate($D67:$D70,F67:F70,$L67:$L70,N67:N70) -> -0.3786546252 | X67: =bdrate($D67:$D70,G67:G70,$L67:$L70,O67:O70) -> -0.4068578866 | Y67: =bdrateOld($D67:$D70,E67:E70,$L67:$L70,M67:M70) -> -0.3394383597 | Z67: =bdrateOld($D67:$D70,F67:F70,$L67:$L70,N67:N70) -> -0.3757851064 | AA67: =bdrateOld($D67:$D70,G67:G70,$L67:$L70,O67:O70) -> -0.4039877893
C68: 27 | D68: =Reference!B170 -> 548.0072 | E68: =Reference!C170 -> 34.578 | F68: =Reference!D170 -> 41.7097 | G68: =Reference!E170 -> 42.7569 | H68: =Reference!F170 -> 933.3014629 | I68: =Reference!G170 -> 2.254211903 | J68: 0.2592504064 | L68: =Test!B170 -> 454.7704 | M68: =Test!C170 -> 35.3853 | N68: =Test!D170 -> 42.3382 | O68: =Test!E170 -> 43.5101 | P68: =Test!F170 -> 11867.74 | Q68: =Test!G170 -> 4.23 | R68: 3.296594444 | S68: 12.71586992 | T68: 1.876487297
C69: 32 | D69: =Reference!B171 -> 248.8296 | E69: =Reference!C171 -> 31.855 | F69: =Reference!D171 -> 39.733 | G69: =Reference!E171 -> 40.6866 | H69: =Reference!F171 -> 769.1091521 | I69: =Reference!G171 -> 1.864329815 | J69: 0.2136414311 | L69: =Test!B171 -> 205.744 | M69: =Test!C171 -> 32.693 | N69: =Test!D171 -> 40.4713 | O69: =Test!E171 -> 41.5852 | P69: =Test!F171 -> 7602.21 | Q69: =Test!G171 -> 3.46 | R69: 2.111725 | S69: 9.884435752 | T69: 1.855894795
C70: 37 | D70: =Reference!B172 -> 128.924 | E70: =Reference!C172 -> 29.345 | F70: =Reference!D172 -> 38.3174 | G70: =Reference!E172 -> 39.183 | H70: =Reference!F172 -> 696.6523108 | I70: =Reference!G172 -> 1.686398983 | J70: 0.1935145308 | L70: =Test!B172 -> 108.9616 | M70: =Test!C172 -> 30.2149 | N70: =Test!D172 -> 38.7776 | O70: =Test!E172 -> 39.7915 | P70: =Test!F172 -> 4816.54 | Q70: =Test!G172 -> 3.16 | R70: 1.337927778 | S70: 6.913836249 | T70: 1.873815172
B71: BlowingBubbles | C71: 22 | D71: =Reference!B173 -> 1510.0968 | E71: =Reference!C173 -> 38.1553 | F71: =Reference!D173 -> 41.4854 | G71: =Reference!E173 -> 42.5831 | H71: =Reference!F173 -> 1174.588331 | I71: =Reference!G173 -> 2.766410112 | J71: 0.3262745364 | L71: =Test!B173 -> 1368.096 | M71: =Test!C173 -> 38.7805 | N71: =Test!D173 -> 41.9794 | O71: =Test!E173 -> 43.1265 | P71: =Test!F173 -> 21442.46 | Q71: =Test!G173 -> 6.33 | R71: 5.956238889 | S71: 18.25529799 | T71: 2.28816399 | V71: =bdrate($D71:$D74,E71:E74,$L71:$L74,M71:M74) -> -0.2460688323 | W71: =bdrate($D71:$D74,F71:F74,$L71:$L74,N71:N74) -> -0.2310666648 | X71: =bdrate($D71:$D74,G71:G74,$L71:$L74,O71:O74) -> -0.2301701249 | Y71: =bdrateOld($D71:$D74,E71:E74,$L71:$L74,M71:M74) -> -0.2456916703 | Z71: =bdrateOld($D71:$D74,F71:F74,$L71:$L74,N71:N74) -> -0.2298970731 | AA71: =bdrateOld($D71:$D74,G71:G74,$L71:$L74,O71:O74) -> -0.2292334938
C72: 27 | D72: =Reference!B174 -> 674.0848 | E72: =Reference!C174 -> 34.7929 | F72: =Reference!D174 -> 39.1066 | G72: =Reference!E174 -> 39.9933 | H72: =Reference!F174 -> 874.800797 | I72: =Reference!G174 -> 2.078423023 | J72: 0.2430002214 | L72: =Test!B174 -> 618.3624 | M72: =Test!C174 -> 35.5793 | N72: =Test!D174 -> 39.6104 | O72: =Test!E174 -> 40.538 | P72: =Test!F174 -> 14419.04 | Q72: =Test!G174 -> 4.21 | R72: 4.005288889 | S72: 16.48265531 | T72: 2.025574175
C73: 32 | D73: =Reference!B175 -> 323.732 | E73: =Reference!C175 -> 31.8023 | F73: =Reference!D175 -> 36.9344 | G73: =Reference!E175 -> 37.6158 | H73: =Reference!F175 -> 730.179023 | I73: =Reference!G175 -> 1.699847937 | J73: 0.2028275064 | L73: =Test!B175 -> 300.916 | M73: =Test!C175 -> 32.6791 | N73: =Test!D175 -> 37.446 | O73: =Test!E175 -> 38.15 | P73: =Test!F175 -> 9579.34 | Q73: =Test!G175 -> 3.41 | R73: 2.660927778 | S73: 13.11916626 | T73: 2.006061793
C74: 37 | D74: =Reference!B176 -> 151.0608 | E74: =Reference!C176 -> 28.952 | F74: =Reference!D176 -> 35.2283 | G74: =Reference!E176 -> 35.8073 | H74: =Reference!F176 -> 627.031846 | I74: =Reference!G176 -> 1.443748951 | J74: 0.1741755128 | L74: =Test!B176 -> 145.4216 | M74: =Test!C176 -> 29.8728 | N74: =Test!D176 -> 35.7582 | O74: =Test!E176 -> 36.4147 | P74: =Test!F176 -> 5754.24 | Q74: =Test!G176 -> 2.65 | R74: 1.5984 | S74: 9.17695016 | T74: 1.835499169
B75: RaceHorses | C75: 22 | D75: =Reference!B177 -> 1147.656 | E75: =Reference!C177 -> 39.5235 | F75: =Reference!D177 -> 41.6211 | G75: =Reference!E177 -> 42.6967 | H75: =Reference!F177 -> 943.3732712 | I75: =Reference!G177 -> 2.135588884 | J75: 0.2620481309 | L75: =Test!B177 -> 1006.0944 | M75: =Test!C177 -> 40.1109 | N75: =Test!D177 -> 41.8656 | O75: =Test!E177 -> 43.084 | P75: =Test!F177 -> 17878.6 | Q75: =Test!G177 -> 4.46 | R75: 4.966277778 | S75: 18.95177714 | T75: 2.088416939 | V75: =bdrate($D75:$D78,E75:E78,$L75:$L78,M75:M78) -> -0.2519361727 | W75: =bdrate($D75:$D78,F75:F78,$L75:$L78,N75:N78) -> -0.1657003599 | X75: =bdrate($D75:$D78,G75:G78,$L75:$L78,O75:O78) -> -0.1939958318 | Y75: =bdrateOld($D75:$D78,E75:E78,$L75:$L78,M75:M78) -> -0.2514356506 | Z75: =bdrateOld($D75:$D78,F75:F78,$L75:$L78,N75:N78) -> -0.1676603241 | AA75: =bdrateOld($D75:$D78,G75:G78,$L75:$L78,O75:O78) -> -0.1955658261
C76: 27 | D76: =Reference!B178 -> 545.1064 | E76: =Reference!C178 -> 35.6238 | F76: =Reference!D178 -> 38.9707 | G76: =Reference!E178 -> 40.121 | H76: =Reference!F178 -> 745.0916538 | I76: =Reference!G178 -> 1.622809887 | J76: 0.2069699038 | L76: =Test!B178 -> 498.012 | M76: =Test!C178 -> 36.5325 | N76: =Test!D178 -> 39.2184 | O76: =Test!E178 -> 40.504 | P76: =Test!F178 -> 13178.24 | Q76: =Test!G178 -> 3.64 | R76: 3.660622222 | S76: 17.68673684 | T76: 2.243023061
C77: 32 | D77: =Reference!B179 -> 272.1744 | E77: =Reference!C179 -> 32.3364 | F77: =Reference!D179 -> 36.9162 | G77: =Reference!E179 -> 38.1545 | H77: =Reference!F179 -> 617.8688941 | I77: =Reference!G179 -> 1.310950994 | J77: 0.1716302484 | L77: =Test!B179 -> 245.1456 | M77: =Test!C179 -> 33.2488 | N77: =Test!D179 -> 37.0946 | O77: =Test!E179 -> 38.3999 | P77: =Test!F179 -> 10034.73 | Q77: =Test!G179 -> 2.56 | R77: 2.787425 | S77: 16.24087261 | T77: 1.952780852
C78: 37 | D78: =Reference!B180 -> 132.6816 | E78: =Reference!C180 -> 29.4256 | F78: =Reference!D180 -> 35.3011 | G78: =Reference!E180 -> 36.4743 | H78: =Reference!F180 -> 516.7684619 | I78: =Reference!G180 -> 1.117337942 | J78: 0.143546795 | L78: =Test!B180 -> 117.8712 | M78: =Test!C180 -> 30.301 | N78: =Test!D180 -> 35.6209 | O78: =Test!E180 -> 36.8123 | P78: =Test!F180 -> 6468.8 | Q78: =Test!G180 -> 2.02 | R78: 1.796888889 | S78: 12.51779177 | T78: 1.807868438
A79: ClassE | B79: FourPeople | C79: 22
A80: 720p | C80: 27
C81: 32
C82: 37
B83: Johnny | C83: 22
C84: 27
C85: 32
C86: 37
B87: KristenAndSara | C87: 22
C88: 27
C89: 32
C90: 37
A91: ClassF | B91: BasketballDrillText | C91: 22 | D91: =Reference!B193 -> 3411.4912 | E91: =Reference!C193 -> 41.0201 | F91: =Reference!D193 -> 43.2867 | G91: =Reference!E193 -> 43.8877 | H91: =Reference!F193 -> 5007.412841 | I91: =Reference!G193 -> 11.19198513 | J91: =H91/3600 -> 1.390948011 | L91: =Test!B193 -> 2857.0272 | M91: =Test!C193 -> 41.704 | N91: =Test!D193 -> 43.9425 | O91: =Test!E193 -> 44.766 | P91: =Test!F193 -> 104446.71 | Q91: =Test!G193 -> 19.57 | R91: =P91/3600 -> 29.012975 | S91: =P91/H91 -> 20.85841797 | T91: =Q91/I91 -> 1.748572731 | V91: =bdrate($D91:$D94,E91:E94,$L91:$L94,M91:M94) -> -0.3352687204 | W91: =bdrate($D91:$D94,F91:F94,$L91:$L94,N91:N94) -> -0.39719697 | X91: =bdrate($D91:$D94,G91:G94,$L91:$L94,O91:O94) -> -0.4130578594 | Y91: =bdrateOld($D91:$D94,E91:E94,$L91:$L94,M91:M94) -> -0.334839291 | Z91: =bdrateOld($D91:$D94,F91:F94,$L91:$L94,N91:N94) -> -0.3958241951 | AA91: =bdrateOld($D91:$D94,G91:G94,$L91:$L94,O91:O94) -> -0.4120426148
C92: 27 | D92: =Reference!B194 -> 1630.5952 | E92: =Reference!C194 -> 37.6904 | F92: =Reference!D194 -> 40.7089 | G92: =Reference!E194 -> 40.9161 | H92: =Reference!F194 -> 4027.94217 | I92: =Reference!G194 -> 9.017961025 | J92: 1.118872825 | L92: =Test!B194 -> 1338.0632 | M92: =Test!C194 -> 38.5287 | N92: =Test!D194 -> 41.5973 | O92: =Test!E194 -> 42.0228 | P92: =Test!F194 -> 67902.07 | Q92: =Test!G194 -> 16.78 | R92: 18.86168611 | S92: 16.85775692 | T92: 1.86073104
C93: 32 | D93: =Reference!B195 -> 849.7656 | E93: =Reference!C195 -> 34.6684 | F93: =Reference!D195 -> 38.2816 | G93: =Reference!E195 -> 38.3353 | H93: =Reference!F195 -> 3477.315985 | I93: =Reference!G195 -> 7.395647049 | J93: 0.9659211069 | L93: =Test!B195 -> 676.9192 | M93: =Test!C195 -> 35.6052 | N93: =Test!D195 -> 39.4493 | O93: =Test!E195 -> 39.691 | P93: =Test!F195 -> 44110.16 | Q93: =Test!G195 -> 11.71 | R93: 12.25282222 | S93: 12.68511697 | T93: 1.583363825
C94: 37 | D94: =Reference!B196 -> 447.6824 | E94: =Reference!C196 -> 31.8846 | F94: =Reference!D196 -> 36.2001 | G94: =Reference!E196 -> 36.0814 | H94: =Reference!F196 -> 3122.839564 | I94: =Reference!G196 -> 6.692656994 | J94: 0.8674554345 | L94: =Test!B196 -> 352.6512 | M94: =Test!C196 -> 32.8773 | N94: =Test!D196 -> 37.4946 | O94: =Test!E196 -> 37.5409 | P94: =Test!F196 -> 26518.14 | Q94: =Test!G196 -> 10.05 | R94: 7.36615 | S94: 8.491675431 | T94: 1.50164576
B95: ArenaOfValor | C95: 22 | D95: =Reference!B197 -> 13637.5736 | E95: =Reference!C197 -> 42.7857 | F95: =Reference!D197 -> 44.6897 | G95: =Reference!E197 -> 45.2825 | H95: =Reference!F197 -> 25480.98469 | I95: =Reference!G197 -> 55.26775503 | J95: 7.078051304 | L95: =Test!B197 -> 11775.9248 | M95: =Test!C197 -> 43.6194 | N95: =Test!D197 -> 45.2844 | O95: =Test!E197 -> 45.7992 | P95: =Test!F197 -> 389718.69 | Q95: =Test!G197 -> 94.14 | R95: 108.2551917 | S95: 15.29449096 | T95: 1.703344019 | V95: =bdrate($D95:$D98,E95:E98,$L95:$L98,M95:M98) -> -0.3325080505 | W95: =bdrate($D95:$D98,F95:F98,$L95:$L98,N95:N98) -> -0.3433591289 | X95: =bdrate($D95:$D98,G95:G98,$L95:$L98,O95:O98) -> -0.3115888713 | Y95: =bdrateOld($D95:$D98,E95:E98,$L95:$L98,M95:M98) -> -0.3321034331 | Z95: =bdrateOld($D95:$D98,F95:F98,$L95:$L98,N95:N98) -> -0.3426994325 | AA95: =bdrateOld($D95:$D98,G95:G98,$L95:$L98,O95:O98) -> -0.3109671842
C96: 27 | D96: =Reference!B198 -> 5893.6488 | E96: =Reference!C198 -> 39.3408 | F96: =Reference!D198 -> 41.8893 | G96: =Reference!E198 -> 42.3096 | H96: =Reference!F198 -> 20948.60976 | I96: =Reference!G198 -> 44.98052502 | J96: 5.819058266 | L96: =Test!B198 -> 5064.3488 | M96: =Test!C198 -> 40.2698 | N96: =Test!D198 -> 42.653 | O96: =Test!E198 -> 42.9645 | P96: =Test!F198 -> 234605.06 | Q96: =Test!G198 -> 71.89 | R96: 65.16807222 | S96: 11.19907539 | T96: 1.598247241
C97: 32 | D97: =Reference!B199 -> 2875.2448 | E97: =Reference!C199 -> 36.3838 | F97: =Reference!D199 -> 39.493 | G97: =Reference!E199 -> 39.7773 | H97: =Reference!F199 -> 18599.18505 | I97: =Reference!G199 -> 38.69966292 | J97: 5.166440292 | L97: =Test!B199 -> 2424.1952 | M97: =Test!C199 -> 37.4392 | N97: =Test!D199 -> 40.399 | O97: =Test!E199 -> 40.5708 | P97: =Test!F199 -> 156143.01 | Q97: =Test!G199 -> 59.13 | R97: 43.37305833 | S97: 8.395153312 | T97: 1.527920285
C98: 37 | D98: =Reference!B200 -> 1444.9632 | E98: =Reference!C200 -> 33.6214 | F98: =Reference!D200 -> 37.5351 | G98: =Reference!E200 -> 37.7246 | H98: =Reference!F200 -> 16947.16972 | I98: =Reference!G200 -> 35.57628798 | J98: 4.707547146 | L98: =Test!B200 -> 1220.9088 | M98: =Test!C200 -> 34.765 | N98: =Test!D200 -> 38.6627 | O98: =Test!E200 -> 38.7124 | P98: =Test!F200 -> 98694.93 | Q98: =Test!G200 -> 54.02 | R98: 27.41525833 | S98: 5.823682161 | T98: 1.518427106
B99: SlideEditing | C99: 22 | D99: =Reference!B201 -> 1433.3152 | E99: =Reference!C201 -> 49.5713 | F99: =Reference!D201 -> 48.1391 | G99: =Reference!E201 -> 48.1031 | H99: =Reference!F201 -> 2947.288067 | I99: =Reference!G201 -> 6.962162971 | J99: 0.8186911297 | L99: =Test!B201 -> 784.5808 | M99: =Test!C201 -> 51.2595 | N99: =Test!D201 -> 49.0018 | O99: =Test!E201 -> 49.4489 | P99: =Test!F201 -> 13283.19 | Q99: =Test!G201 -> 8.38 | R99: 3.689775 | S99: 4.506919479 | T99: 1.203648928 | V99: =bdrate($D99:$D102,E99:E102,$L99:$L102,M99:M102) -> -0.5464979704 | W99: =bdrate($D99:$D102,F99:F102,$L99:$L102,N99:N102) -> -0.5657239391 | X99: =bdrate($D99:$D102,G99:G102,$L99:$L102,O99:O102) -> -0.5919279821 | Y99: =bdrateOld($D99:$D102,E99:E102,$L99:$L102,M99:M102) -> -0.5468619006 | Z99: =bdrateOld($D99:$D102,F99:F102,$L99:$L102,N99:N102) -> -0.5645036255 | AA99: =bdrateOld($D99:$D102,G99:G102,$L99:$L102,O99:O102) -> -0.5923275639
C100: 27 | D100: =Reference!B202 -> 1085.6576 | E100: =Reference!C202 -> 45.337 | F100: =Reference!D202 -> 43.8253 | G100: =Reference!E202 -> 43.8006 | H100: =Reference!F202 -> 2863.552702 | I100: =Reference!G202 -> 6.555845022 | J100: 0.7954313062 | L100: =Test!B202 -> 576.7448 | M100: =Test!C202 -> 47.3253 | N100: =Test!D202 -> 45.7969 | O100: =Test!E202 -> 46.3826 | P100: =Test!F202 -> 11442.79 | Q100: =Test!G202 -> 8.12 | R100: 3.178552778 | S100: 3.996011665 | T100: 1.238589377
C101: 32 | D101: =Reference!B203 -> 808.7288 | E101: =Reference!C203 -> 40.715 | F101: =Reference!D203 -> 39.7336 | G101: =Reference!E203 -> 40.0207 | H101: =Reference!F203 -> 2830.165481 | I101: =Reference!G203 -> 6.887995005 | J101: 0.7861570781 | L101: =Test!B203 -> 423.7856 | M101: =Test!C203 -> 43.3249 | N101: =Test!D203 -> 43.0817 | O101: =Test!E203 -> 43.9156 | P101: =Test!F203 -> 9961.36 | Q101: =Test!G203 -> 9.45 | R101: 2.767044444 | S101: 3.519709383 | T101: 1.371952214
C102: 37 | D102: =Reference!B204 -> 610.1064 | E102: =Reference!C204 -> 35.9057 | F102: =Reference!D204 -> 38.1074 | G102: =Reference!E204 -> 37.8374 | H102: =Reference!F204 -> 2814.818883 | I102: =Reference!G204 -> 6.590632915 | J102: 0.7818941341 | L102: =Test!B204 -> 323.4232 | M102: =Test!C204 -> 38.9621 | N102: =Test!D204 -> 39.0032 | O102: =Test!E204 -> 40.23 | P102: =Test!F204 -> 9336.56 | Q102: =Test!G204 -> 8.46 | R102: 2.593488889 | S102: 3.316930996 | T102: 1.283639995
B103: SlideShow | C103: 22 | D103: =Reference!B205 -> 802.3674 | E103: =Reference!C205 -> 51.4651 | F103: =Reference!D205 -> 54.2292 | G103: =Reference!E205 -> 55.1946 | H103: =Reference!F205 -> 5885.69622 | I103: =Reference!G205 -> 12.91487384 | J103: 1.634915617 | L103: =Test!B205 -> 568.5581 | M103: =Test!C205 -> 52.4481 | N103: =Test!D205 -> 55.3332 | O103: =Test!E205 -> 56.4548 | P103: =Test!F205 -> 41047.48 | Q103: =Test!G205 -> 17.68 | R103: 11.40207778 | S103: 6.974107814 | T103: 1.368964205 | V103: =bdrate($D103:$D106,E103:E106,$L103:$L106,M103:M106) -> -0.445756037 | W103: =bdrate($D103:$D106,F103:F106,$L103:$L106,N103:N106) -> -0.4818486508 | X103: =bdrate($D103:$D106,G103:G106,$L103:$L106,O103:O106) -> -0.5176569149 | Y103: =bdrateOld($D103:$D106,E103:E106,$L103:$L106,M103:M106) -> -0.4457380418 | Z103: =bdrateOld($D103:$D106,F103:F106,$L103:$L106,N103:N106) -> -0.4809561731 | AA103: =bdrateOld($D103:$D106,G103:G106,$L103:$L106,O103:O106) -> -0.5160346946
C104: 27 | D104: =Reference!B206 -> 490.5181 | E104: =Reference!C206 -> 47.4947 | F104: =Reference!D206 -> 51.0833 | G104: =Reference!E206 -> 52.2705 | H104: =Reference!F206 -> 5618.58699 | I104: =Reference!G206 -> 12.142313 | J104: 1.560718608 | L104: =Test!B206 -> 325.0195 | M104: =Test!C206 -> 48.6632 | N104: =Test!D206 -> 52.3835 | O104: =Test!E206 -> 53.6945 | P104: =Test!F206 -> 31049.13 | Q104: =Test!G206 -> 14.36 | R104: 8.624758333 | S104: 5.526145641 | T104: 1.182641231
C105: 32 | D105: =Reference!B207 -> 316.5866 | E105: =Reference!C207 -> 43.7993 | F105: =Reference!D207 -> 47.9721 | G105: =Reference!E207 -> 49.0543 | H105: =Reference!F207 -> 5432.454977 | I105: =Reference!G207 -> 11.57787895 | J105: 1.509015271 | L105: =Test!B207 -> 200.9824 | M105: =Test!C207 -> 45.242 | N105: =Test!D207 -> 49.6345 | O105: =Test!E207 -> 51.3849 | P105: =Test!F207 -> 22651.45 | Q105: =Test!G207 -> 17.86 | R105: 6.292069444 | S105: 4.169652596 | T105: 1.542596884
C106: 37 | D106: =Reference!B208 -> 209.0742 | E106: =Reference!C208 -> 40.129 | F106: =Reference!D208 -> 45.3614 | G106: =Reference!E208 -> 46.6142 | H106: =Reference!F208 -> 5252.000601 | I106: =Reference!G208 -> 11.32163715 | J106: 1.458889056 | L106: =Test!B208 -> 131.3686 | M106: =Test!C208 -> 41.9473 | N106: =Test!D208 -> 47.0875 | O106: =Test!E208 -> 49.1067 | P106: =Test!F208 -> 17193.95 | Q106: =Test!G208 -> 14.3 | R106: 4.776097222 | S106: 3.273790562 | T106: 1.263068212
B107: Class A1 | I107: =GEOMEAN(I3:I14) -> 89.7087926 | J107: =GEOMEAN(J3:J14) -> 13.86442141 | Q107: =GEOMEAN(Q3:Q14) -> 152.5730632 | R107: =GEOMEAN(R3:R14) -> 123.93657 | S107: =GEOMEAN(S3:S14) -> 8.939180823 | T107: =GEOMEAN(T3:T14) -> 1.700759298 | V107: =AVERAGE(V3:V14) -> -0.3872012866 | W107: -0.3664254263 | X107: -0.4442820994 | Y107: -0.3800756208 | Z107: -0.3654703797 | AA107: -0.4416699763
B108: Class A2 | I108: =GEOMEAN(I15:I26) -> 92.36023858 | J108: =GEOMEAN(J15:J26) -> 13.15044212 | Q108: =GEOMEAN(Q15:Q26) -> 171.1442052 | R108: =GEOMEAN(R15:R26) -> 133.4934909 | S108: =GEOMEAN(S15:S26) -> 10.15125497 | T108: =GEOMEAN(T15:T26) -> 1.853007396 | V108: =AVERAGE(V15:V26) -> -0.4302460054 | W108: -0.4013506496 | X108: -0.3867765816 | Y108: -0.4260641856 | Z108: -0.3912015759 | AA108: -0.3746156448
B109: Class B | I109: =GEOMEAN(I27:I46) -> 43.95668055 | J109: =GEOMEAN(J27:J46) -> 5.883956906 | Q109: =GEOMEAN(Q27:Q46) -> 70.86930447 | R109: =GEOMEAN(R27:R46) -> 56.95374627 | S109: =GEOMEAN(S27:S46) -> 9.679497519 | T109: =GEOMEAN(T27:T46) -> 1.612253327 | V109: =AVERAGE(V27:V46) -> -0.3463726832 | W109: -0.4738341154 | X109: -0.4494082743 | Y109: -0.3450850597 | Z109: -0.4685019438 | AA109: -0.4448395221
B110: Class C | I110: =GEOMEAN(I47:I62) -> 8.35492962 | J110: =GEOMEAN(J47:J62) -> 1.046443196 | Q110: =GEOMEAN(Q47:Q62) -> 13.77118659 | R110: =GEOMEAN(R47:R62) -> 12.62740342 | S110: =GEOMEAN(S47:S62) -> 12.06697455 | T110: =GEOMEAN(T47:T62) -> 1.648270808 | V110: =AVERAGE(V47:V62) -> -0.2983730974 | W110: -0.3075006496 | X110: -0.3262097682 | Y110: -0.2978607741 | Z110: -0.3064130443 | AA110: -0.3251520185
B111: Class D | I111: =GEOMEAN(I63:I78) -> 1.92216463 | J111: =GEOMEAN(J63:J78) -> 0.2378662511 | Q111: =GEOMEAN(Q63:Q78) -> 3.791270831 | R111: =GEOMEAN(R63:R78) -> 3.246664855 | S111: =GEOMEAN(S63:S78) -> 13.64911937 | T111: =GEOMEAN(T63:T78) -> 1.972396522 | V111: =AVERAGE(V63:V78) -> -0.2758290497 | W111: -0.2717876024 | X111: -0.2663258972 | Y111: -0.2756794059 | Z111: -0.2712170174 | AA111: -0.2663186196
B112: Class E
B113: Class F | I113: =GEOMEAN(I91:I106) -> 13.07351332 | J113: =GEOMEAN(J91:J106) -> 1.647201783 | Q113: =GEOMEAN(Q91:Q106) -> 19.02547268 | R113: =GEOMEAN(R91:R106) -> 11.56956569 | S113: =GEOMEAN(S91:S106) -> 7.023769531 | T113: =GEOMEAN(T91:T106) -> 1.455268543 | V113: =AVERAGE(V91:V106) -> -0.4150076946 | W113: -0.4470321722 | X113: -0.4585579069 | Y113: -0.4148856666 | Z113: -0.4459958566 | AA113: -0.4578430144
B114: All | I114: =GEOMEAN(I3:I62,I79:I90) -> 37.77377478 | J114: =GEOMEAN(J3:J62,J79:J90) -> 5.175858851 | Q114: =GEOMEAN(Q3:Q62,Q79:Q90) -> 63.6668114 | R114: =GEOMEAN(R3:R62,R79:R90) -> 52.79463108 | S114: =GEOMEAN(S3:S62,S79:S90) -> 10.20016824 | T114: =GEOMEAN(T3:T62,T79:T90) -> 1.685476545 | V114: =AVERAGE(V3:V62,V79:V90) -> -0.3585131788 | W114: -0.3935000935 | X114: -0.4030037658 | Y114: -0.3556858543 | Z114: -0.3892118508 | AA114: -0.3982441698
B115: Time geomean | I115: =GEOMEAN(I3:I106) -> 18.71166764 | J115: =GEOMEAN(J3:J106) -> 2.482401081 | Q115: =GEOMEAN(Q3:Q106) -> 31.59485856 | R115: =GEOMEAN(R3:R106) -> 24.96309644
B116: Time ratio | Q116: =Q115/I115 -> 1.688511103 | R116: =R115/J115 -> 10.05602867
B117: Time sum (hours)

Sheet LDB-10
D1: Reference | L1: Tested | V1: BD-rate (piecewise cubic) | Y1: BD-rate (cubic)
C2: QPISlice | D2: kbps | E2: Y psnr | F2: U psnr | G2: V psnr | H2: Enc T [s] | I2: Dec T [s] | J2: Enc T [h] | L2: kbps | M2: Y psnr | N2: U psnr | O2: V psnr | P2: Enc T [s] | Q2: Dec T [s] | R2: Enc T [h] | S2: Enc | T2: Dec | V2: Y | W2: U | X2: V | Y2: Y | Z2: U | AA2: V
A3: Class A1 | B3: Tango2 | C3: 22
A4: 4K | C4: 27
C5: 32
C6: 37
B7: FoodMarket4 | C7: 22
C8: 27
C9: 32
C10: 37
B11: Campfire | C11: 22
C12: 27
C13: 32
C14: 37
A15: Class A2 | B15: CatRobot1 | C15: 22
A16: 4K | C16: 27
C17: 32
C18: 37
B19: DaylightRoad2 | C19: 22
C20: 27
C21: 32
C22: 37
B23: ParkRunning3 | C23: 22
C24: 27
C25: 32
C26: 37
A27: Class B | B27: MarketPlace | C27: 22 | D27: =Reference!B233 -> 19029.8656 | E27: =Reference!C233 -> 40.7593 | F27: =Reference!D233 -> 43.8033 | G27: =Reference!E233 -> 44.5455 | H27: =Reference!F233 -> 36386.25043 | I27: =Reference!G233 -> 67.2753799 | J27: =H27/3600 -> 10.10729179 | L27: =Test!B233 -> 16190.4672 | M27: =Test!C233 -> 40.9472 | N27: =Test!D233 -> 43.8857 | O27: =Test!E233 -> 44.6483 | P27: =Test!F233 -> 508605.75 | Q27: =Test!G233 -> 114.32 | R27: =P27/3600 -> 141.279375 | S27: =P27/H27 -> 13.97796541 | T27: =Q27/I27 -> 1.699284347 | V27: =bdrate($D27:$D30,E27:E30,$L27:$L30,M27:M30) -> -0.286210075 | W27: =bdrate($D27:$D30,F27:F30,$L27:$L30,N27:N30) -> -0.2904502951 | X27: =bdrate($D27:$D30,G27:G30,$L27:$L30,O27:O30) -> -0.245163171 | Y27: =bdrateOld($D27:$D30,E27:E30,$L27:$L30,M27:M30) -> -0.2865339595 | Z27: =bdrateOld($D27:$D30,F27:F30,$L27:$L30,N27:N30) -> -0.2848938036 | AA27: =bdrateOld($D27:$D30,G27:G30,$L27:$L30,O27:O30) -> -0.2440525128
A28: 1080p | C28: 27 | D28: =Reference!B234 -> 7253.796 | E28: =Reference!C234 -> 38.3138 | F28: =Reference!D234 -> 41.8879 | G28: =Reference!E234 -> 42.7983 | H28: =Reference!F234 -> 27037.1603 | I28: =Reference!G234 -> 49.40882492 | J28: 7.510322307 | L28: =Test!B234 -> 5371.1448 | M28: =Test!C234 -> 38.3308 | N28: =Test!D234 -> 42.0652 | O28: =Test!E234 -> 42.9253 | P28: =Test!F234 -> 269735.25 | Q28: =Test!G234 -> 88.9 | R28: 74.92645833 | S28: 9.976463762 | T28: 1.799273716
C29: 32 | D29: =Reference!B235 -> 3278.384 | E29: =Reference!C235 -> 35.9049 | F29: =Reference!D235 -> 40.4468 | G29: =Reference!E235 -> 41.426 | H29: =Reference!F235 -> 23294.33557 | I29: =Reference!G235 -> 41.93215013 | J29: 6.470648768 | L29: =Test!B235 -> 2291.0608 | M29: =Test!C235 -> 35.9433 | N29: =Test!D235 -> 40.5045 | O29: =Test!E235 -> 41.2138 | P29: =Test!F235 -> 171115.12 | Q29: =Test!G235 -> 71.86 | R29: 47.53197778 | S29: 7.345782391 | T29: 1.713720851
C30: 37 | D30: =Reference!B236 -> 1495.7288 | E30: =Reference!C236 -> 33.4732 | F30: =Reference!D236 -> 39.4217 | G30: =Reference!E236 -> 40.3468 | H30: =Reference!F236 -> 21243.75287 | I30: =Reference!G236 -> 39.15341806 | J30: 5.901042463 | L30: =Test!B236 -> 1012.0024 | M30: =Test!C236 -> 33.5746 | N30: =Test!D236 -> 38.8317 | O30: =Test!E236 -> 39.6 | P30: =Test!F236 -> 105366.89 | Q30: =Test!G236 -> 56.45 | R30: 29.26858056 | S30: 4.959900007 | T30: 1.44176429
B31: RitualDance | C31: 22 | D31: =Reference!B237 -> 12355.7288 | E31: =Reference!C237 -> 43.9624 | F31: =Reference!D237 -> 46.6959 | G31: =Reference!E237 -> 47.294 | H31: =Reference!F237 -> 33619.94274 | I31: =Reference!G237 -> 61.59271097 | J31: 9.338872984 | L31: =Test!B237 -> 10003.7584 | M31: =Test!C237 -> 44.2699 | N31: =Test!D237 -> 47.222 | O31: =Test!E237 -> 47.8098 | P31: =Test!F237 -> 417134.47 | Q31: =Test!G237 -> 106.82 | R31: 115.8706861 | S31: 12.40735218 | T31: 1.734296126 | V31: =bdrate($D31:$D34,E31:E34,$L31:$L34,M31:M34) -> -0.2657484982 | W31: =bdrate($D31:$D34,F31:F34,$L31:$L34,N31:N34) -> -0.3094762552 | X31: =bdrate($D31:$D34,G31:G34,$L31:$L34,O31:O34) -> -0.2447922833 | Y31: =bdrateOld($D31:$D34,E31:E34,$L31:$L34,M31:M34) -> -0.265799929 | Z31: =bdrateOld($D31:$D34,F31:F34,$L31:$L34,N31:N34) -> -0.3076782563 | AA31: =bdrateOld($D31:$D34,G31:G34,$L31:$L34,O31:O34) -> -0.243981953
C32: 27 | D32: =Reference!B238 -> 6215.9752 | E32: =Reference!C238 -> 40.6771 | F32: =Reference!D238 -> 44.3247 | G32: =Reference!E238 -> 44.685 | H32: =Reference!F238 -> 28721.41914 | I32: =Reference!G238 -> 51.89432693 | J32: 7.978171985 | L32: =Test!B238 -> 4813.8216 | M32: =Test!C238 -> 40.8897 | N32: =Test!D238 -> 44.8074 | O32: =Test!E238 -> 44.9686 | P32: =Test!F238 -> 280357.42 | Q32: =Test!G238 -> 88.23 | R32: 77.87706111 | S32: 9.761266273 | T32: 1.700185844
C33: 32 | D33: =Reference!B239 -> 3308.46 | E33: =Reference!C239 -> 37.538 | F33: =Reference!D239 -> 42.7473 | G33: =Reference!E239 -> 42.9483 | H33: =Reference!F239 -> 25330.93805 | I33: =Reference!G239 -> 44.93897486 | J33: 7.036371679 | L33: =Test!B239 -> 2484.5968 | M33: =Test!C239 -> 37.701 | N33: =Test!D239 -> 42.9681 | O33: =Test!E239 -> 42.7444 | P33: =Test!F239 -> 198595.32 | Q33: =Test!G239 -> 65.71 | R33: 55.16536667 | S33: 7.840030229 | T33: 1.462205139
C34: 37 | D34: =Reference!B240 -> 1797.432 | E34: =Reference!C240 -> 34.6853 | F34: =Reference!D240 -> 41.5132 | G34: =Reference!E240 -> 41.5712 | H34: =Reference!F240 -> 23043.1424 | I34: =Reference!G240 -> 42.0943749 | J34: 6.40087289 | L34: =Test!B240 -> 1330.8392 | M34: =Test!C240 -> 34.8664 | N34: =Test!D240 -> 40.9379 | O34: =Test!E240 -> 40.7116 | P34: =Test!F240 -> 128260.67 | Q34: =Test!G240 -> 56.34 | R34: 35.62796389 | S34: 5.566110201 | T34: 1.338421111
B35: Cactus | C35: 22 | D35: =Reference!B241 -> 19657.9184 | E35: =Reference!C241 -> 38.7359 | F35: =Reference!D241 -> 40.1549 | G35: =Reference!E241 -> 43.5037 | H35: =Reference!F241 -> 29317.77453 | I35: =Reference!G241 -> 57.98565483 | J35: 8.143826257 | L35: =Test!B241 -> 14188.5144 | M35: =Test!C241 -> 38.7762 | N35: =Test!D241 -> 40.1058 | O35: =Test!E241 -> 43.525 | P35: =Test!F241 -> 415363.41 | Q35: =Test!G241 -> 92.61 | R35: 115.378725 | S35: 14.16763096 | T35: 1.597119154 | V35: =bdrate($D35:$D38,E35:E38,$L35:$L38,M35:M38) -> -0.3566964319 | W35: =bdrate($D35:$D38,F35:F38,$L35:$L38,N35:N38) -> -0.3939639154 | X35: =bdrate($D35:$D38,G35:G38,$L35:$L38,O35:O38) -> -0.3405190462 | Y35: =bdrateOld($D35:$D38,E35:E38,$L35:$L38,M35:M38) -> -0.3567588711 | Z35: =bdrateOld($D35:$D38,F35:F38,$L35:$L38,N35:N38) -> -0.3903643673 | AA35: =bdrateOld($D35:$D38,G35:G38,$L35:$L38,O35:O38) -> -0.3375182337
C36: 27 | D36: =Reference!B242 -> 5409.4024 | E36: =Reference!C242 -> 36.7146 | F36: =Reference!D242 -> 38.929 | G36: =Reference!E242 -> 41.4716 | H36: =Reference!F242 -> 20885.94915 | I36: =Reference!G242 -> 38.31936312 | J36: 5.801652542 | L36: =Test!B242 -> 3740.1968 | M36: =Test!C242 -> 36.8189 | N36: =Test!D242 -> 39.1546 | O36: =Test!E242 -> 41.6904 | P36: =Test!F242 -> 213605.56 | Q36: =Test!G242 -> 58.55 | R36: 59.33487778 | S36: 10.22723739 | T36: 1.52794815
C37: 32 | D37: =Reference!B243 -> 2518.2888 | E37: =Reference!C243 -> 34.6169 | F37: =Reference!D243 -> 38.0283 | G37: =Reference!E243 -> 39.9082 | H37: =Reference!F243 -> 18497.2232 | I37: =Reference!G243 -> 33.36456513 | J37: 5.138117554 | L37: =Test!B243 -> 1660.2672 | M37: =Test!C243 -> 34.7525 | N37: =Test!D243 -> 38.2143 | O37: =Test!E243 -> 39.8868 | P37: =Test!F243 -> 136580.13 | Q37: =Test!G243 -> 48.95 | R37: 37.938925 | S37: 7.383818022 | T37: 1.467125371
C38: 37 | D38: =Reference!B244 -> 1261.6296 | E38: =Reference!C244 -> 32.3133 | F38: =Reference!D244 -> 37.1937 | G38: =Reference!E244 -> 38.5826 | H38: =Reference!F244 -> 16689.00512 | I38: =Reference!G244 -> 29.63826108 | J38: 4.635834756 | L38: =Test!B244 -> 809.9784 | M38: =Test!C244 -> 32.5511 | N38: =Test!D244 -> 36.7875 | O38: =Test!E244 -> 37.8988 | P38: =Test!F244 -> 87811.84 | Q38: =Test!G244 -> 44.42 | R38: 24.39217778 | S38: 5.261658161 | T38: 1.4987384
B39: BasketballDrive | C39: 22 | D39: =Reference!B245 -> 19087.1336 | E39: =Reference!C245 -> 39.4718 | F39: =Reference!D245 -> 43.7775 | G39: =Reference!E245 -> 45.0147 | H39: =Reference!F245 -> 31411.65155 | I39: =Reference!G245 -> 61.52685189 | J39: 8.725458763 | L39: =Test!B245 -> 16238.276 | M39: =Test!C245 -> 39.6541 | N39: =Test!D245 -> 44.0013 | O39: =Test!E245 -> 45.4039 | P39: =Test!F245 -> 511196.43 | Q39: =Test!G245 -> 104.45 | R39: 141.9990083 | S39: 16.27410228 | T39: 1.69763277 | V39: =bdrate($D39:$D42,E39:E42,$L39:$L42,M39:M42) -> -0.3121042809 | W39: =bdrate($D39:$D42,F39:F42,$L39:$L42,N39:N42) -> -0.3211833875 | X39: =bdrate($D39:$D42,G39:G42,$L39:$L42,O39:O42) -> -0.3075761472 | Y39: =bdrateOld($D39:$D42,E39:E42,$L39:$L42,M39:M42) -> -0.3118827903 | Z39: =bdrateOld($D39:$D42,F39:F42,$L39:$L42,N39:N42) -> -0.3190111995 | AA39: =bdrateOld($D39:$D42,G39:G42,$L39:$L42,O39:O42) -> -0.3056799265
C40: 27 | D40: =Reference!B246 -> 6302.6592 | E40: =Reference!C246 -> 37.4812 | F40: =Reference!D246 -> 42.2812 | G40: =Reference!E246 -> 42.7247 | H40: =Reference!F246 -> 24027.25391 | I40: =Reference!G246 -> 45.18429279 | J40: 6.674237196 | L40: =Test!B246 -> 4919.4392 | M40: =Test!C246 -> 37.7161 | N40: =Test!D246 -> 42.5923 | O40: =Test!E246 -> 43.1169 | P40: =Test!F246 -> 289857.3 | Q40: =Test!G246 -> 78.1 | R40: 80.51591667 | S40: 12.06368822 | T40: 1.72847676
C41: 32 | D41: =Reference!B247 -> 3023.252 | E41: =Reference!C247 -> 35.5357 | F41: =Reference!D247 -> 41.0694 | G41: =Reference!E247 -> 41.0237 | H41: =Reference!F247 -> 20511.40047 | I41: =Reference!G247 -> 37.683568 | J41: 5.697611241 | L41: =Test!B247 -> 2256.1336 | M41: =Test!C247 -> 35.8263 | N41: =Test!D247 -> 41.2211 | O41: =Test!E247 -> 41.1636 | P41: =Test!F247 -> 185275.76 | Q41: =Test!G247 -> 61.14 | R41: 51.46548889 | S41: 9.032818616 | T41: 1.622457831
C42: 37 | D42: =Reference!B248 -> 1574.8904 | E42: =Reference!C248 -> 33.4381 | F42: =Reference!D248 -> 40.0035 | G42: =Reference!E248 -> 39.6014 | H42: =Reference!F248 -> 18637.80392 | I42: =Reference!G248 -> 34.1404469 | J42: 5.177167756 | L42: =Test!B248 -> 1144.1904 | M42: =Test!C248 -> 33.8409 | N42: =Test!D248 -> 39.636 | O42: =Test!E248 -> 39.0229 | P42: =Test!F248 -> 115145.2 | Q42: =Test!G248 -> 50.35 | R42: 31.98477778 | S42: 6.178045465 | T42: 1.474790302
B43: BQTerrace | C43: 22 | D43: =Reference!B249 -> 51741.448 | E43: =Reference!C249 -> 38.2314 | F43: =Reference!D249 -> 42.0835 | G43: =Reference!E249 -> 44.2945 | H43: =Reference!F249 -> 44398.52542 | I43: =Reference!G249 -> 95.85492396 | J43: 12.33292373 | L43: =Test!B249 -> 46041.4168 | M43: =Test!C249 -> 38.3047 | N43: =Test!D249 -> 42.1283 | O43: =Test!E249 -> 44.4088 | P43: =Test!F249 -> 608224.49 | Q43: =Test!G249 -> 206.33 | R43: 168.9512472 | S43: 13.69920474 | T43: 2.152523746 | V43: =bdrate($D43:$D46,E43:E46,$L43:$L46,M43:M46) -> -0.3131904463 | W43: =bdrate($D43:$D46,F43:F46,$L43:$L46,N43:N46) -> -0.5105933888 | X43: =bdrate($D43:$D46,G43:G46,$L43:$L46,O43:O46) -> -0.5661667454 | Y43: =bdrateOld($D43:$D46,E43:E46,$L43:$L46,M43:M46) -> -0.3117162776 | Z43: =bdrateOld($D43:$D46,F43:F46,$L43:$L46,N43:N46) -> -0.501403253 | AA43: =bdrateOld($D43:$D46,G43:G46,$L43:$L46,O43:O46) -> -0.5572579519
C44: 27 | D44: =Reference!B250 -> 7379.3768 | E44: =Reference!C250 -> 35.4006 | F44: =Reference!D250 -> 40.5541 | G44: =Reference!E250 -> 42.981 | H44: =Reference!F250 -> 24772.3898 | I44: =Reference!G250 -> 50.61496997 | J44: 6.881219389 | L44: =Test!B250 -> 4778.9552 | M44: =Test!C250 -> 35.377 | N44: =Test!D250 -> 40.9906 | O44: =Test!E250 -> 43.5011 | P44: =Test!F250 -> 217677.8 | Q44: =Test!G250 -> 69.65 | R44: 60.46605556 | S44: 8.787113466 | T44: 1.376075103
C45: 32 | D45: =Reference!B251 -> 1970.4304 | E45: =Reference!C251 -> 33.5873 | F45: =Reference!D251 -> 39.2561 | G45: =Reference!E251 -> 41.9174 | H45: =Reference!F251 -> 20287.25794 | I45: =Reference!G251 -> 40.03127599 | J45: 5.635349429 | L45: =Test!B251 -> 1362.0536 | M45: =Test!C251 -> 33.6692 | N45: =Test!D251 -> 39.721 | O45: =Test!E251 -> 42.3435 | P45: =Test!F251 -> 114768.28 | Q45: =Test!G251 -> 51.71 | R45: 31.88007778 | S45: 5.657160781 | T45: 1.291739989
C46: 37 | D46: =Reference!B252 -> 756.912 | E46: =Reference!C252 -> 31.35 | F46: =Reference!D252 -> 38.2882 | G46: =Reference!E252 -> 41.015 | H46: =Reference!F252 -> 18556.45502 | I46: =Reference!G252 -> 35.21791911 | J46: 5.154570838 | L46: =Test!B252 -> 555.3272 | M46: =Test!C252 -> 31.6869 | N46: =Test!D252 -> 37.9917 | O46: =Test!E252 -> 40.9567 | P46: =Test!F252 -> 70193.55 | Q46: =Test!G252 -> 43.68 | R46: 19.49820833 | S46: 3.782702566 | T46: 1.240277708
A47: Class C | B47: BasketballDrill | C47: 22 | D47: =Reference!B253 -> 3527.2968 | E47: =Reference!C253 -> 40.3235 | F47: =Reference!D253 -> 42.7634 | G47: =Reference!E253 -> 43.3129 | H47: =Reference!F253 -> 5967.253299 | I47: =Reference!G253 -> 11.56989193 | J47: 1.657570361 | L47: =Test!B253 -> 2861.0488 | M47: =Test!C253 -> 40.9738 | N47: =Test!D253 -> 43.2617 | O47: =Test!E253 -> 44.0551 | P47: =Test!F253 -> 89339.92 | Q47: =Test!G253 -> 19.05 | R47: 24.81664444 | S47: 14.97169896 | T47: 1.646514947 | V47: =bdrate($D47:$D50,E47:E50,$L47:$L50,M47:M50) -> -0.3704057354 | W47: =bdrate($D47:$D50,F47:F50,$L47:$L50,N47:N50) -> -0.3902318861 | X47: =bdrate($D47:$D50,G47:G50,$L47:$L50,O47:O50) -> -0.3935777649 | Y47: =bdrateOld($D47:$D50,E47:E50,$L47:$L50,M47:M50) -> -0.3704412856 | Z47: =bdrateOld($D47:$D50,F47:F50,$L47:$L50,N47:N50) -> -0.3907149016 | AA47: =bdrateOld($D47:$D50,G47:G50,$L47:$L50,O47:O50) -> -0.3955015793
A48: WVGA | C48: 27 | D48: =Reference!B254 -> 1613.0128 | E48: =Reference!C254 -> 36.9796 | F48: =Reference!D254 -> 40.0378 | G48: =Reference!E254 -> 40.3453 | H48: =Reference!F254 -> 4725.272364 | I48: =Reference!G254 -> 9.179754972 | J48: 1.312575657 | L48: =Test!B254 -> 1234.936 | M48: =Test!C254 -> 37.705 | N48: =Test!D254 -> 40.8144 | O48: =Test!E254 -> 41.2564 | P48: =Test!F254 -> 62507.12 | Q48: =Test!G254 -> 14.99 | R48: 17.36308889 | S48: 13.22825759 | T48: 1.632941189
C49: 32 | D49: =Reference!B255 -> 798.3376 | E49: =Reference!C255 -> 34.0694 | F49: =Reference!D255 -> 38.1317 | G49: =Reference!E255 -> 38.3253 | H49: =Reference!F255 -> 4023.392013 | I49: =Reference!G255 -> 7.164391041 | J49: 1.117608893 | L49: =Test!B255 -> 590.4392 | M49: =Test!C255 -> 34.8369 | N49: =Test!D255 -> 38.7692 | O49: =Test!E255 -> 38.9902 | P49: =Test!F255 -> 39795.12 | Q49: =Test!G255 -> 9.98 | R49: 11.0542 | S49: 9.890937764 | T49: 1.393000458
C50: 37 | D50: =Reference!B256 -> 417.9072 | E50: =Reference!C256 -> 31.5576 | F50: =Reference!D256 -> 36.5786 | G50: =Reference!E256 -> 36.5549 | H50: =Reference!F256 -> 3563.302534 | I50: =Reference!G256 -> 6.377729893 | J50: 0.9898062595 | L50: =Test!B256 -> 301.7384 | M50: =Test!C256 -> 32.3905 | N50: =Test!D256 -> 36.7087 | O50: =Test!E256 -> 36.6119 | P50: =Test!F256 -> 24861.21 | Q50: =Test!G256 -> 8.57 | R50: 6.905891667 | S50: 6.977013532 | T50: 1.343738312
B51: BQMall | C51: 22 | D51: =Reference!B257 -> 4064.3 | E51: =Reference!C257 -> 40.2196 | F51: =Reference!D257 -> 43.1957 | G51: =Reference!E257 -> 44.6189 | H51: =Reference!F257 -> 6652.527971 | I51: =Reference!G257 -> 12.78030109 | J51: 1.847924436 | L51: =Test!B257 -> 3282.7728 | M51: =Test!C257 -> 40.3541 | N51: =Test!D257 -> 43.2455 | O51: =Test!E257 -> 44.6555 | P51: =Test!F257 -> 81318.44 | Q51: =Test!G257 -> 24.02 | R51: 22.58845556 | S51: 12.22369005 | T51: 1.879454938 | V51: =bdrate($D51:$D54,E51:E54,$L51:$L54,M51:M54) -> -0.2819979294 | W51: =bdrate($D51:$D54,F51:F54,$L51:$L54,N51:N54) -> -0.2569361856 | X51: =bdrate($D51:$D54,G51:G54,$L51:$L54,O51:O54) -> -0.2416625181 | Y51: =bdrateOld($D51:$D54,E51:E54,$L51:$L54,M51:M54) -> -0.282091842 | Z51: =bdrateOld($D51:$D54,F51:F54,$L51:$L54,N51:N54) -> -0.2550759917 | AA51: =bdrateOld($D51:$D54,G51:G54,$L51:$L54,O51:O54) -> -0.240421438
C52: 27 | D52: =Reference!B258 -> 1788.7864 | E52: =Reference!C258 -> 37.2526 | F52: =Reference!D258 -> 40.9969 | G52: =Reference!E258 -> 42.0589 | H52: =Reference!F258 -> 5326.463571 | I52: =Reference!G258 -> 10.1033051 | J52: 1.479573214 | L52: =Test!B258 -> 1348.092 | M52: =Test!C258 -> 37.3581 | N52: =Test!D258 -> 41.1874 | O52: =Test!E258 -> 42.2072 | P52: =Test!F258 -> 54036.61 | Q52: =Test!G258 -> 14.88 | R52: 15.01016944 | S52: 10.14493186 | T52: 1.472785376
C53: 32 | D53: =Reference!B259 -> 886.4712 | E53: =Reference!C259 -> 34.2964 | F53: =Reference!D259 -> 39.2641 | G53: =Reference!E259 -> 40.1937 | H53: =Reference!F259 -> 4593.641684 | I53: =Reference!G259 -> 8.560725927 | J53: 1.276011579 | L53: =Test!B259 -> 641.7192 | M53: =Test!C259 -> 34.4474 | N53: =Test!D259 -> 39.1775 | O53: =Test!E259 -> 40.0246 | P53: =Test!F259 -> 36419.85 | Q53: =Test!G259 -> 11.54 | R53: 10.116625 | S53: 7.928317554 | T53: 1.348016523
C54: 37 | D54: =Reference!B260 -> 456.4816 | E54: =Reference!C260 -> 31.3953 | F54: =Reference!D260 -> 37.9811 | G54: =Reference!E260 -> 38.777 | H54: =Reference!F260 -> 4075.712546 | I54: =Reference!G260 -> 7.172557116 | J54: 1.132142374 | L54: =Test!B260 -> 328.0264 | M54: =Test!C260 -> 31.6808 | N54: =Test!D260 -> 37.3794 | O54: =Test!E260 -> 38.1144 | P54: =Test!F260 -> 23584.69 | Q54: =Test!G260 -> 9.73 | R54: 6.551302778 | S54: 5.786642148 | T54: 1.356559431
B55: PartyScene | C55: 22 | D55: =Reference!B261 -> 7831.488 | E55: =Reference!C261 -> 38.4162 | F55: =Reference!D261 -> 41.1471 | G55: =Reference!E261 -> 42.0585 | H55: =Reference!F261 -> 7454.026881 | I55: =Reference!G261 -> 14.93121314 | J55: 2.070563022 | L55: =Test!B261 -> 6764.3624 | M55: =Test!C261 -> 38.6727 | N55: =Test!D261 -> 41.0909 | O55: =Test!E261 -> 42.0056 | P55: =Test!F261 -> 96491.85 | Q55: =Test!G261 -> 31.26 | R55: 26.80329167 | S55: 12.94492917 | T55: 2.093600815 | V55: =bdrate($D55:$D58,E55:E58,$L55:$L58,M55:M58) -> -0.2663283202 | W55: =bdrate($D55:$D58,F55:F58,$L55:$L58,N55:N58) -> -0.1933769126 | X55: =bdrate($D55:$D58,G55:G58,$L55:$L58,O55:O58) -> -0.1584473776 | Y55: =bdrateOld($D55:$D58,E55:E58,$L55:$L58,M55:M58) -> -0.2663171431 | Z55: =bdrateOld($D55:$D58,F55:F58,$L55:$L58,N55:N58) -> -0.1886046116 | AA55: =bdrateOld($D55:$D58,G55:G58,$L55:$L58,O55:O58) -> -0.1578716841
C56: 27 | D56: =Reference!B262 -> 3263.7256 | E56: =Reference!C262 -> 34.4732 | F56: =Reference!D262 -> 38.3364 | G56: =Reference!E262 -> 39.1578 | H56: =Reference!F262 -> 5492.671392 | I56: =Reference!G262 -> 10.98648882 | J56: 1.525742053 | L56: =Test!B262 -> 2551.2744 | M56: =Test!C262 -> 34.6266 | N56: =Test!D262 -> 38.3855 | O56: =Test!E262 -> 39.112 | P56: =Test!F262 -> 66058.93 | Q56: =Test!G262 -> 21.84 | R56: 18.34970278 | S56: 12.02673987 | T56: 1.987896257
C57: 32 | D57: =Reference!B263 -> 1475.72 | E57: =Reference!C263 -> 31.0497 | F57: =Reference!D263 -> 36.422 | G57: =Reference!E263 -> 37.2206 | H57: =Reference!F263 -> 4442.696578 | I57: =Reference!G263 -> 9.163528204 | J57: 1.234082383 | L57: =Test!B263 -> 1087.9168 | M57: =Test!C263 -> 31.2475 | N57: =Test!D263 -> 36.2615 | O57: =Test!E263 -> 36.8589 | P57: =Test!F263 -> 43647.38 | Q57: =Test!G263 -> 14.56 | R57: 12.12427222 | S57: 9.82452419 | T57: 1.588907643
C58: 37 | D58: =Reference!B264 -> 645.0824 | E58: =Reference!C264 -> 27.8327 | F58: =Reference!D264 -> 35.0026 | G58: =Reference!E264 -> 35.7691 | H58: =Reference!F264 -> 3712.784972 | I58: =Reference!G264 -> 6.655495167 | J58: 1.031329159 | L58: =Test!B264 -> 468.26 | M58: =Test!C264 -> 28.1799 | N58: =Test!D264 -> 34.3868 | O58: =Test!E264 -> 35.1438 | P58: =Test!F264 -> 27754.96 | Q58: =Test!G264 -> 11.82 | R58: 7.709711111 | S58: 7.475509681 | T58: 1.775976047
B59: RaceHorses | C59: 22 | D59: =Reference!B265 -> 5454.524 | E59: =Reference!C265 -> 39.8241 | F59: =Reference!D265 -> 41.4346 | G59: =Reference!E265 -> 42.8277 | H59: =Reference!F265 -> 4732.505672 | I59: =Reference!G265 -> 10.32367802 | J59: =H59/3600 -> 1.314584909 | L59: =Test!B265 -> 5007.4272 | M59: =Test!C265 -> 40.2778 | N59: =Test!D265 -> 41.1981 | O59: =Test!E265 -> 42.7064 | P59: =Test!F265 -> 66728.17 | Q59: =Test!G265 -> 18.93 | R59: =P59/3600 -> 18.53560278 | S59: =P59/H59 -> 14.0999662 | T59: =Q59/I59 -> 1.833648819 | V59: =bdrate($D59:$D62,E59:E62,$L59:$L62,M59:M62) -> -0.2394788077 | W59: =bdrate($D59:$D62,F59:F62,$L59:$L62,N59:N62) -> -0.0151059164 | X59: =bdrate($D59:$D62,G59:G62,$L59:$L62,O59:O62) -> -0.05600033758 | Y59: =bdrateOld($D59:$D62,E59:E62,$L59:$L62,M59:M62) -> -0.2396399871 | Z59: =bdrateOld($D59:$D62,F59:F62,$L59:$L62,N59:N62) -> -0.01461225686 | AA59: =bdrateOld($D59:$D62,G59:G62,$L59:$L62,O59:O62) -> -0.05209234548
C60: 27 | D60: =Reference!B266 -> 2135.5264 | E60: =Reference!C266 -> 36.09 | F60: =Reference!D266 -> 38.7706 | G60: =Reference!E266 -> 40.4058 | H60: =Reference!F266 -> 3662.397062 | I60: =Reference!G266 -> 7.087459087 | J60: 1.017332517 | L60: =Test!B266 -> 1720.0432 | M60: =Test!C266 -> 36.2376 | N60: =Test!D266 -> 38.3807 | O60: =Test!E266 -> 40.126 | P60: =Test!F266 -> 45592.04 | Q60: =Test!G266 -> 11.41 | R60: 12.66445556 | S60: 12.44868845 | T60: 1.609885836
C61: 32 | D61: =Reference!B267 -> 981.2448 | E61: =Reference!C267 -> 33.0309 | F61: =Reference!D267 -> 37.0237 | G61: =Reference!E267 -> 38.7518 | H61: =Reference!F267 -> 3060.405595 | I61: =Reference!G267 -> 5.637259006 | J61: 0.8501126652 | L61: =Test!B267 -> 740.7616 | M61: =Test!C267 -> 33.1202 | N61: =Test!D267 -> 36.3775 | O61: =Test!E267 -> 38.2573 | P61: =Test!F267 -> 32506.57 | Q61: =Test!G267 -> 8.18 | R61: 9.029602778 | S61: 10.62165422 | T61: 1.451059813
C62: 37 | D62: =Reference!B268 -> 459.1568 | E62: =Reference!C268 -> 30.2139 | F62: =Reference!D268 -> 35.7298 | G62: =Reference!E268 -> 37.4385 | H62: =Reference!F268 -> 2612.956662 | I62: =Reference!G268 -> 4.317856073 | J62: 0.725821295 | L62: =Test!B268 -> 340.768 | M62: =Test!C268 -> 30.4164 | N62: =Test!D268 -> 34.854 | O62: =Test!E268 -> 36.5585 | P62: =Test!F268 -> 20461.95 | Q62: =Test!G268 -> 6.64 | R62: 5.683875 | S62: 7.830956517 | T62: 1.537800215
A63: Class D | B63: BasketballPass | C63: =C59 -> 22 | D63: =Reference!B269 -> 1659.7272 | E63: =Reference!C269 -> 40.9398 | F63: =Reference!D269 -> 43.606 | G63: =Reference!E269 -> 42.9967 | H63: =Reference!F269 -> 1573.41278 | I63: =Reference!G269 -> 3.197235823 | J63: 0.4370591056 | L63: =Test!B269 -> 1421.1904 | M63: =Test!C269 -> 41.374 | N63: =Test!D269 -> 43.7207 | O63: =Test!E269 -> 43.0163 | P63: =Test!F269 -> 21087.24 | Q63: =Test!G269 -> 5.96 | R63: 5.857566667 | S63: 13.40223002 | T63: 1.864110229 | V63: =bdrate($D63:$D66,E63:E66,$L63:$L66,M63:M66) -> -0.2538176946 | W63: =bdrate($D63:$D66,F63:F66,$L63:$L66,N63:N66) -> -0.1776551117 | X63: =bdrate($D63:$D66,G63:G66,$L63:$L66,O63:O66) -> -0.1165152 | Y63: =bdrateOld($D63:$D66,E63:E66,$L63:$L66,M63:M66) -> -0.2533943601 | Z63: =bdrateOld($D63:$D66,F63:F66,$L63:$L66,N63:N66) -> -0.1772733422 | AA63: =bdrateOld($D63:$D66,G63:G66,$L63:$L66,O63:O66) -> -0.1140035384
A64: WQVGA | C64: =C60 -> 27 | D64: =Reference!B270 -> 804.6008 | E64: =Reference!C270 -> 36.887 | F64: =Reference!D270 -> 40.7093 | G64: =Reference!E270 -> 39.6939 | H64: =Reference!F270 -> 1310.349193 | I64: =Reference!G270 -> 2.549632072 | J64: 0.3639858869 | L64: =Test!B270 -> 640.0536 | M64: =Test!C270 -> 37.1215 | N64: =Test!D270 -> 40.7494 | O64: =Test!E270 -> 39.4282 | P64: =Test!F270 -> 16298.29 | Q64: =Test!G270 -> 4.56 | R64: 4.527302778 | S64: 12.43812725 | T64: 1.788493347
C65: =C61 -> 32 | D65: =Reference!B271 -> 406.736 | E65: =Reference!C271 -> 33.4691 | F65: =Reference!D271 -> 38.835 | G65: =Reference!E271 -> 37.6231 | H65: =Reference!F271 -> 1114.206014 | I65: =Reference!G271 -> 2.000617027 | J65: 0.3095016705 | L65: =Test!B271 -> 304.0352 | M65: =Test!C271 -> 33.6326 | N65: =Test!D271 -> 38.4939 | O65: =Test!E271 -> 36.9815 | P65: =Test!F271 -> 13040.53 | Q65: =Test!G271 -> 3.52 | R65: 3.622369444 | S65: 11.70387687 | T65: 1.759457183
C66: =C62 -> 37 | D66: =Reference!B272 -> 210.3248 | E66: =Reference!C272 -> 30.6034 | F66: =Reference!D272 -> 37.3557 | G66: =Reference!E272 -> 35.9688 | H66: =Reference!F272 -> 970.666784 | I66: =Reference!G272 -> 1.689452887 | J66: 0.2696296622 | L66: =Test!B272 -> 154.3736 | M66: =Test!C272 -> 30.7786 | N66: =Test!D272 -> 36.6119 | O66: =Test!E272 -> 34.9116 | P66: =Test!F272 -> 8227.64 | Q66: =Test!G272 -> 3.15 | R66: 2.285455556 | S66: 8.476276448 | T66: 1.864508934
B67: BQSquare | C67: 22 | D67: =Reference!B273 -> 2178.8584 | E67: =Reference!C273 -> 38.4355 | F67: =Reference!D273 -> 42.7898 | G67: =Reference!E273 -> 43.8307 | H67: =Reference!F273 -> 2057.853842 | I67: =Reference!G273 -> 4.245347023 | J67: 0.5716260672 | L67: =Test!B273 -> 1821.8264 | M67: =Test!C273 -> 38.4591 | N67: =Test!D273 -> 42.6785 | O67: =Test!E273 -> 43.8658 | P67: =Test!F273 -> 25756.82 | Q67: =Test!G273 -> 7.78 | R67: 7.154672222 | S67: 12.51635052 | T67: 1.832594593 | V67: =bdrate($D67:$D70,E67:E70,$L67:$L70,M67:M70) -> -0.314548897 | W67: =bdrate($D67:$D70,F67:F70,$L67:$L70,N67:N70) -> -0.2887689768 | X67: =bdrate($D67:$D70,G67:G70,$L67:$L70,O67:O70) -> -0.3253608983 | Y67: =bdrateOld($D67:$D70,E67:E70,$L67:$L70,M67:M70) -> -0.3140971509 | Z67: =bdrateOld($D67:$D70,F67:F70,$L67:$L70,N67:N70) -> -0.2875857685 | AA67: =bdrateOld($D67:$D70,G67:G70,$L67:$L70,O67:O70) -> -0.3279497268
C68: 27 | D68: =Reference!B274 -> 751.5984 | E68: =Reference!C274 -> 34.4893 | F68: =Reference!D274 -> 40.7827 | G68: =Reference!E274 -> 41.6625 | H68: =Reference!F274 -> 1451.385699 | I68: =Reference!G274 -> 2.769411087 | J68: 0.4031626942 | L68: =Test!B274 -> 527.68 | M68: =Test!C274 -> 34.5203 | N68: =Test!D274 -> 40.9105 | O68: =Test!E274 -> 41.9696 | P68: =Test!F274 -> 17100.32 | Q68: =Test!G274 -> 5.23 | R68: 4.750088889 | S68: 11.78206455 | T68: 1.888488143
C69: 32 | D69: =Reference!B275 -> 307.6264 | E69: =Reference!C275 -> 31.3452 | F69: =Reference!D275 -> 39.3764 | G69: =Reference!E275 -> 40.2209 | H69: =Reference!F275 -> 1142.402334 | I69: =Reference!G275 -> 2.082928896 | J69: 0.3173339817 | L69: =Test!B275 -> 198.964 | M69: =Test!C275 -> 31.4197 | N69: =Test!D275 -> 39.2787 | O69: =Test!E275 -> 40.0846 | P69: =Test!F275 -> 10053.36 | Q69: =Test!G275 -> 4.4 | R69: 2.7926 | S69: 8.800192105 | T69: 2.112410082
C70: 37 | D70: =Reference!B276 -> 128.6232 | E70: =Reference!C276 -> 28.2229 | F70: =Reference!D276 -> 38.2462 | G70: =Reference!E276 -> 39.0113 | H70: =Reference!F276 -> 979.599381 | I70: =Reference!G276 -> 1.739447117 | J70: 0.2721109392 | L70: =Test!B276 -> 88.3424 | M70: =Test!C276 -> 28.6043 | N70: =Test!D276 -> 37.7758 | O70: =Test!E276 -> 38.6166 | P70: =Test!F276 -> 5664.03 | Q70: =Test!G276 -> 3.38 | R70: 1.573341667 | S70: 5.781986096 | T70: 1.943146168
B71: BlowingBubbles | C71: 22 | D71: =Reference!B277 -> 1897.8296 | E71: =Reference!C277 -> 38.1604 | F71: =Reference!D277 -> 40.8459 | G71: =Reference!E277 -> 41.6144 | H71: =Reference!F277 -> 1718.431071 | I71: =Reference!G277 -> 3.482810974 | J71: 0.4773419642 | L71: =Test!B277 -> 1623.0216 | M71: =Test!C277 -> 38.33 | N71: =Test!D277 -> 40.6111 | O71: =Test!E277 -> 41.3095 | P71: =Test!F277 -> 23051.17 | Q71: =Test!G277 -> 6.72 | R71: 6.403102778 | S71: 13.41407892 | T71: 1.929475946 | V71: =bdrate($D71:$D74,E71:E74,$L71:$L74,M71:M74) -> -0.2374535936 | W71: =bdrate($D71:$D74,F71:F74,$L71:$L74,N71:N74) -> -0.1099767503 | X71: =bdrate($D71:$D74,G71:G74,$L71:$L74,O71:O74) -> -0.07701042689 | Y71: =bdrateOld($D71:$D74,E71:E74,$L71:$L74,M71:M74) -> -0.2374098981 | Z71: =bdrateOld($D71:$D74,F71:F74,$L71:$L74,N71:N74) -> -0.1064135451 | AA71: =bdrateOld($D71:$D74,G71:G74,$L71:$L74,O71:O74) -> -0.0749681103
C72: 27 | D72: =Reference!B278 -> 790.4912 | E72: =Reference!C278 -> 34.3012 | F72: =Reference!D278 -> 38.0573 | G72: =Reference!E278 -> 38.6557 | H72: =Reference!F278 -> 1272.770595 | I72: =Reference!G278 -> 2.485610962 | J72: 0.3535473875 | L72: =Test!B278 -> 626.0392 | M72: =Test!C278 -> 34.3617 | N72: =Test!D278 -> 37.8935 | O72: =Test!E278 -> 38.385 | P72: =Test!F278 -> 15973.57 | Q72: =Test!G278 -> 4.62 | R72: 4.437102778 | S72: 12.55023495 | T72: 1.85869795
C73: 32 | D73: =Reference!B279 -> 348.4216 | E73: =Reference!C279 -> 30.8483 | F73: =Reference!D279 -> 35.9921 | G73: =Reference!E279 -> 36.6105 | H73: =Reference!F279 -> 999.2712181 | I73: =Reference!G279 -> 1.875230074 | J73: 0.2775753384 | L73: =Test!B279 -> 266.3776 | M73: =Test!C279 -> 31.0016 | N73: =Test!D279 -> 35.5821 | O73: =Test!E279 -> 36.0746 | P73: =Test!F279 -> 9753.99 | Q73: =Test!G279 -> 3.47 | R73: 2.709441667 | S73: 9.761103716 | T73: 1.850439606
C74: 37 | D74: =Reference!B280 -> 150.804 | E74: =Reference!C280 -> 27.7812 | F74: =Reference!D280 -> 34.5526 | G74: =Reference!E280 -> 35.1755 | H74: =Reference!F280 -> 847.763242 | I74: =Reference!G280 -> 1.472556829 | J74: 0.2354897894 | L74: =Test!B280 -> 115.576 | M74: =Test!C280 -> 28.0811 | N74: =Test!D280 -> 33.7714 | O74: =Test!E280 -> 34.369 | P74: =Test!F280 -> 6096.54 | Q74: =Test!G280 -> 2.69 | R74: 1.693483333 | S74: 7.191323825 | T74: 1.826754626
B75: RaceHorses | C75: 22 | D75: =Reference!B281 -> 1295.3528 | E75: =Reference!C281 -> 39.8927 | F75: =Reference!D281 -> 41.2531 | G75: =Reference!E281 -> 42.3368 | H75: =Reference!F281 -> 1151.479567 | I75: =Reference!G281 -> 2.40161109 | J75: 0.3198554352 | L75: =Test!B281 -> 1053.6776 | M75: =Test!C281 -> 39.933 | N75: =Test!D281 -> 40.759 | O75: =Test!E281 -> 41.9712 | P75: =Test!F281 -> 15295.34 | Q75: =Test!G281 -> 4.54 | R75: 4.248705556 | S75: 13.28320575 | T75: 1.890397667 | V75: =bdrate($D75:$D78,E75:E78,$L75:$L78,M75:M78) -> -0.2318350934 | W75: =bdrate($D75:$D78,F75:F78,$L75:$L78,N75:N78) -> -0.05959689378 | X75: =bdrate($D75:$D78,G75:G78,$L75:$L78,O75:O78) -> -0.0845019488 | Y75: =bdrateOld($D75:$D78,E75:E78,$L75:$L78,M75:M78) -> -0.2319631029 | Z75: =bdrateOld($D75:$D78,F75:F78,$L75:$L78,N75:N78) -> -0.05141086168 | AA75: =bdrateOld($D75:$D78,G75:G78,$L75:$L78,O75:O78) -> -0.08257999186
C76: 27 | D76: =Reference!B282 -> 603.9576 | E76: =Reference!C282 -> 35.7064 | F76: =Reference!D282 -> 38.3289 | G76: =Reference!E282 -> 39.542 | H76: =Reference!F282 -> 915.6514249 | I76: =Reference!G282 -> 1.815992832 | J76: 0.254347618 | L76: =Test!B282 -> 455.0808 | M76: =Test!C282 -> 35.525 | N76: =Test!D282 -> 37.7268 | O76: =Test!E282 -> 39.0481 | P76: =Test!F282 -> 10751.42 | Q76: =Test!G282 -> 3.36 | R76: 2.986505556 | S76: 11.74182632 | T76: 1.850227567
C77: 32 | D77: =Reference!B283 -> 293.9616 | E77: =Reference!C283 -> 32.1874 | F77: =Reference!D283 -> 36.4549 | G77: =Reference!E283 -> 37.6087 | H77: =Reference!F283 -> 760.200263 | I77: =Reference!G283 -> 1.403360128 | J77: 0.2111667397 | L77: =Test!B283 -> 208.8928 | M77: =Test!C283 -> 31.9838 | N77: =Test!D283 -> 35.7187 | O77: =Test!E283 -> 36.8634 | P77: =Test!F283 -> 8563.71 | Q77: =Test!G283 -> 2.44 | R77: 2.378808333 | S77: 11.26507108 | T77: 1.738684141
C78: 37 | D78: =Reference!B284 -> 144.5088 | E78: =Reference!C284 -> 29.3674 | F78: =Reference!D284 -> 35.0221 | G78: =Reference!E284 -> 36.0975 | H78: =Reference!F284 -> 649.5604501 | I78: =Reference!G284 -> 1.161178827 | J78: 0.1804334584 | L78: =Test!B284 -> 99.492 | M78: =Test!C284 -> 29.2236 | N78: =Test!D284 -> 33.8747 | O78: =Test!E284 -> 35.0137 | P78: =Test!F284 -> 5082.99 | Q78: =Test!G284 -> 1.9 | R78: 1.411941667 | S78: 7.825276307 | T78: 1.636268209
A79: ClassE | B79: FourPeople | C79: 22 | D79: =Reference!B285 -> 2151.732 | E79: =Reference!C285 -> 42.7731 | F79: =Reference!D285 -> 46.5719 | G79: =Reference!E285 -> 47.8962 | H79: =Reference!F285 -> 9722.35767 | I79: =Reference!G285 -> 16.49832106 | J79: 2.700654908 | L79: =Test!B285 -> 1672.1408 | M79: =Test!C285 -> 42.912 | N79: =Test!D285 -> 46.8461 | O79: =Test!E285 -> 48.1401 | P79: =Test!F285 -> 76019.34 | Q79: =Test!G285 -> 27.99 | R79: 21.11648333 | S79: 7.819023181 | T79: 1.696536266 | V79: =bdrate($D79:$D82,E79:E82,$L79:$L82,M79:M82) -> -0.3113763787 | W79: =bdrate($D79:$D82,F79:F82,$L79:$L82,N79:N82) -> -0.3874875682 | X79: =bdrate($D79:$D82,G79:G82,$L79:$L82,O79:O82) -> -0.3405371583 | Y79: =bdrateOld($D79:$D82,E79:E82,$L79:$L82,M79:M82) -> -0.3111421949 | Z79: =bdrateOld($D79:$D82,F79:F82,$L79:$L82,N79:N82) -> -0.3846143352 | AA79: =bdrateOld($D79:$D82,G79:G82,$L79:$L82,O79:O82) -> -0.3396487536
A80: 720p | C80: 27 | D80: =Reference!B286 -> 830.376 | E80: =Reference!C286 -> 40.3826 | F80: =Reference!D286 -> 44.5083 | G80: =Reference!E286 -> 45.727 | H80: =Reference!F286 -> 8278.917997 | I80: =Reference!G286 -> 13.83999205 | J80: 2.299699444 | L80: =Test!B286 -> 621.8016 | M80: =Test!C286 -> 40.6167 | N80: =Test!D286 -> 45.1731 | O80: =Test!E286 -> 46.214 | P80: =Test!F286 -> 46392.37 | Q80: =Test!G286 -> 17.94 | R80: 12.88676944 | S80: 5.603675506 | T80: 1.296243519
C81: 32 | D81: =Reference!B287 -> 415.316 | E81: =Reference!C287 -> 37.701 | F81: =Reference!D287 -> 42.7209 | G81: =Reference!E287 -> 43.8798 | H81: =Reference!F287 -> 7824.714191 | I81: =Reference!G287 -> 12.92596793 | J81: 2.17353172 | L81: =Test!B287 -> 308.2408 | M81: =Test!C287 -> 38.0721 | N81: =Test!D287 -> 43.264 | O81: =Test!E287 -> 44.1311 | P81: =Test!F287 -> 31213.82 | Q81: =Test!G287 -> 15.63 | R81: 8.670505556 | S81: 3.989132285 | T81: 1.209193778
C82: 37 | D82: =Reference!B288 -> 220.5592 | E82: =Reference!C288 -> 34.7623 | F82: =Reference!D288 -> 41.1325 | G82: =Reference!E288 -> 42.2659 | H82: =Reference!F288 -> 7402.986875 | I82: =Reference!G288 -> 12.2489922 | J82: 2.056385243 | L82: =Test!B288 -> 166.3856 | M82: =Test!C288 -> 35.3117 | N82: =Test!D288 -> 41.135 | O82: =Test!E288 -> 42.2879 | P82: =Test!F288 -> 18735.69 | Q82: =Test!G288 -> 10.99 | R82: 5.204358333 | S82: 2.530828477 | T82: 0.8972166703
B83: Johnny | C83: 22 | D83: =Reference!B289 -> 1463.416 | E83: =Reference!C289 -> 43.1548 | F83: =Reference!D289 -> 48.2013 | G83: =Reference!E289 -> 48.9411 | H83: =Reference!F289 -> 9161.256593 | I83: =Reference!G289 -> 15.72300196 | J83: 2.544793498 | L83: =Test!B289 -> 1120.4928 | M83: =Test!C289 -> 43.2377 | N83: =Test!D289 -> 48.459 | O83: =Test!E289 -> 49.0353 | P83: =Test!F289 -> 65403.65 | Q83: =Test!G289 -> 23.18 | R83: 18.16768056 | S83: 7.139157094 | T83: 1.474273174 | V83: =bdrate($D83:$D86,E83:E86,$L83:$L86,M83:M86) -> -0.3485367675 | W83: =bdrate($D83:$D86,F83:F86,$L83:$L86,N83:N86) -> -0.4172886544 | X83: =bdrate($D83:$D86,G83:G86,$L83:$L86,O83:O86) -> -0.3325342003 | Y83: =bdrateOld($D83:$D86,E83:E86,$L83:$L86,M83:M86) -> -0.3467731317 | Z83: =bdrateOld($D83:$D86,F83:F86,$L83:$L86,N83:N86) -> -0.4079222499 | AA83: =bdrateOld($D83:$D86,G83:G86,$L83:$L86,O83:O86) -> -0.3317181928
C84: 27 | D84: =Reference!B290 -> 401.7232 | E84: =Reference!C290 -> 41.2932 | F84: =Reference!D290 -> 46.4873 | G84: =Reference!E290 -> 47.1376 | H84: =Reference!F290 -> 7862.160964 | I84: =Reference!G290 -> 13.85963106 | J84: 2.183933601 | L84: =Test!B290 -> 302.0528 | M84: =Test!C290 -> 41.5667 | N84: =Test!D290 -> 47.1271 | O84: =Test!E290 -> 47.5157 | P84: =Test!F290 -> 34757.71 | Q84: =Test!G290 -> 16.34 | R84: 9.654919444 | S84: 4.420885067 | T84: 1.178963562
C85: 32 | D85: =Reference!B291 -> 182.0656 | E85: =Reference!C291 -> 39.1073 | F85: =Reference!D291 -> 44.8674 | G85: =Reference!E291 -> 45.5287 | H85: =Reference!F291 -> 7404.789003 | I85: =Reference!G291 -> 12.54816103 | J85: 2.056885834 | L85: =Test!B291 -> 136.4032 | M85: =Test!C291 -> 39.6173 | N85: =Test!D291 -> 45.4593 | O85: =Test!E291 -> 45.6328 | P85: =Test!F291 -> 18942.76 | Q85: =Test!G291 -> 11.47 | R85: 5.261877778 | S85: 2.558176876 | T85: 0.9140781643
C86: 37 | D86: =Reference!B292 -> 96.3336 | E86: =Reference!C292 -> 36.5889 | F86: =Reference!D292 -> 43.1125 | G86: =Reference!E292 -> 43.4878 | H86: =Reference!F292 -> 7164.19193 | I86: =Reference!G292 -> 11.78226805 | J86: 1.990053314 | L86: =Test!B292 -> 74.8784 | M86: =Test!C292 -> 37.3709 | N86: =Test!D292 -> 43.1352 | O86: =Test!E292 -> 43.9068 | P86: =Test!F292 -> 12183.24 | Q86: =Test!G292 -> 11.44 | R86: 3.384233333 | S86: 1.700574206 | T86: 0.9709505805
B87: KristenAndSara | C87: 22 | D87: =Reference!B293 -> 1898.7376 | E87: =Reference!C293 -> 43.441 | F87: =Reference!D293 -> 47.414 | G87: =Reference!E293 -> 48.3933 | H87: =Reference!F293 -> 9923.833304 | I87: =Reference!G293 -> 16.9202292 | J87: 2.756620362 | L87: =Test!B293 -> 1544.9624 | M87: =Test!C293 -> 43.5655 | N87: =Test!D293 -> 47.6295 | O87: =Test!E293 -> 48.525 | P87: =Test!F293 -> 84717.94 | Q87: =Test!G293 -> 25.25 | R87: 23.53276111 | S87: 8.536816108 | T87: 1.49229657 | V87: =bdrate($D87:$D90,E87:E90,$L87:$L90,M87:M90) -> -0.3246374916 | W87: =bdrate($D87:$D90,F87:F90,$L87:$L90,N87:N90) -> -0.3646709682 | X87: =bdrate($D87:$D90,G87:G90,$L87:$L90,O87:O90) -> -0.3298055389 | Y87: =bdrateOld($D87:$D90,E87:E90,$L87:$L90,M87:M90) -> -0.3239933861 | Z87: =bdrateOld($D87:$D90,F87:F90,$L87:$L90,N87:N90) -> -0.3636038908 | AA87: =bdrateOld($D87:$D90,G87:G90,$L87:$L90,O87:O90) -> -0.329582747
C88: 27 | D88: =Reference!B294 -> 669.9344 | E88: =Reference!C294 -> 41.2443 | F88: =Reference!D294 -> 45.4627 | G88: =Reference!E294 -> 46.3397 | H88: =Reference!F294 -> 8444.523051 | I88: =Reference!G294 -> 14.30926394 | J88: 2.345700848 | L88: =Test!B294 -> 524.672 | M88: =Test!C294 -> 41.5676 | N88: =Test!D294 -> 46.0016 | O88: =Test!E294 -> 46.8358 | P88: =Test!F294 -> 47296 | Q88: =Test!G294 -> 19.34 | R88: 13.13777778 | S88: 5.600789969 | T88: 1.351571966
C89: 32 | D89: =Reference!B295 -> 310.492 | E89: =Reference!C295 -> 38.7904 | F89: =Reference!D295 -> 43.7354 | G89: =Reference!E295 -> 44.7055 | H89: =Reference!F295 -> 7871.603016 | I89: =Reference!G295 -> 13.7652061 | J89: 2.186556393 | L89: =Test!B295 -> 234.1296 | M89: =Test!C295 -> 39.284 | N89: =Test!D295 -> 44.2301 | O89: =Test!E295 -> 44.9515 | P89: =Test!F295 -> 28657.89 | Q89: =Test!G295 -> 16.56 | R89: 7.960525 | S89: 3.640667592 | T89: 1.203033204
C90: 37 | D90: =Reference!B296 -> 161.5496 | E90: =Reference!C296 -> 36.0876 | F90: =Reference!D296 -> 42.0557 | G90: =Reference!E296 -> 42.9706 | H90: =Reference!F296 -> 7577.264613 | I90: =Reference!G296 -> 12.42671299 | J90: 2.104795726 | L90: =Test!B296 -> 122.0824 | M90: =Test!C296 -> 36.7834 | N90: =Test!D296 -> 42.0605 | O90: =Test!E296 -> 42.9791 | P90: =Test!F296 -> 18623.29 | Q90: =Test!G296 -> 15.66 | R90: 5.173136111 | S90: 2.457785355 | T90: 1.260188435
A91: ClassF | B91: BasketballDrillText | C91: 22 | D91: =Reference!B297 -> 3746.8392 | E91: =Reference!C297 -> 40.4512 | F91: =Reference!D297 -> 42.5785 | G91: =Reference!E297 -> 43.1283 | H91: =Reference!F297 -> 6032.6142 | I91: =Reference!G297 -> 11.70900011 | J91: =H91/3600 -> 1.675726167 | L91: =Test!B297 -> 2855.2152 | M91: =Test!C297 -> 40.913 | N91: =Test!D297 -> 43.0583 | O91: =Test!E297 -> 43.8161 | P91: =Test!F297 -> 119308.67 | Q91: =Test!G297 -> 19.61 | R91: =P91/3600 -> 33.14129722 | S91: =P91/H91 -> 19.777275 | T91: =Q91/I91 -> 1.674780068 | V91: =bdrate($D91:$D94,E91:E94,$L91:$L94,M91:M94) -> -0.3836133431 | W91: =bdrate($D91:$D94,F91:F94,$L91:$L94,N91:N94) -> -0.4289035022 | X91: =bdrate($D91:$D94,G91:G94,$L91:$L94,O91:O94) -> -0.4217564625 | Y91: =bdrateOld($D91:$D94,E91:E94,$L91:$L94,M91:M94) -> -0.3837975028 | Z91: =bdrateOld($D91:$D94,F91:F94,$L91:$L94,N91:N94) -> -0.4294386754 | AA91: =bdrateOld($D91:$D94,G91:G94,$L91:$L94,O91:O94) -> -0.4226992586
C92: 27 | D92: =Reference!B298 -> 1721.7528 | E92: =Reference!C298 -> 36.9848 | F92: =Reference!D298 -> 39.5959 | G92: =Reference!E298 -> 39.9263 | H92: =Reference!F298 -> 4798.143681 | I92: =Reference!G298 -> 9.200697899 | J92: 1.332817689 | L92: =Test!B298 -> 1243.3544 | M92: =Test!C298 -> 37.5823 | N92: =Test!D298 -> 40.4141 | O92: =Test!E298 -> 40.8154 | P92: =Test!F298 -> 73651.98 | Q92: =Test!G298 -> 14.8 | R92: 20.45888333 | S92: 15.35009889 | T92: 1.608573628
C93: 32 | D93: =Reference!B299 -> 866.296 | E93: =Reference!C299 -> 33.9648 | F93: =Reference!D299 -> 37.4177 | G93: =Reference!E299 -> 37.6624 | H93: =Reference!F299 -> 4029.891841 | I93: =Reference!G299 -> 7.218145132 | J93: 1.1194144 | L93: =Test!B299 -> 603.6624 | M93: =Test!C299 -> 34.6374 | N93: =Test!D299 -> 38.2633 | O93: =Test!E299 -> 38.4763 | P93: =Test!F299 -> 45541.56 | Q93: =Test!G299 -> 10.42 | R93: 12.65043333 | S93: 11.30093854 | T93: 1.443584163
C94: 37 | D94: =Reference!B300 -> 457.4672 | E94: =Reference!C300 -> 31.1947 | F94: =Reference!D300 -> 35.5468 | G94: =Reference!E300 -> 35.6994 | H94: =Reference!F300 -> 3595.367698 | I94: =Reference!G300 -> 6.179785013 | J94: 0.9987132494 | L94: =Test!B300 -> 313.1808 | M94: =Test!C300 -> 32.0327 | N94: =Test!D300 -> 35.8288 | O94: =Test!E300 -> 35.757 | P94: =Test!F300 -> 28326.96 | Q94: =Test!G300 -> 8.58 | R94: 7.8686 | S94: 7.878737971 | T94: 1.388397813
B95: ArenaOfValor | C95: 22 | D95: =Reference!B301 -> 15047.5392 | E95: =Reference!C301 -> 42.2767 | F95: =Reference!D301 -> 43.9393 | G95: =Reference!E301 -> 44.6278 | H95: =Reference!F301 -> 29644.98686 | I95: =Reference!G301 -> 57.85576296 | J95: 8.234718573 | L95: =Test!B301 -> 12813.9552 | M95: =Test!C301 -> 42.7671 | N95: =Test!D301 -> 43.9158 | O95: =Test!E301 -> 44.4887 | P95: =Test!F301 -> 430172.36 | Q95: =Test!G301 -> 107.47 | R95: 119.4923222 | S95: 14.51079611 | T95: 1.857550476 | V95: =bdrate($D95:$D98,E95:E98,$L95:$L98,M95:M98) -> -0.3176092175 | W95: =bdrate($D95:$D98,F95:F98,$L95:$L98,N95:N98) -> -0.218201158 | X95: =bdrate($D95:$D98,G95:G98,$L95:$L98,O95:O98) -> -0.187197206 | Y95: =bdrateOld($D95:$D98,E95:E98,$L95:$L98,M95:M98) -> -0.3176714333 | Z95: =bdrateOld($D95:$D98,F95:F98,$L95:$L98,N95:N98) -> -0.218159702 | AA95: =bdrateOld($D95:$D98,G95:G98,$L95:$L98,O95:O98) -> -0.187677643
C96: 27 | D96: =Reference!B302 -> 6337.6968 | E96: =Reference!C302 -> 38.7366 | F96: =Reference!D302 -> 41.0167 | G96: =Reference!E302 -> 41.45 | H96: =Reference!F302 -> 24179.10422 | I96: =Reference!G302 -> 44.64470291 | J96: 6.71641784 | L96: =Test!B302 -> 4952.4664 | M96: =Test!C302 -> 39.1734 | N96: =Test!D302 -> 41.0893 | O96: =Test!E302 -> 41.396 | P96: =Test!F302 -> 253808.65 | Q96: =Test!G302 -> 75.98 | R96: 70.50240278 | S96: 10.49702452 | T96: 1.701881635
C97: 32 | D97: =Reference!B303 -> 2953.82 | E97: =Reference!C303 -> 35.7118 | F97: =Reference!D303 -> 38.8936 | G97: =Reference!E303 -> 39.1955 | H97: =Reference!F303 -> 21373.69391 | I97: =Reference!G303 -> 38.08880496 | J97: 5.937137196 | L97: =Test!B303 -> 2158.9664 | M97: =Test!C303 -> 36.1245 | N97: =Test!D303 -> 38.7823 | O97: =Test!E303 -> 38.9471 | P97: =Test!F303 -> 169336.63 | Q97: =Test!G303 -> 60.52 | R97: 47.03795278 | S97: 7.922665626 | T97: 1.58891832
C98: 37 | D98: =Reference!B304 -> 1469.0648 | E98: =Reference!C304 -> 32.9434 | F98: =Reference!D304 -> 37.1405 | G98: =Reference!E304 -> 37.2842 | H98: =Reference!F304 -> 19606.43091 | I98: =Reference!G304 -> 35.27902913 | J98: 5.446230807 | L98: =Test!B304 -> 1033.2 | M98: =Test!C304 -> 33.4325 | N98: =Test!D304 -> 36.7109 | O98: =Test!E304 -> 36.7628 | P98: =Test!F304 -> 106979.28 | Q98: =Test!G304 -> 48.75 | R98: 29.71646667 | S98: 5.456336266 | T98: 1.381840748
B99: SlideEditing | C99: 22 | D99: =Reference!B305 -> 324.3656 | E99: =Reference!C305 -> 47.09 | F99: =Reference!D305 -> 45.6162 | G99: =Reference!E305 -> 45.5319 | H99: =Reference!F305 -> 3600.804616 | I99: =Reference!G305 -> 5.75515604 | J99: 1.000223504 | L99: =Test!B305 -> 165.5776 | M99: =Test!C305 -> 48.0632 | N99: =Test!D305 -> 46.4711 | O99: =Test!E305 -> 46.7753 | P99: =Test!F305 -> 9638.11 | Q99: =Test!G305 -> 5.76 | R99: 2.677252778 | S99: 2.676654534 | T99: 1.000841673 | V99: =bdrate($D99:$D102,E99:E102,$L99:$L102,M99:M102) -> -0.5287350195 | W99: =bdrate($D99:$D102,F99:F102,$L99:$L102,N99:N102) -> -0.5950284496 | X99: =bdrate($D99:$D102,G99:G102,$L99:$L102,O99:O102) -> -0.6069280558 | Y99: =bdrateOld($D99:$D102,E99:E102,$L99:$L102,M99:M102) -> -0.5284652885 | Z99: =bdrateOld($D99:$D102,F99:F102,$L99:$L102,N99:N102) -> -0.5911425593 | AA99: =bdrateOld($D99:$D102,G99:G102,$L99:$L102,O99:O102) -> -0.6080704556
C100: 27 | D100: =Reference!B306 -> 238.2376 | E100: =Reference!C306 -> 42.7289 | F100: =Reference!D306 -> 41.3685 | G100: =Reference!E306 -> 41.3103 | H100: =Reference!F306 -> 3532.750559 | I100: =Reference!G306 -> 5.626176119 | J100: 0.9813195997 | L100: =Test!B306 -> 120.644 | M100: =Test!C306 -> 44.0238 | N100: =Test!D306 -> 43.7808 | O100: =Test!E306 -> 43.9784 | P100: =Test!F306 -> 8456.35 | Q100: =Test!G306 -> 5.57 | R100: 2.348986111 | S100: 2.393701412 | T100: 0.9900152221
C101: 32 | D101: =Reference!B307 -> 176.6936 | E101: =Reference!C307 -> 38.0509 | F101: =Reference!D307 -> 38.9086 | G101: =Reference!E307 -> 38.8903 | H101: =Reference!F307 -> 3477.988554 | I101: =Reference!G307 -> 5.54389596 | J101: 0.9661079317 | L101: =Test!B307 -> 92.1592 | M101: =Test!C307 -> 39.6436 | N101: =Test!D307 -> 41.7794 | O101: =Test!E307 -> 41.8504 | P101: =Test!F307 -> 7654.48 | Q101: =Test!G307 -> 5.32 | R101: 2.126244444 | S101: 2.200835305 | T101: 0.959613968
C102: 37 | D102: =Reference!B308 -> 129.0872 | E102: =Reference!C308 -> 33.1008 | F102: =Reference!D308 -> 37.601 | G102: =Reference!E308 -> 37.1096 | H102: =Reference!F308 -> 3480.676917 | I102: =Reference!G308 -> 5.625876188 | J102: 0.9668546992 | L102: =Test!B308 -> 70.044 | M102: =Test!C308 -> 34.7859 | N102: =Test!D308 -> 37.8883 | O102: =Test!E308 -> 38.2506 | P102: =Test!F308 -> 6248.02 | Q102: =Test!G308 -> 4.97 | R102: 1.735561111 | S102: 1.795058878 | T102: 0.8834179484
B103: SlideShow | C103: 22 | D103: =Reference!B309 -> 660.1894 | E103: =Reference!C309 -> 48.8539 | F103: =Reference!D309 -> 51.6655 | G103: =Reference!E309 -> 52.6802 | H103: =Reference!F309 -> 7346.285812 | I103: =Reference!G309 -> 11.64451694 | J103: 2.040634948 | L103: =Test!B309 -> 444.0838 | M103: =Test!C309 -> 49.6507 | N103: =Test!D309 -> 52.324 | O103: =Test!E309 -> 53.7302 | P103: =Test!F309 -> 41186.88 | Q103: =Test!G309 -> 13.66 | R103: 11.4408 | S103: 5.60649028 | T103: 1.173084299 | V103: =bdrate($D103:$D106,E103:E106,$L103:$L106,M103:M106) -> -0.4780077741 | W103: =bdrate($D103:$D106,F103:F106,$L103:$L106,N103:N106) -> -0.4965000132 | X103: =bdrate($D103:$D106,G103:G106,$L103:$L106,O103:O106) -> -0.5417801921 | Y103: =bdrateOld($D103:$D106,E103:E106,$L103:$L106,M103:M106) -> -0.4778650274 | Z103: =bdrateOld($D103:$D106,F103:F106,$L103:$L106,N103:N106) -> -0.4956398789 | AA103: =bdrateOld($D103:$D106,G103:G106,$L103:$L106,O103:O106) -> -0.540708884
C104: 27 | D104: =Reference!B310 -> 382.0173 | E104: =Reference!C310 -> 44.9202 | F104: =Reference!D310 -> 48.0989 | G104: =Reference!E310 -> 49.4112 | H104: =Reference!F310 -> 7015.278187 | I104: =Reference!G310 -> 10.79295397 | J104: 1.948688385 | L104: =Test!B310 -> 229.7376 | M104: =Test!C310 -> 45.6275 | N104: =Test!D310 -> 49.1002 | O104: =Test!E310 -> 50.7015 | P104: =Test!F310 -> 32301.1 | Q104: =Test!G310 -> 12.31 | R104: 8.972527778 | S104: 4.604393317 | T104: 1.140558927
C105: 32 | D105: =Reference!B311 -> 234.3242 | E105: =Reference!C311 -> 41.0586 | F105: =Reference!D311 -> 45.4923 | G105: =Reference!E311 -> 46.9153 | H105: =Reference!F311 -> 6871.482576 | I105: =Reference!G311 -> 11.33236599 | J105: 1.90874516 | L105: =Test!B311 -> 129.4102 | M105: =Test!C311 -> 41.9248 | N105: =Test!D311 -> 46.2764 | O105: =Test!E311 -> 48.1993 | P105: =Test!F311 -> 24412.32 | Q105: =Test!G311 -> 12.57 | R105: 6.7812 | S105: 3.552700561 | T105: 1.109212323
C106: 37 | D106: =Reference!B312 -> 148.4496 | E106: =Reference!C312 -> 37.1037 | F106: =Reference!D312 -> 43.5116 | G106: =Reference!E312 -> 45.0354 | H106: =Reference!F312 -> 6568.638183 | I106: =Reference!G312 -> 10.5202229 | J106: 1.824621718 | L106: =Test!B312 -> 81.8768 | M106: =Test!C312 -> 38.4153 | N106: =Test!D312 -> 43.8049 | O106: =Test!E312 -> 45.7405 | P106: =Test!F312 -> 16082.43 | Q106: =Test!G312 -> 9.52 | R106: 4.467341667 | S106: 2.44836594 | T106: 0.9049237919
B107: Class A1
B108: Class A2
B109: Class B | I109: =GEOMEAN(I27:I46) -> 45.96677606 | J109: =GEOMEAN(J27:J46) -> 6.812466625 | Q109: =GEOMEAN(Q27:Q46) -> 71.95014431 | R109: =GEOMEAN(R27:R46) -> 58.1843729 | S109: =GEOMEAN(S27:S46) -> 8.540867223 | T109: =GEOMEAN(T27:T46) -> 1.565264099 | V109: =AVERAGE(V27:V46) -> -0.3067899465 | W109: -0.3651334484 | X109: -0.3408434786 | Y109: -0.3065383655 | Z109: -0.360670176 | AA109: -0.3376981156
B110: Class C | I110: =GEOMEAN(I47:I62) -> 8.45772046 | J110: =GEOMEAN(J47:J62) -> 1.240738024 | Q110: =GEOMEAN(Q47:Q62) -> 13.58837555 | R110: =GEOMEAN(R47:R62) -> 12.61132219 | S110: =GEOMEAN(S47:S62) -> 10.16437148 | T110: =GEOMEAN(T47:T62) -> 1.606623867 | V110: =AVERAGE(V47:V62) -> -0.2895526981 | W110: -0.2139127252 | X110: -0.2124219996 | Y110: -0.2896225645 | Z110: -0.2122519404 | AA110: -0.2114717617
B111: Class D | I111: =GEOMEAN(I63:I78) -> 2.144039114 | J111: =GEOMEAN(J63:J78) -> 0.3142255777 | Q111: =GEOMEAN(Q63:Q78) -> 3.965374039 | R111: =GEOMEAN(R63:R78) -> 3.283027543 | S111: =GEOMEAN(S63:S78) -> 10.44799588 | T111: =GEOMEAN(T63:T78) -> 1.849487733 | V111: =AVERAGE(V63:V78) -> -0.2594138197 | W111: -0.1589994332 | X111: -0.1508471185 | Y111: -0.259216128 | Z111: -0.1556708794 | AA111: -0.1498753418
B112: Class E | I112: =GEOMEAN(I79:I90) -> 13.81284501 | J112: =GEOMEAN(J79:J90) -> 2.270735123 | Q112: =GEOMEAN(Q79:Q90) -> 16.90021539 | R112: =GEOMEAN(R79:R90) -> 9.420191671 | S112: =GEOMEAN(S79:S90) -> 4.148520704 | T112: =GEOMEAN(T79:T90) -> 1.223514444 | V112: =AVERAGE(V79:V88) -> -0.328183546 | W112: -0.3898157303 | X112: -0.3342922992 | Y112: -0.3273029043 | Z112: -0.3853801586 | AA112: -0.3336498978
B113: Class F | I113: =GEOMEAN(I91:I106) -> 12.23568586 | J113: =GEOMEAN(J91:J106) -> 1.981979916 | Q113: =GEOMEAN(Q91:Q106) -> 15.46184506 | R113: =GEOMEAN(R91:R106) -> 11.15352394 | S113: =GEOMEAN(S91:S106) -> 5.62746567 | T113: =GEOMEAN(T91:T106) -> 1.263668031 | V113: =AVERAGE(V91:V106) -> -0.4269913386 | W113: -0.4346582808 | X113: -0.4394154791 | Y113: -0.426949813 | Z113: -0.4335952039 | AA113: -0.4397890603
B114: All | I114: =GEOMEAN(I3:I62,I79:I90) -> 19.35709787 | J114: =GEOMEAN(J3:J62,J79:J90) -> 2.934124098 | Q114: =GEOMEAN(Q3:Q62,Q79:Q90) -> 28.73814748 | R114: =GEOMEAN(R3:R62,R79:R90) -> 22.17027726 | S114: =GEOMEAN(S3:S62,S79:S90) -> 7.556012123 | T114: =GEOMEAN(T3:T62,T79:T90) -> 1.484630996 | V114: =AVERAGE(V3:V62,V79:V90) -> -0.3063925969 | W114: -0.3208971111 | X114: -0.2963985241 | Y114: -0.3060908998 | Z114: -0.3173749265 | AA114: -0.2946106099
B115: Time geomean | I115: =GEOMEAN(I3:I106) -> 11.37303438 | J115: =GEOMEAN(J3:J106) -> 1.735222792 | Q115: =GEOMEAN(Q3:Q106) -> 17.08379521 | R115: =GEOMEAN(R3:R106) -> 13.1886396
B116: Time ratio | Q116: =Q115/I115 -> 1.502131677 | R116: =R115/J115 -> 7.600545392
B117: Time sum (hours)

Sheet LDP-10
D1: Reference | L1: Tested | V1: BD-rate (piecewise cubic) | Y1: BD-rate (cubic)
C2: QPISlice | D2: kbps | E2: Y psnr | F2: U psnr | G2: V psnr | H2: Enc T [s] | I2: Dec T [s] | J2: Enc T [h] | L2: kbps | M2: Y psnr | N2: U psnr | O2: V psnr | P2: Enc T [s] | Q2: Dec T [s] | R2: Enc T [h] | S2: Enc | T2: Dec | V2: Y | W2: U | X2: V | Y2: Y | Z2: U | AA2: V
A3: Class A1 | B3: Tango2 | C3: 22
A4: 4K | C4: 27
C5: 32
C6: 37
B7: FoodMarket4 | C7: 22
C8: 27
C9: 32
C10: 37
B11: Campfire | C11: 22
C12: 27
C13: 32
C14: 37
A15: Class A2 | B15: CatRobot1 | C15: 22
A16: 4K | C16: 27
C17: 32
C18: 37
B19: DaylightRoad2 | C19: 22
C20: 27
C21: 32
C22: 37
B23: ParkRunning3 | C23: 22
C24: 27
C25: 32
C26: 37
A27: Class B | B27: MarketPlace | C27: 22 | D27: =Reference!B337 -> 20761.692 | E27: =Reference!C337 -> 40.6172 | F27: =Reference!D337 -> 43.7311 | G27: =Reference!E337 -> 44.4749 | H27: =Reference!F337 -> 30587.83928 | I27: =Reference!G337 -> 66.46554303 | J27: =H27/3600 -> 8.496622023 | L27: =Test!B337 -> 17129.4744 | M27: =Test!C337 -> 40.9314 | N27: =Test!D337 -> 43.83 | O27: =Test!E337 -> 44.598 | P27: =Test!F337 -> 365850.16 | Q27: =Test!G337 -> 120.54 | R27: =P27/3600 -> 101.6250444 | S27: =P27/H27 -> 11.96064085 | T27: =Q27/I27 -> 1.813571281 | V27: =bdrate($D27:$D30,E27:E30,$L27:$L30,M27:M30) -> -0.3338904262 | W27: =bdrate($D27:$D30,F27:F30,$L27:$L30,N27:N30) -> -0.3204736927 | X27: =bdrate($D27:$D30,G27:G30,$L27:$L30,O27:O30) -> -0.2868938186 | Y27: =bdrateOld($D27:$D30,E27:E30,$L27:$L30,M27:M30) -> -0.3341411358 | Z27: =bdrateOld($D27:$D30,F27:F30,$L27:$L30,N27:N30) -> -0.3161166538 | AA27: =bdrateOld($D27:$D30,G27:G30,$L27:$L30,O27:O30) -> -0.2856838428
A28: 1080p | C28: 27 | D28: =Reference!B338 -> 7659.6664 | E28: =Reference!C338 -> 38.1654 | F28: =Reference!D338 -> 41.8118 | G28: =Reference!E338 -> 42.722 | H28: =Reference!F338 -> 21278.42248 | I28: =Reference!G338 -> 47.06695509 | J28: 5.91067291 | L28: =Test!B338 -> 5534.3792 | M28: =Test!C338 -> 38.2846 | N28: =Test!D338 -> 42.0236 | O28: =Test!E338 -> 42.9024 | P28: =Test!F338 -> 180167.12 | Q28: =Test!G338 -> 87.35 | R28: 50.04642222 | S28: 8.467127683 | T28: 1.855866814
C29: 32 | D29: =Reference!B339 -> 3448.0376 | E29: =Reference!C339 -> 35.7601 | F29: =Reference!D339 -> 40.398 | G29: =Reference!E339 -> 41.344 | H29: =Reference!F339 -> 17823.83434 | I29: =Reference!G339 -> 40.40331507 | J29: 4.951065094 | L29: =Test!B339 -> 2339.4936 | M29: =Test!C339 -> 35.9081 | N29: =Test!D339 -> 40.4674 | O29: =Test!E339 -> 41.1906 | P29: =Test!F339 -> 116925.07 | Q29: =Test!G339 -> 68.36 | R29: 32.47918611 | S29: 6.560040212 | T29: 1.691940374
C30: 37 | D30: =Reference!B340 -> 1579.436 | E30: =Reference!C340 -> 33.3315 | F30: =Reference!D340 -> 39.3534 | G30: =Reference!E340 -> 40.254 | H30: =Reference!F340 -> 15583.2126 | I30: =Reference!G340 -> 36.01942682 | J30: 4.328670166 | L30: =Test!B340 -> 1026.0096 | M30: =Test!C340 -> 33.5446 | N30: =Test!D340 -> 38.8087 | O30: =Test!E340 -> 39.5762 | P30: =Test!F340 -> 75769.08 | Q30: =Test!G340 -> 57.96 | R30: 21.04696667 | S30: 4.862224623 | T30: 1.609131658
B31: RitualDance | C31: 22 | D31: =Reference!B341 -> 12763.2872 | E31: =Reference!C341 -> 43.8382 | F31: =Reference!D341 -> 46.6578 | G31: =Reference!E341 -> 47.2481 | H31: =Reference!F341 -> 27401.86803 | I31: =Reference!G341 -> 58.36190391 | J31: 7.611630008 | L31: =Test!B341 -> 10212.3008 | M31: =Test!C341 -> 44.226 | N31: =Test!D341 -> 47.1609 | O31: =Test!E341 -> 47.7488 | P31: =Test!F341 -> 302049.5 | Q31: =Test!G341 -> 109.99 | R31: 83.90263889 | S31: 11.02295288 | T31: 1.884619806 | V31: =bdrate($D31:$D34,E31:E34,$L31:$L34,M31:M34) -> -0.281357876 | W31: =bdrate($D31:$D34,F31:F34,$L31:$L34,N31:N34) -> -0.3197417198 | X31: =bdrate($D31:$D34,G31:G34,$L31:$L34,O31:O34) -> -0.2602339588 | Y31: =bdrateOld($D31:$D34,E31:E34,$L31:$L34,M31:M34) -> -0.2814012867 | Z31: =bdrateOld($D31:$D34,F31:F34,$L31:$L34,N31:N34) -> -0.3168025572 | AA31: =bdrateOld($D31:$D34,G31:G34,$L31:$L34,O31:O34) -> -0.2580250436
C32: 27 | D32: =Reference!B342 -> 6355.1392 | E32: =Reference!C342 -> 40.5789 | F32: =Reference!D342 -> 44.2577 | G32: =Reference!E342 -> 44.5934 | H32: =Reference!F342 -> 22722.57916 | I32: =Reference!G342 -> 48.383183 | J32: 6.311827545 | L32: =Test!B342 -> 4880.9544 | M32: =Test!C342 -> 40.8505 | N32: =Test!D342 -> 44.7465 | O32: =Test!E342 -> 44.8928 | P32: =Test!F342 -> 201670.42 | Q32: =Test!G342 -> 83.24 | R32: 56.01956111 | S32: 8.875331386 | T32: 1.72043249
C33: 32 | D33: =Reference!B343 -> 3378.3656 | E33: =Reference!C343 -> 37.4727 | F33: =Reference!D343 -> 42.6479 | G33: =Reference!E343 -> 42.8287 | H33: =Reference!F343 -> 19900.16345 | I33: =Reference!G343 -> 43.80702305 | J33: 5.527823181 | L33: =Test!B343 -> 2511.7072 | M33: =Test!C343 -> 37.6737 | N33: =Test!D343 -> 42.8968 | O33: =Test!E343 -> 42.7057 | P33: =Test!F343 -> 141091.19 | Q33: =Test!G343 -> 66.56 | R33: 39.19199722 | S33: 7.089951313 | T33: 1.519391079
C34: 37 | D34: =Reference!B344 -> 1839.5048 | E34: =Reference!C344 -> 34.6319 | F34: =Reference!D344 -> 41.4459 | G34: =Reference!E344 -> 41.4713 | H34: =Reference!F344 -> 17459.6668 | I34: =Reference!G344 -> 39.291574 | J34: 4.849907443 | L34: =Test!B344 -> 1340.3992 | M34: =Test!C344 -> 34.8382 | N34: =Test!D344 -> 40.9347 | O34: =Test!E344 -> 40.6324 | P34: =Test!F344 -> 94336.39 | Q34: =Test!G344 -> 58.78 | R34: 26.20455278 | S34: 5.403103685 | T34: 1.495995045
B35: Cactus | C35: 22 | D35: =Reference!B345 -> 22925.376 | E35: =Reference!C345 -> 38.6258 | F35: =Reference!D345 -> 40.0747 | G35: =Reference!E345 -> 43.449 | H35: =Reference!F345 -> 25102.16963 | I35: =Reference!G345 -> 59.08755803 | J35: 6.972824896 | L35: =Test!B345 -> 15844.3984 | M35: =Test!C345 -> 38.69 | N35: =Test!D345 -> 40.0365 | O35: =Test!E345 -> 43.3825 | P35: =Test!F345 -> 284053.4 | Q35: =Test!G345 -> 105.45 | R35: 78.90372222 | S35: 11.31589039 | T35: 1.784639669 | V35: =bdrate($D35:$D38,E35:E38,$L35:$L38,M35:M38) -> -0.3732013042 | W35: =bdrate($D35:$D38,F35:F38,$L35:$L38,N35:N38) -> -0.4033118756 | X35: =bdrate($D35:$D38,G35:G38,$L35:$L38,O35:O38) -> -0.3362698724 | Y35: =bdrateOld($D35:$D38,E35:E38,$L35:$L38,M35:M38) -> -0.3731003696 | Z35: =bdrateOld($D35:$D38,F35:F38,$L35:$L38,N35:N38) -> -0.3979231771 | AA35: =bdrateOld($D35:$D38,G35:G38,$L35:$L38,O35:O38) -> -0.3329518693
C36: 27 | D36: =Reference!B346 -> 5721.5976 | E36: =Reference!C346 -> 36.6299 | F36: =Reference!D346 -> 38.8992 | G36: =Reference!E346 -> 41.446 | H36: =Reference!F346 -> 16437.10549 | I36: =Reference!G346 -> 37.60020399 | J36: 4.565862637 | L36: =Test!B346 -> 3912.5832 | M36: =Test!C346 -> 36.7612 | N36: =Test!D346 -> 39.1164 | O36: =Test!E346 -> 41.6271 | P36: =Test!F346 -> 145848.95 | Q36: =Test!G346 -> 64.16 | R36: 40.51359722 | S36: 8.873152883 | T36: 1.706373721
C37: 32 | D37: =Reference!B347 -> 2604.0536 | E37: =Reference!C347 -> 34.5504 | F37: =Reference!D347 -> 37.9886 | G37: =Reference!E347 -> 39.8706 | H37: =Reference!F347 -> 13982.68439 | I37: =Reference!G347 -> 32.79295087 | J37: 3.884078997 | L37: =Test!B347 -> 1707.524 | M37: =Test!C347 -> 34.712 | N37: =Test!D347 -> 38.1688 | O37: =Test!E347 -> 39.8287 | P37: =Test!F347 -> 95155.98 | Q37: =Test!G347 -> 51.29 | R37: 26.43221667 | S37: 6.805272675 | T37: 1.564055647
C38: 37 | D38: =Reference!B348 -> 1302.6296 | E38: =Reference!C348 -> 32.2736 | F38: =Reference!D348 -> 37.1375 | G38: =Reference!E348 -> 38.5149 | H38: =Reference!F348 -> 12395.16827 | I38: =Reference!G348 -> 29.34805202 | J38: 3.443102296 | L38: =Test!B348 -> 825.7096 | M38: =Test!C348 -> 32.51 | N38: =Test!D348 -> 36.7501 | O38: =Test!E348 -> 37.8547 | P38: =Test!F348 -> 63007.95 | Q38: =Test!G348 -> 45.65 | R38: 17.50220833 | S38: 5.083267016 | T38: 1.555469507
B39: BasketballDrive | C39: 22 | D39: =Reference!B349 -> 20818.1728 | E39: =Reference!C349 -> 39.3892 | F39: =Reference!D349 -> 43.7015 | G39: =Reference!E349 -> 44.9205 | H39: =Reference!F349 -> 26974.10329 | I39: =Reference!G349 -> 60.13756585 | J39: 7.49280647 | L39: =Test!B349 -> 16879.3568 | M39: =Test!C349 -> 39.6292 | N39: =Test!D349 -> 43.9481 | O39: =Test!E349 -> 45.3239 | P39: =Test!F349 -> 376759.39 | Q39: =Test!G349 -> 107.66 | R39: 104.6553861 | S39: 13.96744818 | T39: 1.790228761 | V39: =bdrate($D39:$D42,E39:E42,$L39:$L42,M39:M42) -> -0.3609972752 | W39: =bdrate($D39:$D42,F39:F42,$L39:$L42,N39:N42) -> -0.3596826221 | X39: =bdrate($D39:$D42,G39:G42,$L39:$L42,O39:O42) -> -0.3415512397 | Y39: =bdrateOld($D39:$D42,E39:E42,$L39:$L42,M39:M42) -> -0.3605247879 | Z39: =bdrateOld($D39:$D42,F39:F42,$L39:$L42,N39:N42) -> -0.3573569494 | AA39: =bdrateOld($D39:$D42,G39:G42,$L39:$L42,O39:O42) -> -0.3397339462
C40: 27 | D40: =Reference!B350 -> 6722.5744 | E40: =Reference!C350 -> 37.3669 | F40: =Reference!D350 -> 42.1727 | G40: =Reference!E350 -> 42.6004 | H40: =Reference!F350 -> 19235.21307 | I40: =Reference!G350 -> 43.95757079 | J40: 5.343114741 | L40: =Test!B350 -> 5069.18 | M40: =Test!C350 -> 37.6837 | N40: =Test!D350 -> 42.5245 | O40: =Test!E350 -> 43.0357 | P40: =Test!F350 -> 208420.54 | Q40: =Test!G350 -> 71.74 | R40: 57.89459444 | S40: 10.83536425 | T40: 1.632028311
C41: 32 | D41: =Reference!B351 -> 3195.0496 | E41: =Reference!C351 -> 35.3881 | F41: =Reference!D351 -> 40.9563 | G41: =Reference!E351 -> 40.9162 | H41: =Reference!F351 -> 15915.40266 | I41: =Reference!G351 -> 36.33644986 | J41: 4.420945184 | L41: =Test!B351 -> 2309.0016 | M41: =Test!C351 -> 35.7865 | N41: =Test!D351 -> 41.1484 | O41: =Test!E351 -> 41.0804 | P41: =Test!F351 -> 130978.66 | Q41: =Test!G351 -> 58.43 | R41: 36.38296111 | S41: 8.22967931 | T41: 1.608027207
C42: 37 | D42: =Reference!B352 -> 1655.76 | E42: =Reference!C352 -> 33.2768 | F42: =Reference!D352 -> 39.909 | G42: =Reference!E352 -> 39.5161 | H42: =Reference!F352 -> 14047.72613 | I42: =Reference!G352 -> 32.21535897 | J42: 3.902146147 | L42: =Test!B352 -> 1162.8488 | M42: =Test!C352 -> 33.7997 | N42: =Test!D352 -> 39.5615 | O42: =Test!E352 -> 38.9557 | P42: =Test!F352 -> 84083.26 | Q42: =Test!G352 -> 49.69 | R42: 23.35646111 | S42: 5.985542373 | T42: 1.542431982
B43: BQTerrace | C43: 22 | D43: =Reference!B353 -> 63386.044 | E43: =Reference!C353 -> 38.2468 | F43: =Reference!D353 -> 41.9416 | G43: =Reference!E353 -> 44.1746 | H43: =Reference!F353 -> 39280.28688 | I43: =Reference!G353 -> 99.87850881 | J43: 10.9111908 | L43: =Test!B353 -> 52182.3568 | M43: =Test!C353 -> 38.3425 | N43: =Test!D353 -> 41.9731 | O43: =Test!E353 -> 44.2614 | P43: =Test!F353 -> 408785.96 | Q43: =Test!G353 -> 202.48 | R43: 113.5516556 | S43: 10.40689853 | T43: 2.027262946 | V43: =bdrate($D43:$D46,E43:E46,$L43:$L46,M43:M46) -> -0.4034474866 | W43: =bdrate($D43:$D46,F43:F46,$L43:$L46,N43:N46) -> -0.5392125901 | X43: =bdrate($D43:$D46,G43:G46,$L43:$L46,O43:O46) -> -0.602019057 | Y43: =bdrateOld($D43:$D46,E43:E46,$L43:$L46,M43:M46) -> -0.4046250824 | Z43: =bdrateOld($D43:$D46,F43:F46,$L43:$L46,N43:N46) -> -0.5342518525 | AA43: =bdrateOld($D43:$D46,G43:G46,$L43:$L46,O43:O46) -> -0.595995383
C44: 27 | D44: =Reference!B354 -> 9579.864 | E44: =Reference!C354 -> 35.1061 | F44: =Reference!D354 -> 40.4912 | G44: =Reference!E354 -> 42.9335 | H44: =Reference!F354 -> 19863.33355 | I44: =Reference!G354 -> 51.29334593 | J44: 5.517592652 | L44: =Test!B354 -> 5498.3512 | M44: =Test!C354 -> 35.164 | N44: =Test!D354 -> 40.8381 | O44: =Test!E354 -> 43.3571 | P44: =Test!F354 -> 146052.52 | Q44: =Test!G354 -> 77.1 | R44: 40.57014444 | S44: 7.352870536 | T44: 1.503118945
C45: 32 | D45: =Reference!B355 -> 2349.0008 | E45: =Reference!C355 -> 33.4089 | F45: =Reference!D355 -> 39.2108 | G45: =Reference!E355 -> 41.8603 | H45: =Reference!F355 -> 14961.98203 | I45: =Reference!G355 -> 37.49605989 | J45: 4.156106121 | L45: =Test!B355 -> 1464.4912 | M45: =Test!C355 -> 33.5537 | N45: =Test!D355 -> 39.6262 | O45: =Test!E355 -> 42.3395 | P45: =Test!F355 -> 76928.87 | Q45: =Test!G355 -> 52.47 | R45: 21.36913056 | S45: 5.141622936 | T45: 1.399347029
C46: 37 | D46: =Reference!B356 -> 847.7744 | E46: =Reference!C356 -> 31.2388 | F46: =Reference!D356 -> 38.2428 | G46: =Reference!E356 -> 40.9274 | H46: =Reference!F356 -> 13257.15422 | I46: =Reference!G356 -> 33.03895807 | J46: 3.682542838 | L46: =Test!B356 -> 576.776 | M46: =Test!C356 -> 31.5917 | N46: =Test!D356 -> 37.9625 | O46: =Test!E356 -> 40.8997 | P46: =Test!F356 -> 48966.15 | Q46: =Test!G356 -> 42.44 | R46: 13.60170833 | S46: 3.693564184 | T46: 1.28454414
A47: Class C | B47: BasketballDrill | C47: 22 | D47: =Reference!B357 -> 3776.5088 | E47: =Reference!C357 -> 40.2454 | F47: =Reference!D357 -> 42.7658 | G47: =Reference!E357 -> 43.3183 | H47: =Reference!F357 -> 5060.554065 | I47: =Reference!G357 -> 11.36591315 | J47: 1.405709463 | L47: =Test!B357 -> 3023.4072 | M47: =Test!C357 -> 40.8825 | N47: =Test!D357 -> 43.1594 | O47: =Test!E357 -> 43.9207 | P47: =Test!F357 -> 60115.62 | Q47: =Test!G357 -> 21.08 | R47: 16.69878333 | S47: 11.87925654 | T47: 1.854668403 | V47: =bdrate($D47:$D50,E47:E50,$L47:$L50,M47:M50) -> -0.3743639166 | W47: =bdrate($D47:$D50,F47:F50,$L47:$L50,N47:N50) -> -0.3773198112 | X47: =bdrate($D47:$D50,G47:G50,$L47:$L50,O47:O50) -> -0.3797654678 | Y47: =bdrateOld($D47:$D50,E47:E50,$L47:$L50,M47:M50) -> -0.3743521098 | Z47: =bdrateOld($D47:$D50,F47:F50,$L47:$L50,N47:N50) -> -0.3762039606 | AA47: =bdrateOld($D47:$D50,G47:G50,$L47:$L50,O47:O50) -> -0.3811104907
A48: WVGA | C48: 27 | D48: =Reference!B358 -> 1696.2712 | E48: =Reference!C358 -> 36.9147 | F48: =Reference!D358 -> 40.0452 | G48: =Reference!E358 -> 40.2838 | H48: =Reference!F358 -> 3847.42464 | I48: =Reference!G358 -> 8.868453979 | J48: 1.068729067 | L48: =Test!B358 -> 1288.7576 | M48: =Test!C358 -> 37.6134 | N48: =Test!D358 -> 40.6917 | O48: =Test!E358 -> 41.0726 | P48: =Test!F358 -> 43378.23 | Q48: =Test!G358 -> 13.63 | R48: 12.04950833 | S48: 11.2746146 | T48: 1.53690824
C49: 32 | D49: =Reference!B359 -> 834.8 | E49: =Reference!C359 -> 34.023 | F49: =Reference!D359 -> 38.0617 | G49: =Reference!E359 -> 38.2111 | H49: =Reference!F359 -> 3144.752643 | I49: =Reference!G359 -> 6.887017012 | J49: 0.8735424009 | L49: =Test!B359 -> 608.9672 | M49: =Test!C359 -> 34.749 | N49: =Test!D359 -> 38.6811 | O49: =Test!E359 -> 38.7789 | P49: =Test!F359 -> 29033.37 | Q49: =Test!G359 -> 10.15 | R49: 8.064825 | S49: 9.232322314 | T49: 1.47378756
C50: 37 | D50: =Reference!B360 -> 435.3032 | E50: =Reference!C360 -> 31.5182 | F50: =Reference!D360 -> 36.5262 | G50: =Reference!E360 -> 36.4165 | H50: =Reference!F360 -> 2696.937748 | I50: =Reference!G360 -> 6.108165026 | J50: 0.7491493744 | L50: =Test!B360 -> 308.6592 | M50: =Test!C360 -> 32.3082 | N50: =Test!D360 -> 36.5148 | O50: =Test!E360 -> 36.4367 | P50: =Test!F360 -> 18846.54 | Q50: =Test!G360 -> 8.84 | R50: 5.23515 | S50: 6.988125705 | T50: 1.447243151
B51: BQMall | C51: 22 | D51: =Reference!B361 -> 4466.424 | E51: =Reference!C361 -> 40.1093 | F51: =Reference!D361 -> 43.1611 | G51: =Reference!E361 -> 44.5771 | H51: =Reference!F361 -> 5678.83441 | I51: =Reference!G361 -> 12.68475413 | J51: 1.577454003 | L51: =Test!B361 -> 3451.5448 | M51: =Test!C361 -> 40.2975 | N51: =Test!D361 -> 43.1715 | O51: =Test!E361 -> 44.5605 | P51: =Test!F361 -> 56602.53 | Q51: =Test!G361 -> 24.38 | R51: 15.722925 | S51: 9.967279535 | T51: 1.921992318 | V51: =bdrate($D51:$D54,E51:E54,$L51:$L54,M51:M54) -> -0.3016775998 | W51: =bdrate($D51:$D54,F51:F54,$L51:$L54,N51:N54) -> -0.2577008924 | X51: =bdrate($D51:$D54,G51:G54,$L51:$L54,O51:O54) -> -0.2458282631 | Y51: =bdrateOld($D51:$D54,E51:E54,$L51:$L54,M51:M54) -> -0.3017343463 | Z51: =bdrateOld($D51:$D54,F51:F54,$L51:$L54,N51:N54) -> -0.2560365188 | AA51: =bdrateOld($D51:$D54,G51:G54,$L51:$L54,O51:O54) -> -0.2442440069
C52: 27 | D52: =Reference!B362 -> 1896.1816 | E52: =Reference!C362 -> 37.1266 | F52: =Reference!D362 -> 40.9689 | G52: =Reference!E362 -> 42.0259 | H52: =Reference!F362 -> 4236.746994 | I52: =Reference!G362 -> 10.64970303 | J52: 1.176874165 | L52: =Test!B362 -> 1405.7296 | M52: =Test!C362 -> 37.2922 | N52: =Test!D362 -> 41.0951 | O52: =Test!E362 -> 42.1175 | P52: =Test!F362 -> 38394.49 | Q52: =Test!G362 -> 14.81 | R52: 10.66513611 | S52: 9.062256976 | T52: 1.390649107
C53: 32 | D53: =Reference!B363 -> 924.5936 | E53: =Reference!C363 -> 34.1923 | F53: =Reference!D363 -> 39.2311 | G53: =Reference!E363 -> 40.1237 | H53: =Reference!F363 -> 3509.370305 | I53: =Reference!G363 -> 7.715631962 | J53: 0.9748250847 | L53: =Test!B363 -> 666.0024 | M53: =Test!C363 -> 34.3872 | N53: =Test!D363 -> 39.1336 | O53: =Test!E363 -> 39.9574 | P53: =Test!F363 -> 26036.46 | Q53: =Test!G363 -> 11.76 | R53: 7.23235 | S53: 7.419125865 | T53: 1.524178455
C54: 37 | D54: =Reference!B364 -> 470.6824 | E54: =Reference!C364 -> 31.3131 | F54: =Reference!D364 -> 37.9047 | G54: =Reference!E364 -> 38.7045 | H54: =Reference!F364 -> 3043.706199 | I54: =Reference!G364 -> 6.546892881 | J54: 0.8454739441 | L54: =Test!B364 -> 337.5208 | M54: =Test!C364 -> 31.622 | N54: =Test!D364 -> 37.3406 | O54: =Test!E364 -> 38.1265 | P54: =Test!F364 -> 17800.44 | Q54: =Test!G364 -> 9.93 | R54: 4.944566667 | S54: 5.848277999 | T54: 1.516750034
B55: PartyScene | C55: 22 | D55: =Reference!B365 -> 9048.8 | E55: =Reference!C365 -> 38.2755 | F55: =Reference!D365 -> 41.1056 | G55: =Reference!E365 -> 42.0475 | H55: =Reference!F365 -> 6563.977346 | I55: =Reference!G365 -> 15.39054704 | J55: 1.823327041 | L55: =Test!B365 -> 7273.2552 | M55: =Test!C365 -> 38.5516 | N55: =Test!D365 -> 40.9883 | O55: =Test!E365 -> 41.8865 | P55: =Test!F365 -> 70127.7 | Q55: =Test!G365 -> 32.52 | R55: 19.47991667 | S55: 10.6837206 | T55: 2.112985323 | V55: =bdrate($D55:$D58,E55:E58,$L55:$L58,M55:M58) -> -0.2883497994 | W55: =bdrate($D55:$D58,F55:F58,$L55:$L58,N55:N58) -> -0.2026004356 | X55: =bdrate($D55:$D58,G55:G58,$L55:$L58,O55:O58) -> -0.1649294407 | Y55: =bdrateOld($D55:$D58,E55:E58,$L55:$L58,M55:M58) -> -0.2884731137 | Z55: =bdrateOld($D55:$D58,F55:F58,$L55:$L58,N55:N58) -> -0.1987106026 | AA55: =bdrateOld($D55:$D58,G55:G58,$L55:$L58,O55:O58) -> -0.1624420732
C56: 27 | D56: =Reference!B366 -> 3509.2512 | E56: =Reference!C366 -> 34.3202 | F56: =Reference!D366 -> 38.3177 | G56: =Reference!E366 -> 39.1533 | H56: =Reference!F366 -> 4454.512663 | I56: =Reference!G366 -> 11.0361042 | J56: 1.237364629 | L56: =Test!B366 -> 2661.5088 | M56: =Test!C366 -> 34.499 | N56: =Test!D366 -> 38.3001 | O56: =Test!E366 -> 39.0254 | P56: =Test!F366 -> 42489.07 | Q56: =Test!G366 -> 18.4 | R56: 11.80251944 | S56: 9.538432869 | T56: 1.667255008
C57: 32 | D57: =Reference!B367 -> 1537.1144 | E57: =Reference!C367 -> 30.9996 | F57: =Reference!D367 -> 36.3965 | G57: =Reference!E367 -> 37.1809 | H57: =Reference!F367 -> 3391.677883 | I57: =Reference!G367 -> 8.498558044 | J57: 0.9421327453 | L57: =Test!B367 -> 1121.9736 | M57: =Test!C367 -> 31.1844 | N57: =Test!D367 -> 36.2117 | O57: =Test!E367 -> 36.8199 | P57: =Test!F367 -> 29694.02 | Q57: =Test!G367 -> 13.58 | R57: 8.248338889 | S57: 8.754964659 | T57: 1.597918133
C58: 37 | D58: =Reference!B368 -> 661.92 | E58: =Reference!C368 -> 27.8212 | F58: =Reference!D368 -> 34.9435 | G58: =Reference!E368 -> 35.7303 | H58: =Reference!F368 -> 2783.174018 | I58: =Reference!G368 -> 6.284297943 | J58: 0.7731038939 | L58: =Test!B368 -> 476.736 | M58: =Test!C368 -> 28.1503 | N58: =Test!D368 -> 34.3675 | O58: =Test!E368 -> 35.0717 | P58: =Test!F368 -> 19942.81 | Q58: =Test!G368 -> 11.06 | R58: 5.539669444 | S58: 7.165491583 | T58: 1.759942017
B59: RaceHorses | C59: 22 | D59: =Reference!B369 -> 5813.7016 | E59: =Reference!C369 -> 39.7614 | F59: =Reference!D369 -> 41.3341 | G59: =Reference!E369 -> 42.7667 | H59: =Reference!F369 -> 4155.871621 | I59: =Reference!G369 -> 9.665599108 | J59: =H59/3600 -> 1.154408784 | L59: =Test!B369 -> 5220.8552 | M59: =Test!C369 -> 40.2721 | N59: =Test!D369 -> 41.075 | O59: =Test!E369 -> 42.6055 | P59: =Test!F369 -> 51478.78 | Q59: =Test!G369 -> 18.01 | R59: =P59/3600 -> 14.29966111 | S59: =P59/H59 -> 12.38699957 | T59: =Q59/I59 -> 1.863309227 | V59: =bdrate($D59:$D62,E59:E62,$L59:$L62,M59:M62) -> -0.2625979819 | W59: =bdrate($D59:$D62,F59:F62,$L59:$L62,N59:N62) -> -0.01626620969 | X59: =bdrate($D59:$D62,G59:G62,$L59:$L62,O59:O62) -> -0.05992975601 | Y59: =bdrateOld($D59:$D62,E59:E62,$L59:$L62,M59:M62) -> -0.2626249638 | Z59: =bdrateOld($D59:$D62,F59:F62,$L59:$L62,N59:N62) -> -0.01491976662 | AA59: =bdrateOld($D59:$D62,G59:G62,$L59:$L62,O59:O62) -> -0.05430669746
C60: 27 | D60: =Reference!B370 -> 2233.2832 | E60: =Reference!C370 -> 35.9404 | F60: =Reference!D370 -> 38.6916 | G60: =Reference!E370 -> 40.3401 | H60: =Reference!F370 -> 3042.944286 | I60: =Reference!G370 -> 6.937839985 | J60: 0.8452623017 | L60: =Test!B370 -> 1781.5112 | M60: =Test!C370 -> 36.1751 | N60: =Test!D370 -> 38.2881 | O60: =Test!E370 -> 40.0476 | P60: =Test!F370 -> 31711.86 | Q60: =Test!G370 -> 11.98 | R60: 8.80885 | S60: 10.42143957 | T60: 1.726762224
C61: 32 | D61: =Reference!B371 -> 1007.9064 | E61: =Reference!C371 -> 32.8965 | F61: =Reference!D371 -> 36.9718 | G61: =Reference!E371 -> 38.6832 | H61: =Reference!F371 -> 2457.414842 | I61: =Reference!G371 -> 5.485857964 | J61: 0.6826152339 | L61: =Test!B371 -> 757.2016 | M61: =Test!C371 -> 33.0754 | N61: =Test!D371 -> 36.3263 | O61: =Test!E371 -> 38.2076 | P61: =Test!F371 -> 23783.1 | Q61: =Test!G371 -> 8.75 | R61: 6.606416667 | S61: 9.678097321 | T61: 1.595010308
C62: 37 | D62: =Reference!B372 -> 467.7416 | E62: =Reference!C372 -> 30.121 | F62: =Reference!D372 -> 35.6689 | G62: =Reference!E372 -> 37.3854 | H62: =Reference!F372 -> 2009.331479 | I62: =Reference!G372 -> 4.180039883 | J62: 0.5581476331 | L62: =Test!B372 -> 345.56 | M62: =Test!C372 -> 30.3928 | N62: =Test!D372 -> 34.7673 | O62: =Test!E372 -> 36.4685 | P62: =Test!F372 -> 15699.65 | Q62: =Test!G372 -> 6.91 | R62: 4.361013889 | S62: 7.813369851 | T62: 1.653094275
A63: Class D | B63: BasketballPass | C63: =C59 -> 22 | D63: =Reference!B373 -> 1708.3384 | E63: =Reference!C373 -> 40.8403 | F63: =Reference!D373 -> 43.5745 | G63: =Reference!E373 -> 42.9625 | H63: =Reference!F373 -> 1337.024704 | I63: =Reference!G373 -> 3.102169991 | J63: 0.3713957511 | L63: =Test!B373 -> 1456.992 | M63: =Test!C373 -> 41.3358 | N63: =Test!D373 -> 43.6626 | O63: =Test!E373 -> 42.9618 | P63: =Test!F373 -> 16134.09 | Q63: =Test!G373 -> 6.23 | R63: 4.481691667 | S63: 12.06715923 | T63: 2.008271635 | V63: =bdrate($D63:$D66,E63:E66,$L63:$L66,M63:M66) -> -0.2654641141 | W63: =bdrate($D63:$D66,F63:F66,$L63:$L66,N63:N66) -> -0.1689181556 | X63: =bdrate($D63:$D66,G63:G66,$L63:$L66,O63:O66) -> -0.1081734275 | Y63: =bdrateOld($D63:$D66,E63:E66,$L63:$L66,M63:M66) -> -0.2652575298 | Z63: =bdrateOld($D63:$D66,F63:F66,$L63:$L66,N63:N66) -> -0.1654080605 | AA63: =bdrateOld($D63:$D66,G63:G66,$L63:$L66,O63:O66) -> -0.1026621073
A64: WQVGA | C64: =C60 -> 27 | D64: =Reference!B374 -> 826.1456 | E64: =Reference!C374 -> 36.8031 | F64: =Reference!D374 -> 40.7022 | G64: =Reference!E374 -> 39.6699 | H64: =Reference!F374 -> 1070.974087 | I64: =Reference!G374 -> 2.462813139 | J64: 0.2974928019 | L64: =Test!B374 -> 655.284 | M64: =Test!C374 -> 37.0848 | N64: =Test!D374 -> 40.6482 | O64: =Test!E374 -> 39.3262 | P64: =Test!F374 -> 12196.91 | Q64: =Test!G374 -> 4.77 | R64: 3.388030556 | S64: 11.38861355 | T64: 1.936809547
C65: =C61 -> 32 | D65: =Reference!B375 -> 418.5392 | E65: =Reference!C375 -> 33.3909 | F65: =Reference!D375 -> 38.76 | G65: =Reference!E375 -> 37.5623 | H65: =Reference!F375 -> 882.8016279 | I65: =Reference!G375 -> 1.958576918 | J65: 0.2452226744 | L65: =Test!B375 -> 310.3736 | M65: =Test!C375 -> 33.5867 | N65: =Test!D375 -> 38.4186 | O65: =Test!E375 -> 36.895 | P65: =Test!F375 -> 9807.94 | Q65: =Test!G375 -> 3.69 | R65: 2.724427778 | S65: 11.11001576 | T65: 1.884020978
C66: =C62 -> 37 | D66: =Reference!B376 -> 216.6688 | E66: =Reference!C376 -> 30.5258 | F66: =Reference!D376 -> 37.3202 | G66: =Reference!E376 -> 35.9496 | H66: =Reference!F376 -> 750.5652339 | I66: =Reference!G376 -> 1.637336016 | J66: 0.2084903428 | L66: =Test!B376 -> 155.5224 | M66: =Test!C376 -> 30.7475 | N66: =Test!D376 -> 36.5466 | O66: =Test!E376 -> 34.8064 | P66: =Test!F376 -> 6311.12 | Q66: =Test!G376 -> 3.04 | R66: 1.753088889 | S66: 8.408489648 | T66: 1.856674483
B67: BQSquare | C67: 22 | D67: =Reference!B377 -> 2667.944 | E67: =Reference!C377 -> 38.3218 | F67: =Reference!D377 -> 42.7678 | G67: =Reference!E377 -> 43.8373 | H67: =Reference!F377 -> 1796.438939 | I67: =Reference!G377 -> 4.277234077 | J67: 0.4990108164 | L67: =Test!B377 -> 2044.992 | M67: =Test!C377 -> 38.3503 | N67: =Test!D377 -> 42.5295 | O67: =Test!E377 -> 43.6609 | P67: =Test!F377 -> 18425.39 | Q67: =Test!G377 -> 8.03 | R67: 5.118163889 | S67: 10.25661914 | T67: 1.87738147 | V67: =bdrate($D67:$D70,E67:E70,$L67:$L70,M67:M70) -> -0.3513140001 | W67: =bdrate($D67:$D70,F67:F70,$L67:$L70,N67:N70) -> -0.2959110384 | X67: =bdrate($D67:$D70,G67:G70,$L67:$L70,O67:O70) -> -0.3141366904 | Y67: =bdrateOld($D67:$D70,E67:E70,$L67:$L70,M67:M70) -> -0.3512643461 | Z67: =bdrateOld($D67:$D70,F67:F70,$L67:$L70,N67:N70) -> -0.2967623273 | AA67: =bdrateOld($D67:$D70,G67:G70,$L67:$L70,O67:O70) -> -0.316729599
C68: 27 | D68: =Reference!B378 -> 879.7664 | E68: =Reference!C378 -> 34.2222 | F68: =Reference!D378 -> 40.7105 | G68: =Reference!E378 -> 41.6419 | H68: =Reference!F378 -> 1175.426605 | I68: =Reference!G378 -> 2.844150066 | J68: 0.3265073903 | L68: =Test!B378 -> 569.4416 | M68: =Test!C378 -> 34.2536 | N68: =Test!D378 -> 40.7735 | O68: =Test!E378 -> 41.7901 | P68: =Test!F378 -> 10872.81 | Q68: =Test!G378 -> 5.25 | R68: 3.020225 | S68: 9.250096904 | T68: 1.845894161
C69: 32 | D69: =Reference!B379 -> 336.5784 | E69: =Reference!C379 -> 31.1927 | F69: =Reference!D379 -> 39.3346 | G69: =Reference!E379 -> 40.1705 | H69: =Reference!F379 -> 849.6599829 | I69: =Reference!G379 -> 2.018668175 | J69: 0.2360166619 | L69: =Test!B379 -> 209.368 | M69: =Test!C379 -> 31.2361 | N69: =Test!D379 -> 39.125 | O69: =Test!E379 -> 39.9299 | P69: =Test!F379 -> 6591.96 | Q69: =Test!G379 -> 3.76 | R69: 1.8311 | S69: 7.758350555 | T69: 1.862614196
C70: 37 | D70: =Reference!B380 -> 132.5312 | E70: =Reference!C380 -> 28.2403 | F70: =Reference!D380 -> 38.2578 | G70: =Reference!E380 -> 38.9939 | H70: =Reference!F380 -> 705.8712211 | I70: =Reference!G380 -> 1.651194096 | J70: 0.1960753392 | L70: =Test!B380 -> 90.0368 | M70: =Test!C380 -> 28.5012 | N70: =Test!D380 -> 37.7817 | O70: =Test!E380 -> 38.5266 | P70: =Test!F380 -> 3918.06 | Q70: =Test!G380 -> 2.86 | R70: 1.08835 | S70: 5.550672535 | T70: 1.732079837
B71: BlowingBubbles | C71: 22 | D71: =Reference!B381 -> 2106.7408 | E71: =Reference!C381 -> 38.0487 | F71: =Reference!D381 -> 40.8366 | G71: =Reference!E381 -> 41.6133 | H71: =Reference!F381 -> 1509.177238 | I71: =Reference!G381 -> 3.52772212 | J71: 0.4192158994 | L71: =Test!B381 -> 1712.3656 | M71: =Test!C381 -> 38.2443 | N71: =Test!D381 -> 40.503 | O71: =Test!E381 -> 41.1852 | P71: =Test!F381 -> 16653.13 | Q71: =Test!G381 -> 6.87 | R71: 4.625869444 | S71: 11.03457538 | T71: 1.947432299 | V71: =bdrate($D71:$D74,E71:E74,$L71:$L74,M71:M74) -> -0.2475165516 | W71: =bdrate($D71:$D74,F71:F74,$L71:$L74,N71:N74) -> -0.1074746355 | X71: =bdrate($D71:$D74,G71:G74,$L71:$L74,O71:O74) -> -0.07149639757 | Y71: =bdrateOld($D71:$D74,E71:E74,$L71:$L74,M71:M74) -> -0.2476432788 | Z71: =bdrateOld($D71:$D74,F71:F74,$L71:$L74,N71:N74) -> -0.1040649156 | AA71: =bdrateOld($D71:$D74,G71:G74,$L71:$L74,O71:O74) -> -0.06949428671
C72: 27 | D72: =Reference!B382 -> 827.4832 | E72: =Reference!C382 -> 34.2062 | F72: =Reference!D382 -> 38.0279 | G72: =Reference!E382 -> 38.6509 | H72: =Reference!F382 -> 1009.30475 | I72: =Reference!G382 -> 2.382037878 | J72: 0.2803624305 | L72: =Test!B382 -> 646.5664 | M72: =Test!C382 -> 34.2877 | N72: =Test!D382 -> 37.8175 | O72: =Test!E382 -> 38.3243 | P72: =Test!F382 -> 10603.08 | Q72: =Test!G382 -> 4.74 | R72: 2.9453 | S72: 10.50533053 | T72: 1.98989279
C73: 32 | D73: =Reference!B383 -> 357.2696 | E73: =Reference!C383 -> 30.8384 | F73: =Reference!D383 -> 35.9714 | G73: =Reference!E383 -> 36.5759 | H73: =Reference!F383 -> 767.607172 | I73: =Reference!G383 -> 1.792885065 | J73: 0.2132242144 | L73: =Test!B383 -> 272.1712 | M73: =Test!C383 -> 30.9463 | N73: =Test!D383 -> 35.5417 | O73: =Test!E383 -> 36.0187 | P73: =Test!F383 -> 6992.23 | Q73: =Test!G383 -> 3.46 | R73: 1.942286111 | S73: 9.109125416 | T73: 1.929850422
C74: 37 | D74: =Reference!B384 -> 154.148 | E74: =Reference!C384 -> 27.8191 | F74: =Reference!D384 -> 34.5006 | G74: =Reference!E384 -> 35.1293 | H74: =Reference!F384 -> 633.7807832 | I74: =Reference!G384 -> 1.44954896 | J74: 0.1760502175 | L74: =Test!B384 -> 117.2672 | M74: =Test!C384 -> 28.0636 | N74: =Test!D384 -> 33.687 | O74: =Test!E384 -> 34.3173 | P74: =Test!F384 -> 4404.87 | Q74: =Test!G384 -> 2.43 | R74: 1.223575 | S74: 6.950147617 | T74: 1.676383529
B75: RaceHorses | C75: 22 | D75: =Reference!B385 -> 1334.772 | E75: =Reference!C385 -> 39.7687 | F75: =Reference!D385 -> 41.2015 | G75: =Reference!E385 -> 42.2886 | H75: =Reference!F385 -> 996.5288119 | I75: =Reference!G385 -> 2.376317024 | J75: 0.2768135589 | L75: =Test!B385 -> 1084.1808 | M75: =Test!C385 -> 39.8763 | N75: =Test!D385 -> 40.6925 | O75: =Test!E385 -> 41.9245 | P75: =Test!F385 -> 11656.94 | Q75: =Test!G385 -> 4.68 | R75: 3.238038889 | S75: 11.69754438 | T75: 1.969434193 | V75: =bdrate($D75:$D78,E75:E78,$L75:$L78,M75:M78) -> -0.2313407711 | W75: =bdrate($D75:$D78,F75:F78,$L75:$L78,N75:N78) -> -0.03552766944 | X75: =bdrate($D75:$D78,G75:G78,$L75:$L78,O75:O78) -> -0.06912493877 | Y75: =bdrateOld($D75:$D78,E75:E78,$L75:$L78,M75:M78) -> -0.2316341317 | Z75: =bdrateOld($D75:$D78,F75:F78,$L75:$L78,N75:N78) -> -0.02865264708 | AA75: =bdrateOld($D75:$D78,G75:G78,$L75:$L78,O75:O78) -> -0.06732006547
C76: 27 | D76: =Reference!B386 -> 613.0088 | E76: =Reference!C386 -> 35.635 | F76: =Reference!D386 -> 38.2868 | G76: =Reference!E386 -> 39.4976 | H76: =Reference!F386 -> 759.5757899 | I76: =Reference!G386 -> 1.795944929 | J76: 0.210993275 | L76: =Test!B386 -> 466.4744 | M76: =Test!C386 -> 35.4883 | N76: =Test!D386 -> 37.6386 | O76: =Test!E386 -> 38.9733 | P76: =Test!F386 -> 8200.16 | Q76: =Test!G386 -> 3.5 | R76: 2.277822222 | S76: 10.79571006 | T76: 1.948834813
C77: 32 | D77: =Reference!B387 -> 297.9032 | E77: =Reference!C387 -> 32.1651 | F77: =Reference!D387 -> 36.4524 | G77: =Reference!E387 -> 37.5831 | H77: =Reference!F387 -> 605.3919599 | I77: =Reference!G387 -> 1.402744055 | J77: 0.1681644333 | L77: =Test!B387 -> 211.9248 | M77: =Test!C387 -> 31.9436 | N77: =Test!D387 -> 35.6382 | O77: =Test!E387 -> 36.7956 | P77: =Test!F387 -> 6475.99 | Q77: =Test!G387 -> 2.57 | R77: 1.798886111 | S77: 10.69718534 | T77: 1.832123252
C78: 37 | D78: =Reference!B388 -> 146.8712 | E78: =Reference!C388 -> 29.3656 | F78: =Reference!D388 -> 34.9867 | G78: =Reference!E388 -> 36.0697 | H78: =Reference!F388 -> 500.0098808 | I78: =Reference!G388 -> 1.131315947 | J78: 0.1388916336 | L78: =Test!B388 -> 100.4208 | M78: =Test!C388 -> 29.2213 | N78: =Test!D388 -> 33.8276 | O78: =Test!E388 -> 34.9784 | P78: =Test!F388 -> 3894.28 | Q78: =Test!G388 -> 1.85 | R78: 1.081744444 | S78: 7.788406089 | T78: 1.635263788
A79: ClassE | B79: FourPeople | C79: 22 | D79: =Reference!B389 -> 2391.4176 | E79: =Reference!C389 -> 42.5813 | F79: =Reference!D389 -> 46.5084 | G79: =Reference!E389 -> 47.8402 | H79: =Reference!F389 -> 7614.497366 | I79: =Reference!G389 -> 16.48109412 | J79: 2.115138157 | L79: =Test!B389 -> 1801.7064 | M79: =Test!C389 -> 42.8151 | N79: =Test!D389 -> 46.7982 | O79: =Test!E389 -> 48.092 | P79: =Test!F389 -> 52856.12 | Q79: =Test!G389 -> 24.99 | R79: 14.68225556 | S79: 6.941511364 | T79: 1.516282828 | V79: =bdrate($D79:$D82,E79:E82,$L79:$L82,M79:M82) -> -0.3272267663 | W79: =bdrate($D79:$D82,F79:F82,$L79:$L82,N79:N82) -> -0.4070207832 | X79: =bdrate($D79:$D82,G79:G82,$L79:$L82,O79:O82) -> -0.3632387566 | Y79: =bdrateOld($D79:$D82,E79:E82,$L79:$L82,M79:M82) -> -0.3269930084 | Z79: =bdrateOld($D79:$D82,F79:F82,$L79:$L82,N79:N82) -> -0.403643097 | AA79: =bdrateOld($D79:$D82,G79:G82,$L79:$L82,O79:O82) -> -0.3618316355
A80: 720p | C80: 27 | D80: =Reference!B390 -> 866.3072 | E80: =Reference!C390 -> 40.2611 | F80: =Reference!D390 -> 44.4427 | G80: =Reference!E390 -> 45.6574 | H80: =Reference!F390 -> 6151.530966 | I80: =Reference!G390 -> 13.20019698 | J80: 1.708758602 | L80: =Test!B390 -> 644.2168 | M80: =Test!C390 -> 40.5445 | N80: =Test!D390 -> 45.1573 | O80: =Test!E390 -> 46.1916 | P80: =Test!F390 -> 33082.88 | Q80: =Test!G390 -> 18.41 | R80: 9.189688889 | S80: 5.377991297 | T80: 1.394676157
C81: 32 | D81: =Reference!B391 -> 426.6928 | E81: =Reference!C391 -> 37.6289 | F81: =Reference!D391 -> 42.6581 | G81: =Reference!E391 -> 43.8022 | H81: =Reference!F391 -> 5716.137298 | I81: =Reference!G391 -> 12.70116115 | J81: 1.587815916 | L81: =Test!B391 -> 316.3216 | M81: =Test!C391 -> 38.0107 | N81: =Test!D391 -> 43.2364 | O81: =Test!E391 -> 44.1446 | P81: =Test!F391 -> 21622.98 | Q81: =Test!G391 -> 16.67 | R81: 6.006383333 | S81: 3.782795772 | T81: 1.312478427
C82: 37 | D82: =Reference!B392 -> 226.2912 | E82: =Reference!C392 -> 34.7273 | F82: =Reference!D392 -> 41.0582 | G82: =Reference!E392 -> 42.1851 | H82: =Reference!F392 -> 5368.562652 | I82: =Reference!G392 -> 12.52800012 | J82: 1.491267403 | L82: =Test!B392 -> 168.352 | M82: =Test!C392 -> 35.2547 | N82: =Test!D392 -> 41.1184 | O82: =Test!E392 -> 42.2481 | P82: =Test!F392 -> 13874.1 | Q82: =Test!G392 -> 11.77 | R82: 3.853916667 | S82: 2.584323011 | T82: 0.9394955213
B83: Johnny | C83: 22 | D83: =Reference!B393 -> 1841.328 | E83: =Reference!C393 -> 42.9541 | F83: =Reference!D393 -> 48.1318 | G83: =Reference!E393 -> 48.9079 | H83: =Reference!F393 -> 7154.614786 | I83: =Reference!G393 -> 15.66983604 | J83: 1.987392996 | L83: =Test!B393 -> 1304.388 | M83: =Test!C393 -> 43.1282 | N83: =Test!D393 -> 48.429 | O83: =Test!E393 -> 48.968 | P83: =Test!F393 -> 45945.67 | Q83: =Test!G393 -> 20.13 | R83: 12.76268611 | S83: 6.42182303 | T83: 1.284633735 | V83: =bdrate($D83:$D86,E83:E86,$L83:$L86,M83:M86) -> -0.3909811728 | W83: =bdrate($D83:$D86,F83:F86,$L83:$L86,N83:N86) -> -0.4471499849 | X83: =bdrate($D83:$D86,G83:G86,$L83:$L86,O83:O86) -> -0.3645301162 | Y83: =bdrateOld($D83:$D86,E83:E86,$L83:$L86,M83:M86) -> -0.3881040681 | Z83: =bdrateOld($D83:$D86,F83:F86,$L83:$L86,N83:N86) -> -0.4387258316 | AA83: =bdrateOld($D83:$D86,G83:G86,$L83:$L86,O83:O86) -> -0.3626517403
C84: 27 | D84: =Reference!B394 -> 443.692 | E84: =Reference!C394 -> 41.1307 | F84: =Reference!D394 -> 46.4119 | G84: =Reference!E394 -> 47.0478 | H84: =Reference!F394 -> 5796.193002 | I84: =Reference!G394 -> 13.00007391 | J84: 1.610053612 | L84: =Test!B394 -> 320.2672 | M84: =Test!C394 -> 41.4814 | N84: =Test!D394 -> 47.0561 | O84: =Test!E394 -> 47.4673 | P84: =Test!F394 -> 23531.96 | Q84: =Test!G394 -> 16.72 | R84: 6.536655556 | S84: 4.059899315 | T84: 1.286146534
C85: 32 | D85: =Reference!B395 -> 187.4128 | E85: =Reference!C395 -> 38.9593 | F85: =Reference!D395 -> 44.7204 | G85: =Reference!E395 -> 45.402 | H85: =Reference!F395 -> 5293.26955 | I85: =Reference!G395 -> 12.27547979 | J85: 1.470352653 | L85: =Test!B395 -> 141.0128 | M85: =Test!C395 -> 39.5435 | N85: =Test!D395 -> 45.3477 | O85: =Test!E395 -> 45.5877 | P85: =Test!F395 -> 13377.51 | Q85: =Test!G395 -> 12.47 | R85: 3.715975 | S85: 2.527267859 | T85: 1.015846241
C86: 37 | D86: =Reference!B396 -> 99.1216 | E86: =Reference!C396 -> 36.4853 | F86: =Reference!D396 -> 42.961 | G86: =Reference!E396 -> 43.3357 | H86: =Reference!F396 -> 5157.535007 | I86: =Reference!G396 -> 12.24552202 | J86: 1.432648613 | L86: =Test!B396 -> 76.244 | M86: =Test!C396 -> 37.2846 | N86: =Test!D396 -> 43.1092 | O86: =Test!E396 -> 43.7931 | P86: =Test!F396 -> 9095.03 | Q86: =Test!G396 -> 12.96 | R86: 2.526397222 | S86: 1.763445132 | T86: 1.058346061
B87: KristenAndSara | C87: 22 | D87: =Reference!B397 -> 2119.3384 | E87: =Reference!C397 -> 43.3138 | F87: =Reference!D397 -> 47.3321 | G87: =Reference!E397 -> 48.3134 | H87: =Reference!F397 -> 7657.453311 | I87: =Reference!G397 -> 16.68216014 | J87: 2.127070364 | L87: =Test!B397 -> 1646.1528 | M87: =Test!C397 -> 43.5055 | N87: =Test!D397 -> 47.6075 | O87: =Test!E397 -> 48.5094 | P87: =Test!F397 -> 57000.5 | Q87: =Test!G397 -> 27.15 | R87: 15.83347222 | S87: 7.443793345 | T87: 1.627487074 | V87: =bdrate($D87:$D90,E87:E90,$L87:$L90,M87:M90) -> -0.3513017145 | W87: =bdrate($D87:$D90,F87:F90,$L87:$L90,N87:N90) -> -0.40821896 | X87: =bdrate($D87:$D90,G87:G90,$L87:$L90,O87:O90) -> -0.3729546701 | Y87: =bdrateOld($D87:$D90,E87:E90,$L87:$L90,M87:M90) -> -0.3506243952 | Z87: =bdrateOld($D87:$D90,F87:F90,$L87:$L90,N87:N90) -> -0.4061593089 | AA87: =bdrateOld($D87:$D90,G87:G90,$L87:$L90,O87:O90) -> -0.3724915883
C88: 27 | D88: =Reference!B398 -> 705.4768 | E88: =Reference!C398 -> 41.1542 | F88: =Reference!D398 -> 45.3507 | G88: =Reference!E398 -> 46.2443 | H88: =Reference!F398 -> 6253.688191 | I88: =Reference!G398 -> 14.1690979 | J88: 1.737135609 | L88: =Test!B398 -> 538.3512 | M88: =Test!C398 -> 41.5118 | N88: =Test!D398 -> 45.9797 | O88: =Test!E398 -> 46.7954 | P88: =Test!F398 -> 32707.28 | Q88: =Test!G398 -> 19.44 | R88: 9.085355556 | S88: 5.230078476 | T88: 1.371999836
C89: 32 | D89: =Reference!B399 -> 321.356 | E89: =Reference!C399 -> 38.7222 | F89: =Reference!D399 -> 43.5403 | G89: =Reference!E399 -> 44.5541 | H89: =Reference!F399 -> 5708.391807 | I89: =Reference!G399 -> 12.96521688 | J89: 1.585664391 | L89: =Test!B399 -> 238.8816 | M89: =Test!C399 -> 39.2483 | N89: =Test!D399 -> 44.1654 | O89: =Test!E399 -> 44.9156 | P89: =Test!F399 -> 20319.21 | Q89: =Test!G399 -> 17.61 | R89: 5.644225 | S89: 3.559533173 | T89: 1.358249551
C90: 37 | D90: =Reference!B400 -> 166.0208 | E90: =Reference!C400 -> 36.0078 | F90: =Reference!D400 -> 41.8565 | G90: =Reference!E400 -> 42.7929 | H90: =Reference!F400 -> 5430.736542 | I90: =Reference!G400 -> 12.40849805 | J90: 1.508537928 | L90: =Test!B400 -> 123.7568 | M90: =Test!C400 -> 36.7344 | N90: =Test!D400 -> 41.974 | O90: =Test!E400 -> 42.9696 | P90: =Test!F400 -> 13451.9 | Q90: =Test!G400 -> 15.63 | R90: 3.736638889 | S90: 2.476993663 | T90: 1.25962062
A91: ClassF | B91: BasketballDrillText | C91: 22 | D91: =Reference!B401 -> 4122.7408 | E91: =Reference!C401 -> 40.3665 | F91: =Reference!D401 -> 42.5883 | G91: =Reference!E401 -> 43.1291 | H91: =Reference!F401 -> 5183.117208 | I91: =Reference!G401 -> 11.55478001 | J91: =H91/3600 -> 1.43975478 | L91: =Test!B401 -> 3101.8968 | M91: =Test!C401 -> 40.8104 | N91: =Test!D401 -> 42.9267 | O91: =Test!E401 -> 43.6753 | P91: =Test!F401 -> 88542.71 | Q91: =Test!G401 -> 20.04 | R91: =P91/3600 -> 24.59519722 | S91: =P91/H91 -> 17.08290715 | T91: =Q91/I91 -> 1.73434717 | V91: =bdrate($D91:$D94,E91:E94,$L91:$L94,M91:M94) -> -0.3867644471 | W91: =bdrate($D91:$D94,F91:F94,$L91:$L94,N91:N94) -> -0.4109056977 | X91: =bdrate($D91:$D94,G91:G94,$L91:$L94,O91:O94) -> -0.4109103193 | Y91: =bdrateOld($D91:$D94,E91:E94,$L91:$L94,M91:M94) -> -0.3869714368 | Z91: =bdrateOld($D91:$D94,F91:F94,$L91:$L94,N91:N94) -> -0.411362731 | AA91: =bdrateOld($D91:$D94,G91:G94,$L91:$L94,O91:O94) -> -0.4118175834
C92: 27 | D92: =Reference!B402 -> 1856.1184 | E92: =Reference!C402 -> 36.884 | F92: =Reference!D402 -> 39.6107 | G92: =Reference!E402 -> 39.897 | H92: =Reference!F402 -> 3899.101795 | I92: =Reference!G402 -> 8.832789898 | J92: 1.083083832 | L92: =Test!B402 -> 1331.1336 | M92: =Test!C402 -> 37.4528 | N92: =Test!D402 -> 40.2804 | O92: =Test!E402 -> 40.6845 | P92: =Test!F402 -> 55371.07 | Q92: =Test!G402 -> 13.3 | R92: 15.38085278 | S92: 14.20098087 | T92: 1.505753013
C93: 32 | D93: =Reference!B403 -> 913.9536 | E93: =Reference!C403 -> 33.8863 | F93: =Reference!D403 -> 37.4013 | G93: =Reference!E403 -> 37.5829 | H93: =Reference!F403 -> 3175.429243 | I93: =Reference!G403 -> 6.989536047 | J93: 0.8820636786 | L93: =Test!B403 -> 632.5568 | M93: =Test!C403 -> 34.5289 | N93: =Test!D403 -> 38.1192 | O93: =Test!E403 -> 38.2653 | P93: =Test!F403 -> 35012.77 | Q93: =Test!G403 -> 10.31 | R93: 9.725769444 | S93: 11.02615342 | T93: 1.47506214
C94: 37 | D94: =Reference!B404 -> 479.1808 | E94: =Reference!C404 -> 31.1837 | F94: =Reference!D404 -> 35.516 | G94: =Reference!E404 -> 35.5731 | H94: =Reference!F404 -> 2754.490205 | I94: =Reference!G404 -> 6.059313059 | J94: 0.7651361681 | L94: =Test!B404 -> 322.124 | M94: =Test!C404 -> 31.9482 | N94: =Test!D404 -> 35.6768 | O94: =Test!E404 -> 35.6328 | P94: =Test!F404 -> 22634.56 | Q94: =Test!G404 -> 8.94 | R94: 6.287377778 | S94: 8.217331816 | T94: 1.475414773
B95: ArenaOfValor | C95: 22 | D95: =Reference!B405 -> 15493.408 | E95: =Reference!C405 -> 42.2702 | F95: =Reference!D405 -> 43.8691 | G95: =Reference!E405 -> 44.5375 | H95: =Reference!F405 -> 23906.76993 | I95: =Reference!G405 -> 56.4036181 | J95: 6.640769426 | L95: =Test!B405 -> 13259.7216 | M95: =Test!C405 -> 42.7359 | N95: =Test!D405 -> 43.8375 | O95: =Test!E405 -> 44.4054 | P95: =Test!F405 -> 335425 | Q95: =Test!G405 -> 109.65 | R95: 93.17361111 | S95: 14.03054452 | T95: 1.944024226 | V95: =bdrate($D95:$D98,E95:E98,$L95:$L98,M95:M98) -> -0.3102053137 | W95: =bdrate($D95:$D98,F95:F98,$L95:$L98,N95:N98) -> -0.2189209607 | X95: =bdrate($D95:$D98,G95:G98,$L95:$L98,O95:O98) -> -0.1841468671 | Y95: =bdrateOld($D95:$D98,E95:E98,$L95:$L98,M95:M98) -> -0.3102422058 | Z95: =bdrateOld($D95:$D98,F95:F98,$L95:$L98,N95:N98) -> -0.2187033081 | AA95: =bdrateOld($D95:$D98,G95:G98,$L95:$L98,O95:O98) -> -0.1842987723
C96: 27 | D96: =Reference!B406 -> 6491.9336 | E96: =Reference!C406 -> 38.729 | F96: =Reference!D406 -> 40.9467 | G96: =Reference!E406 -> 41.3787 | H96: =Reference!F406 -> 18685.35406 | I96: =Reference!G406 -> 43.31493187 | J96: 5.190376127 | L96: =Test!B406 -> 5087.9536 | M96: =Test!C406 -> 39.1347 | N96: =Test!D406 -> 41.013 | O96: =Test!E406 -> 41.3171 | P96: =Test!F406 -> 198595.11 | Q96: =Test!G406 -> 73.82 | R96: 55.16530833 | S96: 10.62838357 | T96: 1.704262175
C97: 32 | D97: =Reference!B407 -> 3017.6056 | E97: =Reference!C407 -> 35.705 | F97: =Reference!D407 -> 38.7997 | G97: =Reference!E407 -> 39.0991 | H97: =Reference!F407 -> 16051.17866 | I97: =Reference!G407 -> 37.03550506 | J97: 4.45866074 | L97: =Test!B407 -> 2202.9072 | M97: =Test!C407 -> 36.0698 | N97: =Test!D407 -> 38.7089 | O97: =Test!E407 -> 38.842 | P97: =Test!F407 -> 129366.58 | Q97: =Test!G407 -> 58.5 | R97: 35.93516111 | S97: 8.059631178 | T97: 1.579565336
C98: 37 | D98: =Reference!B408 -> 1500.3496 | E98: =Reference!C408 -> 32.9554 | F98: =Reference!D408 -> 37.0274 | G98: =Reference!E408 -> 37.194 | H98: =Reference!F408 -> 14699.32263 | I98: =Reference!G408 -> 34.24765015 | J98: 4.083145175 | L98: =Test!B408 -> 1049.044 | M98: =Test!C408 -> 33.3665 | N98: =Test!D408 -> 36.6369 | O98: =Test!E408 -> 36.648 | P98: =Test!F408 -> 82526.69 | Q98: =Test!G408 -> 49.37 | R98: 22.92408056 | S98: 5.614319249 | T98: 1.441558758
B99: SlideEditing | C99: 22 | D99: =Reference!B409 -> 322.812 | E99: =Reference!C409 -> 47.0573 | F99: =Reference!D409 -> 45.609 | G99: =Reference!E409 -> 45.5398 | H99: =Reference!F409 -> 2626.550653 | I99: =Reference!G409 -> 5.766350031 | J99: 0.7295974037 | L99: =Test!B409 -> 165.4312 | M99: =Test!C409 -> 48.0166 | N99: =Test!D409 -> 46.4849 | O99: =Test!E409 -> 46.7487 | P99: =Test!F409 -> 8016.96 | Q99: =Test!G409 -> 6.08 | R99: 2.226933333 | S99: 3.052276944 | T99: 1.054393155 | V99: =bdrate($D99:$D102,E99:E102,$L99:$L102,M99:M102) -> -0.5279469196 | W99: =bdrate($D99:$D102,F99:F102,$L99:$L102,N99:N102) -> -0.5932416925 | X99: =bdrate($D99:$D102,G99:G102,$L99:$L102,O99:O102) -> -0.6053726543 | Y99: =bdrateOld($D99:$D102,E99:E102,$L99:$L102,M99:M102) -> -0.5276821809 | Z99: =bdrateOld($D99:$D102,F99:F102,$L99:$L102,N99:N102) -> -0.5903512319 | AA99: =bdrateOld($D99:$D102,G99:G102,$L99:$L102,O99:O102) -> -0.6061206794
C100: 27 | D100: =Reference!B410 -> 237.5168 | E100: =Reference!C410 -> 42.6957 | F100: =Reference!D410 -> 41.3679 | G100: =Reference!E410 -> 41.3042 | H100: =Reference!F410 -> 2563.233635 | I100: =Reference!G410 -> 5.832761049 | J100: 0.712009343 | L100: =Test!B410 -> 121.152 | M100: =Test!C410 -> 43.9993 | N100: =Test!D410 -> 43.7437 | O100: =Test!E410 -> 43.9799 | P100: =Test!F410 -> 7077.23 | Q100: =Test!G410 -> 5.94 | R100: 1.965897222 | S100: 2.761055373 | T100: 1.018385624
C101: 32 | D101: =Reference!B411 -> 177.3728 | E101: =Reference!C411 -> 37.9904 | F101: =Reference!D411 -> 38.9044 | G101: =Reference!E411 -> 38.8679 | H101: =Reference!F411 -> 2571.604153 | I101: =Reference!G411 -> 5.94193387 | J101: 0.714334487 | L101: =Test!B411 -> 92.4128 | M101: =Test!C411 -> 39.6238 | N101: =Test!D411 -> 41.7871 | O101: =Test!E411 -> 41.8649 | P101: =Test!F411 -> 6290.32 | Q101: =Test!G411 -> 5.58 | R101: 1.747311111 | S101: 2.446068534 | T101: 0.9390882029
C102: 37 | D102: =Reference!B412 -> 129.1128 | E102: =Reference!C412 -> 33.0848 | F102: =Reference!D412 -> 37.5335 | G102: =Reference!E412 -> 37.084 | H102: =Reference!F412 -> 2524.469828 | I102: =Reference!G412 -> 5.444272995 | J102: 0.7012416189 | L102: =Test!B412 -> 70.0528 | M102: =Test!C412 -> 34.7692 | N102: =Test!D412 -> 37.8874 | O102: =Test!E412 -> 38.2271 | P102: =Test!F412 -> 5133.32 | Q102: =Test!G412 -> 4.86 | R102: 1.425922222 | S102: 2.033424976 | T102: 0.8926811724
B103: SlideShow | C103: 22 | D103: =Reference!B413 -> 682.3155 | E103: =Reference!C413 -> 48.8789 | F103: =Reference!D413 -> 51.5401 | G103: =Reference!E413 -> 52.5909 | H103: =Reference!F413 -> 5597.460336 | I103: =Reference!G413 -> 11.62753201 | J103: 1.554850093 | L103: =Test!B413 -> 483.7101 | M103: =Test!C413 -> 49.6489 | N103: =Test!D413 -> 52.2686 | O103: =Test!E413 -> 53.7305 | P103: =Test!F413 -> 34385.97 | Q103: =Test!G413 -> 14.31 | R103: 9.551658333 | S103: 6.143137769 | T103: 1.230699687 | V103: =bdrate($D103:$D106,E103:E106,$L103:$L106,M103:M106) -> -0.4643270093 | W103: =bdrate($D103:$D106,F103:F106,$L103:$L106,N103:N106) -> -0.4704680115 | X103: =bdrate($D103:$D106,G103:G106,$L103:$L106,O103:O106) -> -0.5203609491 | Y103: =bdrateOld($D103:$D106,E103:E106,$L103:$L106,M103:M106) -> -0.464276128 | Z103: =bdrateOld($D103:$D106,F103:F106,$L103:$L106,N103:N106) -> -0.4689867477 | AA103: =bdrateOld($D103:$D106,G103:G106,$L103:$L106,O103:O106) -> -0.5198538924
C104: 27 | D104: =Reference!B414 -> 395.1408 | E104: =Reference!C414 -> 44.8324 | F104: =Reference!D414 -> 48.0823 | G104: =Reference!E414 -> 49.3152 | H104: =Reference!F414 -> 5288.08837 | I104: =Reference!G414 -> 11.2506218 | J104: 1.468913436 | L104: =Test!B414 -> 246.9792 | M104: =Test!C414 -> 45.5966 | N104: =Test!D414 -> 48.9599 | O104: =Test!E414 -> 50.5382 | P104: =Test!F414 -> 25833.79 | Q104: =Test!G414 -> 12.52 | R104: 7.176052778 | S104: 4.885279555 | T104: 1.112827382
C105: 32 | D105: =Reference!B415 -> 239.4778 | E105: =Reference!C415 -> 40.968 | F105: =Reference!D415 -> 45.4871 | G105: =Reference!E415 -> 46.9062 | H105: =Reference!F415 -> 5084.941826 | I105: =Reference!G415 -> 11.11125612 | J105: 1.412483841 | L105: =Test!B415 -> 135.6205 | M105: =Test!C415 -> 41.8555 | N105: =Test!D415 -> 46.1375 | O105: =Test!E415 -> 48.0894 | P105: =Test!F415 -> 19364.43 | Q105: =Test!G415 -> 12.28 | R105: 5.379008333 | S105: 3.808191059 | T105: 1.105185576
C106: 37 | D106: =Reference!B416 -> 150.1616 | E106: =Reference!C416 -> 36.9813 | F106: =Reference!D416 -> 43.609 | G106: =Reference!E416 -> 45.0515 | H106: =Reference!F416 -> 4821.637878 | I106: =Reference!G416 -> 10.66358519 | J106: 1.339343855 | L106: =Test!B416 -> 83.199 | M106: =Test!C416 -> 38.366 | N106: =Test!D416 -> 43.6755 | O106: =Test!E416 -> 45.3927 | P106: =Test!F416 -> 13061.59 | Q106: =Test!G416 -> 10.35 | R106: 3.628219444 | S106: 2.708952918 | T106: 0.9705928934
B107: Class A1
B108: Class A2
B109: Class B | I109: =GEOMEAN(I27:I46) -> 44.50465918 | J109: =GEOMEAN(J27:J46) -> 5.354723018 | Q109: =GEOMEAN(Q27:Q46) -> 72.99683575 | R109: =GEOMEAN(R27:R46) -> 40.89435689 | S109: =GEOMEAN(S27:S46) -> 7.637062972 | T109: =GEOMEAN(T27:T46) -> 1.640206601 | V109: =AVERAGE(V27:V46) -> -0.3505788736 | W109: -0.3884845001 | X109: -0.3653935893 | Y109: -0.3507585325 | Z109: -0.384490238 | AA109: -0.362478017
B110: Class C | I110: =GEOMEAN(I47:I62) -> 8.182257588 | J110: =GEOMEAN(J47:J62) -> 0.9947348984 | Q110: =GEOMEAN(Q47:Q62) -> 13.53885304 | R110: =GEOMEAN(R47:R62) -> 9.026481845 | S110: =GEOMEAN(S47:S62) -> 9.074258739 | T110: =GEOMEAN(T47:T62) -> 1.654659842 | V110: =AVERAGE(V47:V62) -> -0.3067473244 | W110: -0.2134718372 | X110: -0.2126132319 | Y110: -0.3067961334 | Z110: -0.2114677122 | AA110: -0.2105258171
B111: Class D | I111: =GEOMEAN(I63:I78) -> 2.10351875 | J111: =GEOMEAN(J63:J78) -> 0.2515078759 | Q111: =GEOMEAN(Q63:Q78) -> 3.928807104 | R111: =GEOMEAN(R63:R78) -> 2.376942767 | S111: =GEOMEAN(S63:S78) -> 9.450768723 | T111: =GEOMEAN(T63:T78) -> 1.867730965 | V111: =AVERAGE(V63:V78) -> -0.2739088592 | W111: -0.1519578747 | X111: -0.1407328635 | Y111: -0.2739498216 | Z111: -0.1487219876 | AA111: -0.1390515146
B112: Class E | I112: =GEOMEAN(I79:I90) -> 13.60768552 | J112: =GEOMEAN(J79:J90) -> 1.681203525 | Q112: =GEOMEAN(Q79:Q90) -> 17.28909802 | R112: =GEOMEAN(R79:R90) -> 6.645694659 | S112: =GEOMEAN(S79:S90) -> 3.952938809 | T112: =GEOMEAN(T79:T90) -> 1.27053921 | V112: =AVERAGE(V79:V88) -> -0.3565032179 | W112: -0.420796576 | X112: -0.3669078476 | Y112: -0.3552404906 | Z112: -0.4161760792 | AA112: -0.3656583214
B113: Class F | I113: =GEOMEAN(I91:I106) -> 12.15118536 | J113: =GEOMEAN(J91:J106) -> 1.511537829 | Q113: =GEOMEAN(Q91:Q106) -> 15.63933019 | R113: =GEOMEAN(R91:R106) -> 8.855091714 | S113: =GEOMEAN(S91:S106) -> 5.858332846 | T113: =GEOMEAN(T91:T106) -> 1.287062103 | V113: =AVERAGE(V91:V106) -> -0.4223109224 | W113: -0.4233840906 | X113: -0.4301976974 | Y113: -0.4222929879 | Z113: -0.4223510047 | AA113: -0.4305227319
B114: All | I114: =GEOMEAN(I3:I62,I79:I90) -> 18.81796826 | J114: =GEOMEAN(J3:J62,J79:J90) -> 2.287079595 | Q114: =GEOMEAN(Q3:Q62,Q79:Q90) -> 29.04114421 | R114: =GEOMEAN(R3:R62,R79:R90) -> 15.69161617 | S114: =GEOMEAN(S3:S62,S79:S90) -> 6.860983852 | T114: =GEOMEAN(T3:T62,T79:T90) -> 1.543266723 | V114: =AVERAGE(V3:V62,V79:V90) -> -0.3374494433 | W114: -0.3382249648 | X114: -0.3148453681 | Y114: -0.337224889 | Z114: -0.334737523 | AA114: -0.3126223598
B115: Time geomean | I115: =GEOMEAN(I3:I106) -> 11.12388898 | J115: =GEOMEAN(J3:J106) -> 1.353826122 | Q115: =GEOMEAN(Q3:Q106) -> 17.19903202 | R115: =GEOMEAN(R3:R106) -> 9.594955469
B116: Time ratio | Q116: =Q115/I115 -> 1.546134815 | R116: =R115/J115 -> 7.087287882
B117: Time sum (hours)

Sheet Reference
A1: Tango2.Q22.jvet10.ai | B1: 18710.0059 | C1: 41.4765 | D1: 49.363 | E1: 47.8633 | F1: 2148.696851 | G1: 20.85611987
A2: Tango2.Q27.jvet10.ai | B2: 6616.4222 | C2: 40.1431 | D2: 47.9807 | E2: 46.0253 | F2: 1710.963231 | G2: 15.87681293
A3: Tango2.Q32.jvet10.ai | B3: 3745.213 | C3: 39.2704 | D3: 46.6237 | E3: 44.3916 | F3: 1555.965276 | G3: 14.61580491
A4: Tango2.Q37.jvet10.ai | B4: 2232.1849 | C4: 38.0387 | D4: 45.4916 | E4: 43.0786 | F4: 1505.345928 | G4: 13.45317817
A5: FoodMarket4.Q22.jvet10.ai | B5: 17427.9947 | C5: 44.976 | D5: 49.4667 | E5: 49.94 | F5: 2016.499898 | G5: 19.55111003
A6: FoodMarket4.Q27.jvet10.ai | B6: 10094.2595 | C6: 43.4428 | D6: 47.1569 | E6: 47.5067 | F6: 1782.947348 | G6: 17.31944203
A7: FoodMarket4.Q32.jvet10.ai | B7: 6036.7563 | C7: 41.5821 | D7: 45.2486 | E7: 45.5007 | F7: 1664.506258 | G7: 15.81651306
A8: FoodMarket4.Q37.jvet10.ai | B8: 3585.9237 | C8: 39.3283 | D8: 43.8282 | E8: 43.98 | F8: 1594.636302 | G8: 14.80168796
A9: CampfireParty2.Q22.jvet10.ai | B9: 25061.0432 | C9: 43.0566 | D9: 44.362 | E9: 43.7341 | F9: 2457.732808 | G9: 29.32709193
A10: CampfireParty2.Q27.jvet10.ai | B10: 10108.2158 | C10: 39.2102 | D10: 40.7443 | E10: 41.4274 | F10: 1969.084016 | G10: 21.07364082
A11: CampfireParty2.Q32.jvet10.ai | B11: 4078.7171 | C11: 37.1183 | D11: 38.3217 | E11: 39.8269 | F11: 1675.634733 | G11: 16.00145316
A12: CampfireParty2.Q37.jvet10.ai | B12: 2243.6945 | C12: 35.7368 | D12: 36.6308 | E12: 38.625 | F12: 1562.954134 | G12: 13.99991608
A13: CatRobot1.Q22.jvet10.ai | B13: 34973.8816 | C13: 41.8721 | D13: 42.6227 | E13: 44.1137 | F13: 2461.424354 | G13: 27.00120306
A14: CatRobot1.Q27.jvet10.ai | B14: 13541.3068 | C14: 39.7195 | D14: 41.2326 | E14: 42.1848 | F14: 1925.690466 | G14: 20.24946499
A15: CatRobot1.Q32.jvet10.ai | B15: 7816.6753 | C15: 38.2501 | D15: 40.219 | E15: 40.5633 | F15: 1726.709998 | G15: 18.05091906
A16: CatRobot1.Q37.jvet10.ai | B16: 4646.1742 | C16: 36.3014 | D16: 39.3709 | E16: 39.2868 | F16: 1597.373746 | G16: 15.4784801
A17: DaylightRoad2.Q22.jvet10.ai | B17: 53685.2747 | C17: 40.5409 | D17: 45.9387 | E17: 44.0766 | F17: 2898.546288 | G17: 34.07649207
A18: DaylightRoad2.Q27.jvet10.ai | B18: 13525.4526 | C18: 37.6398 | D18: 44.4075 | E18: 42.3 | F18: 2013.881436 | G18: 20.85392404
A19: DaylightRoad2.Q32.jvet10.ai | B19: 7305.2511 | C19: 36.5078 | D19: 43.0487 | E19: 40.853 | F19: 1699.041286 | G19: 17.64479899
A20: DaylightRoad2.Q37.jvet10.ai | B20: 4044.0947 | C20: 34.9687 | D20: 42.0464 | E20: 39.8005 | F20: 1592.34424 | G20: 15.11865807
A21: ParkRunning3.Q22.jvet10.ai | B21: 55258.5789 | C21: 45.677 | D21: 40.9389 | E21: 41.3518 | F21: 2544.203369 | G21: 28.75522995
A22: ParkRunning3.Q27.jvet10.ai | B22: 31498.7487 | C22: 41.8784 | D22: 37.1216 | E22: 37.992 | F22: 2176.476935 | G22: 24.33385086
A23: ParkRunning3.Q32.jvet10.ai | B23: 17518.9053 | C23: 38.2624 | D23: 34.5142 | E23: 35.6663 | F23: 1932.303741 | G23: 21.175596
A24: ParkRunning3.Q37.jvet10.ai | B24: 9609.8842 | C24: 34.9819 | D24: 32.7457 | E24: 34.1024 | F24: 1751.081882 | G24: 18.4336741
A25: MarketPlace.Q22.jvet10.ai | B25: 11076.1128 | C25: 42.4783 | D25: 45.092 | E25: 45.4908 | F25: 1236.764 | G25: 12.42292309
A26: MarketPlace.Q27.jvet10.ai | B26: 6044.1776 | C26: 39.8755 | D26: 42.7149 | E26: 43.4795 | F26: 1018.815445 | G26: 10.09806895
A27: MarketPlace.Q32.jvet10.ai | B27: 3370.5944 | C27: 37.3665 | D27: 41.028 | E27: 42.0207 | F27: 898.076982 | G27: 8.854164124
A28: MarketPlace.Q37.jvet10.ai | B28: 1798.2336 | C28: 34.8058 | D28: 39.8995 | E28: 40.9232 | F28: 816.9691501 | G28: 7.559376001
A29: RitualDance.Q22.jvet10.ai | B29: 6719.2816 | C29: 45.5523 | D29: 47.8979 | E29: 48.5555 | F29: 1042.330295 | G29: 11.41989398
A30: RitualDance.Q27.jvet10.ai | B30: 3881.4104 | C30: 42.6112 | D30: 45.3302 | E30: 45.837 | F30: 923.189759 | G30: 9.770816803
A31: RitualDance.Q32.jvet10.ai | B31: 2181.2912 | C31: 39.62 | D31: 43.3889 | E31: 43.7112 | F31: 844.9295149 | G31: 8.485357046
A32: RitualDance.Q37.jvet10.ai | B32: 1198.0624 | C32: 36.7055 | D32: 42.0333 | E32: 42.2315 | F32: 794.6956019 | G32: 7.357630014
A33: Cactus.Q22.jvet10.ai | B33: 13035.7413 | C33: 40.6015 | D33: 41.6962 | E33: 44.2212 | F33: 1198.959442 | G33: 14.0398891
A34: Cactus.Q27.jvet10.ai | B34: 6046.577 | C34: 37.9545 | D34: 39.4176 | E34: 42.0055 | F34: 931.8226371 | G34: 10.516927
A35: Cactus.Q32.jvet10.ai | B35: 3279.3952 | C35: 35.6879 | D35: 38.3086 | E35: 40.2486 | F35: 789.597173 | G35: 8.915456057
A36: Cactus.Q37.jvet10.ai | B36: 1776.3214 | C36: 33.2367 | D36: 37.4606 | E36: 38.9313 | F36: 719.191118 | G36: 7.485896111
A37: BasketballDrive.Q22.jvet10.ai | B37: 8734.531 | C37: 41.3092 | D37: 44.4726 | E37: 46.0916 | F37: 1074.53157 | G37: 11.97454095
A38: BasketballDrive.Q27.jvet10.ai | B38: 3598.3206 | C38: 38.7516 | D38: 42.9039 | E38: 43.8015 | F38: 856.1441579 | G38: 8.943593025
A39: BasketballDrive.Q32.jvet10.ai | B39: 1882.0929 | C39: 36.9702 | D39: 41.4783 | E39: 41.8321 | F39: 733.218163 | G39: 7.575781107
A40: BasketballDrive.Q37.jvet10.ai | B40: 1052.2556 | C40: 34.979 | D40: 40.3412 | E40: 40.3726 | F40: 684.396806 | G40: 6.611492157
A41: BQTerrace.Q22.jvet10.ai | B41: 22415.7632 | C41: 42.489 | D41: 42.7195 | E41: 44.5105 | F41: 1522.774064 | G41: 18.5552969
A42: BQTerrace.Q27.jvet10.ai | B42: 9865.6568 | C42: 37.1052 | D42: 40.7418 | E42: 42.9439 | F42: 1196.361232 | G42: 13.85374403
A43: BQTerrace.Q32.jvet10.ai | B43: 5021.5928 | C43: 34.4666 | D43: 39.2529 | E43: 41.6701 | F43: 997.3383489 | G43: 11.22804403
A44: BQTerrace.Q37.jvet10.ai | B44: 2708.3728 | C44: 31.9851 | D44: 38.2279 | E44: 40.7119 | F44: 889.3859091 | G44: 9.568960905
A45: BasketballDrill.Q22.jvet10.ai | B45: 2594.4079 | C45: 41.8148 | D45: 43.8498 | E45: 44.4807 | F45: 229.7645161 | G45: 3.063721895
A46: BasketballDrill.Q27.jvet10.ai | B46: 1412.573 | C46: 38.3802 | D46: 40.9761 | E46: 41.1966 | F46: 188.5300961 | G46: 2.397536993
A47: BasketballDrill.Q32.jvet10.ai | B47: 757.7421 | C47: 35.3838 | D47: 38.6699 | E47: 38.6472 | F47: 162.6821849 | G47: 1.907557011
A48: BasketballDrill.Q37.jvet10.ai | B48: 417.6413 | C48: 32.6952 | D48: 37.045 | E48: 36.8275 | F48: 143.5992789 | G48: 1.547326088
A49: BQMall.Q22.jvet10.ai | B49: 2904.2024 | C49: 41.9936 | D49: 44.0727 | E49: 45.4978 | F49: 261.69438 | G49: 3.261260033
A50: BQMall.Q27.jvet10.ai | B50: 1739.3824 | C50: 39.0523 | D50: 41.5948 | E50: 42.7404 | F50: 223.339057 | G50: 2.741384983
A51: BQMall.Q32.jvet10.ai | B51: 1026.2824 | C51: 35.9646 | D51: 39.6489 | E51: 40.6184 | F51: 195.6314571 | G51: 2.326992035
A52: BQMall.Q37.jvet10.ai | B52: 587.0008 | C52: 32.8517 | D52: 38.2162 | E52: 39.1112 | F52: 174.5462911 | G52: 1.942382097
A53: PartyScene.Q22.jvet10.ai | B53: 5477.8556 | C53: 41.1203 | D53: 42.5179 | E53: 43.3752 | F53: 284.4322 | G53: 4.033462048
A54: PartyScene.Q27.jvet10.ai | B54: 3401.1405 | C54: 36.8787 | D54: 39.2195 | E54: 39.992 | F54: 244.150589 | G54: 3.293648958
A55: PartyScene.Q32.jvet10.ai | B55: 2029.0405 | C55: 33.0525 | D55: 37.0043 | E55: 37.6591 | F55: 209.7805369 | G55: 2.767624855
A56: PartyScene.Q37.jvet10.ai | B56: 1101.1206 | C56: 29.3525 | D56: 35.4887 | E56: 36.1129 | F56: 176.0077651 | G56: 2.266077995
A57: RaceHorsesC.Q22.jvet10.ai | B57: 1872.9284 | C57: 42.3705 | D57: 43.5245 | E57: 44.3893 | F57: 138.134536 | G57: 1.678981066
A58: RaceHorsesC.Q27.jvet10.ai | B58: 1127.4347 | C58: 38.937 | D58: 40.1631 | E58: 41.5835 | F58: 117.874455 | G58: 1.401418924
A59: RaceHorsesC.Q32.jvet10.ai | B59: 641.2437 | C59: 35.4843 | D59: 37.7763 | E59: 39.5923 | F59: 102.9304659 | G59: 1.187896967
A60: RaceHorsesC.Q37.jvet10.ai | B60: 324.6205 | C60: 32.0849 | D60: 36.3405 | E60: 38.1321 | F60: 90.79967213 | G60: 1.012147903
A61: BasketballPass.Q22.jvet10.ai | B61: 665.1611 | C61: 43.0674 | D61: 45.135 | E61: 44.9307 | F61: 54.47311211 | G61: 0.6997208595
A62: BasketballPass.Q27.jvet10.ai | B62: 398.3056 | C62: 39.4295 | D62: 41.9607 | E62: 41.5025 | F62: 46.48037386 | G62: 0.6212790012
A63: BasketballPass.Q32.jvet10.ai | B63: 229.4563 | C63: 35.989 | D63: 39.5782 | E63: 38.9136 | F63: 40.57467198 | G63: 0.4802918434
A64: BasketballPass.Q37.jvet10.ai | B64: 129.5111 | C64: 32.7976 | D64: 37.9183 | E64: 37.0743 | F64: 35.39795899 | G64: 0.4042358398
A65: BQSquare.Q22.jvet10.ai | B65: 1627.4328 | C65: 41.2587 | D65: 43.2712 | E65: 44.2546 | F65: 80.68986607 | G65: 1.128499985
A66: BQSquare.Q27.jvet10.ai | B66: 1035.2344 | C66: 36.816 | D66: 40.596 | E66: 41.6031 | F66: 70.01550508 | G66: 0.9192688465
A67: BQSquare.Q32.jvet10.ai | B67: 638.828 | C67: 32.9853 | D67: 38.9626 | E67: 39.8035 | F67: 59.87547398 | G67: 0.7553589344
A68: BQSquare.Q37.jvet10.ai | B68: 380.4448 | C68: 29.4062 | D68: 37.8765 | E68: 38.5301 | F68: 51.95099306 | G68: 0.6453051567
A69: BlowingBubbles.Q22.jvet10.ai | B69: 1430.9921 | C69: 41.0744 | D69: 42.1705 | E69: 42.8818 | F69: 71.36356497 | G69: 1.062034845
A70: BlowingBubbles.Q27.jvet10.ai | B70: 883.8817 | C70: 36.7248 | D70: 38.9373 | E70: 39.4455 | F70: 61.30050921 | G70: 0.8651909828
A71: BlowingBubbles.Q32.jvet10.ai | B71: 504.4079 | C71: 32.7337 | D71: 36.6162 | E71: 37.0713 | F71: 51.26916099 | G71: 0.6903069019
A72: BlowingBubbles.Q37.jvet10.ai | B72: 261.4873 | C72: 29.1845 | D72: 35.0812 | E72: 35.5025 | F72: 42.28370404 | G72: 0.5404839516
A73: RaceHorses.Q22.jvet10.ai | B73: 558.6695 | C73: 42.5177 | D73: 43.0862 | E73: 43.976 | F73: 36.22734404 | G73: 0.4825229645
A74: RaceHorses.Q27.jvet10.ai | B74: 337.6161 | C74: 38.4241 | D74: 39.6056 | E74: 40.8865 | F74: 31.04626489 | G74: 0.4039280415
A75: RaceHorses.Q32.jvet10.ai | B75: 186.5968 | C75: 34.568 | D75: 37.3286 | E75: 38.5719 | F75: 26.31257415 | G75: 0.3393280506
A76: RaceHorses.Q37.jvet10.ai | B76: 95.1395 | C76: 31.2528 | D76: 35.7467 | E76: 36.8348 | F76: 22.81092811 | G76: 0.2718398571
A77: FourPeople.Q22.jvet10.ai | B77: 3741.1448 | C77: 43.9265 | D77: 46.9569 | E77: 48.0958 | F77: 501.6906381 | G77: 5.945843935
A78: FourPeople.Q27.jvet10.ai | B78: 2305.9288 | C78: 41.3019 | D78: 44.5156 | E78: 45.7443 | F78: 440.4654849 | G78: 5.176641941
A79: FourPeople.Q32.jvet10.ai | B79: 1421.884 | C79: 38.3694 | D79: 42.4812 | E79: 43.6871 | F79: 421.0317059 | G79: 4.850628138
A80: FourPeople.Q37.jvet10.ai | B80: 865.7904 | C80: 35.2301 | D80: 41.101 | E80: 42.2199 | F80: 379.249933 | G80: 4.216722965
A81: Johnny.Q22.jvet10.ai | B81: 2478.8264 | C81: 44.1642 | D81: 48.324 | E81: 48.9494 | F81: 453.3564351 | G81: 4.656085014
A82: Johnny.Q27.jvet10.ai | B82: 1393.1832 | C82: 41.9253 | D82: 46.2294 | E82: 46.8226 | F82: 406.455575 | G82: 4.428364038
A83: Johnny.Q32.jvet10.ai | B83: 800.1456 | C83: 39.5233 | D83: 44.3053 | E83: 44.889 | F83: 375.389075 | G83: 3.838984966
A84: Johnny.Q37.jvet10.ai | B84: 462.9608 | C84: 36.8847 | D84: 42.7935 | E84: 43.2656 | F84: 354.261091 | G84: 3.459497929
A85: KristenAndSara.Q22.jvet10.ai | B85: 2734.3248 | C85: 44.557 | D85: 47.7033 | E85: 48.5743 | F85: 461.5181341 | G85: 4.947165966
A86: KristenAndSara.Q27.jvet10.ai | B86: 1646.1352 | C86: 42.1891 | D86: 45.4659 | E86: 46.3702 | F86: 409.1596792 | G86: 4.302979946
A87: KristenAndSara.Q32.jvet10.ai | B87: 999.6328 | C87: 39.4905 | D87: 43.4724 | E87: 44.4199 | F87: 378.4517059 | G87: 3.862799168
A88: KristenAndSara.Q37.jvet10.ai | B88: 607.1352 | C88: 36.5515 | D88: 42.0195 | E88: 42.8996 | F88: 364.731976 | G88: 3.780313015
A89: BasketballDrillText.Q22.jvet10.ai | B89: 2834.7032 | C89: 42.0391 | D89: 43.8226 | E89: 44.4192 | F89: 234.704457 | G89: 3.113881111
A90: BasketballDrillText.Q27.jvet10.ai | B90: 1642.3881 | C90: 38.5349 | D90: 40.6809 | E90: 40.9497 | F90: 195.2530279 | G90: 2.483470917
A91: BasketballDrillText.Q32.jvet10.ai | B91: 948.0968 | C91: 35.3994 | D91: 38.1033 | E91: 38.1588 | F91: 167.843853 | G91: 2.013372183
A92: BasketballDrillText.Q37.jvet10.ai | B92: 555.4429 | C92: 32.4509 | D92: 36.1892 | E92: 36.1296 | F92: 150.83531 | G92: 1.737556934
A93: ArenaOfValor.Q22.jvet10.ai | B93: 13244.4896 | C93: 43.856 | D93: 44.8003 | E93: 45.4652 | F93: 1281.645245 | G93: 17.04893303
A94: ArenaOfValor.Q27.jvet10.ai | B94: 7731.9728 | C94: 40.2868 | D94: 41.6062 | E94: 42.1224 | F94: 1090.183772 | G94: 13.53236103
A95: ArenaOfValor.Q32.jvet10.ai | B95: 4435.3288 | C95: 36.9839 | D95: 39.1946 | E95: 39.5125 | F95: 953.006712 | G95: 11.19484401
A96: ArenaOfValor.Q37.jvet10.ai | B96: 2534.0504 | C96: 33.8923 | D96: 37.5103 | E96: 37.7224 | F96: 871.7657108 | G96: 9.30170989
A97: SlideEditing.Q22.jvet10.ai | B97: 4169.9045 | C97: 46.7216 | D97: 45.5795 | E97: 45.6495 | F97: 312.2895429 | G97: 3.737268925
A98: SlideEditing.Q27.jvet10.ai | B98: 3115.6058 | C98: 42.2695 | D98: 41.0539 | E98: 41.2843 | F98: 291.9084749 | G98: 3.523039103
A99: SlideEditing.Q32.jvet10.ai | B99: 2374.1605 | C99: 37.7052 | D99: 38.7833 | E99: 38.9126 | F99: 273.0242989 | G99: 3.145091057
A100: SlideEditing.Q37.jvet10.ai | B100: 1775.0779 | C100: 32.8508 | D100: 37.6667 | E100: 37.1956 | F100: 256.018327 | G100: 3.076187134
A101: SlideShow.Q22.jvet10.ai | B101: 658.9022 | C101: 50.6418 | D101: 52.879 | E101: 53.9371 | F101: 332.7323561 | G101: 3.131875992
A102: SlideShow.Q27.jvet10.ai | B102: 448.5822 | C102: 46.9043 | D102: 49.421 | E102: 50.4028 | F102: 320.1643112 | G102: 2.909459829
A103: SlideShow.Q32.jvet10.ai | B103: 308.2632 | C103: 43.173 | D103: 46.5289 | E103: 47.7536 | F103: 309.592309 | G103: 2.975445032
A104: SlideShow.Q37.jvet10.ai | B104: 207.4673 | C104: 39.0858 | D104: 44.5107 | E104: 45.6747 | F104: 300.322603 | G104: 2.744109869
A105: Tango2.Q22.jvet10.ra | B105: 29424.3069 | C105: 40.195 | D105: 48.8005 | E105: 46.9362 | F105: 62928.11004 | G105: 106.7750859
A106: Tango2.Q27.jvet10.ra | B106: 8876.0751 | C106: 39.438 | D106: 47.8027 | E106: 45.5129 | F106: 50384.02354 | G106: 86.45812988
A107: Tango2.Q32.jvet10.ra | B107: 4562.8098 | C107: 38.4252 | D107: 46.6951 | E107: 44.1029 | F107: 44750.65801 | G107: 76.33055496
A108: Tango2.Q37.jvet10.ra | B108: 2550.3543 | C108: 36.9007 | D108: 45.579 | E108: 42.7478 | F108: 40596.24888 | G108: 71.61694813
A109: FoodMarket4.Q22.jvet10.ra | B109: 20219.8288 | C109: 43.9236 | D109: 48.682 | E109: 49.1977 | F109: 58467.37825 | G109: 98.41066909
A110: FoodMarket4.Q27.jvet10.ra | B110: 9224.9952 | C110: 42.319 | D110: 46.8392 | E110: 47.1528 | F110: 50516.61994 | G110: 87.44853806
A111: FoodMarket4.Q32.jvet10.ra | B111: 4896.3632 | C111: 40.2587 | D111: 45.1311 | E111: 45.353 | F111: 45843.84881 | G111: 80.68866897
A112: FoodMarket4.Q37.jvet10.ra | B112: 2626.0496 | C112: 37.7743 | D112: 43.6585 | E112: 43.7625 | F112: 41666.83488 | G112: 74.67884994
A113: CampfireParty2.Q22.jvet10.ra | B113: 65892.8984 | C113: 39.2583 | D113: 41.3602 | E113: 42.0595 | F113: 72739.33498 | G113: 146.9484899
A114: CampfireParty2.Q27.jvet10.ra | B114: 20403.5416 | C114: 37.3291 | D114: 38.1407 | E114: 40.4364 | F114: 53525.95469 | G114: 101.8998868
A115: CampfireParty2.Q32.jvet10.ra | B115: 10439.3232 | C115: 36.1718 | D115: 36.3603 | E115: 39.1584 | F115: 45839.39137 | G115: 86.9430182
A116: CampfireParty2.Q37.jvet10.ra | B116: 5670.0344 | C116: 34.7133 | D116: 34.337 | E116: 37.7314 | F116: 41213.17456 | G116: 79.7354939
A117: CatRobot1.Q22.jvet10.ra | B117: 36962.9216 | C117: 40.1606 | D117: 41.699 | E117: 43.2899 | F117: 52323.56218 | G117: 106.97101
A118: CatRobot1.Q27.jvet10.ra | B118: 11093.5552 | C118: 39.114 | D118: 41.081 | E118: 42.0066 | F118: 41580.05319 | G118: 81.45979691
A119: CatRobot1.Q32.jvet10.ra | B119: 5607.0032 | C119: 37.7015 | D119: 40.2869 | E119: 40.5697 | F119: 37849.11217 | G119: 76.63498497
A120: CatRobot1.Q37.jvet10.ra | B120: 3039.2096 | C120: 35.8035 | D120: 39.44 | E120: 39.2214 | F120: 34775.94662 | G120: 70.41245794
A121: DaylightRoad2.Q22.jvet10.ra | B121: 58095.8208 | C121: 37.9336 | D121: 45.4898 | E121: 43.2083 | F121: 62307.15388 | G121: 121.8913591
A122: DaylightRoad2.Q27.jvet10.ra | B122: 12274.5776 | C122: 37.0348 | D122: 44.5562 | E122: 42.2315 | F122: 44175.79064 | G122: 85.28615284
A123: DaylightRoad2.Q32.jvet10.ra | B123: 5573.8176 | C123: 35.9912 | D123: 43.3702 | E123: 41.0449 | F123: 38815.64068 | G123: 75.90588593
A124: DaylightRoad2.Q37.jvet10.ra | B124: 2863.6144 | C124: 34.4687 | D124: 42.2337 | E124: 39.8862 | F124: 36001.14776 | G124: 73.54583406
A125: ParkRunning3.Q22.jvet10.ra | B125: 122153.6987 | C125: 42.3735 | D125: 37.5804 | E125: 38.6037 | F125: 78449.43606 | G125: 147.9940882
A126: ParkRunning3.Q27.jvet10.ra | B126: 50059.256 | C126: 38.5411 | D126: 34.6968 | E126: 36.0556 | F126: 61792.70795 | G126: 114.239105
A127: ParkRunning3.Q32.jvet10.ra | B127: 23647.2173 | C127: 35.3744 | D127: 32.9534 | E127: 34.4891 | F127: 52452.33021 | G127: 97.36664796
A128: ParkRunning3.Q37.jvet10.ra | B128: 10568.7293 | C128: 32.5312 | D128: 31.4933 | E128: 33.1873 | F128: 45254.32257 | G128: 85.77884603
A129: MarketPlace.Q22.jvet10.ra | B129: 15785.6056 | C129: 40.4933 | D129: 44.0006 | E129: 44.842 | F129: 29993.64183 | G129: 57.80042005
A130: MarketPlace.Q27.jvet10.ra | B130: 6313.5912 | C130: 38.3391 | D130: 42.4225 | E130: 43.4121 | F130: 23876.84755 | G130: 47.01109195
A131: MarketPlace.Q32.jvet10.ra | B131: 2902.7464 | C131: 36.0882 | D131: 41.0076 | E131: 42.0624 | F131: 21071.18087 | G131: 42.3186779
A132: MarketPlace.Q37.jvet10.ra | B132: 1313.0104 | C132: 33.7281 | D132: 39.8526 | E132: 40.8673 | F132: 19012.20311 | G132: 38.32833004
A133: RitualDance.Q22.jvet10.ra | B133: 10997.2272 | C133: 44.0257 | D133: 47.0756 | E133: 47.7347 | F133: 31479.69643 | G133: 56.50079799
A134: RitualDance.Q27.jvet10.ra | B134: 5474.28 | C134: 40.8195 | D134: 44.9002 | E134: 45.2948 | F134: 27300.15152 | G134: 48.85639811
A135: RitualDance.Q32.jvet10.ra | B135: 2909.788 | C135: 37.7403 | D135: 43.1869 | E135: 43.4321 | F135: 24556.02657 | G135: 46.09879088
A136: RitualDance.Q37.jvet10.ra | B136: 1520.444 | C136: 34.7901 | D136: 41.8009 | E136: 41.8707 | F136: 22185.83507 | G136: 42.31288099
A137: Cactus.Q22.jvet10.ra | B137: 16256.8688 | C137: 38.4272 | D137: 39.964 | E137: 43.8062 | F137: 23229.60211 | G137: 51.99355912
A138: Cactus.Q27.jvet10.ra | B138: 5215.008 | C138: 36.8581 | D138: 39.1724 | E138: 42.1672 | F138: 17544.49817 | G138: 37.1939621
A139: Cactus.Q32.jvet10.ra | B139: 2505.368 | C139: 35.052 | D139: 38.3588 | E139: 40.5439 | F139: 15469.96275 | G139: 33.10868382
A140: Cactus.Q37.jvet10.ra | B140: 1262.4392 | C140: 32.8214 | D140: 37.4922 | E140: 39.0883 | F140: 14224.57106 | G140: 30.736233
A141: BasketballDrive.Q22.jvet10.ra | B141: 16070.7952 | C141: 39.1649 | D141: 43.8489 | E141: 45.0717 | F141: 27546.405 | G141: 55.01922202
A142: BasketballDrive.Q27.jvet10.ra | B142: 5412.2448 | C142: 37.4212 | D142: 42.6268 | E142: 43.1339 | F142: 21749.99833 | G142: 42.7378099
A143: BasketballDrive.Q32.jvet10.ra | B143: 2599.0032 | C143: 35.605 | D143: 41.4177 | E143: 41.4473 | F143: 18943.99622 | G143: 36.87438679
A144: BasketballDrive.Q37.jvet10.ra | B144: 1326.212 | C144: 33.5142 | D144: 40.2319 | E144: 39.8816 | F144: 16979.41603 | G144: 33.79003286
A145: BQTerrace.Q22.jvet10.ra | B145: 34914.1504 | C145: 37.241 | D145: 42.2345 | E145: 44.5522 | F145: 33436.21402 | G145: 81.94612503
A146: BQTerrace.Q27.jvet10.ra | B146: 6257.9744 | C146: 35.2167 | D146: 41.0898 | E146: 43.5243 | F146: 18519.59337 | G146: 45.66154885
A147: BQTerrace.Q32.jvet10.ra | B147: 2002.2312 | C147: 33.8665 | D147: 39.7607 | E147: 42.2936 | F147: 15566.68359 | G147: 38.54484701
A148: BQTerrace.Q37.jvet10.ra | B148: 908.7296 | C148: 32.2003 | D148: 38.5988 | E148: 41.1684 | F148: 14777.7526 | G148: 36.75159812
A149: BasketballDrill.Q22.jvet10.ra | B149: 3278.8568 | C149: 40.8812 | D149: 43.3438 | E149: 43.9668 | F149: 5073.263949 | G149: 11.06441712
A150: BasketballDrill.Q27.jvet10.ra | B150: 1530.2992 | C150: 37.6335 | D150: 41.046 | E150: 41.2124 | F150: 4141.477649 | G150: 8.793692112
A151: BasketballDrill.Q32.jvet10.ra | B151: 779.316 | C151: 34.7016 | D151: 38.8737 | E151: 38.8063 | F151: 3586.312597 | G151: 7.666520834
A152: BasketballDrill.Q37.jvet10.ra | B152: 401.3336 | C152: 32.0509 | D152: 37.0076 | E152: 36.7077 | F152: 3152.643369 | G152: 6.517256975
A153: BQMall.Q22.jvet10.ra | B153: 3360.9488 | C153: 40.1875 | D153: 43.7093 | E153: 45.3267 | F153: 5385.23257 | G153: 11.658391
A154: BQMall.Q27.jvet10.ra | B154: 1524.788 | C154: 37.5953 | D154: 41.8557 | E154: 43.0471 | F154: 4437.951678 | G154: 10.03966498
A155: BQMall.Q32.jvet10.ra | B155: 772.7912 | C155: 34.8958 | D155: 39.9987 | E155: 40.9331 | F155: 3939.194926 | G155: 8.989485979
A156: BQMall.Q37.jvet10.ra | B156: 400.468 | C156: 32.1131 | D156: 38.4426 | E156: 39.2689 | F156: 3419.255048 | G156: 7.008495808
A157: PartyScene.Q22.jvet10.ra | B157: 6331.7048 | C157: 38.3113 | D157: 41.6697 | E157: 42.824 | F157: 5601.877799 | G157: 13.07557416
A158: PartyScene.Q27.jvet10.ra | B158: 2798.2912 | C158: 34.8023 | D158: 39.2786 | E158: 40.2961 | F158: 4201.12328 | G158: 10.20999193
A159: PartyScene.Q32.jvet10.ra | B159: 1354.672 | C159: 31.8122 | D159: 37.2394 | E159: 38.082 | F159: 3459.04127 | G159: 8.723056793
A160: PartyScene.Q37.jvet10.ra | B160: 638.4224 | C160: 28.9945 | D160: 35.628 | E160: 36.3606 | F160: 2965.519873 | G160: 7.547257185
A161: RaceHorsesC.Q22.jvet10.ra | B161: 4605.0576 | C161: 39.0435 | D161: 41.3707 | E161: 42.9087 | F161: 4236.878393 | G161: 9.468242168
A162: RaceHorsesC.Q27.jvet10.ra | B162: 1837.0728 | C162: 35.6523 | D162: 39.1651 | E162: 40.7745 | F162: 3231.043465 | G162: 6.756134987
A163: RaceHorsesC.Q32.jvet10.ra | B163: 879.46 | C163: 32.8983 | D163: 37.3743 | E163: 39.1232 | F163: 2753.528876 | G163: 5.582957029
A164: RaceHorsesC.Q37.jvet10.ra | B164: 425.0136 | C164: 30.2231 | D164: 35.8621 | E164: 37.6405 | F164: 2364.638232 | G164: 5.009891033
A165: BasketballPass.Q22.jvet10.ra | B165: 1443.1632 | C165: 40.8332 | D165: 43.9448 | E165: 43.0447 | F165: 1355.23075 | G165: 2.915728092
A166: BasketballPass.Q27.jvet10.ra | B166: 688.0536 | C166: 36.7914 | D166: 41.3495 | E166: 40.0288 | F166: 1088.353809 | G166: 2.286870003
A167: BasketballPass.Q32.jvet10.ra | B167: 348.9704 | C167: 33.5001 | D167: 39.2981 | E167: 37.8734 | F167: 935.175657 | G167: 1.905956984
A168: BasketballPass.Q37.jvet10.ra | B168: 176.9176 | C168: 30.578 | D168: 37.6693 | E168: 36.0514 | F168: 806.0404649 | G168: 1.628953934
A169: BQSquare.Q22.jvet10.ra | B169: 1526.1808 | C169: 38.0405 | D169: 43.6255 | E169: 44.8051 | F169: 1423.988439 | G169: 3.30409503
A170: BQSquare.Q27.jvet10.ra | B170: 548.0072 | C170: 34.578 | D170: 41.7097 | E170: 42.7569 | F170: 933.3014629 | G170: 2.254211903
A171: BQSquare.Q32.jvet10.ra | B171: 248.8296 | C171: 31.855 | D171: 39.733 | E171: 40.6866 | F171: 769.1091521 | G171: 1.864329815
A172: BQSquare.Q37.jvet10.ra | B172: 128.924 | C172: 29.345 | D172: 38.3174 | E172: 39.183 | F172: 696.6523108 | G172: 1.686398983
A173: BlowingBubbles.Q22.jvet10.ra | B173: 1510.0968 | C173: 38.1553 | D173: 41.4854 | E173: 42.5831 | F173: 1174.588331 | G173: 2.766410112
A174: BlowingBubbles.Q27.jvet10.ra | B174: 674.0848 | C174: 34.7929 | D174: 39.1066 | E174: 39.9933 | F174: 874.800797 | G174: 2.078423023
A175: BlowingBubbles.Q32.jvet10.ra | B175: 323.732 | C175: 31.8023 | D175: 36.9344 | E175: 37.6158 | F175: 730.179023 | G175: 1.699847937
A176: BlowingBubbles.Q37.jvet10.ra | B176: 151.0608 | C176: 28.952 | D176: 35.2283 | E176: 35.8073 | F176: 627.031846 | G176: 1.443748951
A177: RaceHorses.Q22.jvet10.ra | B177: 1147.656 | C177: 39.5235 | D177: 41.6211 | E177: 42.6967 | F177: 943.3732712 | G177: 2.135588884
A178: RaceHorses.Q27.jvet10.ra | B178: 545.1064 | C178: 35.6238 | D178: 38.9707 | E178: 40.121 | F178: 745.0916538 | G178: 1.622809887
A179: RaceHorses.Q32.jvet10.ra | B179: 272.1744 | C179: 32.3364 | D179: 36.9162 | E179: 38.1545 | F179: 617.8688941 | G179: 1.310950994
A180: RaceHorses.Q37.jvet10.ra | B180: 132.6816 | C180: 29.4256 | D180: 35.3011 | E180: 36.4743 | F180: 516.7684619 | G180: 1.117337942
A181: FourPeople.Q22.jvet10.ra
A182: FourPeople.Q27.jvet10.ra
A183: FourPeople.Q32.jvet10.ra
A184: FourPeople.Q37.jvet10.ra
A185: Johnny.Q22.jvet10.ra
A186: Johnny.Q27.jvet10.ra
A187: Johnny.Q32.jvet10.ra
A188: Johnny.Q37.jvet10.ra
A189: KristenAndSara.Q22.jvet10.ra
A190: KristenAndSara.Q27.jvet10.ra
A191: KristenAndSara.Q32.jvet10.ra
A192: KristenAndSara.Q37.jvet10.ra
A193: BasketballDrillText.Q22.jvet10.ra | B193: 3411.4912 | C193: 41.0201 | D193: 43.2867 | E193: 43.8877 | F193: 5007.412841 | G193: 11.19198513
A194: BasketballDrillText.Q27.jvet10.ra | B194: 1630.5952 | C194: 37.6904 | D194: 40.7089 | E194: 40.9161 | F194: 4027.94217 | G194: 9.017961025
A195: BasketballDrillText.Q32.jvet10.ra | B195: 849.7656 | C195: 34.6684 | D195: 38.2816 | E195: 38.3353 | F195: 3477.315985 | G195: 7.395647049
A196: BasketballDrillText.Q37.jvet10.ra | B196: 447.6824 | C196: 31.8846 | D196: 36.2001 | E196: 36.0814 | F196: 3122.839564 | G196: 6.692656994
A197: ArenaOfValor.Q22.jvet10.ra | B197: 13637.5736 | C197: 42.7857 | D197: 44.6897 | E197: 45.2825 | F197: 25480.98469 | G197: 55.26775503
A198: ArenaOfValor.Q27.jvet10.ra | B198: 5893.6488 | C198: 39.3408 | D198: 41.8893 | E198: 42.3096 | F198: 20948.60976 | G198: 44.98052502
A199: ArenaOfValor.Q32.jvet10.ra | B199: 2875.2448 | C199: 36.3838 | D199: 39.493 | E199: 39.7773 | F199: 18599.18505 | G199: 38.69966292
A200: ArenaOfValor.Q37.jvet10.ra | B200: 1444.9632 | C200: 33.6214 | D200: 37.5351 | E200: 37.7246 | F200: 16947.16972 | G200: 35.57628798
... 216 more rows

Sheet Test
A1: Tango2.Q22.jvet10.ai | B1: 20001.7557 | C1: 41.9143 | D1: 49.5246 | E1: 48.2332 | F1: 105448.37 | G1: 39.82
A2: Tango2.Q27.jvet10.ai | B2: 4689.5011 | C2: 40.0899 | D2: 48.4751 | E2: 46.433 | F2: 32230.1 | G2: 28.1
A3: Tango2.Q32.jvet10.ai | B3: 2645.4016 | C3: 39.254 | D3: 47.1768 | E3: 44.59 | F3: 14815.15 | G3: 23.76
A4: Tango2.Q37.jvet10.ai | B4: 1570.4173 | C4: 38.0307 | D4: 45.9612 | E4: 43.0688 | F4: 6060.35 | G4: 18.43
A5: FoodMarket4.Q22.jvet10.ai | B5: 14387.5626 | C5: 45.1873 | D5: 49.5109 | E5: 50.2716 | F5: 55505.73 | G5: 36.94
A6: FoodMarket4.Q27.jvet10.ai | B6: 7819.8363 | C6: 43.591 | D6: 47.5178 | E6: 48.0756 | F6: 30376.5 | G6: 34.46
A7: FoodMarket4.Q32.jvet10.ai | B7: 4615.4968 | C7: 41.8567 | D7: 45.5098 | E7: 45.772 | F7: 18627.15 | G7: 27.77
A8: FoodMarket4.Q37.jvet10.ai | B8: 2719.0563 | C8: 39.7117 | D8: 43.7253 | E8: 43.9937 | F8: 9753.86 | G8: 23.11
A9: CampfireParty2.Q22.jvet10.ai | B9: 21791.8847 | C9: 43.8756 | D9: 45.0986 | E9: 43.6215 | F9: 109409.92 | G9: 53.09
A10: CampfireParty2.Q27.jvet10.ai | B10: 9466.3153 | C10: 40.1188 | D10: 41.3606 | E10: 41.947 | F10: 59654 | G10: 41.16
A11: CampfireParty2.Q32.jvet10.ai | B11: 3014.5413 | C11: 37.4677 | D11: 38.3039 | E11: 40.4941 | F11: 40720.26 | G11: 29.26
A12: CampfireParty2.Q37.jvet10.ai | B12: 1561.4021 | C12: 36.1402 | D12: 36.4274 | E12: 38.9632 | F12: 19030.66 | G12: 23.86
A13: CatRobot1.Q22.jvet10.ai | B13: 34949.2895 | C13: 42.7159 | D13: 42.3106 | E13: 44.0619 | F13: 101980.68 | G13: 54.81
A14: CatRobot1.Q27.jvet10.ai | B14: 10044.8195 | C14: 39.7566 | D14: 41.4027 | E14: 42.5187 | F14: 56100.13 | G14: 38.36
A15: CatRobot1.Q32.jvet10.ai | B15: 5803.9784 | C15: 38.3933 | D15: 40.4784 | E15: 40.805 | F15: 32122.7 | G15: 32.14
A16: CatRobot1.Q37.jvet10.ai | B16: 3452.6968 | C16: 36.5113 | D16: 39.5573 | E16: 39.1878 | F16: 17165.51 | G16: 26.05
A17: DaylightRoad2.Q22.jvet10.ai | B17: 58534.0832 | C17: 41.7625 | D17: 46.0326 | E17: 43.9187 | F17: 145873.27 | G17: 65.34
A18: DaylightRoad2.Q27.jvet10.ai | B18: 10178.2516 | C18: 37.6425 | D18: 44.8174 | E18: 42.4837 | F18: 69092.1 | G18: 38.12
A19: DaylightRoad2.Q32.jvet10.ai | B19: 5491.9847 | C19: 36.6038 | D19: 43.4977 | E19: 41.1999 | F19: 36602.87 | G19: 31.45
A20: DaylightRoad2.Q37.jvet10.ai | B20: 3057.1311 | C20: 35.1246 | D20: 42.2347 | E20: 39.4539 | F20: 18026.89 | G20: 24.55
A21: ParkRunning3.Q22.jvet10.ai | B21: 47059.6632 | C21: 47.0861 | D21: 39.8571 | E21: 40.4297 | F21: 102150.78 | G21: 56.17
A22: ParkRunning3.Q27.jvet10.ai | B22: 26862.0408 | C22: 43.2313 | D22: 36.5391 | E22: 37.4683 | F22: 88296.06 | G22: 49.45
A23: ParkRunning3.Q32.jvet10.ai | B23: 14188.6789 | C23: 39.5362 | D23: 33.7231 | E23: 35.0861 | F23: 64457.73 | G23: 41.33
A24: ParkRunning3.Q37.jvet10.ai | B24: 7630.6816 | C24: 36.0654 | D24: 31.69 | E24: 33.1719 | F24: 39184.46 | G24: 33.25
A25: MarketPlace.Q22.jvet10.ai | B25: 10430.916 | C25: 43.0678 | D25: 45.0412 | E25: 45.641 | F25: 59052.96 | G25: 26.05
A26: MarketPlace.Q27.jvet10.ai | B26: 5461.2928 | C26: 40.3334 | D26: 43.1545 | E26: 44.0037 | F26: 36854.34 | G26: 21.04
A27: MarketPlace.Q32.jvet10.ai | B27: 2986.0632 | C27: 37.8884 | D27: 41.4804 | E27: 42.2317 | F27: 25257.16 | G27: 16.83
A28: MarketPlace.Q37.jvet10.ai | B28: 1575.3136 | C28: 35.3394 | D28: 39.9569 | E28: 40.9946 | F28: 14223.71 | G28: 14.32
A29: RitualDance.Q22.jvet10.ai | B29: 6119.2824 | C29: 46.3247 | D29: 48.4407 | E29: 49.4987 | F29: 39855.26 | G29: 23.58
A30: RitualDance.Q27.jvet10.ai | B30: 3573.0088 | C30: 43.5099 | D30: 46.4258 | E30: 47.0461 | F30: 26113.92 | G30: 18.94
A31: RitualDance.Q32.jvet10.ai | B31: 2005.588 | C31: 40.5542 | D31: 44.4591 | E31: 44.4957 | F31: 17739.78 | G31: 14.99
A32: RitualDance.Q37.jvet10.ai | B32: 1096.6568 | C32: 37.5973 | D32: 42.2379 | E32: 42.7895 | F32: 10067.82 | G32: 11.89
A33: Cactus.Q22.jvet10.ai | B33: 11979.4397 | C33: 41.1275 | D33: 40.9985 | E33: 44.3388 | F33: 57949.06 | G33: 28.39
A34: Cactus.Q27.jvet10.ai | B34: 5250.3484 | C34: 38.2724 | D34: 39.6164 | E34: 42.6288 | F34: 40344.13 | G34: 21.35
A35: Cactus.Q32.jvet10.ai | B35: 2807.8611 | C35: 36.1721 | D35: 38.5892 | E35: 40.7321 | F35: 27997.39 | G35: 14.97
A36: Cactus.Q37.jvet10.ai | B36: 1506.4444 | C36: 33.8461 | D36: 37.4014 | E36: 38.8768 | F36: 15437.3 | G36: 13.57
A37: BasketballDrive.Q22.jvet10.ai | B37: 8759.0825 | C37: 41.8462 | D37: 44.6237 | E37: 46.4693 | F37: 54678.46 | G37: 25.26
A38: BasketballDrive.Q27.jvet10.ai | B38: 3294.8389 | C38: 39.1753 | D38: 43.4588 | E38: 44.6172 | F38: 34996.29 | G38: 17.98
A39: BasketballDrive.Q32.jvet10.ai | B39: 1647.4206 | C39: 37.5254 | D39: 42.0646 | E39: 42.5101 | F39: 19540.82 | G39: 13.94
A40: BasketballDrive.Q37.jvet10.ai | B40: 914.4254 | C40: 35.7539 | D40: 40.7192 | E40: 40.7647 | F40: 9834.8 | G40: 11.36
A41: BQTerrace.Q22.jvet10.ai | B41: 21542.0536 | C41: 42.8922 | D41: 42.6915 | E41: 44.7941 | F41: 51659.67 | G41: 38.53
A42: BQTerrace.Q27.jvet10.ai | B42: 7924.244 | C42: 37.0358 | D42: 41.1801 | E42: 43.6796 | F42: 53180.81 | G42: 29.59
A43: BQTerrace.Q32.jvet10.ai | B43: 3976.848 | C43: 34.7126 | D43: 39.8294 | E43: 42.5288 | F43: 34574.19 | G43: 20.37
A44: BQTerrace.Q37.jvet10.ai | B44: 2099.988 | C44: 32.4406 | D44: 38.3491 | E44: 41.1965 | F44: 20986.07 | G44: 15.74
A45: BasketballDrill.Q22.jvet10.ai | B45: 2233.1071 | C45: 42.7562 | D45: 44.1132 | E45: 45.0737 | F45: 11135.98 | G45: 7.29
A46: BasketballDrill.Q27.jvet10.ai | B46: 1204.9452 | C46: 39.514 | D46: 41.8903 | E46: 42.6207 | F46: 8634.58 | G46: 5.29
A47: BasketballDrill.Q32.jvet10.ai | B47: 647.5913 | C47: 36.5905 | D47: 39.694 | E47: 40.1099 | F47: 6181.81 | G47: 3.44
A48: BasketballDrill.Q37.jvet10.ai | B48: 359.5119 | C48: 33.9415 | D48: 38.098 | E48: 38.1354 | F48: 3706.34 | G48: 2.67
A49: BQMall.Q22.jvet10.ai | B49: 2662.2264 | C49: 42.6059 | D49: 44.3095 | E49: 45.9449 | F49: 13813.83 | G49: 6.53
A50: BQMall.Q27.jvet10.ai | B50: 1598.4104 | C50: 39.8708 | D50: 42.3262 | E50: 43.629 | F50: 9756.23 | G50: 5.39
A51: BQMall.Q32.jvet10.ai | B51: 938.7264 | C51: 36.9574 | D51: 40.2062 | E51: 41.1553 | F51: 7518.58 | G51: 4.58
A52: BQMall.Q37.jvet10.ai | B52: 538.2864 | C52: 33.9508 | D52: 38.6345 | E52: 39.6386 | F52: 5100.32 | G52: 3.15
A53: PartyScene.Q22.jvet10.ai | B53: 5152.7913 | C53: 41.948 | D53: 42.4498 | E53: 43.516 | F53: 13872.72 | G53: 9.07
A54: PartyScene.Q27.jvet10.ai | B54: 3204.6222 | C54: 37.6731 | D54: 39.8219 | E54: 40.6806 | F54: 11979.28 | G54: 6.97
A55: PartyScene.Q32.jvet10.ai | B55: 1908.6333 | C55: 33.9514 | D55: 37.5046 | E55: 38.1285 | F55: 9960.45 | G55: 5.39
A56: PartyScene.Q37.jvet10.ai | B56: 1042.6008 | C56: 30.3292 | D56: 35.8899 | E56: 36.5171 | F56: 7722.92 | G56: 4.54
A57: RaceHorsesC.Q22.jvet10.ai | B57: 1779.9339 | C57: 43.2302 | D57: 43.2246 | E57: 44.3089 | F57: 7033.05 | G57: 3.49
A58: RaceHorsesC.Q27.jvet10.ai | B58: 1062.3268 | C58: 39.8398 | D58: 40.0996 | E58: 41.9148 | F58: 5425.05 | G58: 2.74
A59: RaceHorsesC.Q32.jvet10.ai | B59: 609.9237 | C59: 36.5349 | D59: 37.5745 | E59: 39.8585 | F59: 3654.47 | G59: 2.57
A60: RaceHorsesC.Q37.jvet10.ai | B60: 315.3995 | C60: 33.1464 | D60: 36.3675 | E60: 38.3765 | F60: 2902.69 | G60: 1.83
A61: BasketballPass.Q22.jvet10.ai | B61: 600.8571 | C61: 43.8845 | D61: 45.3278 | E61: 45.0348 | F61: 2871.17 | G61: 1.38
A62: BasketballPass.Q27.jvet10.ai | B62: 360.5984 | C62: 40.2989 | D62: 42.5822 | E62: 41.9806 | F62: 2278.79 | G62: 1.31
A63: BasketballPass.Q32.jvet10.ai | B63: 206.7278 | C63: 36.9253 | D63: 39.9151 | E63: 39.0187 | F63: 1818.71 | G63: 0.92
A64: BasketballPass.Q37.jvet10.ai | B64: 117.3198 | C64: 33.7665 | D64: 38.2943 | E64: 37.1869 | F64: 1145.75 | G64: 0.81
A65: BQSquare.Q22.jvet10.ai | B65: 1533.4336 | C65: 42.0033 | D65: 43.5097 | E65: 44.7103 | F65: 3920.12 | G65: 2.23
A66: BQSquare.Q27.jvet10.ai | B66: 979.6712 | C66: 37.5667 | D66: 41.2788 | E66: 42.4952 | F66: 3244.12 | G66: 1.86
A67: BQSquare.Q32.jvet10.ai | B67: 595.4272 | C67: 33.7368 | D67: 39.4321 | E67: 40.252 | F67: 2544.57 | G67: 1.45
A68: BQSquare.Q37.jvet10.ai | B68: 353.9984 | C68: 30.308 | D68: 37.9942 | E68: 38.7151 | F68: 1945.21 | G68: 1.15
A69: BlowingBubbles.Q22.jvet10.ai | B69: 1342.5714 | C69: 41.8802 | D69: 41.9475 | E69: 42.6967 | F69: 3718.24 | G69: 1.83
A70: BlowingBubbles.Q27.jvet10.ai | B70: 833.9 | C70: 37.5738 | D70: 39.2478 | E70: 39.726 | F70: 3335.2 | G70: 1.87
A71: BlowingBubbles.Q32.jvet10.ai | B71: 477.4952 | C71: 33.6615 | D71: 36.6299 | E71: 37.077 | F71: 2872.56 | G71: 1.63
A72: BlowingBubbles.Q37.jvet10.ai | B72: 248.0476 | C72: 30.0602 | D72: 35.1787 | E72: 35.6234 | F72: 2127.25 | G72: 1.12
A73: RaceHorses.Q22.jvet10.ai | B73: 524.3795 | C73: 43.6832 | D73: 42.7836 | E73: 43.9768 | F73: 1861.51 | G73: 0.95
A74: RaceHorses.Q27.jvet10.ai | B74: 321.6979 | C74: 39.6755 | D74: 39.7322 | E74: 41.25 | F74: 1556.19 | G74: 0.83
A75: RaceHorses.Q32.jvet10.ai | B75: 180.0134 | C75: 35.8029 | D75: 37.3661 | E75: 38.6787 | F75: 1291.97 | G75: 0.67
A76: RaceHorses.Q37.jvet10.ai | B76: 90.885 | C76: 32.2869 | D76: 35.9442 | E76: 37.0052 | F76: 916.74 | G76: 0.56
A77: FourPeople.Q22.jvet10.ai | B77: 3374.5504 | C77: 44.5797 | D77: 47.361 | E77: 48.5919 | F77: 21158.6 | G77: 11.65
A78: FourPeople.Q27.jvet10.ai | B78: 2068.36 | C78: 42.2164 | D78: 45.4471 | E78: 46.6362 | F78: 14930.26 | G78: 9.72
A79: FourPeople.Q32.jvet10.ai | B79: 1277.2968 | C79: 39.536 | D79: 43.4275 | E79: 44.4531 | F79: 10483.84 | G79: 8.52
A80: FourPeople.Q37.jvet10.ai | B80: 782.0992 | C80: 36.5099 | D80: 41.5357 | E80: 42.8174 | F80: 7144.81 | G80: 6.51
A81: Johnny.Q22.jvet10.ai | B81: 2353.6624 | C81: 44.794 | D81: 48.6441 | E81: 49.2863 | F81: 16851.38 | G81: 8.55
A82: Johnny.Q27.jvet10.ai | B82: 1288.5456 | C82: 42.7352 | D82: 47.0564 | E82: 47.5822 | F82: 10572.54 | G82: 6.99
A83: Johnny.Q32.jvet10.ai | B83: 721.448 | C83: 40.5384 | D83: 45.1512 | E83: 45.3267 | F83: 7249.02 | G83: 5.93
A84: Johnny.Q37.jvet10.ai | B84: 416.1936 | C84: 38.118 | D84: 43.0791 | E84: 43.9512 | F84: 4329.52 | G84: 5.13
A85: KristenAndSara.Q22.jvet10.ai | B85: 2496.2696 | C85: 45.1598 | D85: 47.9772 | E85: 48.9505 | F85: 14713.58 | G85: 9.31
A86: KristenAndSara.Q27.jvet10.ai | B86: 1494.012 | C86: 43.0563 | D86: 46.1576 | E86: 47.1471 | F86: 10690.27 | G86: 7.51
A87: KristenAndSara.Q32.jvet10.ai | B87: 900.8984 | C87: 40.6215 | D87: 44.2467 | E87: 44.9914 | F87: 7563.52 | G87: 6.69
A88: KristenAndSara.Q37.jvet10.ai | B88: 548.7512 | C88: 37.8894 | D88: 42.3799 | E88: 43.462 | F88: 4969.17 | G88: 5.75
A89: BasketballDrillText.Q22.jvet10.ai | B89: 2278.5548 | C89: 42.7769 | D89: 43.9564 | E89: 44.8723 | F89: 22839.35 | G89: 7.42
A90: BasketballDrillText.Q27.jvet10.ai | B90: 1296.6103 | C90: 39.4842 | D90: 41.5492 | E90: 42.264 | F90: 18762.02 | G90: 5.02
A91: BasketballDrillText.Q32.jvet10.ai | B91: 734.7524 | C91: 36.4647 | D91: 39.1459 | E91: 39.5422 | F91: 14187.8 | G91: 4.07
A92: BasketballDrillText.Q37.jvet10.ai | B92: 430.9095 | C92: 33.6433 | D92: 37.305 | E92: 37.4181 | F92: 8720.86 | G92: 2.77
A93: ArenaOfValor.Q22.jvet10.ai | B93: 12007.724 | C93: 45.0832 | D93: 45.1886 | E93: 45.8259 | F93: 131579.86 | G93: 41.59
A94: ArenaOfValor.Q27.jvet10.ai | B94: 7036.1616 | C94: 41.6044 | D94: 42.5135 | E94: 42.9097 | F94: 104449.48 | G94: 30.94
A95: ArenaOfValor.Q32.jvet10.ai | B95: 3972.7272 | C95: 38.3493 | D95: 39.898 | E95: 40.0301 | F95: 76375.39 | G95: 24.77
A96: ArenaOfValor.Q37.jvet10.ai | B96: 2257.1072 | C96: 35.2773 | D96: 38.2252 | E96: 38.2256 | F96: 47837.8 | G96: 18.47
A97: SlideEditing.Q22.jvet10.ai | B97: 2051.1276 | C97: 48.1084 | D97: 45.7088 | E97: 46.6144 | F97: 14985.59 | G97: 5.79
A98: SlideEditing.Q27.jvet10.ai | B98: 1515.2132 | C98: 44.2287 | D98: 42.6872 | E98: 43.8336 | F98: 15317.67 | G98: 5.42
A99: SlideEditing.Q32.jvet10.ai | B99: 1156.2829 | C99: 40.1897 | D99: 41.4551 | E99: 42.5797 | F99: 14239.01 | G99: 4.89
A100: SlideEditing.Q37.jvet10.ai | B100: 896.3163 | C100: 35.4808 | D100: 38.068 | E100: 39.2382 | F100: 13027.36 | G100: 4.05
A101: SlideShow.Q22.jvet10.ai | B101: 482.319 | C101: 51.4924 | D101: 53.5955 | E101: 54.7851 | F101: 11804.93 | G101: 5.11
A102: SlideShow.Q27.jvet10.ai | B102: 317.7029 | C102: 47.9239 | D102: 50.5685 | E102: 52.1953 | F102: 8747.62 | G102: 4.81
A103: SlideShow.Q32.jvet10.ai | B103: 212.1978 | C103: 44.4602 | D103: 47.8369 | E103: 49.7005 | F103: 7330.04 | G103: 4.27
A104: SlideShow.Q37.jvet10.ai | B104: 141.9752 | C104: 40.8427 | D104: 45.5641 | E104: 47.7191 | F104: 5816.27 | G104: 3.57
A105: Tango2.Q22.jvet10.ra | B105: 27819.8808 | C105: 40.3809 | D105: 49.2243 | E105: 47.5564 | F105: 1023143.73 | G105: 183.7
A106: Tango2.Q27.jvet10.ra | B106: 7559.52 | C106: 39.7076 | D106: 48.495 | E106: 46.351 | F106: 492705.64 | G106: 147.86
A107: Tango2.Q32.jvet10.ra | B107: 3625.2131 | C107: 38.8574 | D107: 47.4419 | E107: 44.843 | F107: 267110.9 | G107: 131.54
A108: Tango2.Q37.jvet10.ra | B108: 1976.9437 | C108: 37.5452 | D108: 46.4263 | E108: 43.4286 | F108: 149909.89 | G108: 115.14
A109: FoodMarket4.Q22.jvet10.ra | B109: 17029.8096 | C109: 44.2677 | D109: 49.246 | E109: 49.8943 | F109: 737688.96 | G109: 176.71
A110: FoodMarket4.Q27.jvet10.ra | B110: 7631.1856 | C110: 42.9415 | D110: 47.5996 | E110: 47.9744 | F110: 421351.04 | G110: 154.34
A111: FoodMarket4.Q32.jvet10.ra | B111: 3930.4032 | C111: 41.1167 | D111: 45.8267 | E111: 45.9682 | F111: 255770.63 | G111: 137.38
A112: FoodMarket4.Q37.jvet10.ra | B112: 2072.9952 | C112: 38.826 | D112: 44.1387 | E112: 44.217 | F112: 140747.35 | G112: 118.46
A113: CampfireParty2.Q22.jvet10.ra | B113: 58864.4936 | C113: 39.7557 | D113: 41.5389 | E113: 42.5434 | F113: 1760022.93 | G113: 274.63
A114: CampfireParty2.Q27.jvet10.ra | B114: 15338.128 | C114: 37.6204 | D114: 37.9775 | E114: 41.0064 | F114: 869465.12 | G114: 177.01
A115: CampfireParty2.Q32.jvet10.ra | B115: 6565.1984 | C115: 36.513 | D115: 35.575 | E115: 39.6784 | F115: 544548.03 | G115: 144.55
A116: CampfireParty2.Q37.jvet10.ra | B116: 3531.472 | C116: 35.1422 | D116: 33.8598 | E116: 38.2763 | F116: 330645.54 | G116: 124.02
A117: CatRobot1.Q22.jvet10.ra | B117: 33456.3744 | C117: 40.4543 | D117: 41.9111 | E117: 43.616 | F117: 855393.87 | G117: 198.98
A118: CatRobot1.Q27.jvet10.ra | B118: 8715.9472 | C118: 39.5373 | D118: 41.4213 | E118: 42.5727 | F118: 445022.67 | G118: 147.95
A119: CatRobot1.Q32.jvet10.ra | B119: 4113.1152 | C119: 38.3471 | D119: 40.7388 | E119: 41.2287 | F119: 266242.87 | G119: 127.54
A120: CatRobot1.Q37.jvet10.ra | B120: 2158.3088 | C120: 36.6844 | D120: 39.945 | E120: 39.7416 | F120: 163350.1 | G120: 111.63
A121: DaylightRoad2.Q22.jvet10.ra | B121: 58540.5264 | C121: 38.2223 | D121: 45.7474 | E121: 43.4991 | F121: 1235752.35 | G121: 225.41
A122: DaylightRoad2.Q27.jvet10.ra | B122: 10244.8224 | C122: 37.3108 | D122: 45.0169 | E122: 42.6906 | F122: 503097.72 | G122: 156.29
A123: DaylightRoad2.Q32.jvet10.ra | B123: 4122.288 | C123: 36.4179 | D123: 44.0274 | E123: 41.695 | F123: 298966.84 | G123: 137.15
A124: DaylightRoad2.Q37.jvet10.ra | B124: 2067.3568 | C124: 35.1027 | D124: 42.7855 | E124: 40.0965 | F124: 170370.84 | G124: 118.49
A125: ParkRunning3.Q22.jvet10.ra | B125: 107515.1547 | C125: 43.8225 | D125: 37.6378 | E125: 38.6303 | F125: 1551848.55 | G125: 317.19
A126: ParkRunning3.Q27.jvet10.ra | B126: 41654.5627 | C126: 39.8348 | D126: 34.7769 | E126: 36.1854 | F126: 892502.66 | G126: 266.69
A127: ParkRunning3.Q32.jvet10.ra | B127: 18218.6987 | C127: 36.5292 | D127: 32.8614 | E127: 34.5752 | F127: 602473.6 | G127: 203.86
A128: ParkRunning3.Q37.jvet10.ra | B128: 8141.5787 | C128: 33.5121 | D128: 31.333 | E128: 32.9604 | F128: 346901.74 | G128: 152.6
A129: MarketPlace.Q22.jvet10.ra | B129: 14348.4224 | C129: 40.9371 | D129: 44.4795 | E129: 45.3479 | F129: 482928.26 | G129: 111.74
A130: MarketPlace.Q27.jvet10.ra | B130: 5128.2512 | C130: 38.8205 | D130: 43.074 | E130: 44.0174 | F130: 264523.96 | G130: 79.55
A131: MarketPlace.Q32.jvet10.ra | B131: 2258.3384 | C131: 36.697 | D131: 41.7243 | E131: 42.5403 | F131: 171120.02 | G131: 67.6
A132: MarketPlace.Q37.jvet10.ra | B132: 1005.2128 | C132: 34.4226 | D132: 40.2712 | E132: 41.26 | F132: 103073.21 | G132: 56.71
A133: RitualDance.Q22.jvet10.ra | B133: 9220.632 | C133: 44.7754 | D133: 48.013 | E133: 48.7914 | F133: 418768.87 | G133: 105.34
A134: RitualDance.Q27.jvet10.ra | B134: 4580.588 | C134: 41.7043 | D134: 45.9449 | E134: 46.2585 | F134: 281362.83 | G134: 77.62
A135: RitualDance.Q32.jvet10.ra | B135: 2426.7128 | C135: 38.6959 | D135: 44.1581 | E135: 44.082 | F135: 192985.93 | G135: 65.95
A136: RitualDance.Q37.jvet10.ra | B136: 1278.3096 | C136: 35.7356 | D136: 42.2901 | E136: 42.4379 | F136: 119980.39 | G136: 53.07
A137: Cactus.Q22.jvet10.ra | B137: 14011.8656 | C137: 38.721 | D137: 40.2302 | E137: 44.1574 | F137: 411854.93 | G137: 88.26
A138: Cactus.Q27.jvet10.ra | B138: 4125.6368 | C138: 37.2209 | D138: 39.5365 | E138: 42.711 | F138: 210319.71 | G138: 61.6
A139: Cactus.Q32.jvet10.ra | B139: 1892.44 | C139: 35.5787 | D139: 38.81 | E139: 41.1164 | F139: 133453.8 | G139: 51.06
A140: Cactus.Q37.jvet10.ra | B140: 933.0032 | C140: 33.5266 | D140: 37.7429 | E140: 39.3936 | F140: 81509.18 | G140: 46.49
A141: BasketballDrive.Q22.jvet10.ra | B141: 14428.5392 | C141: 39.5287 | D141: 44.3335 | E141: 45.8944 | F141: 494365.74 | G141: 93.67
A142: BasketballDrive.Q27.jvet10.ra | B142: 4697.7504 | C142: 37.9625 | D142: 43.2327 | E142: 43.9794 | F142: 312221.72 | G142: 68.66
A143: BasketballDrive.Q32.jvet10.ra | B143: 2152.396 | C143: 36.3202 | D143: 42.0138 | E143: 42.1142 | F143: 186803.48 | G143: 58.4
A144: BasketballDrive.Q37.jvet10.ra | B144: 1076.236 | C144: 34.3837 | D144: 40.7828 | E144: 40.4209 | F144: 111894.99 | G144: 59.04
A145: BQTerrace.Q22.jvet10.ra | B145: 34006.9912 | C145: 37.6314 | D145: 42.6358 | E145: 44.9645 | F145: 613823.37 | G145: 163.19
A146: BQTerrace.Q27.jvet10.ra | B146: 5474.0312 | C146: 35.5323 | D146: 41.8152 | E146: 44.2575 | F146: 207187.48 | G146: 71.2
A147: BQTerrace.Q32.jvet10.ra | B147: 1693.0016 | C147: 34.269 | D147: 40.7414 | E147: 43.3423 | F147: 108979.73 | G147: 59.55
A148: BQTerrace.Q37.jvet10.ra | B148: 751.2064 | C148: 32.7633 | D148: 39.0709 | E148: 41.8937 | F148: 66558.45 | G148: 52.89
A149: BasketballDrill.Q22.jvet10.ra | B149: 2836.7192 | C149: 41.6738 | D149: 43.9814 | E149: 44.8398 | F149: 89096.43 | G149: 19.67
A150: BasketballDrill.Q27.jvet10.ra | B150: 1302.2424 | C150: 38.5887 | D150: 41.8013 | E150: 42.2335 | F150: 58970.25 | G150: 15.23
A151: BasketballDrill.Q32.jvet10.ra | B151: 648.0864 | C151: 35.7355 | D151: 39.7794 | E151: 40.018 | F151: 39041.9 | G151: 12.1
A152: BasketballDrill.Q37.jvet10.ra | B152: 332.4376 | C152: 33.0907 | D152: 38.108 | E152: 38.0758 | F152: 24093.58 | G152: 9.51
A153: BQMall.Q22.jvet10.ra | B153: 2949.3192 | C153: 40.7006 | D153: 44.2703 | E153: 45.9976 | F153: 79602.22 | G153: 21.41
A154: BQMall.Q27.jvet10.ra | B154: 1311.6152 | C154: 38.32 | D154: 42.6618 | E154: 43.9502 | F154: 50450.19 | G154: 16.29
A155: BQMall.Q32.jvet10.ra | B155: 661.4176 | C155: 35.7966 | D155: 40.8534 | E155: 41.7991 | F155: 33453.87 | G155: 13.4
A156: BQMall.Q37.jvet10.ra | B156: 343.9904 | C156: 33.1413 | D156: 39.2763 | E156: 40.1914 | F156: 22848.31 | G156: 12.21
A157: PartyScene.Q22.jvet10.ra | B157: 5632.568 | C157: 39.026 | D157: 42.392 | E157: 43.6171 | F157: 90271.9 | G157: 25.17
A158: PartyScene.Q27.jvet10.ra | B158: 2518.2784 | C158: 35.7109 | D158: 40.0181 | E158: 41.0678 | F158: 58251.05 | G158: 17.24
A159: PartyScene.Q32.jvet10.ra | B159: 1219.5248 | C159: 32.7458 | D159: 38.0479 | E159: 38.8603 | F159: 40317.68 | G159: 14.76
A160: PartyScene.Q37.jvet10.ra | B160: 587.1536 | C160: 29.9536 | D160: 36.3629 | E160: 37.1458 | F160: 27380.36 | G160: 12.03
A161: RaceHorsesC.Q22.jvet10.ra | B161: 4174.0368 | C161: 39.5544 | D161: 41.5645 | E161: 43.2514 | F161: 80207.52 | G161: 15.61
A162: RaceHorsesC.Q27.jvet10.ra | B162: 1694.4672 | C162: 36.453 | D162: 39.4175 | E162: 41.1989 | F162: 54297.89 | G162: 12.53
A163: RaceHorsesC.Q32.jvet10.ra | B163: 785.6688 | C163: 33.7853 | D163: 37.4809 | E163: 39.4467 | F163: 37401.71 | G163: 8.5
A164: RaceHorsesC.Q37.jvet10.ra | B164: 377.4504 | C164: 31.1461 | D164: 36.0935 | E164: 38.0328 | F164: 23183.04 | G164: 6.64
A165: BasketballPass.Q22.jvet10.ra | B165: 1255.2872 | C165: 41.5625 | D165: 44.6007 | E165: 43.6049 | F165: 24269.14 | G165: 6.18
A166: BasketballPass.Q27.jvet10.ra | B166: 591.4912 | C166: 37.5248 | D166: 42.0119 | E166: 40.4924 | F166: 17708.48 | G166: 4.7
A167: BasketballPass.Q32.jvet10.ra | B167: 295.3888 | C167: 34.2551 | D167: 39.927 | E167: 38.1132 | F167: 12636.09 | G167: 3.47
A168: BasketballPass.Q37.jvet10.ra | B168: 149.7744 | C168: 31.3609 | D168: 38.3638 | E168: 36.3266 | F168: 7975.65 | G168: 2.89
A169: BQSquare.Q22.jvet10.ra | B169: 1291.8 | C169: 38.6561 | D169: 44.1233 | E169: 45.4678 | F169: 24724.47 | G169: 6.69
A170: BQSquare.Q27.jvet10.ra | B170: 454.7704 | C170: 35.3853 | D170: 42.3382 | E170: 43.5101 | F170: 11867.74 | G170: 4.23
A171: BQSquare.Q32.jvet10.ra | B171: 205.744 | C171: 32.693 | D171: 40.4713 | E171: 41.5852 | F171: 7602.21 | G171: 3.46
A172: BQSquare.Q37.jvet10.ra | B172: 108.9616 | C172: 30.2149 | D172: 38.7776 | E172: 39.7915 | F172: 4816.54 | G172: 3.16
A173: BlowingBubbles.Q22.jvet10.ra | B173: 1368.096 | C173: 38.7805 | D173: 41.9794 | E173: 43.1265 | F173: 21442.46 | G173: 6.33
A174: BlowingBubbles.Q27.jvet10.ra | B174: 618.3624 | C174: 35.5793 | D174: 39.6104 | E174: 40.538 | F174: 14419.04 | G174: 4.21
A175: BlowingBubbles.Q32.jvet10.ra | B175: 300.916 | C175: 32.6791 | D175: 37.446 | E175: 38.15 | F175: 9579.34 | G175: 3.41
A176: BlowingBubbles.Q37.jvet10.ra | B176: 145.4216 | C176: 29.8728 | D176: 35.7582 | E176: 36.4147 | F176: 5754.24 | G176: 2.65
A177: RaceHorses.Q22.jvet10.ra | B177: 1006.0944 | C177: 40.1109 | D177: 41.8656 | E177: 43.084 | F177: 17878.6 | G177: 4.46
A178: RaceHorses.Q27.jvet10.ra | B178: 498.012 | C178: 36.5325 | D178: 39.2184 | E178: 40.504 | F178: 13178.24 | G178: 3.64
A179: RaceHorses.Q32.jvet10.ra | B179: 245.1456 | C179: 33.2488 | D179: 37.0946 | E179: 38.3999 | F179: 10034.73 | G179: 2.56
A180: RaceHorses.Q37.jvet10.ra | B180: 117.8712 | C180: 30.301 | D180: 35.6209 | E180: 36.8123 | F180: 6468.8 | G180: 2.02
A181: FourPeople.Q22.jvet10.ra
A182: FourPeople.Q27.jvet10.ra
A183: FourPeople.Q32.jvet10.ra
A184: FourPeople.Q37.jvet10.ra
A185: Johnny.Q22.jvet10.ra
A186: Johnny.Q27.jvet10.ra
A187: Johnny.Q32.jvet10.ra
A188: Johnny.Q37.jvet10.ra
A189: KristenAndSara.Q22.jvet10.ra
A190: KristenAndSara.Q27.jvet10.ra
A191: KristenAndSara.Q32.jvet10.ra
A192: KristenAndSara.Q37.jvet10.ra
A193: BasketballDrillText.Q22.jvet10.ra | B193: 2857.0272 | C193: 41.704 | D193: 43.9425 | E193: 44.766 | F193: 104446.71 | G193: 19.57
A194: BasketballDrillText.Q27.jvet10.ra | B194: 1338.0632 | C194: 38.5287 | D194: 41.5973 | E194: 42.0228 | F194: 67902.07 | G194: 16.78
A195: BasketballDrillText.Q32.jvet10.ra | B195: 676.9192 | C195: 35.6052 | D195: 39.4493 | E195: 39.691 | F195: 44110.16 | G195: 11.71
A196: BasketballDrillText.Q37.jvet10.ra | B196: 352.6512 | C196: 32.8773 | D196: 37.4946 | E196: 37.5409 | F196: 26518.14 | G196: 10.05
A197: ArenaOfValor.Q22.jvet10.ra | B197: 11775.9248 | C197: 43.6194 | D197: 45.2844 | E197: 45.7992 | F197: 389718.69 | G197: 94.14
A198: ArenaOfValor.Q27.jvet10.ra | B198: 5064.3488 | C198: 40.2698 | D198: 42.653 | E198: 42.9645 | F198: 234605.06 | G198: 71.89
A199: ArenaOfValor.Q32.jvet10.ra | B199: 2424.1952 | C199: 37.4392 | D199: 40.399 | E199: 40.5708 | F199: 156143.01 | G199: 59.13
A200: ArenaOfValor.Q37.jvet10.ra | B200: 1220.9088 | C200: 34.765 | D200: 38.6627 | E200: 38.7124 | F200: 98694.93 | G200: 54.02
... 216 more rows
